Workbook

Sheet Forside & veiledning
B2: INTRODUKSJON TIL INVESTERINGSMODELL FOR FOREBYGGENDE TILTAK
B4: Innledning
B6: Modellen har som formål å gi kommuner og fylkeskommuner mulighet til å ta langsiktige investeringsbeslutninger, samt gjøre det enklere å se de samlede kostnader og gevinster ved forebygging hos de enkelte aktørene og for hele samfunnet. Den skal også kunne fungere som et dialogverktøy som gjør det mulig å finne nye løsninger på tvers av sektorer og forvaltningsnivåer. Beregningsmodellen er en budsjettøkonomisk modell som viser verdien av å investere i forebyggende tiltak rettet mot barn og unge i kommunene. Modellen tar utgangspunkt i en rekke målgrupper og selvoppgitte tiltak, og regner deretter sparte kostnader for kommunen, staten og fylkeskommunen. Den viser ikke samfunnsøkonomiske kostnader eller gevinster som f.eks. høyere lønnsinntekt eller økt livskvalitet. Modellen kan brukes av alle som har en oppfatning av et forebyggende tiltak og informasjon om tiltakets målgruppe, kostnader og suksessrate.
B9: Modellen inneholder kostnader og gevinster fordelt på følgende overordnede områder:
B10: Stønader
B11: Skattebetaling fra inntekt (lønnsinntekt, kapitalinntekt, arbeidsgiveravgift og stønader)
B12: Utdanning
B13: Kriminalomsorg
B14: Barnevern
B15: Helsetjenester
B16: Kostnadene knyttet til tiltaket
B19: Veiledning for bruk av modellen
B21: Modellen brukes ved å fylle ut de tre første delene som er spesifikt for tiltaket som vurderes implementert:
B23: 1. Valg av målgruppe | D23: 2. Definere tiltaket | G23: 3. Vurdere kostnader knyttet til tiltaket | K23: 4. Resultater
B37: For å navigere i modellen kan knappene "Neste" og "Forrige" benyttes, som er nederst på alle sidene.

Sheet 1. Målgruppe
B2: INPUTDATA
B4: I denne fanen skal du definere målgruppen for tiltaket i din kommune. Det gjøres ved å velge den mest relevante målgruppen i hver kategori. Hvis du ønsker en utdyping av hvordan målgruppen er definert, klikk på det lille spørsmålstegnet ved siden av målgruppen:
B6: VELG MÅLGRUPPE OG ALDERSGRUPPE I TILTAKET
B7: Her velger du målgruppe. Med målgruppe mener vi hvilken gruppe barn tiltaket rettes inn mot. Du kan kun velge en målgruppe.
C9: Barn i lavinntektsfamilier hvor barnet er norskfødt med innvandrerforeldre | O9: Liste med OK kombinasjoner (KUN 2) | P9: kontinuerlig rekke
O10: 1 | P10: 1 | Q10: 25
C11: Barn i lavinntektsfamilier hvor en av eller begge foreldrene mottar uføretrygd eller økonomisk sosialhjelp | O11: 12 | P11: 1.5
O12: 2 | P12: 2 | Q12: 27
C13: Unge som har står i fare for å ikke fullføre videregående opplæring på normert + 2 års tid | O13: 23 | P13: 2.5
O14: 3 | P14: 3 | Q14: 29
C15: Barn med hjelpetiltak i barnevernet | O15: 34 | P15: 3.5
O16: 4 | P16: 4 | Q16: 31
C17: Barn som har foreldre med diagnose innen psykiske lidelser eller rusmiddelproblem | O17: 45 | P17: 4.5
O18: 5 | P18: 5 | Q18: 33
C19: Barn diagnostisert med depresjon eller angst | O19: 56 | P19: 5.5
O20: 6 | P20: 6 | Q20: 35
C21: Barn diagnostisert med adferdsvansker
B23: Her velger aldersgruppe for målgruppen. Du kan velge én eller to aldersgrupper, men vi anbefaler å velge én.
B24: Hvis du krysser av i to bokser kan du kun velge aldersgrupper som kommer etter hverandre. For eksempel er det ikke mulig å velge gruppene 0-2 år og 10-12 år.
C26: 0-2 år | D26: (Barnehage-liten) | N26: FALSE | O26: =IF(N26=TRUE,1,"") -> 
C28: 3-5 år | D28: (Barnehage-stor) | N28: FALSE | O28: =IF(N28=TRUE,2,"") -> 
C30: 6-9 år | D30: (Småtrinn) | N30: FALSE | O30: =IF(N30=TRUE,3,"") -> 
C32: 10-12 år | D32: (Mellomtrinn) | K32: Valgt målgruppe: | L32: 0 | N32: FALSE | O32: =IF(N32=TRUE,4,"") -> 
K33: Valgt aldersgruppe | L33: =IF(COUNTIF(O10:O20,O37)=1,P38,0) -> 0
C34: 13-15 år | D34: (Ungdomstrinn) | K34: Valgt sam.lign.gr.: | L34: 1 | N34: FALSE | O34: =IF(N34=TRUE,5,"") -> 
K35: Valideringsboks: | L35: =IF(OR(L32=0,L34=0,AND(L32=3,L33<>6)),0,1) -> 0
C36: 16-19 år | D36: (Videregående opplæring) | K36: Alt OK | L36: =IF(AND(L33<>0,L35=1),1,0) -> 0 | N36: FALSE | O36: =IF(N36=TRUE,6,"") -> 
O37: =O26&O28&O30&O32&O34&O36 -> 
O38: =VALUE(O37) ->  | P38: =VLOOKUP(O38,O10:P20,2,0) -> 

Sheet 2. Innsatsen
B2: INPUTDATA
B4: I denne fanen defineres hvilket tiltak målgruppen får. Skriv først et navn på tiltaket og deretter må den forventede suksessraten ved tilltaket defineres. Hvis det er noe du er i tvil om, kan du finne utdypende forklaringer ved å klikke på spørsmåltstegnet ved siden av boksene:
B8: SPESIFISER TILTAKET FOR DEN VALGTE MÅLGRUPPEN: | D8: =Forudsetninger!E17 -> Ingen Målgruppe valgt
B10: Skriv et navn på tiltaket (frivillig - ikke nødvendig for beregningene)
B22: Her regner vi ut suksessraten. Suksessraten defineres som andelen som går fra å være en del av målgruppen til å være en del av "gjennomsnittet av befolkningen" som følge av tiltaket. I de to boksene under skal det fylles inn hva den forventede suksessraten for tiltaket er.
B24: Oppgi i prosent hvor mange av målgruppen som forventes å bli en del av "gjennomsnittet av befolkningen" uten tiltaket: | E24: Her skal det stå et tall mellom 0 % og 100 %. | L24: =IF(OR(D24="",D26=""),1,0) -> 1
B26: Oppgi i prosent hvor mange av målgruppen som forventes å bli en del av "gjennomsnittet av befolkningen" etter å ha mottatt/deltatt i tiltaket: | E26: Her skal det stå et tall mellom 0 % og 100 %.
B28: Suksessraten | D28: =IF(AND(D24<>"",D26<>""),D26-D24,"") ->  | E28: =IF(D28<0,"Du har nå valgt en negativ suksessrate. Det betyr at tiltaket fører til at færre får det bedre etter tiltaket. Vurdér å fylle inn på nytt","") -> 

Sheet 3. Kostnader
B2: INPUTDATA
B4: I denne fanen skal tiltakets kostnader, antall deltagere og lengde fylles inn. Hvis det er noe du er i tvil om, kan du finne utdypende forklaringer ved å klikke på spørsmålstegnet:
B7: SPESIFISER STARTÅR OG ANTALL ÅR MED TILTAK FOR MÅLGRUPPEN: | F7: =Forudsetninger!E17 -> Ingen Målgruppe valgt | Z7: 1. Får vi noe effekt hvis vi har 0 år? JA I boblen: - nei I slike tilfeller fyller man inn "0" i "Hvor mange år varer hvert enkelt tiltak". Hvis kommunen setter i gang dette tiltaket hver måned i to år, fyller man inn "2" i "Hvor mange år arrangerer kommunen tiltaket", og "0" i Hvor mange år varer hvert enkelt tiltak". I den påfølgende tabellen hvor man skal fylle inn hvor mange barn/unge som hvert år forventes å begynne på tiltaket, fyller man inn hvor mange barn/unge som starter på tiltak de første fem månedene i startåret. For det neste året fyller man inn antallet som starter på tiltak den sjette måneden og fram til den 17'ende måneden, og for Jeg tror vi må ha minimum 1 år i varighet. Hvis vi åpner for varighet = 0, må vi legge inn at det kommer to grupper: 0-0,4 + 0,5-1. I noen tilfeller har tiltakene kort varighet, f.eks. en måned. Klikk her for instruks om hvordan man da fyller inn informasjonen: I boblen: I tilfeller hvor man har korte tiltak, f.eks. en måned, må man samle antall barn/unge på tiltakene til nærmeste hele årstall. Hvis tiltaket varer en måned og kommunen kjører slike tiltak i tre år, fyller man inn antall deltagere for de første 12 kursene de første 12 månedene i år 1 (årstallet tiltaket gjennomføres for første gang), de neste 12 gruppene i året etter det og de siste 12 gruppene i det siste året tiltaket gjennomføres. 2. Sjekk årstall for antall barn/unge som starter i tiltaket v/ 0 varighet opp mot effekt.
B8: Her skal det fylles inn når tiltaket gjennomføres for første gang, hvor lenge kommunen arrangerer tiltaket og hvor lenge hvert enkelt tiltak varer. Med hvor lenge kommunen arrangerer tiltaket menes hvor mange år kommunen arrangerer tiltak av denne typen. Hvis en runde med tiltaket varer et år, og tiltaket arrangeres i tre runder, skal det fylles inn tre år.
B9: Tast inn årstallet tiltaket gjennomføres for første gang | E9: 2019 | F9: - Her skal det fylles inn det årstallet som tiltaket forventes å starte i, f.eks. 2019. OBS! Kan ikke starte tidligere enn 2019
B11: Hvor mange år arrangerer kommunen tiltaket? | F11: år - F.eks. fyller man inn "3" hvis kommunen totalt planlegger å være i gang med projektet i 3 år.
B13: Hvor mange år varer hvert enkelt tiltak? | F13: år - Her fyller man inn hele antall år. Skriv f.eks. "1" hvis tiltaket strekker seg over 1 år eller mindre for deltagerne.
F14: Innsatsens varighet per gruppe forteller også når innsatsen har effekt.
F15: En varighet på tre år og første år med innsatsen er 2019, forteller det oss at effektstarten, altså når innsatsen har effekt, er i 2022.
B16: Her skal det fylles inn hele tall, f.eks. 5, hvis det forventes at 5 nye barn begynner på tiltaket det valgte året.
B17: Fyll inn antallet nye barn/unge som hvert år forventes å begynne på tiltaket
C18: =IF($E$9<>"",$E$9,"") -> 2019 | D18: =IF(AND(C18<>"",$E$11>1),C18+1,"") ->  | E18: =IF(AND(D18<>"",$E$11+1>2,$E$11>2),D18+1,"") ->  | F18: =IF(AND(E18<>"",$E$11+1>3,$E$11>3),E18+1,"") ->  | G18: =IF(AND(F18<>"",$E$11+1>4,$E$11>4),F18+1,"") ->  | H18: =IF(AND(G18<>"",$E$11+1>5,$E$11>5),G18+1,"") ->  | I18: =IF(AND(H18<>"",$E$11+6>1,$E$11>6),H18+1,"") -> 
B19: Antall nye barn/unge i tiltaket
B22: KOSTNADER KNYTTET TIL TILTAKET
B24: Her skal det fylles inn de samlede forventede kostnadene for kommunen/fylkeskommune/stat for hvert år tiltaket kjører. Kostnader/utgifter skrives i positive tall.
B26: Samlede kostnader i alt pr. år for tiltakene (NOK pr. år)
C27: =IF($E$9<>"",$E$9,"") -> 2019 | D27: =IF(AND(C27<>"",$E$11>1),C27+1,"") ->  | E27: =IF(AND(D27<>"",$E$11>2),D27+1,"") ->  | F27: =IF(AND(E27<>"",$E$11>3),E27+1,"") ->  | G27: =IF(AND(F27<>"",$E$11>4),F27+1,"") ->  | H27: =IF(AND(G27<>"",$E$11>5),G27+1,"") ->  | I27: =IF(AND(H27<>"",$E$11>6),H27+1,"") -> 
B28: Kommunen
B29: Fylkeskommunen
B30: Staten
B32: Her skal det fylles inn de samlede forventede kostnadene som faller bort for kommunen/fylkeskommune/stat for hvert år tiltaket kjører. Med dette menes tilskudd, tiltak, eller lignende,
B33: og ikke reduserte kostnader knyttet til f.eks. kriminalomsorg eller stønader. Bortfalte kostnader/utgifter skrives i positive tall.
B34: Samlede kostnader/utgifter som faller bort ved innføringen av tiltakene (NOK pr. år)
C35: =IF($E$9<>"",$E$9,"") -> 2019 | D35: =IF(AND(C35<>"",$E$11>1),C35+1,"") ->  | E35: =IF(AND(D35<>"",$E$11>2),D35+1,"") ->  | F35: =IF(AND(E35<>"",$E$11>3),E35+1,"") ->  | G35: =IF(AND(F35<>"",$E$11>4),F35+1,"") ->  | H35: =IF(AND(G35<>"",$E$11>5),G35+1,"") ->  | I35: =IF(AND(H35<>"",E11>6),H35+1,"") -> 
B36: Kommunen
B37: Fylkeskommunen
B38: Staten

Sheet 4. Resultat
B2: RESULTATER
B4: I denne fanen vises resultatene fra beregningene til investeringsmodellen. I boksen under kan det velges hvilken periode beregningene skal lages for.
B5: Hvis det er noe du er i tvil om, kan du finne utdypende forklaringer ved at klikke på spørsmålstegnet:
B7: FYLL INN HVILKEN PERIODE ANALYSEN SKAL REGNES OVER
B9: Her velges det hvilken periode analysen skal regnes over. Det kan minimum velges 4 år og maksimalt 40 år. Det kan med fordel kan velges en lang analyseperiode, da det her er mulig å se hvor lang tid det skal gå før projektet har "finansiert seg selv" (break-even). Merk at jo lenger tidshorisont, desto mer usikre tall.
B12: For hvilken periode ønskes resultatene regnet for: | E12: Startår | F12: ='3. Kostnader'!E9 -> 2019
E13: Sluttår | F13: =F12+39 -> 2058
F14: =F13-F12+1 -> 40 | G14: år
B16: Den valgte målgruppen som ses opp mot gjennomsnittet av befolkningen er:
B17: =CONCATENATE(Forudsetninger!E17," for aldersgruppen ",Forudsetninger!E18,".") -> 
B19: =CONCATENATE("Med den valgte aldersgruppen og den valgte perioden resultatene ønskes regnet for, får man her aldersspennet ",Forudsetninger!D24-Forudsetninger!D23," til ",F14+(Forudsetninger!D24-Forudsetninger!D23+Forudsetninger!G18)," år.") -> 
B21: =CONCATENATE("Samlet nettogevinst for perioden ",F12,"-",F13) -> Samlet nettogevinst for perioden 2019-2058
B23: Denne delen viser den samlede nettogevinsten for tiltaket for den valgte perioden. En positiv nettogevinst betyr at tiltaket sparer aktørerne for verdiens beløp i løpet av hele analyseperioden sammenlignet med å ikke ha gjennomført tiltaket. Hvis tallet er negativt, sier modellen at tiltaket ikke lønner seg finansielt. Videre forteller samlet nettogevinst oss hvor mye vi «sitter igjen med» etter å ha trukket fra alle kostnader. Den inneholder også utgifter til de som «ikke lykkes» (altså ikke går fra målgruppen til "gjennomsnittet til befolkningen"). Når vi får en positiv nettogevinst forteller det oss altså at gevinstene fra de som lykkes overgår kostnadene til de som «ikke lykkes». Motsatt gjelder ved negativ nettogevinst. Figuren viser den samlede nettogevinsten for alle aktørene, samt oppdelt på de tre aktørene.
F25: ="Figur: Nettogevinst for tiltaket fordelt på aktører for tiltaket i "&YEAR(TODAY())&"-kroner. Beregningen er gjort for en periode på "&F14&" "&G14&"." -> Figur: Nettogevinst for tiltaket fordelt på aktører for tiltaket i 2019-kroner. Beregningen er gjort for en periode på 40 år.
C27: Samlet | D27: Pr. deltager
B28: I alt | C28: =Nåverdiberegning!D47 -> 0 | D28: =Nåverdiberegning!D48 -> 
B29: Kommunen | C29: =Nåverdiberegning!D76 -> 0 | D29: =Nåverdiberegning!D77 -> 
B30: Fylkeskommunen | C30: =Nåverdiberegning!D105 -> 0 | D30: =Nåverdiberegning!D106 -> 
B31: Staten | C31: =Nåverdiberegning!D134 -> 0 | D31: =Nåverdiberegning!D135 -> 
AH42: Tiltaket har en positiv nettogevinst. Det vil si at tiltaket har større fremtidige gevinster enn kostnader knyttet til implementering/arrangering av tiltaket og andre eventuelle fremtidige kostnader.
B43: Konklusjon: | C43: =IF(C28>0,AH42,AH44) -> Tiltaket har en negativ nettogevinst. Det vil si at tiltaket har større kostnader knyttet til implementering/arrangering av tiltaket og andre eventuelle fremtidige kostnader enn de fremtidige gevinstene. Ser man kun på resultatene i modellen bør ikke tiltaket gjennomføres. | AH43: Sett fra et budsjettøkonomisk perspektiv bør et slikt prosjekt gjennomføres, gitt at det ikke er andre prosjekt som er mer lønnsomme.
C44: =IF(C28>0,AH43,AH45) -> Samtidig er det viktig å presisere at modellen ikke fanger opp alle virkninger. Det er rimelig å anta at det finnes andre gevinster som ikke er med i modellen. | AH44: Tiltaket har en negativ nettogevinst. Det vil si at tiltaket har større kostnader knyttet til implementering/arrangering av tiltaket og andre eventuelle fremtidige kostnader enn de fremtidige gevinstene. Ser man kun på resultatene i modellen bør ikke tiltaket gjennomføres.
AH45: Samtidig er det viktig å presisere at modellen ikke fanger opp alle virkninger. Det er rimelig å anta at det finnes andre gevinster som ikke er med i modellen.
B47: Break-even analyse
B49: Dette avsnittet viser en break-even analyse som forteller antall år det må gå før tiltaket betaler seg selv. Den blå streken indikerer samfunnets break even. I tabellen kan man se break even for de ulike forvaltningsnivåene.
C51: =F12 -> 2019 | D51: =IF(C51="","",IF(C51+1<=$F$13,C51+1,"")) -> 2020 | E51: =IF(D51="","",IF(D51+1<=$F$13,D51+1,"")) -> 2021 | F51: =IF(E51="","",IF(E51+1<=$F$13,E51+1,"")) -> 2022 | G51: =IF(F51="","",IF(F51+1<=$F$13,F51+1,"")) -> 2023 | H51: =IF(G51="","",IF(G51+1<=$F$13,G51+1,"")) -> 2024 | I51: =IF(H51="","",IF(H51+1<=$F$13,H51+1,"")) -> 2025 | J51: =IF(I51="","",IF(I51+1<=$F$13,I51+1,"")) -> 2026 | K51: =IF(J51="","",IF(J51+1<=$F$13,J51+1,"")) -> 2027 | L51: =IF(K51="","",IF(K51+1<=$F$13,K51+1,"")) -> 2028 | M51: =IF(L51="","",IF(L51+1<=$F$13,L51+1,"")) -> 2029 | N51: =IF(M51="","",IF(M51+1<=$F$13,M51+1,"")) -> 2030 | O51: =IF(N51="","",IF(N51+1<=$F$13,N51+1,"")) -> 2031 | P51: =IF(O51="","",IF(O51+1<=$F$13,O51+1,"")) -> 2032 | Q51: =IF(P51="","",IF(P51+1<=$F$13,P51+1,"")) -> 2033 | R51: =IF(Q51="","",IF(Q51+1<=$F$13,Q51+1,"")) -> 2034 | S51: =IF(R51="","",IF(R51+1<=$F$13,R51+1,"")) -> 2035 | T51: =IF(S51="","",IF(S51+1<=$F$13,S51+1,"")) -> 2036 | U51: =IF(T51="","",IF(T51+1<=$F$13,T51+1,"")) -> 2037 | V51: =IF(U51="","",IF(U51+1<=$F$13,U51+1,"")) -> 2038 | W51: =IF(V51="","",IF(V51+1<=$F$13,V51+1,"")) -> 2039 | X51: =IF(W51="","",IF(W51+1<=$F$13,W51+1,"")) -> 2040 | Y51: =IF(X51="","",IF(X51+1<=$F$13,X51+1,"")) -> 2041 | Z51: =IF(Y51="","",IF(Y51+1<=$F$13,Y51+1,"")) -> 2042 | AA51: =IF(Z51="","",IF(Z51+1<=$F$13,Z51+1,"")) -> 2043 | AB51: =IF(AA51="","",IF(AA51+1<=$F$13,AA51+1,"")) -> 2044 | AC51: =IF(AB51="","",IF(AB51+1<=$F$13,AB51+1,"")) -> 2045 | AD51: =IF(AC51="","",IF(AC51+1<=$F$13,AC51+1,"")) -> 2046 | AE51: =IF(AD51="","",IF(AD51+1<=$F$13,AD51+1,"")) -> 2047 | AF51: =IF(AE51="","",IF(AE51+1<=$F$13,AE51+1,"")) -> 2048 | AG51: =IF(AF51="","",IF(AF51+1<=$F$13,AF51+1,"")) -> 2049 | AH51: =IF(AG51="","",IF(AG51+1<=$F$13,AG51+1,"")) -> 2050 | AI51: =IF(AH51="","",IF(AH51+1<=$F$13,AH51+1,"")) -> 2051 | AJ51: =IF(AI51="","",IF(AI51+1<=$F$13,AI51+1,"")) -> 2052 | AK51: =IF(AJ51="","",IF(AJ51+1<=$F$13,AJ51+1,"")) -> 2053 | AL51: =IF(AK51="","",IF(AK51+1<=$F$13,AK51+1,"")) -> 2054 | AM51: =IF(AL51="","",IF(AL51+1<=$F$13,AL51+1,"")) -> 2055 | AN51: =IF(AM51="","",IF(AM51+1<=$F$13,AM51+1,"")) -> 2056 | AO51: =IF(AN51="","",IF(AN51+1<=$F$13,AN51+1,"")) -> 2057 | AP51: =IF(AO51="","",IF(AO51+1<=$F$13,AO51+1,"")) -> 2058
B52: I alt: Break-even | C52: =IFERROR(INDEX(Nåverdiberegning!$B$13:$AS$49,MATCH($B52,Nåverdiberegning!$B$13:$B$49,0),MATCH(C$51,Nåverdiberegning!$B$13:$AS$13,0)),0) -> 0 | D52: =IFERROR(INDEX(Nåverdiberegning!$B$13:$AS$49,MATCH($B52,Nåverdiberegning!$B$13:$B$49,0),MATCH(D$51,Nåverdiberegning!$B$13:$AS$13,0)),0) -> 0 | E52: =IFERROR(INDEX(Nåverdiberegning!$B$13:$AS$49,MATCH($B52,Nåverdiberegning!$B$13:$B$49,0),MATCH(E$51,Nåverdiberegning!$B$13:$AS$13,0)),0) -> 0 | F52: =IFERROR(INDEX(Nåverdiberegning!$B$13:$AS$49,MATCH($B52,Nåverdiberegning!$B$13:$B$49,0),MATCH(F$51,Nåverdiberegning!$B$13:$AS$13,0)),0) -> 0 | G52: =IFERROR(INDEX(Nåverdiberegning!$B$13:$AS$49,MATCH($B52,Nåverdiberegning!$B$13:$B$49,0),MATCH(G$51,Nåverdiberegning!$B$13:$AS$13,0)),0) -> 0 | H52: =IFERROR(INDEX(Nåverdiberegning!$B$13:$AS$49,MATCH($B52,Nåverdiberegning!$B$13:$B$49,0),MATCH(H$51,Nåverdiberegning!$B$13:$AS$13,0)),0) -> 0 | I52: =IFERROR(INDEX(Nåverdiberegning!$B$13:$AS$49,MATCH($B52,Nåverdiberegning!$B$13:$B$49,0),MATCH(I$51,Nåverdiberegning!$B$13:$AS$13,0)),0) -> 0 | J52: =IFERROR(INDEX(Nåverdiberegning!$B$13:$AS$49,MATCH($B52,Nåverdiberegning!$B$13:$B$49,0),MATCH(J$51,Nåverdiberegning!$B$13:$AS$13,0)),0) -> 0 | K52: =IFERROR(INDEX(Nåverdiberegning!$B$13:$AS$49,MATCH($B52,Nåverdiberegning!$B$13:$B$49,0),MATCH(K$51,Nåverdiberegning!$B$13:$AS$13,0)),0) -> 0 | L52: =IFERROR(INDEX(Nåverdiberegning!$B$13:$AS$49,MATCH($B52,Nåverdiberegning!$B$13:$B$49,0),MATCH(L$51,Nåverdiberegning!$B$13:$AS$13,0)),0) -> 0 | M52: =IFERROR(INDEX(Nåverdiberegning!$B$13:$AS$49,MATCH($B52,Nåverdiberegning!$B$13:$B$49,0),MATCH(M$51,Nåverdiberegning!$B$13:$AS$13,0)),0) -> 0 | N52: =IFERROR(INDEX(Nåverdiberegning!$B$13:$AS$49,MATCH($B52,Nåverdiberegning!$B$13:$B$49,0),MATCH(N$51,Nåverdiberegning!$B$13:$AS$13,0)),0) -> 0 | O52: =IFERROR(INDEX(Nåverdiberegning!$B$13:$AS$49,MATCH($B52,Nåverdiberegning!$B$13:$B$49,0),MATCH(O$51,Nåverdiberegning!$B$13:$AS$13,0)),0) -> 0 | P52: =IFERROR(INDEX(Nåverdiberegning!$B$13:$AS$49,MATCH($B52,Nåverdiberegning!$B$13:$B$49,0),MATCH(P$51,Nåverdiberegning!$B$13:$AS$13,0)),0) -> 0 | Q52: =IFERROR(INDEX(Nåverdiberegning!$B$13:$AS$49,MATCH($B52,Nåverdiberegning!$B$13:$B$49,0),MATCH(Q$51,Nåverdiberegning!$B$13:$AS$13,0)),0) -> 0 | R52: =IFERROR(INDEX(Nåverdiberegning!$B$13:$AS$49,MATCH($B52,Nåverdiberegning!$B$13:$B$49,0),MATCH(R$51,Nåverdiberegning!$B$13:$AS$13,0)),0) -> 0 | S52: =IFERROR(INDEX(Nåverdiberegning!$B$13:$AS$49,MATCH($B52,Nåverdiberegning!$B$13:$B$49,0),MATCH(S$51,Nåverdiberegning!$B$13:$AS$13,0)),0) -> 0 | T52: =IFERROR(INDEX(Nåverdiberegning!$B$13:$AS$49,MATCH($B52,Nåverdiberegning!$B$13:$B$49,0),MATCH(T$51,Nåverdiberegning!$B$13:$AS$13,0)),0) -> 0 | U52: =IFERROR(INDEX(Nåverdiberegning!$B$13:$AS$49,MATCH($B52,Nåverdiberegning!$B$13:$B$49,0),MATCH(U$51,Nåverdiberegning!$B$13:$AS$13,0)),0) -> 0 | V52: =IFERROR(INDEX(Nåverdiberegning!$B$13:$AS$49,MATCH($B52,Nåverdiberegning!$B$13:$B$49,0),MATCH(V$51,Nåverdiberegning!$B$13:$AS$13,0)),0) -> 0 | W52: =IFERROR(INDEX(Nåverdiberegning!$B$13:$AS$49,MATCH($B52,Nåverdiberegning!$B$13:$B$49,0),MATCH(W$51,Nåverdiberegning!$B$13:$AS$13,0)),0) -> 0 | X52: =IFERROR(INDEX(Nåverdiberegning!$B$13:$AS$49,MATCH($B52,Nåverdiberegning!$B$13:$B$49,0),MATCH(X$51,Nåverdiberegning!$B$13:$AS$13,0)),0) -> 0 | Y52: =IFERROR(INDEX(Nåverdiberegning!$B$13:$AS$49,MATCH($B52,Nåverdiberegning!$B$13:$B$49,0),MATCH(Y$51,Nåverdiberegning!$B$13:$AS$13,0)),0) -> 0 | Z52: =IFERROR(INDEX(Nåverdiberegning!$B$13:$AS$49,MATCH($B52,Nåverdiberegning!$B$13:$B$49,0),MATCH(Z$51,Nåverdiberegning!$B$13:$AS$13,0)),0) -> 0 | AA52: =IFERROR(INDEX(Nåverdiberegning!$B$13:$AS$49,MATCH($B52,Nåverdiberegning!$B$13:$B$49,0),MATCH(AA$51,Nåverdiberegning!$B$13:$AS$13,0)),0) -> 0 | AB52: =IFERROR(INDEX(Nåverdiberegning!$B$13:$AS$49,MATCH($B52,Nåverdiberegning!$B$13:$B$49,0),MATCH(AB$51,Nåverdiberegning!$B$13:$AS$13,0)),0) -> 0 | AC52: =IFERROR(INDEX(Nåverdiberegning!$B$13:$AS$49,MATCH($B52,Nåverdiberegning!$B$13:$B$49,0),MATCH(AC$51,Nåverdiberegning!$B$13:$AS$13,0)),0) -> 0 | AD52: =IFERROR(INDEX(Nåverdiberegning!$B$13:$AS$49,MATCH($B52,Nåverdiberegning!$B$13:$B$49,0),MATCH(AD$51,Nåverdiberegning!$B$13:$AS$13,0)),0) -> 0 | AE52: =IFERROR(INDEX(Nåverdiberegning!$B$13:$AS$49,MATCH($B52,Nåverdiberegning!$B$13:$B$49,0),MATCH(AE$51,Nåverdiberegning!$B$13:$AS$13,0)),0) -> 0 | AF52: =IFERROR(INDEX(Nåverdiberegning!$B$13:$AS$49,MATCH($B52,Nåverdiberegning!$B$13:$B$49,0),MATCH(AF$51,Nåverdiberegning!$B$13:$AS$13,0)),0) -> 0 | AG52: =IFERROR(INDEX(Nåverdiberegning!$B$13:$BC$49,MATCH($B52,Nåverdiberegning!$B$13:$B$49,0),MATCH(AG$51,Nåverdiberegning!$B$13:$BC$13,0)),0) -> 0 | AH52: =IFERROR(INDEX(Nåverdiberegning!$B$13:$BC$49,MATCH($B52,Nåverdiberegning!$B$13:$B$49,0),MATCH(AH$51,Nåverdiberegning!$B$13:$BC$13,0)),0) -> 0 | AI52: =IFERROR(INDEX(Nåverdiberegning!$B$13:$BC$49,MATCH($B52,Nåverdiberegning!$B$13:$B$49,0),MATCH(AI$51,Nåverdiberegning!$B$13:$BC$13,0)),0) -> 0 | AJ52: =IFERROR(INDEX(Nåverdiberegning!$B$13:$BC$49,MATCH($B52,Nåverdiberegning!$B$13:$B$49,0),MATCH(AJ$51,Nåverdiberegning!$B$13:$BC$13,0)),0) -> 0 | AK52: =IFERROR(INDEX(Nåverdiberegning!$B$13:$BC$49,MATCH($B52,Nåverdiberegning!$B$13:$B$49,0),MATCH(AK$51,Nåverdiberegning!$B$13:$BC$13,0)),0) -> 0 | AL52: =IFERROR(INDEX(Nåverdiberegning!$B$13:$BC$49,MATCH($B52,Nåverdiberegning!$B$13:$B$49,0),MATCH(AL$51,Nåverdiberegning!$B$13:$BC$13,0)),0) -> 0 | AM52: =IFERROR(INDEX(Nåverdiberegning!$B$13:$BC$49,MATCH($B52,Nåverdiberegning!$B$13:$B$49,0),MATCH(AM$51,Nåverdiberegning!$B$13:$BC$13,0)),0) -> 0 | AN52: =IFERROR(INDEX(Nåverdiberegning!$B$13:$BC$49,MATCH($B52,Nåverdiberegning!$B$13:$B$49,0),MATCH(AN$51,Nåverdiberegning!$B$13:$BC$13,0)),0) -> 0 | AO52: =IFERROR(INDEX(Nåverdiberegning!$B$13:$BC$49,MATCH($B52,Nåverdiberegning!$B$13:$B$49,0),MATCH(AO$51,Nåverdiberegning!$B$13:$BC$13,0)),0) -> 0 | AP52: =IFERROR(INDEX(Nåverdiberegning!$B$13:$BC$49,MATCH($B52,Nåverdiberegning!$B$13:$B$49,0),MATCH(AP$51,Nåverdiberegning!$B$13:$BC$13,0)),0) -> 0 | AQ52: =IFERROR(INDEX(Nåverdiberegning!$B$13:$BC$49,MATCH($B52,Nåverdiberegning!$B$13:$B$49,0),MATCH(AQ$51,Nåverdiberegning!$B$13:$BC$13,0)),0) -> 0
B53: Kommune: Break-even | C53: =IFERROR(INDEX(Nåverdiberegning!$B$53:$AS$78,MATCH($B53,Nåverdiberegning!$B$53:$B$78,0),MATCH(C$51,Nåverdiberegning!$B$53:$AS$53,0)),0) -> 0 | D53: =IFERROR(INDEX(Nåverdiberegning!$B$53:$AS$78,MATCH($B53,Nåverdiberegning!$B$53:$B$78,0),MATCH(D$51,Nåverdiberegning!$B$53:$AS$53,0)),0) -> 0 | E53: =IFERROR(INDEX(Nåverdiberegning!$B$53:$AS$78,MATCH($B53,Nåverdiberegning!$B$53:$B$78,0),MATCH(E$51,Nåverdiberegning!$B$53:$AS$53,0)),0) -> 0 | F53: =IFERROR(INDEX(Nåverdiberegning!$B$53:$AS$78,MATCH($B53,Nåverdiberegning!$B$53:$B$78,0),MATCH(F$51,Nåverdiberegning!$B$53:$AS$53,0)),0) -> 0 | G53: =IFERROR(INDEX(Nåverdiberegning!$B$53:$AS$78,MATCH($B53,Nåverdiberegning!$B$53:$B$78,0),MATCH(G$51,Nåverdiberegning!$B$53:$AS$53,0)),0) -> 0 | H53: =IFERROR(INDEX(Nåverdiberegning!$B$53:$AS$78,MATCH($B53,Nåverdiberegning!$B$53:$B$78,0),MATCH(H$51,Nåverdiberegning!$B$53:$AS$53,0)),0) -> 0 | I53: =IFERROR(INDEX(Nåverdiberegning!$B$53:$AS$78,MATCH($B53,Nåverdiberegning!$B$53:$B$78,0),MATCH(I$51,Nåverdiberegning!$B$53:$AS$53,0)),0) -> 0 | J53: =IFERROR(INDEX(Nåverdiberegning!$B$53:$AS$78,MATCH($B53,Nåverdiberegning!$B$53:$B$78,0),MATCH(J$51,Nåverdiberegning!$B$53:$AS$53,0)),0) -> 0 | K53: =IFERROR(INDEX(Nåverdiberegning!$B$53:$AS$78,MATCH($B53,Nåverdiberegning!$B$53:$B$78,0),MATCH(K$51,Nåverdiberegning!$B$53:$AS$53,0)),0) -> 0 | L53: =IFERROR(INDEX(Nåverdiberegning!$B$53:$AS$78,MATCH($B53,Nåverdiberegning!$B$53:$B$78,0),MATCH(L$51,Nåverdiberegning!$B$53:$AS$53,0)),0) -> 0 | M53: =IFERROR(INDEX(Nåverdiberegning!$B$53:$AS$78,MATCH($B53,Nåverdiberegning!$B$53:$B$78,0),MATCH(M$51,Nåverdiberegning!$B$53:$AS$53,0)),0) -> 0 | N53: =IFERROR(INDEX(Nåverdiberegning!$B$53:$AS$78,MATCH($B53,Nåverdiberegning!$B$53:$B$78,0),MATCH(N$51,Nåverdiberegning!$B$53:$AS$53,0)),0) -> 0 | O53: =IFERROR(INDEX(Nåverdiberegning!$B$53:$AS$78,MATCH($B53,Nåverdiberegning!$B$53:$B$78,0),MATCH(O$51,Nåverdiberegning!$B$53:$AS$53,0)),0) -> 0 | P53: =IFERROR(INDEX(Nåverdiberegning!$B$53:$AS$78,MATCH($B53,Nåverdiberegning!$B$53:$B$78,0),MATCH(P$51,Nåverdiberegning!$B$53:$AS$53,0)),0) -> 0 | Q53: =IFERROR(INDEX(Nåverdiberegning!$B$53:$AS$78,MATCH($B53,Nåverdiberegning!$B$53:$B$78,0),MATCH(Q$51,Nåverdiberegning!$B$53:$AS$53,0)),0) -> 0 | R53: =IFERROR(INDEX(Nåverdiberegning!$B$53:$AS$78,MATCH($B53,Nåverdiberegning!$B$53:$B$78,0),MATCH(R$51,Nåverdiberegning!$B$53:$AS$53,0)),0) -> 0 | S53: =IFERROR(INDEX(Nåverdiberegning!$B$53:$AS$78,MATCH($B53,Nåverdiberegning!$B$53:$B$78,0),MATCH(S$51,Nåverdiberegning!$B$53:$AS$53,0)),0) -> 0 | T53: =IFERROR(INDEX(Nåverdiberegning!$B$53:$AS$78,MATCH($B53,Nåverdiberegning!$B$53:$B$78,0),MATCH(T$51,Nåverdiberegning!$B$53:$AS$53,0)),0) -> 0 | U53: =IFERROR(INDEX(Nåverdiberegning!$B$53:$AS$78,MATCH($B53,Nåverdiberegning!$B$53:$B$78,0),MATCH(U$51,Nåverdiberegning!$B$53:$AS$53,0)),0) -> 0 | V53: =IFERROR(INDEX(Nåverdiberegning!$B$53:$AS$78,MATCH($B53,Nåverdiberegning!$B$53:$B$78,0),MATCH(V$51,Nåverdiberegning!$B$53:$AS$53,0)),0) -> 0 | W53: =IFERROR(INDEX(Nåverdiberegning!$B$53:$AS$78,MATCH($B53,Nåverdiberegning!$B$53:$B$78,0),MATCH(W$51,Nåverdiberegning!$B$53:$AS$53,0)),0) -> 0 | X53: =IFERROR(INDEX(Nåverdiberegning!$B$53:$AS$78,MATCH($B53,Nåverdiberegning!$B$53:$B$78,0),MATCH(X$51,Nåverdiberegning!$B$53:$AS$53,0)),0) -> 0 | Y53: =IFERROR(INDEX(Nåverdiberegning!$B$53:$AS$78,MATCH($B53,Nåverdiberegning!$B$53:$B$78,0),MATCH(Y$51,Nåverdiberegning!$B$53:$AS$53,0)),0) -> 0 | Z53: =IFERROR(INDEX(Nåverdiberegning!$B$53:$AS$78,MATCH($B53,Nåverdiberegning!$B$53:$B$78,0),MATCH(Z$51,Nåverdiberegning!$B$53:$AS$53,0)),0) -> 0 | AA53: =IFERROR(INDEX(Nåverdiberegning!$B$53:$AS$78,MATCH($B53,Nåverdiberegning!$B$53:$B$78,0),MATCH(AA$51,Nåverdiberegning!$B$53:$AS$53,0)),0) -> 0 | AB53: =IFERROR(INDEX(Nåverdiberegning!$B$53:$AS$78,MATCH($B53,Nåverdiberegning!$B$53:$B$78,0),MATCH(AB$51,Nåverdiberegning!$B$53:$AS$53,0)),0) -> 0 | AC53: =IFERROR(INDEX(Nåverdiberegning!$B$53:$AS$78,MATCH($B53,Nåverdiberegning!$B$53:$B$78,0),MATCH(AC$51,Nåverdiberegning!$B$53:$AS$53,0)),0) -> 0 | AD53: =IFERROR(INDEX(Nåverdiberegning!$B$53:$AS$78,MATCH($B53,Nåverdiberegning!$B$53:$B$78,0),MATCH(AD$51,Nåverdiberegning!$B$53:$AS$53,0)),0) -> 0 | AE53: =IFERROR(INDEX(Nåverdiberegning!$B$53:$AS$78,MATCH($B53,Nåverdiberegning!$B$53:$B$78,0),MATCH(AE$51,Nåverdiberegning!$B$53:$AS$53,0)),0) -> 0 | AF53: =IFERROR(INDEX(Nåverdiberegning!$B$53:$BC$78,MATCH($B53,Nåverdiberegning!$B$53:$B$78,0),MATCH(AF$51,Nåverdiberegning!$B$53:$BC$53,0)),0) -> 0 | AG53: =IFERROR(INDEX(Nåverdiberegning!$B$53:$BC$78,MATCH($B53,Nåverdiberegning!$B$53:$B$78,0),MATCH(AG$51,Nåverdiberegning!$B$53:$BC$53,0)),0) -> 0 | AH53: =IFERROR(INDEX(Nåverdiberegning!$B$53:$BC$78,MATCH($B53,Nåverdiberegning!$B$53:$B$78,0),MATCH(AH$51,Nåverdiberegning!$B$53:$BC$53,0)),0) -> 0 | AI53: =IFERROR(INDEX(Nåverdiberegning!$B$53:$BC$78,MATCH($B53,Nåverdiberegning!$B$53:$B$78,0),MATCH(AI$51,Nåverdiberegning!$B$53:$BC$53,0)),0) -> 0 | AJ53: =IFERROR(INDEX(Nåverdiberegning!$B$53:$BC$78,MATCH($B53,Nåverdiberegning!$B$53:$B$78,0),MATCH(AJ$51,Nåverdiberegning!$B$53:$BC$53,0)),0) -> 0 | AK53: =IFERROR(INDEX(Nåverdiberegning!$B$53:$BC$78,MATCH($B53,Nåverdiberegning!$B$53:$B$78,0),MATCH(AK$51,Nåverdiberegning!$B$53:$BC$53,0)),0) -> 0 | AL53: =IFERROR(INDEX(Nåverdiberegning!$B$53:$BC$78,MATCH($B53,Nåverdiberegning!$B$53:$B$78,0),MATCH(AL$51,Nåverdiberegning!$B$53:$BC$53,0)),0) -> 0 | AM53: =IFERROR(INDEX(Nåverdiberegning!$B$53:$BC$78,MATCH($B53,Nåverdiberegning!$B$53:$B$78,0),MATCH(AM$51,Nåverdiberegning!$B$53:$BC$53,0)),0) -> 0 | AN53: =IFERROR(INDEX(Nåverdiberegning!$B$53:$BC$78,MATCH($B53,Nåverdiberegning!$B$53:$B$78,0),MATCH(AN$51,Nåverdiberegning!$B$53:$BC$53,0)),0) -> 0 | AO53: =IFERROR(INDEX(Nåverdiberegning!$B$53:$BC$78,MATCH($B53,Nåverdiberegning!$B$53:$B$78,0),MATCH(AO$51,Nåverdiberegning!$B$53:$BC$53,0)),0) -> 0 | AP53: =IFERROR(INDEX(Nåverdiberegning!$B$53:$BC$78,MATCH($B53,Nåverdiberegning!$B$53:$B$78,0),MATCH(AP$51,Nåverdiberegning!$B$53:$BC$53,0)),0) -> 0 | AQ53: =IFERROR(INDEX(Nåverdiberegning!$B$53:$AI$78,MATCH($B53,Nåverdiberegning!$B$53:$B$78,0),MATCH(AQ$51,Nåverdiberegning!$B$53:$AI$53,0)),0) -> 0
B54: Fylkeskommune: Break-even | C54: =IFERROR(INDEX(Nåverdiberegning!$B$82:$AS$107,MATCH($B54,Nåverdiberegning!$B$82:$B$107,0),MATCH(C$51,Nåverdiberegning!$B$82:$AS$82,0)),0) -> 0 | D54: =IFERROR(INDEX(Nåverdiberegning!$B$82:$AS$107,MATCH($B54,Nåverdiberegning!$B$82:$B$107,0),MATCH(D$51,Nåverdiberegning!$B$82:$AS$82,0)),0) -> 0 | E54: =IFERROR(INDEX(Nåverdiberegning!$B$82:$AS$107,MATCH($B54,Nåverdiberegning!$B$82:$B$107,0),MATCH(E$51,Nåverdiberegning!$B$82:$AS$82,0)),0) -> 0 | F54: =IFERROR(INDEX(Nåverdiberegning!$B$82:$AS$107,MATCH($B54,Nåverdiberegning!$B$82:$B$107,0),MATCH(F$51,Nåverdiberegning!$B$82:$AS$82,0)),0) -> 0 | G54: =IFERROR(INDEX(Nåverdiberegning!$B$82:$AS$107,MATCH($B54,Nåverdiberegning!$B$82:$B$107,0),MATCH(G$51,Nåverdiberegning!$B$82:$AS$82,0)),0) -> 0 | H54: =IFERROR(INDEX(Nåverdiberegning!$B$82:$AS$107,MATCH($B54,Nåverdiberegning!$B$82:$B$107,0),MATCH(H$51,Nåverdiberegning!$B$82:$AS$82,0)),0) -> 0 | I54: =IFERROR(INDEX(Nåverdiberegning!$B$82:$AS$107,MATCH($B54,Nåverdiberegning!$B$82:$B$107,0),MATCH(I$51,Nåverdiberegning!$B$82:$AS$82,0)),0) -> 0 | J54: =IFERROR(INDEX(Nåverdiberegning!$B$82:$AS$107,MATCH($B54,Nåverdiberegning!$B$82:$B$107,0),MATCH(J$51,Nåverdiberegning!$B$82:$AS$82,0)),0) -> 0 | K54: =IFERROR(INDEX(Nåverdiberegning!$B$82:$AS$107,MATCH($B54,Nåverdiberegning!$B$82:$B$107,0),MATCH(K$51,Nåverdiberegning!$B$82:$AS$82,0)),0) -> 0 | L54: =IFERROR(INDEX(Nåverdiberegning!$B$82:$AS$107,MATCH($B54,Nåverdiberegning!$B$82:$B$107,0),MATCH(L$51,Nåverdiberegning!$B$82:$AS$82,0)),0) -> 0 | M54: =IFERROR(INDEX(Nåverdiberegning!$B$82:$AS$107,MATCH($B54,Nåverdiberegning!$B$82:$B$107,0),MATCH(M$51,Nåverdiberegning!$B$82:$AS$82,0)),0) -> 0 | N54: =IFERROR(INDEX(Nåverdiberegning!$B$82:$AS$107,MATCH($B54,Nåverdiberegning!$B$82:$B$107,0),MATCH(N$51,Nåverdiberegning!$B$82:$AS$82,0)),0) -> 0 | O54: =IFERROR(INDEX(Nåverdiberegning!$B$82:$AS$107,MATCH($B54,Nåverdiberegning!$B$82:$B$107,0),MATCH(O$51,Nåverdiberegning!$B$82:$AS$82,0)),0) -> 0 | P54: =IFERROR(INDEX(Nåverdiberegning!$B$82:$AS$107,MATCH($B54,Nåverdiberegning!$B$82:$B$107,0),MATCH(P$51,Nåverdiberegning!$B$82:$AS$82,0)),0) -> 0 | Q54: =IFERROR(INDEX(Nåverdiberegning!$B$82:$AS$107,MATCH($B54,Nåverdiberegning!$B$82:$B$107,0),MATCH(Q$51,Nåverdiberegning!$B$82:$AS$82,0)),0) -> 0 | R54: =IFERROR(INDEX(Nåverdiberegning!$B$82:$AS$107,MATCH($B54,Nåverdiberegning!$B$82:$B$107,0),MATCH(R$51,Nåverdiberegning!$B$82:$AS$82,0)),0) -> 0 | S54: =IFERROR(INDEX(Nåverdiberegning!$B$82:$AS$107,MATCH($B54,Nåverdiberegning!$B$82:$B$107,0),MATCH(S$51,Nåverdiberegning!$B$82:$AS$82,0)),0) -> 0 | T54: =IFERROR(INDEX(Nåverdiberegning!$B$82:$AS$107,MATCH($B54,Nåverdiberegning!$B$82:$B$107,0),MATCH(T$51,Nåverdiberegning!$B$82:$AS$82,0)),0) -> 0 | U54: =IFERROR(INDEX(Nåverdiberegning!$B$82:$AS$107,MATCH($B54,Nåverdiberegning!$B$82:$B$107,0),MATCH(U$51,Nåverdiberegning!$B$82:$AS$82,0)),0) -> 0 | V54: =IFERROR(INDEX(Nåverdiberegning!$B$82:$AS$107,MATCH($B54,Nåverdiberegning!$B$82:$B$107,0),MATCH(V$51,Nåverdiberegning!$B$82:$AS$82,0)),0) -> 0 | W54: =IFERROR(INDEX(Nåverdiberegning!$B$82:$AS$107,MATCH($B54,Nåverdiberegning!$B$82:$B$107,0),MATCH(W$51,Nåverdiberegning!$B$82:$AS$82,0)),0) -> 0 | X54: =IFERROR(INDEX(Nåverdiberegning!$B$82:$AS$107,MATCH($B54,Nåverdiberegning!$B$82:$B$107,0),MATCH(X$51,Nåverdiberegning!$B$82:$AS$82,0)),0) -> 0 | Y54: =IFERROR(INDEX(Nåverdiberegning!$B$82:$AS$107,MATCH($B54,Nåverdiberegning!$B$82:$B$107,0),MATCH(Y$51,Nåverdiberegning!$B$82:$AS$82,0)),0) -> 0 | Z54: =IFERROR(INDEX(Nåverdiberegning!$B$82:$AS$107,MATCH($B54,Nåverdiberegning!$B$82:$B$107,0),MATCH(Z$51,Nåverdiberegning!$B$82:$AS$82,0)),0) -> 0 | AA54: =IFERROR(INDEX(Nåverdiberegning!$B$82:$AS$107,MATCH($B54,Nåverdiberegning!$B$82:$B$107,0),MATCH(AA$51,Nåverdiberegning!$B$82:$AS$82,0)),0) -> 0 | AB54: =IFERROR(INDEX(Nåverdiberegning!$B$82:$AS$107,MATCH($B54,Nåverdiberegning!$B$82:$B$107,0),MATCH(AB$51,Nåverdiberegning!$B$82:$AS$82,0)),0) -> 0 | AC54: =IFERROR(INDEX(Nåverdiberegning!$B$82:$AS$107,MATCH($B54,Nåverdiberegning!$B$82:$B$107,0),MATCH(AC$51,Nåverdiberegning!$B$82:$AS$82,0)),0) -> 0 | AD54: =IFERROR(INDEX(Nåverdiberegning!$B$82:$AS$107,MATCH($B54,Nåverdiberegning!$B$82:$B$107,0),MATCH(AD$51,Nåverdiberegning!$B$82:$AS$82,0)),0) -> 0 | AE54: =IFERROR(INDEX(Nåverdiberegning!$B$82:$AS$107,MATCH($B54,Nåverdiberegning!$B$82:$B$107,0),MATCH(AE$51,Nåverdiberegning!$B$82:$AS$82,0)),0) -> 0 | AF54: =IFERROR(INDEX(Nåverdiberegning!$B$82:$BC$107,MATCH($B54,Nåverdiberegning!$B$82:$B$107,0),MATCH(AF$51,Nåverdiberegning!$B$82:$BC$82,0)),0) -> 0 | AG54: =IFERROR(INDEX(Nåverdiberegning!$B$82:$BC$107,MATCH($B54,Nåverdiberegning!$B$82:$B$107,0),MATCH(AG$51,Nåverdiberegning!$B$82:$BC$82,0)),0) -> 0 | AH54: =IFERROR(INDEX(Nåverdiberegning!$B$82:$BC$107,MATCH($B54,Nåverdiberegning!$B$82:$B$107,0),MATCH(AH$51,Nåverdiberegning!$B$82:$BC$82,0)),0) -> 0 | AI54: =IFERROR(INDEX(Nåverdiberegning!$B$82:$BC$107,MATCH($B54,Nåverdiberegning!$B$82:$B$107,0),MATCH(AI$51,Nåverdiberegning!$B$82:$BC$82,0)),0) -> 0 | AJ54: =IFERROR(INDEX(Nåverdiberegning!$B$82:$BC$107,MATCH($B54,Nåverdiberegning!$B$82:$B$107,0),MATCH(AJ$51,Nåverdiberegning!$B$82:$BC$82,0)),0) -> 0 | AK54: =IFERROR(INDEX(Nåverdiberegning!$B$82:$BC$107,MATCH($B54,Nåverdiberegning!$B$82:$B$107,0),MATCH(AK$51,Nåverdiberegning!$B$82:$BC$82,0)),0) -> 0 | AL54: =IFERROR(INDEX(Nåverdiberegning!$B$82:$BC$107,MATCH($B54,Nåverdiberegning!$B$82:$B$107,0),MATCH(AL$51,Nåverdiberegning!$B$82:$BC$82,0)),0) -> 0 | AM54: =IFERROR(INDEX(Nåverdiberegning!$B$82:$BC$107,MATCH($B54,Nåverdiberegning!$B$82:$B$107,0),MATCH(AM$51,Nåverdiberegning!$B$82:$BC$82,0)),0) -> 0 | AN54: =IFERROR(INDEX(Nåverdiberegning!$B$82:$BC$107,MATCH($B54,Nåverdiberegning!$B$82:$B$107,0),MATCH(AN$51,Nåverdiberegning!$B$82:$BC$82,0)),0) -> 0 | AO54: =IFERROR(INDEX(Nåverdiberegning!$B$82:$BC$107,MATCH($B54,Nåverdiberegning!$B$82:$B$107,0),MATCH(AO$51,Nåverdiberegning!$B$82:$BC$82,0)),0) -> 0 | AP54: =IFERROR(INDEX(Nåverdiberegning!$B$82:$BC$107,MATCH($B54,Nåverdiberegning!$B$82:$B$107,0),MATCH(AP$51,Nåverdiberegning!$B$82:$BC$82,0)),0) -> 0 | AQ54: =IFERROR(INDEX(Nåverdiberegning!$B$82:$AI$107,MATCH($B54,Nåverdiberegning!$B$82:$B$107,0),MATCH(AQ$51,Nåverdiberegning!$B$82:$AI$82,0)),0) -> 0
B55: Stat: Break-even | C55: =IFERROR(INDEX(Nåverdiberegning!$B$111:$AS$136,MATCH($B55,Nåverdiberegning!$B$111:$B$136,0),MATCH(C$51,Nåverdiberegning!$B$111:$AS$111,0)),0) -> 0 | D55: =IFERROR(INDEX(Nåverdiberegning!$B$111:$AS$136,MATCH($B55,Nåverdiberegning!$B$111:$B$136,0),MATCH(D$51,Nåverdiberegning!$B$111:$AS$111,0)),0) -> 0 | E55: =IFERROR(INDEX(Nåverdiberegning!$B$111:$AS$136,MATCH($B55,Nåverdiberegning!$B$111:$B$136,0),MATCH(E$51,Nåverdiberegning!$B$111:$AS$111,0)),0) -> 0 | F55: =IFERROR(INDEX(Nåverdiberegning!$B$111:$AS$136,MATCH($B55,Nåverdiberegning!$B$111:$B$136,0),MATCH(F$51,Nåverdiberegning!$B$111:$AS$111,0)),0) -> 0 | G55: =IFERROR(INDEX(Nåverdiberegning!$B$111:$AS$136,MATCH($B55,Nåverdiberegning!$B$111:$B$136,0),MATCH(G$51,Nåverdiberegning!$B$111:$AS$111,0)),0) -> 0 | H55: =IFERROR(INDEX(Nåverdiberegning!$B$111:$AS$136,MATCH($B55,Nåverdiberegning!$B$111:$B$136,0),MATCH(H$51,Nåverdiberegning!$B$111:$AS$111,0)),0) -> 0 | I55: =IFERROR(INDEX(Nåverdiberegning!$B$111:$AS$136,MATCH($B55,Nåverdiberegning!$B$111:$B$136,0),MATCH(I$51,Nåverdiberegning!$B$111:$AS$111,0)),0) -> 0 | J55: =IFERROR(INDEX(Nåverdiberegning!$B$111:$AS$136,MATCH($B55,Nåverdiberegning!$B$111:$B$136,0),MATCH(J$51,Nåverdiberegning!$B$111:$AS$111,0)),0) -> 0 | K55: =IFERROR(INDEX(Nåverdiberegning!$B$111:$AS$136,MATCH($B55,Nåverdiberegning!$B$111:$B$136,0),MATCH(K$51,Nåverdiberegning!$B$111:$AS$111,0)),0) -> 0 | L55: =IFERROR(INDEX(Nåverdiberegning!$B$111:$AS$136,MATCH($B55,Nåverdiberegning!$B$111:$B$136,0),MATCH(L$51,Nåverdiberegning!$B$111:$AS$111,0)),0) -> 0 | M55: =IFERROR(INDEX(Nåverdiberegning!$B$111:$AS$136,MATCH($B55,Nåverdiberegning!$B$111:$B$136,0),MATCH(M$51,Nåverdiberegning!$B$111:$AS$111,0)),0) -> 0 | N55: =IFERROR(INDEX(Nåverdiberegning!$B$111:$AS$136,MATCH($B55,Nåverdiberegning!$B$111:$B$136,0),MATCH(N$51,Nåverdiberegning!$B$111:$AS$111,0)),0) -> 0 | O55: =IFERROR(INDEX(Nåverdiberegning!$B$111:$AS$136,MATCH($B55,Nåverdiberegning!$B$111:$B$136,0),MATCH(O$51,Nåverdiberegning!$B$111:$AS$111,0)),0) -> 0 | P55: =IFERROR(INDEX(Nåverdiberegning!$B$111:$AS$136,MATCH($B55,Nåverdiberegning!$B$111:$B$136,0),MATCH(P$51,Nåverdiberegning!$B$111:$AS$111,0)),0) -> 0 | Q55: =IFERROR(INDEX(Nåverdiberegning!$B$111:$AS$136,MATCH($B55,Nåverdiberegning!$B$111:$B$136,0),MATCH(Q$51,Nåverdiberegning!$B$111:$AS$111,0)),0) -> 0 | R55: =IFERROR(INDEX(Nåverdiberegning!$B$111:$AS$136,MATCH($B55,Nåverdiberegning!$B$111:$B$136,0),MATCH(R$51,Nåverdiberegning!$B$111:$AS$111,0)),0) -> 0 | S55: =IFERROR(INDEX(Nåverdiberegning!$B$111:$AS$136,MATCH($B55,Nåverdiberegning!$B$111:$B$136,0),MATCH(S$51,Nåverdiberegning!$B$111:$AS$111,0)),0) -> 0 | T55: =IFERROR(INDEX(Nåverdiberegning!$B$111:$AS$136,MATCH($B55,Nåverdiberegning!$B$111:$B$136,0),MATCH(T$51,Nåverdiberegning!$B$111:$AS$111,0)),0) -> 0 | U55: =IFERROR(INDEX(Nåverdiberegning!$B$111:$AS$136,MATCH($B55,Nåverdiberegning!$B$111:$B$136,0),MATCH(U$51,Nåverdiberegning!$B$111:$AS$111,0)),0) -> 0 | V55: =IFERROR(INDEX(Nåverdiberegning!$B$111:$AS$136,MATCH($B55,Nåverdiberegning!$B$111:$B$136,0),MATCH(V$51,Nåverdiberegning!$B$111:$AS$111,0)),0) -> 0 | W55: =IFERROR(INDEX(Nåverdiberegning!$B$111:$AS$136,MATCH($B55,Nåverdiberegning!$B$111:$B$136,0),MATCH(W$51,Nåverdiberegning!$B$111:$AS$111,0)),0) -> 0 | X55: =IFERROR(INDEX(Nåverdiberegning!$B$111:$AS$136,MATCH($B55,Nåverdiberegning!$B$111:$B$136,0),MATCH(X$51,Nåverdiberegning!$B$111:$AS$111,0)),0) -> 0 | Y55: =IFERROR(INDEX(Nåverdiberegning!$B$111:$AS$136,MATCH($B55,Nåverdiberegning!$B$111:$B$136,0),MATCH(Y$51,Nåverdiberegning!$B$111:$AS$111,0)),0) -> 0 | Z55: =IFERROR(INDEX(Nåverdiberegning!$B$111:$AS$136,MATCH($B55,Nåverdiberegning!$B$111:$B$136,0),MATCH(Z$51,Nåverdiberegning!$B$111:$AS$111,0)),0) -> 0 | AA55: =IFERROR(INDEX(Nåverdiberegning!$B$111:$AS$136,MATCH($B55,Nåverdiberegning!$B$111:$B$136,0),MATCH(AA$51,Nåverdiberegning!$B$111:$AS$111,0)),0) -> 0 | AB55: =IFERROR(INDEX(Nåverdiberegning!$B$111:$AS$136,MATCH($B55,Nåverdiberegning!$B$111:$B$136,0),MATCH(AB$51,Nåverdiberegning!$B$111:$AS$111,0)),0) -> 0 | AC55: =IFERROR(INDEX(Nåverdiberegning!$B$111:$AS$136,MATCH($B55,Nåverdiberegning!$B$111:$B$136,0),MATCH(AC$51,Nåverdiberegning!$B$111:$AS$111,0)),0) -> 0 | AD55: =IFERROR(INDEX(Nåverdiberegning!$B$111:$AS$136,MATCH($B55,Nåverdiberegning!$B$111:$B$136,0),MATCH(AD$51,Nåverdiberegning!$B$111:$AS$111,0)),0) -> 0 | AE55: =IFERROR(INDEX(Nåverdiberegning!$B$111:$AS$136,MATCH($B55,Nåverdiberegning!$B$111:$B$136,0),MATCH(AE$51,Nåverdiberegning!$B$111:$AS$111,0)),0) -> 0 | AF55: =IFERROR(INDEX(Nåverdiberegning!$B$111:$BC$136,MATCH($B55,Nåverdiberegning!$B$111:$B$136,0),MATCH(AF$51,Nåverdiberegning!$B$111:$BC$111,0)),0) -> 0 | AG55: =IFERROR(INDEX(Nåverdiberegning!$B$111:$BC$136,MATCH($B55,Nåverdiberegning!$B$111:$B$136,0),MATCH(AG$51,Nåverdiberegning!$B$111:$BC$111,0)),0) -> 0 | AH55: =IFERROR(INDEX(Nåverdiberegning!$B$111:$BC$136,MATCH($B55,Nåverdiberegning!$B$111:$B$136,0),MATCH(AH$51,Nåverdiberegning!$B$111:$BC$111,0)),0) -> 0 | AI55: =IFERROR(INDEX(Nåverdiberegning!$B$111:$BC$136,MATCH($B55,Nåverdiberegning!$B$111:$B$136,0),MATCH(AI$51,Nåverdiberegning!$B$111:$BC$111,0)),0) -> 0 | AJ55: =IFERROR(INDEX(Nåverdiberegning!$B$111:$BC$136,MATCH($B55,Nåverdiberegning!$B$111:$B$136,0),MATCH(AJ$51,Nåverdiberegning!$B$111:$BC$111,0)),0) -> 0 | AK55: =IFERROR(INDEX(Nåverdiberegning!$B$111:$BC$136,MATCH($B55,Nåverdiberegning!$B$111:$B$136,0),MATCH(AK$51,Nåverdiberegning!$B$111:$BC$111,0)),0) -> 0 | AL55: =IFERROR(INDEX(Nåverdiberegning!$B$111:$BC$136,MATCH($B55,Nåverdiberegning!$B$111:$B$136,0),MATCH(AL$51,Nåverdiberegning!$B$111:$BC$111,0)),0) -> 0 | AM55: =IFERROR(INDEX(Nåverdiberegning!$B$111:$BC$136,MATCH($B55,Nåverdiberegning!$B$111:$B$136,0),MATCH(AM$51,Nåverdiberegning!$B$111:$BC$111,0)),0) -> 0 | AN55: =IFERROR(INDEX(Nåverdiberegning!$B$111:$BC$136,MATCH($B55,Nåverdiberegning!$B$111:$B$136,0),MATCH(AN$51,Nåverdiberegning!$B$111:$BC$111,0)),0) -> 0 | AO55: =IFERROR(INDEX(Nåverdiberegning!$B$111:$BC$136,MATCH($B55,Nåverdiberegning!$B$111:$B$136,0),MATCH(AO$51,Nåverdiberegning!$B$111:$BC$111,0)),0) -> 0 | AP55: =IFERROR(INDEX(Nåverdiberegning!$B$111:$BC$136,MATCH($B55,Nåverdiberegning!$B$111:$B$136,0),MATCH(AP$51,Nåverdiberegning!$B$111:$BC$111,0)),0) -> 0 | AQ55: =IFERROR(INDEX(Nåverdiberegning!$B$111:$AI$136,MATCH($B55,Nåverdiberegning!$B$111:$B$136,0),MATCH(AQ$51,Nåverdiberegning!$B$111:$AI$111,0)),0) -> 0
C56: =IF($C$59=C51,IFERROR($C$52:$AP$52,MAX(#REF!)),"") ->  | D56: =IF($C$59=D51,IFERROR($C$52:$AP$52,MAX(#REF!)),"") ->  | E56: =IF($C$59=E51,IFERROR($C$52:$AP$52,MAX(#REF!)),"") ->  | F56: =IF($C$59=F51,IFERROR($C$52:$AP$52,MAX(#REF!)),"") ->  | G56: =IF($C$59=G51,IFERROR($C$52:$AP$52,MAX(#REF!)),"") ->  | H56: =IF($C$59=H51,IFERROR($C$52:$AP$52,MAX(#REF!)),"") ->  | I56: =IF($C$59=I51,IFERROR($C$52:$AP$52,MAX(#REF!)),"") ->  | J56: =IF($C$59=J51,IFERROR($C$52:$AP$52,MAX(#REF!)),"") ->  | K56: =IF($C$59=K51,IFERROR($C$52:$AP$52,MAX(#REF!)),"") ->  | L56: =IF($C$59=L51,IFERROR($C$52:$AP$52,MAX(#REF!)),"") ->  | M56: =IF($C$59=M51,IFERROR($C$52:$AP$52,MAX(#REF!)),"") ->  | N56: =IF($C$59=N51,IFERROR($C$52:$AP$52,MAX(#REF!)),"") ->  | O56: =IF($C$59=O51,IFERROR($C$52:$AP$52,MAX(#REF!)),"") ->  | P56: =IF($C$59=P51,IFERROR($C$52:$AP$52,MAX(#REF!)),"") ->  | Q56: =IF($C$59=Q51,IFERROR($C$52:$AP$52,MAX(#REF!)),"") ->  | R56: =IF($C$59=R51,IFERROR($C$52:$AP$52,MAX(#REF!)),"") ->  | S56: =IF($C$59=S51,IFERROR($C$52:$AP$52,MAX(#REF!)),"") ->  | T56: =IF($C$59=T51,IFERROR($C$52:$AP$52,MAX(#REF!)),"") ->  | U56: =IF($C$59=U51,IFERROR($C$52:$AP$52,MAX(#REF!)),"") ->  | V56: =IF($C$59=V51,IFERROR($C$52:$AP$52,MAX(#REF!)),"") ->  | W56: =IF($C$59=W51,IFERROR($C$52:$AP$52,MAX(#REF!)),"") ->  | X56: =IF($C$59=X51,IFERROR($C$52:$AP$52,MAX(#REF!)),"") ->  | Y56: =IF($C$59=Y51,IFERROR($C$52:$AP$52,MAX(#REF!)),"") ->  | Z56: =IF($C$59=Z51,IFERROR($C$52:$AP$52,MAX(#REF!)),"") ->  | AA56: =IF($C$59=AA51,IFERROR($C$52:$AP$52,MAX(#REF!)),"") ->  | AB56: =IF($C$59=AB51,IFERROR($C$52:$AP$52,MAX(#REF!)),"") ->  | AC56: =IF($C$59=AC51,IFERROR($C$52:$AP$52,MAX(#REF!)),"") ->  | AD56: =IF($C$59=AD51,IFERROR($C$52:$AP$52,MAX(#REF!)),"") ->  | AE56: =IF($C$59=AE51,IFERROR($C$52:$AP$52,MAX(#REF!)),"") ->  | AF56: =IF($C$59=AF51,IFERROR($C$52:$AP$52,MAX(#REF!)),"") ->  | AG56: =IF($C$59=AG51,IFERROR($C$52:$AP$52,MAX(#REF!)),"") ->  | AH56: =IF($C$59=AH51,IFERROR($C$52:$AP$52,MAX(#REF!)),"") ->  | AI56: =IF($C$59=AI51,IFERROR($C$52:$AP$52,MAX(#REF!)),"") ->  | AJ56: =IF($C$59=AJ51,IFERROR($C$52:$AP$52,MAX(#REF!)),"") ->  | AK56: =IF($C$59=AK51,IFERROR($C$52:$AP$52,MAX(#REF!)),"") ->  | AL56: =IF($C$59=AL51,IFERROR($C$52:$AP$52,MAX(#REF!)),"") ->  | AM56: =IF($C$59=AM51,IFERROR($C$52:$AP$52,MAX(#REF!)),"") ->  | AN56: =IF($C$59=AN51,IFERROR($C$52:$AP$52,MAX(#REF!)),"") ->  | AO56: =IF($C$59=AO51,IFERROR($C$52:$AP$52,MAX(#REF!)),"") ->  | AP56: =IF($C$59=AP51,IFERROR($C$52:$AP$52,MAX(#REF!)),"") -> 
C58: Årstall | D58: Antall år | F58: Figur: Break-even analyse
B59: Samlet break-even | C59: =IFERROR(INDEX(C51:AP51,MATCH(TRUE,C52:AP52>0,0)),"-") -> - | D59: =IFERROR(C59-C51,"-") -> -
B80: Konklusjon: | C80: =IFERROR(IF(AP52>=0,CONCATENATE("Vi ser av figuren at samfunnet samlet sett går i null i år ",C59," (den blå vertikale streken). Dette betyr at tiltaket har gått i null etter ",D59," år."),"Slik tiltaket er satt opp nå går det aldri i null."),"Slik tiltaket er satt opp nå går det aldri i null.") -> Vi ser av figuren at samfunnet samlet sett går i null i år - (den blå vertikale streken). Dette betyr at tiltaket har gått i null etter - år.
B84: Nettogevinst delt opp på ulike tjenesteområder
F87: Figur: Nettogevinst for ulike tjenesteområder
C89: Samlet | D89: Pr. deltager
B90: i alt | C90: =Nåverdiberegning!D47 -> 0 | D90: =C90/SUM(Forudsetninger!$D$27:$J$27) -> 
B91: Overføringer | C91: =(Nåverdiberegning!D35-Nåverdiberegning!D25)+(Nåverdiberegning!D36-Nåverdiberegning!D26) -> 0 | D91: =C91/SUM(Forudsetninger!$D$27:$J$27) -> 
B92: Skatteinnbetaling | C92: =Nåverdiberegning!D37-Nåverdiberegning!D27 -> 0 | D92: =C92/SUM(Forudsetninger!$D$27:$J$27) -> 
B93: Helsetjenester | C93: =(SUM(Nåverdiberegning!D38:D39)-SUM(Nåverdiberegning!D28:D29)) -> 0 | D93: =C93/SUM(Forudsetninger!$D$27:$J$27) -> 
B94: Utdanning | C94: =(Nåverdiberegning!D40-Nåverdiberegning!D30) -> 0 | D94: =C94/SUM(Forudsetninger!$D$27:$J$27) -> 
B95: Kriminalomsorg | C95: =(Nåverdiberegning!D41-Nåverdiberegning!D31) -> 0 | D95: =C95/SUM(Forudsetninger!$D$27:$J$27) -> 
B96: Barnevern | C96: =(Nåverdiberegning!D42-Nåverdiberegning!D32) -> 0 | D96: =C96/SUM(Forudsetninger!$D$27:$J$27) -> 
B97: Implementering av tiltaket | C97: =-Nåverdiberegning!D10 -> 0 | D97: =C97/SUM(Forudsetninger!$D$27:$J$27) -> 
E108: =IF(D94>0,"","Merknad:") ->  | F108: =IF(C94>0,"","Tiltaket er beregnet å øke utgifter til utdanning. Dette betyr at på grunn av at noen av barna kommer seg over i 'gjennomsnittet av befolkningen' tar de nå mer utdanning enn hvis de ikke hadde fått tiltaket. ") -> Tiltaket er beregnet å øke utgifter til utdanning. Dette betyr at på grunn av at noen av barna kommer seg over i 'gjennomsnittet av befolkningen' tar de nå mer utdanning enn hvis de ikke hadde fått tiltaket.

Sheet Printvennlig side
A2: RESULTATER
A4: ='2. Innsatsen'!B11 -> 0
A6: Hovedkonklusjoner
A7: =CONCATENATE(" - Tiltaket er totalt sett ",IF('4. Resultat'!C28>0,"lønnsomt","ulønnsomt")," for offentlige finanser.") -> - Tiltaket er totalt sett ulønnsomt for offentlige finanser.
A8: =CONCATENATE(" - Tiltaket påvirker de kommunale finansene ",IF('4. Resultat'!C29>0,"positivt","negativt"),", de fylkeskommunale finansene ",IF('4. Resultat'!C30>0,"positivt ","negativt")," og de statlige finansene ",IF('4. Resultat'!C31>0,"positivt","negativt"),".") -> - Tiltaket påvirker de kommunale finansene negativt, de fylkeskommunale finansene negativt og de statlige finansene negativt.
A9: =IF('4. Resultat'!C90>=0," - Tiltaket gir særlig høy nettogevinst for "&INDEX('4. Resultat'!B91:C96,MATCH(MAX('4. Resultat'!C91:C96),'4. Resultat'!C91:C96,0),1)&"."," - Tiltaket gir særlig høy nettokostnad for "&INDEX('4. Resultat'!B91:C96,MATCH(MIN('4. Resultat'!C91:C96)&".",'4. Resultat'!C91:C96,0),1)) -> - Tiltaket gir særlig høy nettogevinst for Overføringer.
A11: Kort beskrivelse av tiltaket
A12: ="Valgt målgruppe: " -> Valgt målgruppe: | B12: =Forudsetninger!E17 -> Ingen Målgruppe valgt
A13: ="Valgt aldersgruppe: " -> Valgt aldersgruppe: | B13: =Forudsetninger!E18 -> 
A14: =CONCATENATE("Oppgitt suksessrate: ") -> Oppgitt suksessrate: | B14: ='2. Innsatsen'!D28 -> 
A15: =CONCATENATE("Oppgitt startår: ") -> Oppgitt startår: | B15: ='3. Kostnader'!E9 -> 2019
A16: =CONCATENATE("Antall år tiltaket arrangeres: ",) -> Antall år tiltaket arrangeres: | B16: ='3. Kostnader'!E11&" år" -> år
A17: =CONCATENATE("Antall år hvert tiltak varer: ",) -> Antall år hvert tiltak varer: | B17: ='3. Kostnader'!E13&" år" -> år
A18: =CONCATENATE("Totalt antall barn i tiltaket: ",) -> Totalt antall barn i tiltaket: | B18: =SUM('3. Kostnader'!C19:I19) -> 0
A19: =CONCATENATE("Oppgitt analyseperiode: ",) -> Oppgitt analyseperiode: | B19: ='4. Resultat'!F14&" år" -> 40 år
A21: Figurer
A23: =CONCATENATE("Samlet nettogevinst for perioden ",'4. Resultat'!F12,"-",'4. Resultat'!F13) -> Samlet nettogevinst for perioden 2019-2058
A35: ='4. Resultat'!C43 -> Tiltaket har en negativ nettogevinst. Det vil si at tiltaket har større kostnader knyttet til implementering/arrangering av tiltaket og andre eventuelle fremtidige kostnader enn de fremtidige gevinstene. Ser man kun på resultatene i modellen bør ikke tiltaket gjennomføres.
A43: Break even for tiltaket
A61: ='4. Resultat'!C80 -> Vi ser av figuren at samfunnet samlet sett går i null i år - (den blå vertikale streken). Dette betyr at tiltaket har gått i null etter - år.
A62: Nettogevinst for ulike tjenesteområder
A76: Figur: tjenesteområder
A83: ='4. Resultat'!E108 -> 
A84: ='4. Resultat'!F108&'4. Resultat'!F109 -> Tiltaket er beregnet å øke utgifter til utdanning. Dette betyr at på grunn av at noen av barna kommer seg over i 'gjennomsnittet av befolkningen' tar de nå mer utdanning enn hvis de ikke hadde fått tiltaket.

Sheet Forudsetninger (hidden)
B2: GENERELLE FORUTSETNINGER
B3: Dette fanebladet inneholder de forutsetningene som ligger til grunn for modellens beregninger. All informasjon fra inputarkene er hentet inn hit, og alle beregningene gjøres på bakgrunn av dette arket. Hvis man senere vil lage et annet interface, er dette arket utgangspunktet utgangspuntket.
B6: Generelle forutsetninger | C6: Enhet | D6: Verdi | F6: Kilde/bemerkning:
B7: Analyseår (det året de faste prisene beregnes) | C7: årstall | D7: =YEAR(TODAY()) -> 2019 | F7: Dette år er typisk det aktuelle år
B8: Aktuell KPI (til omregning) | C8: KPI | D8: =INDEX(D13:S13,MATCH(D7,D12:S12,0)) -> 110.4375 | F8: Konsumprisindeksen (2015=100), SSB-tabell 08981
B9: Analyseperiode | C9: år | D9: ='4. Resultat'!F14 -> 40 | E9: v/40-70 år
B10: Kalkulasjonsrente | C10: prosent | D10: 0.04 | E10: 0.03 | F10: https://www.regjeringen.no/globalassets/upload/fin/vedlegg/okstyring/rundskriv/faste/r_109_2014.pdf
B12: Konsumprisindeks (til fremskrivning) | D12: 2010 | E12: 2011 | F12: 2012 | G12: 2013 | H12: 2014 | I12: 2015 | J12: 2016 | K12: 2017 | L12: 2018 | M12: 2019 | N12: 2020 | O12: 2021 | P12: 2022 | Q12: 2023 | R12: 2024 | S12: 2025
B13: Konsumprisindeks (2015=100), etter måned, innhold og år (Kilde: SSB, august 2018) | C13: Årlig gjennomsnitt | D13: 92.1 | E13: 93.3 | F13: 93.9 | G13: 95.9 | H13: 97.9 | I13: 100 | J13: 103.6 | K13: 105.5 | L13: 108.4 | M13: =L13+AVERAGE($E$14:$L$14) -> 110.4375 | N13: =M13+AVERAGE($E$14:$L$14) -> 112.475 | O13: 114.5125 | P13: 116.55 | Q13: 118.5875 | R13: 120.625 | S13: 122.6625
B14: Gjennomsnittlig stigning i KPI | C14: beregning | E14: =E13-D13 -> 1.2 | F14: =F13-E13 -> 0.6 | G14: 2 | H14: 2 | I14: 2.1 | J14: 3.6 | K14: 1.9 | L14: 2.9 | M14: =M13-L13 -> 2.0375 | N14: =N13-M13 -> 2.0375 | O14: =O13-N13 -> 2.0375 | P14: =P13-O13 -> 2.0375 | Q14: =Q13-P13 -> 2.0375 | R14: =R13-Q13 -> 2.0375 | S14: =S13-R13 -> 2.0375
B16: Inntastet data | C16: Enhet | D16: Verdi
B17: Valgt målgruppe | D17: ='1. Målgruppe'!L32 -> 0 | E17: =IF(D17=1,'1. Målgruppe'!C9,IF(D17=2,'1. Målgruppe'!C11,IF(D17=3,'1. Målgruppe'!C13,IF(D17=4,'1. Målgruppe'!C15,IF(D17=5,'1. Målgruppe'!C17,IF(D17=6,'1. Målgruppe'!C19,IF(D17=7,'1. Målgruppe'!C21,"Ingen Målgruppe valgt"))))))) -> Ingen Målgruppe valgt
B18: Valgt aldersgruppe | D18: ='1. Målgruppe'!L33 -> 0 | E18: =VLOOKUP(D18,D42:F52,3,0) ->  | F18: Antall årganger | G18: =VLOOKUP(E18,F41:G52,2,0)-1 -> 
B19: Valgt sammenligningsgruppe | D19: ='1. Målgruppe'!L34 -> 1 | E19: Gjennomsnittet av befolkningen
B21: Projektstart | C21: årstall | D21: ='4. Resultat'!F12 -> 2019
B22: Projektperiode | C22: år | D22: ='3. Kostnader'!E11 -> 0
B23: Tiltakets varighet | C23: hele år | D23: ='3. Kostnader'!E13 -> 0 | F23: Effektstart | G23: =D21+D23 -> 2019
B24: Yngste deltager (+tiltakets varighet for å få effektstart) | C24: alder | D24: =VLOOKUP(E18,F42:H52,3,0)+D23 -> 
B25: Suksessrate | C25: prosent | D25: ='2. Innsatsen'!D28 -> 
D26: =D21 -> 2019 | E26: =D26+1 -> 2020 | F26: =E26+1 -> 2021 | G26: 2022 | H26: 2023 | I26: 2024 | J26: 2025
B27: Antall som starter i tiltaket | C27: antall | D27: =IF(D$26<$D$21+$D$22,'3. Kostnader'!C19,0) -> 0 | E27: =IF(E26<$D$21+$D$22,'3. Kostnader'!D19,0) -> 0 | F27: =IF(F26<$D$21+$D$22,'3. Kostnader'!E19,0) -> 0 | G27: =IF(G26<$D$21+$D$22,'3. Kostnader'!F19,0) -> 0 | H27: =IF(H26<$D$21+$D$22,'3. Kostnader'!G19,0) -> 0 | I27: =IF(I26<$D$21+$D$22,'3. Kostnader'!H19,0) -> 0 | J27: =IF(J26<$D$21+$D$22,'3. Kostnader'!I19,0) -> 0
B28: Kostnader knyttet til tiltaket (KOMMUNE) | C28: NOK | D28: =IF(D$26<$D$21+$D$22,'3. Kostnader'!C28,0) -> 0 | E28: =IF(E$26<$D$21+$D$22,'3. Kostnader'!D28,0) -> 0 | F28: =IF(F$26<$D$21+$D$22,'3. Kostnader'!E28,0) -> 0 | G28: =IF(G$26<$D$21+$D$22,'3. Kostnader'!F28,0) -> 0 | H28: =IF(H$26<$D$21+$D$22,'3. Kostnader'!G28,0) -> 0 | I28: =IF(I$26<$D$21+$D$22,'3. Kostnader'!H28,0) -> 0 | J28: =IF(J$26<$D$21+$D$22,'3. Kostnader'!I28,0) -> 0
B29: Kostnader knyttet til tiltaket (FYLKESKOMMUNEN) | C29: NOK | D29: =IF(D$26<$D$21+$D$22,'3. Kostnader'!C29,0) -> 0 | E29: =IF(E$26<$D$21+$D$22,'3. Kostnader'!D29,0) -> 0 | F29: =IF(F$26<$D$21+$D$22,'3. Kostnader'!E29,0) -> 0 | G29: =IF(G$26<$D$21+$D$22,'3. Kostnader'!F29,0) -> 0 | H29: =IF(H$26<$D$21+$D$22,'3. Kostnader'!G29,0) -> 0 | I29: =IF(I$26<$D$21+$D$22,'3. Kostnader'!H29,0) -> 0 | J29: =IF(J$26<$D$21+$D$22,'3. Kostnader'!I29,0) -> 0
B30: Kostnader knyttet til tiltaket (STAT) | C30: NOK | D30: =IF(D$26<$D$21+$D$22,'3. Kostnader'!C30,0) -> 0 | E30: =IF(E$26<$D$21+$D$22,'3. Kostnader'!D30,0) -> 0 | F30: =IF(F$26<$D$21+$D$22,'3. Kostnader'!E30,0) -> 0 | G30: =IF(G$26<$D$21+$D$22,'3. Kostnader'!F30,0) -> 0 | H30: =IF(H$26<$D$21+$D$22,'3. Kostnader'!G30,0) -> 0 | I30: =IF(I$26<$D$21+$D$22,'3. Kostnader'!H30,0) -> 0 | J30: =IF(J$26<$D$21+$D$22,'3. Kostnader'!I30,0) -> 0
B31: Bortfalne kostnader som følge av tiltaket (KOMMUNE) | C31: NOK | D31: =IF(D$26<$D$21+$D$22,'3. Kostnader'!C36,0) -> 0 | E31: =IF(E$26<$D$21+$D$22,'3. Kostnader'!D36,0) -> 0 | F31: =IF(F$26<$D$21+$D$22,'3. Kostnader'!E36,0) -> 0 | G31: =IF(G$26<$D$21+$D$22,'3. Kostnader'!F36,0) -> 0 | H31: =IF(H$26<$D$21+$D$22,'3. Kostnader'!G36,0) -> 0 | I31: =IF(I$26<$D$21+$D$22,'3. Kostnader'!H36,0) -> 0 | J31: =IF(J$26<$D$21+$D$22,'3. Kostnader'!I36,0) -> 0
B32: Bortfalne kostnader som følge av tiltaket (FYLKESKOMMUNET) | C32: NOK | D32: =IF(D$26<$D$21+$D$22,'3. Kostnader'!C37,0) -> 0 | E32: =IF(E$26<$D$21+$D$22,'3. Kostnader'!D37,0) -> 0 | F32: =IF(F$26<$D$21+$D$22,'3. Kostnader'!E37,0) -> 0 | G32: =IF(G$26<$D$21+$D$22,'3. Kostnader'!F37,0) -> 0 | H32: =IF(H$26<$D$21+$D$22,'3. Kostnader'!G37,0) -> 0 | I32: =IF(I$26<$D$21+$D$22,'3. Kostnader'!H37,0) -> 0 | J32: =IF(J$26<$D$21+$D$22,'3. Kostnader'!I37,0) -> 0
B33: Bortfalne kostnader som følge av tiltaket (STAT) | C33: NOK | D33: =IF(D$26<$D$21+$D$22,'3. Kostnader'!C38,0) -> 0 | E33: =IF(E$26<$D$21+$D$22,'3. Kostnader'!D38,0) -> 0 | F33: =IF(F$26<$D$21+$D$22,'3. Kostnader'!E38,0) -> 0 | G33: =IF(G$26<$D$21+$D$22,'3. Kostnader'!F38,0) -> 0 | H33: =IF(H$26<$D$21+$D$22,'3. Kostnader'!G38,0) -> 0 | I33: =IF(I$26<$D$21+$D$22,'3. Kostnader'!H38,0) -> 0 | J33: =IF(J$26<$D$21+$D$22,'3. Kostnader'!I38,0) -> 0
B34: Nettokostnader knyttet til tiltaket (KOMMUNE) | C34: NOK | D34: =D28-D31 -> 0 | E34: 0 | F34: 0 | G34: 0 | H34: 0 | I34: 0 | J34: 0
B35: Nettokostnader knyttet til tiltaket (FYLKESKOMMUNE) | C35: NOK | D35: =D29-D32 -> 0 | E35: =E29-E32 -> 0 | F35: 0 | G35: 0 | H35: 0 | I35: 0 | J35: 0
B36: Nettokostnader knyttet til tiltaket (STAT) | C36: NOK | D36: 0 | E36: 0 | F36: 0 | G36: 0 | H36: 0 | I36: 0 | J36: 0
G41: Antall årganger | H41: Yngste deltager
D42: 1 | E42: 25 | F42: 0-2 år | G42: 3 | H42: 0
D43: 1.5 | F43: 0-5 år | G43: 6 | H43: 0
D44: 2 | E44: 27 | F44: 3-5 år | G44: 3 | H44: 3
D45: 2.5 | F45: 3-9 år | G45: =9-3+1 -> 7 | H45: 3
D46: 3 | E46: 29 | F46: 6-9 år | G46: 4 | H46: 6
D47: 3.5 | F47: 6-12 år | G47: =12-6+1 -> 7 | H47: 6
D48: 4 | E48: 31 | F48: 10-12 år | G48: 3 | H48: 10
D49: 4.5 | F49: 10-15 år | G49: 6 | H49: 10
D50: 5 | E50: 33 | F50: 13-15 år | G50: 3 | H50: 13
D51: 5.5 | F51: 13-19 år | G51: 7 | H51: 13
D52: 6 | E52: 35 | F52: 16-19 år | G52: 4 | H52: 16

Sheet Enhetskostnader (hidden)
B2: ENHETSKOSTNADER
B3: Denne fanen inneholder enhetskostnader delt opp på tre hovedaktører.
E5: Enhetspris | F5: Fordeling
B6: Overføringer | C6: Enhet | D6: Årstall | E6: Kostnader (NOK) | F6: Kommune | G6: Fylkeskommune | H6: Stat | I6: Kilde 1 | J6: Kilde 2 | K6: Kommentar
B7: Skattepliktige overføringer inkl. fødsels- og sykepenger | C7: NOK per år per pers | D7: 2017 | E7: 1 | F7: 0 | G7: 0 | H7: 1 | I7: SSB
B8: Skattefrie overføringer | C8: NOK per år per pers | D8: 2017 | E8: 1 | F8: 0 | G8: 0 | H8: 1 | I8: SSB
B9: Sosialhjelp | C9: NOK per år per pers | D9: =D8 -> 2017 | E9: 1 | F9: 1 | G9: 0 | H9: 0 | I9: SSB
B10: Skattesatser lønnsinntekt og overføringer | D10: Nederst i intervallet | F10: Kommune | G10: Fylkeskommune | H10: Stat
B11: 0-54.650 | C11: Prosent | D11: 54650 | E11: 0 | F11: 0 | G11: 0 | H11: 0 | I11: https://www.skatteetaten.no/satser | J11: https://lovdata.no/dokument/STV/forskrift/2018-12-12-1992/KAPITTEL_3#%C2%A73-2 | K11: Laget eget Excel-ark for å beregne satser
B12: 54.650-70.000 | C12: Prosent | D12: 70000 | E12: 0.05482142857 | F12: 0 | G12: 0 | H12: 1 | I12: https://www.skatteetaten.no/satser | J12: https://lovdata.no/dokument/STV/forskrift/2018-12-12-1992/KAPITTEL_3#%C2%A73-2 | K12: Laget eget Excel-ark for å beregne satser
B13: 70.000-81.325 | C13: Prosent | D13: 81325 | E13: 0.082 | F13: 0 | G13: 0 | H13: 1 | I13: https://www.skatteetaten.no/satser | J13: https://lovdata.no/dokument/STV/forskrift/2018-12-12-1992/KAPITTEL_3#%C2%A73-2 | K13: Laget eget Excel-ark for å beregne satser
B14: 81.325-100.000 | C14: Prosent | D14: 100000 | E14: 0.082 | F14: 0 | G14: 0 | H14: 1 | I14: https://www.skatteetaten.no/satser | J14: https://lovdata.no/dokument/STV/forskrift/2018-12-12-1992/KAPITTEL_3#%C2%A73-2 | K14: Laget eget Excel-ark for å beregne satser
B15: 100.000-150.000 | C15: Prosent | D15: 150000 | E15: 0.12006 | F15: 0.1664292854 | G15: 0.03746460103 | H15: 0.7961061136 | I15: https://www.skatteetaten.no/satser | J15: https://lovdata.no/dokument/STV/forskrift/2018-12-12-1992/KAPITTEL_3#%C2%A73-2 | K15: Laget eget Excel-ark for å beregne satser
B16: 150.000-174.500 | C16: Prosent | D16: 174500 | E16: 0.1317048711 | F16: 0.1981328184 | G16: 0.0446013271 | H16: 0.7572658545 | I16: https://www.skatteetaten.no/satser | J16: https://lovdata.no/dokument/STV/forskrift/2018-12-12-1992/KAPITTEL_3#%C2%A73-2 | K16: Laget eget Excel-ark for å beregne satser
B17: 174.500-200.000 | C17: Prosent | D17: 200000 | E17: 0.1432175 | F17: 0.2155279557 | G17: 0.04851711558 | H17: 0.7359549287 | I17: https://www.skatteetaten.no/satser | J17: https://lovdata.no/dokument/STV/forskrift/2018-12-12-1992/KAPITTEL_3#%C2%A73-2 | K17: Laget eget Excel-ark for å beregne satser
B18: 200.000-224.000 | C18: Prosent | D18: 224000 | E18: 0.1516584821 | F18: 0.226603918 | G18: 0.05101040578 | H18: 0.7223856762 | I18: https://www.skatteetaten.no/satser | J18: https://lovdata.no/dokument/STV/forskrift/2018-12-12-1992/KAPITTEL_3#%C2%A73-2 | K18: Laget eget Excel-ark for å beregne satser
B19: 224.000-245.650 | C19: Prosent | D19: 245650 | E19: 0.1665831468 | F19: 0.2492268668 | G19: 0.05610301763 | H19: 0.6946701156 | I19: https://www.skatteetaten.no/satser | J19: https://lovdata.no/dokument/STV/forskrift/2018-12-12-1992/KAPITTEL_3#%C2%A73-2 | K19: Laget eget Excel-ark for å beregne satser
B20: 245.650-250.000 | C20: Prosent | D20: 250000 | E20: 0.1696702 | F20: 0.2522794221 | G20: 0.05679017294 | H20: 0.690930405 | I20: https://www.skatteetaten.no/satser | J20: https://lovdata.no/dokument/STV/forskrift/2018-12-12-1992/KAPITTEL_3#%C2%A73-2 | K20: Laget eget Excel-ark for å beregne satser
B21: 250.000-300.000 | C21: Prosent | D21: 300000 | E21: 0.1987251667 | F21: 0.2763628328 | G21: 0.06221154677 | H21: 0.6614256205 | I21: https://www.skatteetaten.no/satser | J21: https://lovdata.no/dokument/STV/forskrift/2018-12-12-1992/KAPITTEL_3#%C2%A73-2 | K21: Laget eget Excel-ark for å beregne satser
B22: 300.000-350.000 | C22: Prosent | D22: 350000 | E22: 0.2194787143 | F22: 0.2896613469 | G22: 0.06520515169 | H22: 0.6451335014 | I22: https://www.skatteetaten.no/satser | J22: https://lovdata.no/dokument/STV/forskrift/2018-12-12-1992/KAPITTEL_3#%C2%A73-2 | K22: Laget eget Excel-ark for å beregne satser
B23: 350.000-400.000 | C23: Prosent | D23: 400000 | E23: 0.235043875 | F23: 0.2980940792 | G23: 0.06710342909 | H23: 0.6348024917 | I23: https://www.skatteetaten.no/satser | J23: https://lovdata.no/dokument/STV/forskrift/2018-12-12-1992/KAPITTEL_3#%C2%A73-2 | K23: Laget eget Excel-ark for å beregne satser
B24: 400.000-450.000 | C24: Prosent | D24: 450000 | E24: 0.2471501111 | F24: 0.3039185362 | G24: 0.06841456227 | H24: 0.6276669015 | I24: https://www.skatteetaten.no/satser | J24: https://lovdata.no/dokument/STV/forskrift/2018-12-12-1992/KAPITTEL_3#%C2%A73-2 | K24: Laget eget Excel-ark for å beregne satser
B25: 450.000-500.000 | C25: Prosent | D25: 500000 | E25: 0.2568351 | F25: 0.3081827601 | G25: 0.06937447413 | H25: 0.6224427658 | I25: https://www.skatteetaten.no/satser | J25: https://lovdata.no/dokument/STV/forskrift/2018-12-12-1992/KAPITTEL_3#%C2%A73-2 | K25: Laget eget Excel-ark for å beregne satser
B26: 500.000-617.500 | C26: Prosent | D26: 617500 | E26: 0.2734211336 | F26: 0.3147837966 | G26: 0.07086042175 | H26: 0.6143557816 | I26: https://www.skatteetaten.no/satser | J26: https://lovdata.no/dokument/STV/forskrift/2018-12-12-1992/KAPITTEL_3#%C2%A73-2 | K26: Laget eget Excel-ark for å beregne satser
B27: 617.500-650.000 | C27: Prosent | D27: 650000 | E27: 0.2814500769 | F27: 0.3110324799 | G27: 0.07001596949 | H27: 0.6189515506 | I27: https://www.skatteetaten.no/satser | J27: https://lovdata.no/dokument/STV/forskrift/2018-12-12-1992/KAPITTEL_3#%C2%A73-2 | K27: Laget eget Excel-ark for å beregne satser
B28: 650.000-700.000 | C28: Prosent | D28: 700000 | E28: 0.2923465 | F28: 0.3062709832 | G28: 0.06894411744 | H28: 0.6247848993 | I28: https://www.skatteetaten.no/satser | J28: https://lovdata.no/dokument/STV/forskrift/2018-12-12-1992/KAPITTEL_3#%C2%A73-2 | K28: Laget eget Excel-ark for å beregne satser
B29: 700.000-800.000 | C29: Prosent | D29: 800000 | E29: 0.3100531875 | F29: 0.2992473469 | G29: 0.06736303912 | H29: 0.633389614 | I29: https://www.skatteetaten.no/satser | J29: https://lovdata.no/dokument/STV/forskrift/2018-12-12-1992/KAPITTEL_3#%C2%A73-2 | K29: Laget eget Excel-ark for å beregne satser
B30: 800.000-900.000 | C30: Prosent | D30: 900000 | E30: 0.3238250556 | F30: 0.2943155521 | G30: 0.06625285155 | H30: 0.6394315964 | I30: https://www.skatteetaten.no/satser | J30: https://lovdata.no/dokument/STV/forskrift/2018-12-12-1992/KAPITTEL_3#%C2%A73-2 | K30: Laget eget Excel-ark for å beregne satser
B31: 900.000-964.800 | C31: Prosent | D31: 964800 | E31: 0.3312248653 | F31: 0.2918350136 | G31: 0.06569446194 | H31: 0.6424705245 | I31: https://www.skatteetaten.no/satser | J31: https://lovdata.no/dokument/STV/forskrift/2018-12-12-1992/KAPITTEL_3#%C2%A73-2 | K31: Laget eget Excel-ark for å beregne satser
B32: 964.800-1.000.000 | C32: Prosent | D32: 1000000 | E32: 0.33589855 | F32: 0.2897484226 | G32: 0.06522475313 | H32: 0.6450268243 | I32: https://www.skatteetaten.no/satser | J32: https://lovdata.no/dokument/STV/forskrift/2018-12-12-1992/KAPITTEL_3#%C2%A73-2 | K32: Laget eget Excel-ark for å beregne satser
B33: Over 1.000.000 | C33: Prosent | D33: 1000001 | E33: 0.3475441364 | F33: 0.2847933245 | G33: 0.0641093198 | H33: 0.6510973557 | I33: https://www.skatteetaten.no/satser | J33: https://lovdata.no/dokument/STV/forskrift/2018-12-12-1992/KAPITTEL_3#%C2%A73-2 | K33: Laget eget Excel-ark for å beregne satser
B34: Skattesats kapitalinntekt | D34: Nederst i intervallet | F34: Kommune | G34: Fylkeskommune | H34: Stat
B35: 0-56.550 | C35: Prosent | D35: 0 | E35: 0 | F35: 0 | G35: 0 | H35: 0 | I35: https://www.skatteetaten.no/satser | J35: https://lovdata.no/dokument/STV/forskrift/2018-12-12-1992/KAPITTEL_3#%C2%A73-2 | K35: Laget eget Excel-ark for å beregne satser
B36: Over 56.550 | C36: Prosent | D36: 56500 | E36: 0.22 | F36: 0.1155 | G36: 0.026 | H36: 0.0785 | I36: https://www.skatteetaten.no/satser | J36: https://lovdata.no/dokument/STV/forskrift/2018-12-12-1992/KAPITTEL_3#%C2%A73-2 | K36: Laget eget Excel-ark for å beregne satser
B37: Arbeidsgiveravgift | F37: Kommune | G37: Fylkeskommune | H37: Stat
B38: Arbeidsgiveravgift | C38: Prosent | D38: 2019 | E38: 0.141 | F38: 0 | G38: 0 | H38: 1 | I38: https://www.skatteetaten.no/satser/arbeidsgiveravgift/ | K38: Ettersom vi ikke har et geografisk moment i modellen, setter vi 14,1 % for alle.
B39: Helsetjenester - NPR | D39: Årstall | F39: Kommune | G39: Fylkeskommune | H39: Stat
B40: Avtalespesialister innen psykisk helsevern og somatikk (AVT) | C40: Kostnad per døgnopphold | D40: 2017 | E40: 18951.5 | F40: 0 | G40: 0 | H40: 1 | I40: NPR | K40: Egen utregning, basert på SAMDATA
C41: Kostnad per episode | D41: 2017 | E41: 4199.652266 | F41: 0 | G41: 0 | H41: 1 | I41: NPR | K41: Egen utregning, basert på SAMDATA
B42: Psykisk helsevern for barn og unge (BUP) | C42: Kostnad per døgnopphold | D42: 2017 | E42: 20446 | F42: 0 | G42: 0 | H42: 1 | I42: NPR | K42: Egen utregning, basert på SAMDATA
C43: Kostnad per episode | D43: 2017 | E43: 3430 | F43: 0 | G43: 0 | H43: 1 | I43: NPR | K43: Egen utregning, basert på SAMDATA
B44: Psykisk helsevern for voksne (PHV) | C44: Kostnad per døgnopphold | D44: 2017 | E44: 12483 | F44: 0 | G44: 0 | H44: 1 | I44: NPR | K44: Egen utregning, basert på SAMDATA
C45: Kostnad per episode | D45: 2017 | E45: 3087 | F45: 0 | G45: 0 | H45: 1 | I45: NPR | K45: Egen utregning, basert på SAMDATA
B46: Somatiske sykehus (SOM) | C46: Kostnad per døgnopphold | D46: 2017 | E46: 17457 | F46: 0 | G46: 0 | H46: 1 | I46: NPR | K46: Egen utregning, basert på SAMDATA
C47: Kostnad per episode | D47: 2017 | E47: 4969 | F47: 0 | G47: 0 | H47: 1 | I47: NPR | K47: Egen utregning, basert på SAMDATA
B48: Tverrfaglig spesialisert rusbehandling (TSB) | C48: Kostnad per døgnopphold | D48: 2017 | E48: 7562 | F48: 0 | G48: 0 | H48: 1 | I48: NPR | K48: Egen utregning, basert på SAMDATA
C49: Kostnad per episode | D49: 2017 | E49: 2867 | F49: 0 | G49: 0 | H49: 1 | I49: NPR | K49: Egen utregning, basert på SAMDATA
B50: Helsetjenester - KPR | D50: Årstall | F50: Kommune | G50: Fylkeskommune | H50: Stat
B51: Fastlege (FL) | C51: Refusjon per pasient | D51: 2017 | E51: 1 | F51: 0 | G51: 0 | H51: 1 | I51: KPR | J51: KPR | K51: Gjennomsnittlig refusjonsbeløp fra HELFO til behandler
B52: Helsestasjon (HS) | C52: Refusjon per pasient | D52: 2017 | E52: 1 | F52: 0 | G52: 0 | H52: 1 | I52: KPR | J52: KPR | K52: Gjennomsnittlig refusjonsbeløp fra HELFO til behandler
B53: Legevakt (LV) | C53: Refusjon per pasient | D53: 2017 | E53: 1 | F53: 0 | G53: 0 | H53: 1 | I53: KPR | J53: KPR | K53: Gjennomsnittlig refusjonsbeløp fra HELFO til behandler
B54: Tannlege og tannpleier (TLTP) | C54: Refusjon per pasient | D54: 2017 | E54: 1 | F54: 0 | G54: 0 | H54: 1 | I54: KPR | J54: KPR | K54: Gjennomsnittlig refusjonsbeløp fra HELFO til behandler
B55: Utdanning | D55: Årstall | F55: Kommune | G55: Fylkeskommune | H55: Stat
B56: Videregående opplæring | C56: Kostnad per elev per år | D56: 2017 | E56: 158200 | F56: 0 | G56: 1 | H56: 0 | I56: SSB | J56: Udir: Utdanningsspeilet
B57: Høyskole eller universitet | C57: Kostnad per elev per år | D57: 2017 | E57: 142664.7795 | F57: 0 | G57: 0 | H57: 1 | I57: SSB | J57: SSB, nasjonalregnskapet | K57: Egen utregning
B58: Politi, rettsvesen og kriminalomsorg | D58: Årstall | F58: Kommune | G58: Fylkeskommune | H58: Stat
B59: Straffereaksjoner | C59: Kostnad per straffet per år | D59: 2017 | E59: 322031.753 | F59: 0 | G59: 0 | H59: 1 | I59: SSB | J59: Prop. S1 | K59: Egen utregning
B60: Barnevern | D60: Årstall | F60: Kommune | G60: Fylkeskommune | H60: Stat
B61: Hjelpetiltak | C61: Kostnad per tiltak | D61: 2017 | E61: 106712.7586 | F61: 1 | G61: 0 | H61: 0 | I61: SSB | J61: Prop. S1 | K61: Egen utregning
B62: Omsorgstiltak | C62: Kostnad per tiltak | D62: 2017 | E62: 1541219.825 | F62: 0.58 | G62: 0 | H62: 0.42 | I62: SSB | J62: Prop. S1 | K62: Egen utregning

Sheet Alle Livsforløp (hidden)
F2: 0 år | G2: 1 år | H2: 2 år | I2: 3 år | J2: 4 år | K2: 5 år | L2: 6 år | M2: 7 år | N2: 8 år | O2: 9 år | P2: 10 år | Q2: 11 år | R2: 12 år | S2: 13 år | T2: 14 år | U2: 15 år | V2: 16 år | W2: 17 år | X2: 18 år | Y2: 19 år | Z2: 20 år | AA2: 21 år | AB2: 22 år | AC2: 23 år | AD2: 24 år | AE2: 25 år | AF2: 26 år | AG2: 27 år | AH2: 28 år | AI2: 29 år | AJ2: 30 år | AK2: 31 år | AL2: 32 år | AM2: 33 år | AN2: 34 år | AO2: 35 år | AP2: 36 år | AQ2: 37 år | AR2: 38 år | AS2: 39 år | AT2: 40 år | AU2: 41 år | AV2: 42 år | AW2: 43 år | AX2: 44 år | AY2: 45 år | AZ2: 46 år | BA2: 47 år | BB2: 48 år | BC2: 49 år | BD2: 50 år | BE2: 51 år | BF2: 52 år | BG2: 53 år | BH2: 54 år | BI2: 55 år | BJ2: 56 år | BK2: 57 år | BL2: 58 år | BM2: 59 år
B4: KILDE : Beregnet av KPR, NPR og SSB i 2018/2019
B6: SAMMENLIGNINGSGRUPPER
B8: 1. Gjennomsnitt av hele befolkningen
C9: Gruppe | D9: Enhet | E9: Årstall | F9: 0 år | G9: 1 år | H9: 2 år | I9: 3 år | J9: 4 år | K9: 5 år | L9: 6 år | M9: 7 år | N9: 8 år | O9: 9 år | P9: 10 år | Q9: 11 år | R9: 12 år | S9: 13 år | T9: 14 år | U9: 15 år | V9: 16 år | W9: 17 år | X9: 18 år | Y9: 19 år | Z9: 20 år | AA9: 21 år | AB9: 22 år | AC9: 23 år | AD9: 24 år | AE9: 25 år | AF9: 26 år | AG9: 27 år | AH9: 28 år | AI9: 29 år | AJ9: 30 år | AK9: 31 år | AL9: 32 år | AM9: 33 år | AN9: 34 år | AO9: 35 år | AP9: 36 år | AQ9: 37 år | AR9: 38 år | AS9: 39 år | AT9: 40 år | AU9: 41 år | AV9: 42 år | AW9: 43 år | AX9: 44 år | AY9: 45 år | AZ9: 46 år | BA9: 47 år | BB9: 48 år | BC9: 49 år | BD9: 50 år | BE9: 51 år | BF9: 52 år | BG9: 53 år | BH9: 54 år | BI9: 55 år | BJ9: 56 år | BK9: 57 år | BL9: 58 år | BM9: 59 år
B10: Antall personer | C10: 1 | D10: Antall personer i hver aldersgruppe | E10: 2017 | F10: 0 | G10: 58773 | H10: 59383 | I10: 59937 | J10: 60226 | K10: 62148 | L10: 62702 | M10: 64538 | N10: 65651 | O10: 64625 | P10: 63090 | Q10: 63396 | R10: 61921 | S10: 62265 | T10: 61822 | U10: 60767 | V10: 62109 | W10: 65076 | X10: 65529 | Y10: 64775 | Z10: 66066 | AA10: 67420 | AB10: 67153 | AC10: 67175 | AD10: 67824 | AE10: 69623 | AF10: 71484 | AG10: 73311 | AH10: 73108 | AI10: 72941 | AJ10: 70858 | AK10: 70890 | AL10: 69889 | AM10: 69497 | AN10: 69191 | AO10: 69882 | AP10: 68374 | AQ10: 69480 | AR10: 68599 | AS10: 68158 | AT10: 66454 | AU10: 68194 | AV10: 69990 | AW10: 72969 | AX10: 73287 | AY10: 75635 | AZ10: 75735 | BA10: 74887 | BB10: 76423 | BC10: 75667 | BD10: 73603 | BE10: 73136 | BF10: 71977 | BG10: 70618 | BH10: 67676 | BI10: 65895 | BJ10: 64741 | BK10: 63888 | BL10: 63728 | BM10: 62996
B11: Overføringer
B12: Skattepliktige overføringer inkl. fødsels- og sykepenger | C12: 1 | D12: NOK per person per år | E12: 2017 | F12: 0 | G12: 0 | H12: 0 | I12: 0 | J12: 0 | K12: 0 | L12: 0 | M12: 0 | N12: 0 | O12: 0 | P12: 0 | Q12: 0 | R12: 0 | S12: 0 | T12: 0 | U12: 0 | V12: 0 | W12: 0 | X12: 3270 | Y12: 7864 | Z12: 12117 | AA12: 17288 | AB12: 20645 | AC12: 23919 | AD12: 28377 | AE12: 32962 | AF12: 38859 | AG12: 43545 | AH12: 48402 | AI12: 52996 | AJ12: 57364 | AK12: 59495 | AL12: 61315 | AM12: 61741 | AN12: 60641 | AO12: 60386 | AP12: 59293 | AQ12: 57089 | AR12: 56993 | AS12: 55372 | AT12: 54333 | AU12: 53561 | AV12: 54357 | AW12: 54766 | AX12: 54950 | AY12: 54923 | AZ12: 57026 | BA12: 59225 | BB12: 60581 | BC12: 62631 | BD12: 65359 | BE12: 68038 | BF12: 68775 | BG12: 71274 | BH12: 73471 | BI12: 76143 | BJ12: 78972 | BK12: 83486 | BL12: 87829 | BM12: 94881
B13: Netto skattefrie overføringer | C13: 1 | D13: NOK per person per år | E13: 2017 | F13: 0 | G13: 0 | H13: 0 | I13: 0 | J13: 0 | K13: 0 | L13: 0 | M13: 0 | N13: 0 | O13: 0 | P13: 0 | Q13: 0 | R13: 0 | S13: 0 | T13: 0 | U13: 0 | V13: 0 | W13: 0 | X13: 11659 | Y13: 10356 | Z13: 14267 | AA13: 17006 | AB13: 17860 | AC13: 16749 | AD13: 14460 | AE13: 12467 | AF13: 10872 | AG13: 10368 | AH13: 10222 | AI13: 10725 | AJ13: 11328 | AK13: 12049 | AL13: 12616 | AM13: 13282 | AN13: 13450 | AO13: 14087 | AP13: 14099 | AQ13: 14469 | AR13: 14323 | AS13: 14299 | AT13: 14004 | AU13: 13484 | AV13: 13175 | AW13: 12611 | AX13: 11423 | AY13: 10703 | AZ13: 9595 | BA13: 8840 | BB13: 7787 | BC13: 6780 | BD13: 5886 | BE13: 5096 | BF13: 4487 | BG13: 3793 | BH13: 3144 | BI13: 2810 | BJ13: 2444 | BK13: 2271 | BL13: 1985 | BM13: 1784
B14: Sosialhjelp | C14: 1 | D14: NOK per person per år | E14: 2017 | F14: 0 | G14: 0 | H14: 0 | I14: 0 | J14: 0 | K14: 0 | L14: 0 | M14: 0 | N14: 0 | O14: 0 | P14: 0 | Q14: 0 | R14: 0 | S14: 0 | T14: 0 | U14: 0 | V14: 0 | W14: 0 | X14: 434 | Y14: 1353 | Z14: 1917 | AA14: 2119 | AB14: 2170 | AC14: 2072 | AD14: 2187 | AE14: 2266 | AF14: 2096 | AG14: 2223 | AH14: 2207 | AI14: 2248 | AJ14: 2294 | AK14: 2439 | AL14: 2622 | AM14: 2467 | AN14: 2467 | AO14: 2569 | AP14: 2311 | AQ14: 2750 | AR14: 2435 | AS14: 2415 | AT14: 2471 | AU14: 2365 | AV14: 2306 | AW14: 2275 | AX14: 2026 | AY14: 2086 | AZ14: 1716 | BA14: 2044 | BB14: 1796 | BC14: 1716 | BD14: 1652 | BE14: 1540 | BF14: 1718 | BG14: 1490 | BH14: 1378 | BI14: 1323 | BJ14: 1258 | BK14: 1328 | BL14: 1034 | BM14: 1071
B15: Inntekt
B16: Lønnsinntekt | C16: 1 | D16: NOK per person per år | E16: 2017 | F16: 0 | G16: 0 | H16: 0 | I16: 0 | J16: 0 | K16: 0 | L16: 0 | M16: 0 | N16: 0 | O16: 0 | P16: 0 | Q16: 0 | R16: 0 | S16: 0 | T16: 0 | U16: 0 | V16: 0 | W16: 0 | X16: 38399 | Y16: 79516 | Z16: 115164 | AA16: 136013 | AB16: 152952 | AC16: 180045 | AD16: 210868 | AE16: 241642 | AF16: 273572 | AG16: 297930 | AH16: 320481 | AI16: 337861 | AJ16: 351508 | AK16: 362380 | AL16: 371088 | AM16: 378256 | AN16: 390819 | AO16: 398253 | AP16: 410301 | AQ16: 417619 | AR16: 424957 | AS16: 431853 | AT16: 441619 | AU16: 447399 | AV16: 455200 | AW16: 458479 | AX16: 465683 | AY16: 469855 | AZ16: 472016 | BA16: 467602 | BB16: 471646 | BC16: 468064 | BD16: 466203 | BE16: 462133 | BF16: 458908 | BG16: 455937 | BH16: 448985 | BI16: 442601 | BJ16: 437613 | BK16: 427866 | BL16: 418481 | BM16: 404144
B17: Kapitalinntekt | C17: 1 | D17: NOK per person per år | E17: 2017 | F17: 0 | G17: 0 | H17: 0 | I17: 0 | J17: 0 | K17: 0 | L17: 0 | M17: 0 | N17: 0 | O17: 0 | P17: 0 | Q17: 0 | R17: 0 | S17: 0 | T17: 0 | U17: 0 | V17: 0 | W17: 0 | X17: 1632 | Y17: 1580 | Z17: 2544 | AA17: 3196 | AB17: 3434 | AC17: 4058 | AD17: 6534 | AE17: 4925 | AF17: 6116 | AG17: 6887 | AH17: 8432 | AI17: 9239 | AJ17: 9571 | AK17: 12267 | AL17: 12490 | AM17: 13756 | AN17: 14358 | AO17: 16100 | AP17: 16436 | AQ17: 19225 | AR17: 21062 | AS17: 19850 | AT17: 22529 | AU17: 24342 | AV17: 24508 | AW17: 29476 | AX17: 30921 | AY17: 30321 | AZ17: 28760 | BA17: 33414 | BB17: 35988 | BC17: 36093 | BD17: 35796 | BE17: 42624 | BF17: 39805 | BG17: 39844 | BH17: 47790 | BI17: 43621 | BJ17: 43708 | BK17: 57679 | BL17: 41225 | BM17: 50955
B18: Helsetjenester - NPR
B19: Avtalespesialister innen psykisk helsevern og somatikk (AVT) | C19: 1 | D19: Antall personer benyttet | E19: 2017 | F19: 0 | G19: 6171.165 | H19: 7304.109 | I19: 7552.062 | J19: 8792.996 | K19: 10130.124 | L19: 9530.704 | M19: 9099.858 | N19: 8206.375 | O19: 7431.875 | P19: 6813.72 | Q19: 6402.996 | R19: 6006.337 | S19: 5603.85 | T19: 5625.802 | U19: 5894.399 | V19: 6335.118 | W19: 6832.98 | X19: 6880.545 | Y19: 6542.275 | Z19: 6276.27 | AA19: 6742 | AB19: 6983.912 | AC19: 7053.375 | AD19: 7324.992 | AE19: 8354.76 | AF19: 9149.952 | AG19: 9530.43 | AH19: 9796.472 | AI19: 9919.976 | AJ19: 9849.262 | AK19: 9924.6 | AL19: 9854.349 | AM19: 10077.065 | AN19: 9825.122 | AO19: 10342.388 | AP19: 10050.978 | AQ19: 10491.48 | AR19: 10358.449 | AS19: 10496.332 | AT19: 10366.824 | AU19: 10979.234 | AV19: 11408.37 | AW19: 11893.947 | AX19: 12238.929 | AY19: 12782.315 | AZ19: 13329.36 | BA19: 13254.999 | BB19: 14138.255 | BC19: 14225.396 | BD19: 14058.173 | BE19: 14407.792 | BF19: 14683.308 | BG19: 14547.308 | BH19: 14347.312 | BI19: 14365.11 | BJ19: 14501.984 | BK19: 14374.8 | BL19: 14976.08 | BM19: 15182.036
C20: 1 | D20: Liggetid pr pasient | E20: 2017 | F20: 0 | G20: 0 | H20: 0 | I20: 0 | J20: 0 | K20: 0 | L20: 0 | M20: 0 | N20: 0 | O20: 0 | P20: 0 | Q20: 0 | R20: 0 | S20: 0 | T20: 0 | U20: 0 | V20: 0 | W20: 0 | X20: 0 | Y20: 0 | Z20: 0 | AA20: 0 | AB20: 0 | AC20: 0 | AD20: 0 | AE20: 0 | AF20: 0 | AG20: 0 | AH20: 0 | AI20: 0 | AJ20: 0 | AK20: 0 | AL20: 0 | AM20: 0 | AN20: 0 | AO20: 0 | AP20: 0 | AQ20: 0 | AR20: 0 | AS20: 0 | AT20: 0 | AU20: 0 | AV20: 0 | AW20: 0 | AX20: 0 | AY20: 0 | AZ20: 0 | BA20: 0 | BB20: 0 | BC20: 0 | BD20: 0 | BE20: 0 | BF20: 0 | BG20: 0 | BH20: 0 | BI20: 0 | BJ20: 0 | BK20: 0 | BL20: 0 | BM20: 0
C21: 1 | D21: Episoder pr pasient | E21: 2017 | F21: 0 | G21: 1.894 | H21: 2.018 | I21: 1.954 | J21: 1.851 | K21: 1.864 | L21: 1.802 | M21: 1.8 | N21: 1.922 | O21: 1.969 | P21: 2 | Q21: 2.096 | R21: 2.176 | S21: 2.248 | T21: 2.347 | U21: 2.41 | V21: 2.362 | W21: 2.523 | X21: 2.432 | Y21: 2.282 | Z21: 2.353 | AA21: 2.463 | AB21: 2.664 | AC21: 2.802 | AD21: 2.904 | AE21: 3.027 | AF21: 3.064 | AG21: 3.081 | AH21: 3.118 | AI21: 3.327 | AJ21: 3.286 | AK21: 3.309 | AL21: 3.286 | AM21: 3.397 | AN21: 3.198 | AO21: 3.351 | AP21: 3.465 | AQ21: 3.46 | AR21: 3.267 | AS21: 3.498 | AT21: 3.454 | AU21: 3.301 | AV21: 3.295 | AW21: 3.171 | AX21: 3.051 | AY21: 3.044 | AZ21: 3.143 | BA21: 2.962 | BB21: 3.014 | BC21: 2.974 | BD21: 2.868 | BE21: 2.871 | BF21: 2.77 | BG21: 2.75 | BH21: 2.688 | BI21: 2.742 | BJ21: 2.688 | BK21: 2.626 | BL21: 2.536 | BM21: 2.55
B22: Psykisk helsevern for barn og unge (BUP) | C22: 1 | D22: Antall personer benyttet | E22: 2017 | F22: 0 | G22: 528.957 | H22: 475.064 | I22: 479.496 | J22: 722.712 | K22: 1180.812 | L22: 1692.954 | M22: 2129.754 | N22: 2888.644 | O22: 3360.5 | P22: 3596.13 | Q22: 3803.76 | R22: 3653.339 | S22: 3486.84 | T22: 4018.43 | U22: 4800.593 | V22: 5217.156 | W22: 5271.156 | X22: 3800.682 | Y22: 971.625 | Z22: 264.264 | AA22: 67.42 | AB22: 67.153 | AC22: 67.175 | AD22: 67.824 | AE22: 69.623 | AF22: 71.484 | AG22: 73.311 | AH22: 73.108 | AI22: 72.941 | AJ22: 70.858 | AK22: 70.89 | AL22: 0 | AM22: 69.497 | AN22: 69.191 | AO22: 69.881 | AP22: 0 | AQ22: 0 | AR22: 0 | AS22: 0 | AT22: 0 | AU22: 0 | AV22: 0 | AW22: 0 | AX22: 0 | AY22: 0 | AZ22: 0 | BA22: 0 | BB22: 0 | BC22: 0 | BD22: 0 | BE22: 0 | BF22: 0 | BG22: 0 | BH22: 0 | BI22: 0 | BJ22: 0 | BK22: 0 | BL22: 0 | BM22: 0
C23: 1 | D23: Liggetid pr pasient | E23: 2017 | F23: 0 | G23: 0 | H23: 0 | I23: 0 | J23: 0 | K23: 0.001 | L23: 0.001 | M23: 0 | N23: 0.753 | O23: 0.324 | P23: 0.608 | Q23: 0.574 | R23: 0.605 | S23: 0.317 | T23: 0.001 | U23: 0.001 | V23: 0.071 | W23: 0.001 | X23: 0.002 | Y23: 0 | Z23: 0 | AA23: 0 | AB23: 0 | AC23: 0 | AD23: 0 | AE23: 0 | AF23: 0 | AG23: 0 | AH23: 0 | AI23: 0 | AJ23: 0 | AK23: 0 | AL23: 0 | AM23: 0 | AN23: 0 | AO23: 0 | AP23: 0 | AQ23: 0 | AR23: 0 | AS23: 0 | AT23: 0 | AU23: 0 | AV23: 0 | AW23: 0 | AX23: 0 | AY23: 0 | AZ23: 0 | BA23: 0 | BB23: 0 | BC23: 0 | BD23: 0 | BE23: 0 | BF23: 0 | BG23: 0 | BH23: 0 | BI23: 0 | BJ23: 0 | BK23: 0 | BL23: 0 | BM23: 0
C24: 1 | D24: Episoder pr pasient | E24: 2017 | F24: 0 | G24: 7.349 | H24: 7.077 | I24: 10.96 | J24: 10.885 | K24: 10.708 | L24: 11.674 | M24: 11.595 | N24: 11.964 | O24: 11.717 | P24: 11.838 | Q24: 11.562 | R24: 11.864 | S24: 11.7 | T24: 13.114 | U24: 15.488 | V24: 15.07 | W24: 14.639 | X24: 13.223 | Y24: 9.542 | Z24: 9.487 | AA24: 11.29 | AB24: 9.284 | AC24: 6.279 | AD24: 7.222 | AE24: 6.139 | AF24: 6.474 | AG24: 5.079 | AH24: 5.444 | AI24: 5.568 | AJ24: 5.568 | AK24: 5.178 | AL24: 5.269 | AM24: 5.973 | AN24: 5.714 | AO24: 4.795 | AP24: 4.111 | AQ24: 6.097 | AR24: 5.471 | AS24: 6 | AT24: 6.333 | AU24: 6.071 | AV24: 6.524 | AW24: 6.091 | AX24: 5.25 | AY24: 7.5 | AZ24: 4.375 | BA24: 7.25 | BB24: 17.875 | BC24: 11.833 | BD24: 11.833 | BE24: 8.444 | BF24: 8.444 | BG24: 4.6 | BH24: 8.4 | BI24: 8.4 | BJ24: 5.364 | BK24: 5.364 | BL24: 7 | BM24: 7
B25: Psykisk helsevern for voksne (PHV) | C25: 1 | D25: Antall personer benyttet | E25: 2017 | F25: 0 | G25: 0 | H25: 0 | I25: 0 | J25: 0 | K25: 0 | L25: 0 | M25: 0 | N25: 0 | O25: 0 | P25: 0 | Q25: 61.921 | R25: 62.265 | S25: 61.822 | T25: 121.534 | U25: 186.327 | V25: 260.304 | W25: 2293.515 | X25: 3886.5 | Y25: 3963.96 | Z25: 3910.36 | AA25: 4029.18 | AB25: 3963.325 | AC25: 4001.616 | AD25: 4038.134 | AE25: 4074.588 | AF25: 3885.483 | AG25: 3947.832 | AH25: 3647.05 | AI25: 3472.042 | AJ25: 3331.83 | AK25: 3214.894 | AL25: 3127.365 | AM25: 2975.213 | AN25: 3004.883 | AO25: 2803.334 | AP25: 2848.68 | AQ25: 2743.96 | AR25: 2726.32 | AS25: 2458.798 | AT25: 2454.984 | AU25: 2589.63 | AV25: 2480.946 | AW25: 2565.045 | AX25: 2495.955 | AY25: 2423.52 | AZ25: 2321.497 | BA25: 2292.69 | BB25: 2270.01 | BC25: 2060.884 | BD25: 2047.808 | BE25: 1943.379 | BF25: 1765.45 | BG25: 1624.224 | BH25: 1515.585 | BI25: 1424.302 | BJ25: 1341.648 | BK25: 1210.832 | BL25: 1259.92 | BM25: 1105.83
C26: 1 | D26: Liggetid pr pasient | E26: 2017 | F26: 0 | G26: 0 | H26: 0 | I26: 0 | J26: 0 | K26: 0 | L26: 0 | M26: 0 | N26: 0 | O26: 0 | P26: 0 | Q26: 0 | R26: 0 | S26: 0 | T26: 0 | U26: 0 | V26: 0.031 | W26: 0 | X26: 0 | Y26: 0.002 | Z26: 0.001 | AA26: 0 | AB26: 0 | AC26: 0 | AD26: 0 | AE26: 0 | AF26: 0.001 | AG26: 0 | AH26: 0 | AI26: 0 | AJ26: 0 | AK26: 0 | AL26: 0 | AM26: 0 | AN26: 0 | AO26: 0 | AP26: 0 | AQ26: 0 | AR26: 0.134 | AS26: 0 | AT26: 0 | AU26: 0 | AV26: 0 | AW26: 0 | AX26: 0 | AY26: 0 | AZ26: 0 | BA26: 0 | BB26: 0 | BC26: 0 | BD26: 0 | BE26: 0 | BF26: 0 | BG26: 0.001 | BH26: 0 | BI26: 0.001 | BJ26: 0 | BK26: 0.001 | BL26: 0 | BM26: 0
C27: 1 | D27: Episoder pr pasient | E27: 2017 | F27: 0 | G27: 0 | H27: 3 | I27: 3 | J27: 3 | K27: 4.857 | L27: 4.625 | M27: 4.133 | N27: 5.92 | O27: 4.875 | P27: 4.458 | Q27: 5.813 | R27: 4.385 | S27: 3.906 | T27: 5.482 | U27: 6.612 | V27: 6.514 | W27: 7.405 | X27: 10.73 | Y27: 10.97 | Z27: 11.398 | AA27: 11.928 | AB27: 12.121 | AC27: 11.992 | AD27: 11.88 | AE27: 12.059 | AF27: 12.388 | AG27: 13.119 | AH27: 12.093 | AI27: 12.037 | AJ27: 12.212 | AK27: 12.44 | AL27: 11.736 | AM27: 12.169 | AN27: 11.856 | AO27: 12.081 | AP27: 12.175 | AQ27: 12.245 | AR27: 11.569 | AS27: 12.214 | AT27: 11.946 | AU27: 12.399 | AV27: 11.51 | AW27: 11.649 | AX27: 11.714 | AY27: 11.362 | AZ27: 11.673 | BA27: 11.349 | BB27: 11.952 | BC27: 11.386 | BD27: 11.287 | BE27: 10.478 | BF27: 10.694 | BG27: 10.367 | BH27: 10.592 | BI27: 10.282 | BJ27: 10.155 | BK27: 9.36 | BL27: 9.586 | BM27: 8.905
B28: Somatiske sykehus (SOM) | C28: 1 | D28: Antall personer benyttet | E28: 2017 | F28: 0 | G28: 17396.808 | H28: 15736.495 | I28: 14984.25 | J28: 14333.788 | K28: 14480.484 | L28: 14421.46 | M28: 13811.132 | N28: 13786.71 | O28: 13700.5 | P28: 13879.8 | Q28: 14581.08 | R28: 14613.356 | S28: 14570.01 | T28: 14589.992 | U28: 14766.381 | V28: 15278.814 | W28: 15813.468 | X28: 15923.547 | Y28: 15481.225 | Z28: 15855.84 | AA28: 16787.58 | AB28: 16721.097 | AC28: 17532.675 | AD28: 17973.36 | AE28: 19355.194 | AF28: 21087.78 | AG28: 22286.544 | AH28: 22444.156 | AI28: 22976.415 | AJ28: 22957.992 | AK28: 22684.8 | AL28: 22504.258 | AM28: 22030.549 | AN28: 21587.592 | AO28: 21593.229 | AP28: 20580.574 | AQ28: 20566.08 | AR28: 20305.304 | AS28: 19902.136 | AT28: 19537.476 | AU28: 19980.842 | AV28: 20437.08 | AW28: 21525.855 | AX28: 21766.239 | AY28: 22766.135 | AZ28: 23250.645 | BA28: 23214.97 | BB28: 24378.937 | BC28: 24516.108 | BD28: 24288.99 | BE28: 24866.24 | BF28: 24904.042 | BG28: 24716.3 | BH28: 23957.304 | BI28: 23722.2 | BJ28: 23824.688 | BK28: 23702.448 | BL28: 24280.368 | BM28: 24442.448
C29: 1 | D29: Liggetid pr pasient | E29: 2017 | F29: 0 | G29: 0.02 | H29: 0.014 | I29: 0.012 | J29: 0.009 | K29: 0.009 | L29: 0.007 | M29: 0.007 | N29: 0.008 | O29: 0.01 | P29: 0.012 | Q29: 0.015 | R29: 0.016 | S29: 0.017 | T29: 0.02 | U29: 0.02 | V29: 0.021 | W29: 0.02 | X29: 0.019 | Y29: 0.021 | Z29: 0.023 | AA29: 0.022 | AB29: 0.019 | AC29: 0.018 | AD29: 0.018 | AE29: 0.016 | AF29: 0.017 | AG29: 0.015 | AH29: 0.016 | AI29: 0.014 | AJ29: 0.014 | AK29: 0.015 | AL29: 0.013 | AM29: 0.013 | AN29: 0.012 | AO29: 0.012 | AP29: 0.013 | AQ29: 0.012 | AR29: 0.01 | AS29: 0.009 | AT29: 0.009 | AU29: 0.01 | AV29: 0.01 | AW29: 0.01 | AX29: 0.009 | AY29: 0.01 | AZ29: 0.008 | BA29: 0.008 | BB29: 0.008 | BC29: 0.008 | BD29: 0.008 | BE29: 0.008 | BF29: 0.009 | BG29: 0.007 | BH29: 0.007 | BI29: 0.008 | BJ29: 0.007 | BK29: 0.007 | BL29: 0.007 | BM29: 0.006
C30: 1 | D30: Episoder pr pasient | E30: 2017 | F30: 0 | G30: 2.48 | H30: 2.388 | I30: 2.4 | J30: 2.446 | K30: 2.471 | L30: 2.484 | M30: 2.412 | N30: 2.414 | O30: 2.401 | P30: 2.408 | Q30: 2.504 | R30: 2.481 | S30: 2.562 | T30: 2.584 | U30: 2.582 | V30: 2.621 | W30: 2.565 | X30: 2.565 | Y30: 2.588 | Z30: 2.663 | AA30: 2.626 | AB30: 2.666 | AC30: 2.753 | AD30: 2.854 | AE30: 2.893 | AF30: 2.97 | AG30: 2.999 | AH30: 3.128 | AI30: 3.205 | AJ30: 3.203 | AK30: 3.243 | AL30: 3.217 | AM30: 3.204 | AN30: 3.297 | AO30: 3.256 | AP30: 3.272 | AQ30: 3.188 | AR30: 3.302 | AS30: 3.256 | AT30: 3.246 | AU30: 3.191 | AV30: 3.188 | AW30: 3.141 | AX30: 3.19 | AY30: 3.235 | AZ30: 3.288 | BA30: 3.282 | BB30: 3.328 | BC30: 3.33 | BD30: 3.415 | BE30: 3.446 | BF30: 3.441 | BG30: 3.455 | BH30: 3.496 | BI30: 3.583 | BJ30: 3.606 | BK30: 3.596 | BL30: 3.626 | BM30: 3.656
B31: Tverrfaglig spesialisert rusbehandling (TSB) | C31: 1 | D31: Antall personer benyttet | E31: 2017 | F31: 0 | G31: 0 | H31: 0 | I31: 0 | J31: 0 | K31: 0 | L31: 0 | M31: 0 | N31: 0 | O31: 0 | P31: 0 | Q31: 0 | R31: 0 | S31: 0 | T31: 0 | U31: 0 | V31: 0 | W31: 65.076 | X31: 196.587 | Y31: 259.1 | Z31: 396.396 | AA31: 471.94 | AB31: 537.224 | AC31: 604.575 | AD31: 610.416 | AE31: 696.23 | AF31: 714.84 | AG31: 806.421 | AH31: 731.08 | AI31: 729.41 | AJ31: 708.58 | AK31: 708.9 | AL31: 768.779 | AM31: 764.467 | AN31: 691.91 | AO31: 768.691 | AP31: 683.74 | AQ31: 764.28 | AR31: 685.99 | AS31: 681.58 | AT31: 598.086 | AU31: 613.746 | AV31: 629.91 | AW31: 656.721 | AX31: 659.583 | AY31: 680.715 | AZ31: 681.615 | BA31: 673.983 | BB31: 687.807 | BC31: 681.003 | BD31: 588.824 | BE31: 658.224 | BF31: 647.793 | BG31: 564.944 | BH31: 541.408 | BI31: 461.265 | BJ31: 453.187 | BK31: 447.216 | BL31: 446.096 | BM31: 377.976
C32: 1 | D32: Liggetid pr pasient | E32: 2017 | F32: 0 | G32: 0 | H32: 0 | I32: 0 | J32: 0 | K32: 0 | L32: 0 | M32: 0 | N32: 0 | O32: 0 | P32: 0 | Q32: 0 | R32: 0 | S32: 0 | T32: 0 | U32: 0 | V32: 0 | W32: 0 | X32: 0 | Y32: 0 | Z32: 0 | AA32: 0 | AB32: 0 | AC32: 0 | AD32: 0 | AE32: 0.021 | AF32: 0 | AG32: 0 | AH32: 0 | AI32: 0 | AJ32: 0 | AK32: 0 | AL32: 0 | AM32: 0 | AN32: 0 | AO32: 0 | AP32: 0 | AQ32: 0 | AR32: 0 | AS32: 0.001 | AT32: 0 | AU32: 0 | AV32: 0 | AW32: 0 | AX32: 0 | AY32: 0 | AZ32: 0 | BA32: 0 | BB32: 0 | BC32: 0 | BD32: 0 | BE32: 0 | BF32: 0 | BG32: 0 | BH32: 0 | BI32: 0 | BJ32: 0 | BK32: 0 | BL32: 0 | BM32: 0
C33: 1 | D33: Episoder pr pasient | E33: 2017 | F33: 0 | G33: 1.6 | H33: 1.6 | I33: 1.6 | J33: 1.6 | K33: 1.6 | L33: 1.6 | M33: 1.6 | N33: 1.6 | O33: 1.6 | P33: 1.6 | Q33: 2.143 | R33: 2.143 | S33: 2.143 | T33: 2.143 | U33: 4.545 | V33: 4.129 | W33: 6.57 | X33: 8.087 | Y33: 8.101 | Z33: 10.151 | AA33: 10.668 | AB33: 12.456 | AC33: 11.813 | AD33: 12.692 | AE33: 12.317 | AF33: 13.306 | AG33: 14.279 | AH33: 15.166 | AI33: 15.792 | AJ33: 14.168 | AK33: 14.991 | AL33: 15.578 | AM33: 15.507 | AN33: 16.182 | AO33: 16.071 | AP33: 16.985 | AQ33: 17.127 | AR33: 20.117 | AS33: 16.737 | AT33: 16.465 | AU33: 16.639 | AV33: 16.96 | AW33: 16.39 | AX33: 16.633 | AY33: 17.657 | AZ33: 18.11 | BA33: 17.811 | BB33: 19.712 | BC33: 16.121 | BD33: 14.722 | BE33: 14.075 | BF33: 15.276 | BG33: 16.326 | BH33: 15.81 | BI33: 14.429 | BJ33: 12.509 | BK33: 13.221 | BL33: 16.048 | BM33: 13.455
B34: Helsetjenester - KPR
B35: Fastlege (FL) | C35: 1 | D35: Antall personer benyttet | E35: 2017 | F35: 0 | G35: 48605.271 | H35: 47090.719 | I35: 43394.388 | J35: 41194.584 | K35: 40458.348 | L35: 39000.644 | M35: 39368.18 | N35: 39653.204 | O35: 39033.5 | P35: 38484.9 | Q35: 39242.124 | R35: 38576.783 | S35: 39164.685 | T35: 40740.698 | U35: 42050.764 | V35: 47140.731 | W35: 52386.18 | X35: 52554.258 | Y35: 52079.1 | Z35: 48228.18 | AA35: 49553.7 | AB35: 49155.996 | AC35: 49507.975 | AD35: 49782.816 | AE35: 51938.758 | AF35: 53327.064 | AG35: 54909.939 | AH35: 54757.892 | AI35: 54778.691 | AJ35: 53356.074 | AK35: 53238.39 | AL35: 52626.417 | AM35: 52539.732 | AN35: 51962.441 | AO35: 52900.674 | AP35: 51417.248 | AQ35: 52040.52 | AR35: 51655.047 | AS35: 51595.606 | AT35: 50438.586 | AU35: 51827.44 | AV35: 53402.37 | AW35: 56113.161 | AX35: 56504.277 | AY35: 58692.76 | AZ35: 59149.035 | BA35: 59160.73 | BB35: 60603.439 | BC35: 60382.266 | BD35: 59471.224 | BE35: 59386.432 | BF35: 58805.209 | BG35: 58047.996 | BH35: 55968.052 | BI35: 54692.85 | BJ35: 54252.958 | BK35: 53793.696 | BL35: 54041.344 | BM35: 54050.568
C36: 1 | D36: Gj.snittlig refusjon per person | E36: 2017 | F36: 0 | G36: 1040.256 | H36: 933.004 | I36: 796.279 | J36: 733.551 | K36: 704.835 | L36: 683.738 | M36: 683.302 | N36: 685.201 | O36: 707.112 | P36: 723.675 | Q36: 739.483 | R36: 758.825 | S36: 779.048 | T36: 866.026 | U36: 951.638 | V36: 762.904 | W36: 607.425 | X36: 657.319 | Y36: 695.527 | Z36: 746.682 | AA36: 770.023 | AB36: 807.058 | AC36: 859.542 | AD36: 920.28 | AE36: 985.251 | AF36: 1045.444 | AG36: 1084.458 | AH36: 1142.148 | AI36: 1155.185 | AJ36: 1188.91 | AK36: 1193.265 | AL36: 1186.646 | AM36: 1201.625 | AN36: 1176.963 | AO36: 1189.028 | AP36: 1173.766 | AQ36: 1174.177 | AR36: 1145.922 | AS36: 1147.247 | AT36: 1134.113 | AU36: 1142.588 | AV36: 1133.132 | AW36: 1149.652 | AX36: 1154.453 | AY36: 1150.807 | AZ36: 1183.907 | BA36: 1201.538 | BB36: 1217.944 | BC36: 1230.47 | BD36: 1240.787 | BE36: 1254.428 | BF36: 1264.33 | BG36: 1273.195 | BH36: 1304.78 | BI36: 1302.589 | BJ36: 1326.053 | BK36: 1331.941 | BL36: 1332.92 | BM36: 1357.312
B37: Helsestasjon (HS) | C37: 1 | D37: Antall personer benyttet | E37: 2017 | F37: 0 | G37: 0 | H37: 0 | I37: 0 | J37: 0 | K37: 0 | L37: 0 | M37: 0 | N37: 0 | O37: 0 | P37: 0 | Q37: 0 | R37: 0 | S37: 0 | T37: 0 | U37: 0 | V37: 0 | W37: 65.076 | X37: 131.058 | Y37: 259.1 | Z37: 462.462 | AA37: 876.46 | AB37: 1074.448 | AC37: 1612.2 | AD37: 2034.72 | AE37: 2715.297 | AF37: 3574.2 | AG37: 4252.038 | AH37: 4752.02 | AI37: 5105.87 | AJ37: 5172.634 | AK37: 5033.19 | AL37: 4472.896 | AM37: 4100.323 | AN37: 3528.741 | AO37: 3004.926 | AP37: 2461.464 | AQ37: 1945.44 | AR37: 1509.178 | AS37: 1158.686 | AT37: 863.902 | AU37: 613.746 | AV37: 419.94 | AW37: 218.907 | AX37: 146.574 | AY37: 75.635 | AZ37: 75.735 | BA37: 74.887 | BB37: 0 | BC37: 0 | BD37: 0 | BE37: 0 | BF37: 0 | BG37: 0 | BH37: 0 | BI37: 0 | BJ37: 0 | BK37: 0 | BL37: 0 | BM37: 0
C38: 1 | D38: Gj.snittlig refusjon per person | E38: 2017 | F38: 0 | G38: 0 | H38: 0 | I38: 0 | J38: 0 | K38: 0 | L38: 0 | M38: 0 | N38: 0 | O38: 0 | P38: 0 | Q38: 0 | R38: 0 | S38: 0 | T38: 0 | U38: 0 | V38: 756.37 | W38: 997.717 | X38: 856.477 | Y38: 869.672 | Z38: 899.283 | AA38: 918.035 | AB38: 866.406 | AC38: 851.785 | AD38: 869.821 | AE38: 852.722 | AF38: 862.447 | AG38: 854.587 | AH38: 829.98 | AI38: 826.436 | AJ38: 821.218 | AK38: 815.611 | AL38: 803.125 | AM38: 802.892 | AN38: 794.28 | AO38: 802.882 | AP38: 811.062 | AQ38: 801.034 | AR38: 768.164 | AS38: 797.211 | AT38: 801.852 | AU38: 809.704 | AV38: 763.887 | AW38: 738.323 | AX38: 761.297 | AY38: 651.545 | AZ38: 625.569 | BA38: 600.143 | BB38: 455 | BC38: 587.818 | BD38: 185.545 | BE38: 537.6 | BF38: 368.5 | BG38: 126 | BH38: 364.667 | BI38: 87.2 | BJ38: 164 | BK38: 164 | BL38: 164 | BM38: 115.778
B39: Legevakt (LV) | C39: 1 | D39: Antall personer benyttet | E39: 2017 | F39: 0 | G39: 31796.193 | H39: 28147.542 | I39: 23435.367 | J39: 19874.58 | K39: 17836.476 | L39: 15424.692 | M39: 14650.126 | N39: 13721.059 | O39: 13054.25 | P39: 12428.73 | Q39: 12172.032 | R39: 11641.148 | S39: 11456.76 | T39: 11375.248 | U39: 11788.798 | V39: 13167.108 | W39: 14902.404 | X39: 16316.721 | Y39: 18525.65 | Z39: 17573.556 | AA39: 17596.62 | AB39: 16586.791 | AC39: 16390.7 | AD39: 16006.464 | AE39: 16013.29 | AF39: 15869.448 | AG39: 16128.42 | AH39: 15718.22 | AI39: 15244.669 | AJ39: 14525.89 | AK39: 14107.11 | AL39: 13768.133 | AM39: 13551.915 | AN39: 13146.29 | AO39: 13137.816 | AP39: 12444.068 | AQ39: 12367.44 | AR39: 11867.627 | AS39: 11791.334 | AT39: 11363.634 | AU39: 11592.98 | AV39: 11758.32 | AW39: 12112.854 | AX39: 12092.355 | AY39: 12404.14 | AZ39: 12496.275 | BA39: 12206.581 | BB39: 12686.218 | BC39: 12485.055 | BD39: 12218.098 | BE39: 12213.712 | BF39: 11948.182 | BG39: 11440.116 | BH39: 11166.54 | BI39: 10806.78 | BJ39: 10682.265 | BK39: 10285.968 | BL39: 10260.208 | BM39: 10520.332
C40: 1 | D40: Gj.snittlig refusjon per person | E40: 2017 | F40: 0 | G40: 791.862 | H40: 710.276 | I40: 613.449 | J40: 559.967 | K40: 526.658 | L40: 508.974 | M40: 492.283 | N40: 489.389 | O40: 487.884 | P40: 485.821 | Q40: 480.094 | R40: 485.041 | S40: 496.446 | T40: 527.49 | U40: 581.232 | V40: 451.955 | W40: 356.833 | X40: 377.004 | Y40: 381.717 | Z40: 410.435 | AA40: 387.779 | AB40: 390.829 | AC40: 381.48 | AD40: 399.964 | AE40: 407.234 | AF40: 418.988 | AG40: 433.752 | AH40: 464.589 | AI40: 448.658 | AJ40: 451.88 | AK40: 462.335 | AL40: 459.435 | AM40: 434.801 | AN40: 451.916 | AO40: 429.939 | AP40: 415.029 | AQ40: 451.86 | AR40: 436.979 | AS40: 427.954 | AT40: 435.547 | AU40: 433.972 | AV40: 444.953 | AW40: 446.008 | AX40: 423.098 | AY40: 442.387 | AZ40: 457.704 | BA40: 475.21 | BB40: 440.502 | BC40: 437.758 | BD40: 461.177 | BE40: 494.506 | BF40: 472.216 | BG40: 442.4 | BH40: 440.928 | BI40: 456.652 | BJ40: 485.897 | BK40: 475.523 | BL40: 475.293 | BM40: 483.663
B41: Tannlege og tannpleier (TLTP) | C41: 1 | D41: Antall personer benyttet | E41: 2017 | F41: 0 | G41: 0 | H41: 0 | I41: 0 | J41: 0 | K41: 0 | L41: 62.702 | M41: 64.538 | N41: 65.651 | O41: 129.25 | P41: 189.27 | Q41: 253.584 | R41: 247.684 | S41: 249.06 | T41: 247.288 | U41: 243.068 | V41: 310.545 | W41: 260.304 | X41: 327.645 | Y41: 1878.475 | Z41: 2774.772 | AA41: 4247.46 | AB41: 5305.087 | AC41: 5642.7 | AD41: 5968.512 | AE41: 5917.955 | AF41: 6147.624 | AG41: 6304.746 | AH41: 5921.748 | AI41: 5762.339 | AJ41: 5385.208 | AK41: 5316.75 | AL41: 5451.342 | AM41: 5281.772 | AN41: 5258.516 | AO41: 5380.914 | AP41: 5469.92 | AQ41: 5558.4 | AR41: 5693.717 | AS41: 5793.43 | AT41: 5914.406 | AU41: 6205.654 | AV41: 6509.07 | AW41: 6932.055 | AX41: 7255.413 | AY41: 7563.5 | AZ41: 7800.705 | BA41: 8087.796 | BB41: 8712.222 | BC41: 8626.038 | BD41: 8832.36 | BE41: 9288.272 | BF41: 9500.964 | BG41: 9604.048 | BH41: 9745.344 | BI41: 9950.145 | BJ41: 10164.337 | BK41: 10285.968 | BL41: 10833.76 | BM41: 11087.296
C42: 1 | D42: Gj.snittlig refusjon per person | E42: 2017 | F42: 0 | G42: 635 | H42: 635 | I42: 1808.426 | J42: 1808.426 | K42: 1180.278 | L42: 1694.011 | M42: 1348.47 | N42: 1701.928 | O42: 2048.083 | P42: 1947.884 | Q42: 2309.5 | R42: 2396.265 | S42: 2795.712 | T42: 2858.675 | U42: 2315.217 | V42: 2803.655 | W42: 2159.031 | X42: 1663.462 | Y42: 2859.006 | Z42: 2759.432 | AA42: 2586.678 | AB42: 2523.292 | AC42: 2452.191 | AD42: 2447.657 | AE42: 2762.777 | AF42: 2575.556 | AG42: 2765.7 | AH42: 2675.251 | AI42: 2686.336 | AJ42: 2682.35 | AK42: 3038.572 | AL42: 2953.22 | AM42: 3149.668 | AN42: 3075.668 | AO42: 3286.22 | AP42: 3196.447 | AQ42: 3204.69 | AR42: 3249.462 | AS42: 3229.755 | AT42: 3202.894 | AU42: 3336.714 | AV42: 3350.581 | AW42: 3310.069 | AX42: 3307.942 | AY42: 3307.615 | AZ42: 3320.246 | BA42: 3488.293 | BB42: 3268.903 | BC42: 3444.269 | BD42: 3346.029 | BE42: 3318.359 | BF42: 3381.55 | BG42: 3330.436 | BH42: 3425.662 | BI42: 3471.777 | BJ42: 3491.832 | BK42: 3419.747 | BL42: 3431.062 | BM42: 3569.766
B43: Utdanning
B44: Videregående opplæring | C44: 1 | D44: Antall personer i VGO | E44: 2017 | F44: 0 | G44: 0 | H44: 0 | I44: 0 | J44: 0 | K44: 0 | L44: 0 | M44: 0 | N44: 0 | O44: 0 | P44: 0 | Q44: 0 | R44: 0 | S44: 0 | T44: 0 | U44: 0 | V44: 60186.5 | W44: 60186.5 | X44: 59756 | Y44: 25163 | Z44: 13300 | AA44: 6795 | AB44: 4407 | AC44: 3401 | AD44: 2522 | AE44: 2209 | AF44: 1965 | AG44: 1655 | AH44: 1500 | AI44: 1397 | AJ44: 1212 | AK44: 1123 | AL44: 977 | AM44: 960 | AN44: 881 | AO44: 766 | AP44: 691 | AQ44: 673 | AR44: 587 | AS44: 510 | AT44: 499 | AU44: 429 | AV44: 410 | AW44: 420 | AX44: 358 | AY44: 348 | AZ44: 253 | BA44: 303 | BB44: 271 | BC44: 242 | BD44: 218 | BE44: 173 | BF44: 159 | BG44: 142 | BH44: 104 | BI44: 115 | BJ44: 110 | BK44: 93 | BL44: 62 | BM44: 42
B45: Høyskole eller universitet | C45: 1 | D45: Antall personer i høyere utdanning | E45: 2017 | F45: 0 | G45: 0 | H45: 0 | I45: 0 | J45: 0 | K45: 0 | L45: 0 | M45: 0 | N45: 0 | O45: 0 | P45: 0 | Q45: 0 | R45: 0 | S45: 0 | T45: 0 | U45: 0 | V45: 40.5 | W45: 40.5 | X45: 271 | Y45: 13446 | Z45: 24487 | AA45: 29770 | AB45: 28709 | AC45: 25736 | AD45: 21114 | AE45: 17511 | AF45: 14071 | AG45: 11648 | AH45: 9521 | AI45: 7841 | AJ45: 6456 | AK45: 5730 | AL45: 5114 | AM45: 4688 | AN45: 4234 | AO45: 4001 | AP45: 3706 | AQ45: 3583 | AR45: 3290 | AS45: 3197 | AT45: 2964 | AU45: 2962 | AV45: 2939 | AW45: 2914 | AX45: 2840 | AY45: 2665 | AZ45: 2586 | BA45: 2352 | BB45: 2213 | BC45: 2059 | BD45: 1729 | BE45: 1581 | BF45: 1418 | BG45: 1218 | BH45: 1052 | BI45: 887 | BJ45: 673 | BK45: 540 | BL45: 485 | BM45: 394
B46: Politi, rettsvesen og kriminalomsorg
B47: Straffereaksjoner | C47: 1 | D47: Antall straffede | E47: 2017 | F47: 0 | G47: 0 | H47: 0 | I47: 0 | J47: 0 | K47: 0 | L47: 0 | M47: 0 | N47: 0 | O47: 0 | P47: 0 | Q47: 0 | R47: 0 | S47: 0 | T47: 0 | U47: 0 | V47: 0 | W47: 0 | X47: 26.4 | Y47: 26.4 | Z47: 90.6 | AA47: 162 | AB47: 242.4 | AC47: 298.6 | AD47: 358.4 | AE47: 385.6 | AF47: 384.2 | AG47: 394.6 | AH47: 373.6 | AI47: 349.8 | AJ47: 322.2 | AK47: 312.2 | AL47: 302.2 | AM47: 299.6 | AN47: 290 | AO47: 291.6 | AP47: 280.2 | AQ47: 257.8 | AR47: 260.8 | AS47: 233.4 | AT47: 218.6 | AU47: 234.4 | AV47: 233.4 | AW47: 241.6 | AX47: 232.2 | AY47: 250 | AZ47: 243.2 | BA47: 234.2 | BB47: 233 | BC47: 222.2 | BD47: 213.6 | BE47: 214.4 | BF47: 205.8 | BG47: 187.2 | BH47: 163 | BI47: 145.2 | BJ47: 147.4 | BK47: 135 | BL47: 121 | BM47: 116.4
B48: Barnevern
B49: Hjelpetiltak | C49: 1 | D49: Antall barn med hjelpetiltak | E49: 2017 | F49: 0 | G49: 1046 | H49: 1324 | I49: 1596 | J49: 1866 | K49: 2213 | L49: 2429 | M49: 2615 | N49: 2763 | O49: 2733 | P49: 2682 | Q49: 2582 | R49: 2432 | S49: 2370 | T49: 2656 | U49: 2785 | V49: 3035 | W49: 2770 | X49: 2754 | Y49: 1774 | Z49: 1169 | AA49: 707 | AB49: 404 | AC49: 221 | AD49: 0 | AE49: 0 | AF49: 0 | AG49: 0 | AH49: 0 | AI49: 0 | AJ49: 0 | AK49: 0 | AL49: 0 | AM49: 0 | AN49: 0 | AO49: 0 | AP49: 0 | AQ49: 0 | AR49: 0 | AS49: 0 | AT49: 0 | AU49: 0 | AV49: 0 | AW49: 0 | AX49: 0 | AY49: 0 | AZ49: 0 | BA49: 0 | BB49: 0 | BC49: 0 | BD49: 0 | BE49: 0 | BF49: 0 | BG49: 0 | BH49: 0 | BI49: 0 | BJ49: 0 | BK49: 0 | BL49: 0 | BM49: 0
B50: Omsorgstiltak | C50: 1 | D50: Antall barn med omsorgstiltak | E50: 2017 | F50: 0 | G50: 135 | H50: 207 | I50: 251 | J50: 324 | K50: 376 | L50: 396 | M50: 487 | N50: 552 | O50: 590 | P50: 587 | Q50: 648 | R50: 667 | S50: 689 | T50: 755 | U50: 814 | V50: 865 | W50: 846 | X50: 783 | Y50: 0 | Z50: 0 | AA50: 0 | AB50: 0 | AC50: 0 | AD50: 0 | AE50: 0 | AF50: 0 | AG50: 0 | AH50: 0 | AI50: 0 | AJ50: 0 | AK50: 0 | AL50: 0 | AM50: 0 | AN50: 0 | AO50: 0 | AP50: 0 | AQ50: 0 | AR50: 0 | AS50: 0 | AT50: 0 | AU50: 0 | AV50: 0 | AW50: 0 | AX50: 0 | AY50: 0 | AZ50: 0 | BA50: 0 | BB50: 0 | BC50: 0 | BD50: 0 | BE50: 0 | BF50: 0 | BG50: 0 | BH50: 0 | BI50: 0 | BJ50: 0 | BK50: 0 | BL50: 0 | BM50: 0
B52: MÅLGRUPPER
B54: 1. Barn i lavinntektsfamilier (EU60) hvor barnet er norskfødt med innvandrerforeldre
C55: Gruppe | D55: Enhet | E55: Årstall | F55: 0 år | G55: 1 år | H55: 2 år | I55: 3 år | J55: 4 år | K55: 5 år | L55: 6 år | M55: 7 år | N55: 8 år | O55: 9 år | P55: 10 år | Q55: 11 år | R55: 12 år | S55: 13 år | T55: 14 år | U55: 15 år | V55: 16 år | W55: 17 år | X55: 18 år | Y55: 19 år | Z55: 20 år | AA55: 21 år | AB55: 22 år | AC55: 23 år | AD55: 24 år | AE55: 25 år | AF55: 26 år | AG55: 27 år | AH55: 28 år | AI55: 29 år | AJ55: 30 år | AK55: 31 år | AL55: 32 år | AM55: 33 år | AN55: 34 år | AO55: 35 år | AP55: 36 år | AQ55: 37 år | AR55: 38 år | AS55: 39 år | AT55: 40 år | AU55: 41 år | AV55: 42 år | AW55: 43 år | AX55: 44 år | AY55: 45 år | AZ55: 46 år | BA55: 47 år | BB55: 48 år | BC55: 49 år | BD55: 50 år | BE55: 51 år | BF55: 52 år | BG55: 53 år | BH55: 54 år | BI55: 55 år | BJ55: 56 år | BK55: 57 år | BL55: 58 år | BM55: 59 år
B56: Antall personer | C56: 1 | D56: Antall personer i hver aldersgruppe | E56: 2017 | F56: 4505 | G56: 5519 | H56: 5593 | I56: 5563 | J56: 5456 | K56: 5421 | L56: 5167 | M56: 4569 | N56: 4384 | O56: 3939 | P56: 3616 | Q56: 3412 | R56: 3264 | S56: 3167 | T56: 2972 | U56: 2672 | V56: 2352 | W56: 2334 | X56: 2034 | Y56: 1749 | Z56: 1592 | AA56: 1528 | AB56: 1418 | AC56: 1240 | AD56: 1103 | AE56: 959 | AF56: 760 | AG56: 596 | AH56: 413 | AI56: 412.0565875 | AJ56: 400.2837036 | AK56: 400.4701264 | AL56: 394.8153007 | AM56: 392.6008234 | AN56: 390.8721754 | AO56: 394.7757564 | AP56: 386.2567982 | AQ56: 392.5047874 | AR56: 387.5278629 | AS56: 385.036576 | AT56: 375.4103792 | AU56: 385.2399464 | AV56: 395.3858675 | AW56: 412.2147645 | AX56: 414.0112026 | AY56: 427.2754692 | AZ56: 427.8403868 | BA56: 423.0498851 | BB56: 431.7270203 | BC56: 427.4562428 | BD56: 415.7963424 | BE56: 413.1581769 | BF56: 406.6107813 | BG56: 398.9335504 | BH56: 382.3136729 | BI56: 372.2524895 | BJ56: 365.7333397 | BK56: 360.9145921 | BL56: 360.0107239 | BM56: 355.8755266
B57: Overføringer
B58: Skattepliktige overføringer inkl. fødsels- og sykepenger | C58: 1 | D58: NOK per person per år | E58: 2017 | F58: 0 | G58: 0 | H58: 0 | I58: 0 | J58: 0 | K58: 0 | L58: 0 | M58: 0 | N58: 0 | O58: 0 | P58: 0 | Q58: 0 | R58: 0 | S58: 0 | T58: 0 | U58: 0 | V58: 0 | W58: 0 | X58: 2826 | Y58: 5817 | Z58: 7932 | AA58: 13688 | AB58: 14765 | AC58: 18947 | AD58: 25867 | AE58: 29926 | AF58: 34915 | AG58: 42919 | AH58: 54012 | AI58: 59138.46436 | AJ58: 64012.73435 | AK58: 66390.72642 | AL58: 68421.67224 | AM58: 68897.04748 | AN58: 67669.55275 | AO58: 67384.99715 | AP58: 66165.31375 | AQ58: 63705.86067 | AR58: 63598.73385 | AS58: 61789.85298 | AT58: 60630.42841 | AU58: 59768.95029 | AV58: 60657.21012 | AW58: 61113.61497 | AX58: 61318.94137 | AY58: 61288.81195 | AZ58: 63635.5587 | BA58: 66089.43225 | BB58: 67602.59849 | BC58: 69890.20231 | BD58: 72934.38924 | BE58: 75923.89686 | BF58: 76746.31833 | BG58: 79534.96318 | BH58: 81986.60493 | BI58: 84968.30123 | BJ58: 88125.1945 | BK58: 93162.38651 | BL58: 98008.75889 | BM58: 105878.116
B59: Netto skattefrie overføringer | C59: 1 | D59: NOK per person per år | E59: 2017 | F59: 0 | G59: 0 | H59: 0 | I59: 0 | J59: 0 | K59: 0 | L59: 0 | M59: 0 | N59: 0 | O59: 0 | P59: 0 | Q59: 0 | R59: 0 | S59: 0 | T59: 0 | U59: 0 | V59: 0 | W59: 0 | X59: 14678 | Y59: 11230 | Z59: 11601 | AA59: 12031 | AB59: 11930 | AC59: 12448 | AD59: 11393 | AE59: 9878 | AF59: 9410 | AG59: 9211 | AH59: 8831 | AI59: 9276.191214 | AJ59: 9810.385543 | AK59: 10434.9516 | AL59: 10915.26066 | AM59: 11537.65579 | AN59: 11688.503 | AO59: 12244.41273 | AP59: 12295.79121 | AQ59: 12558.92504 | AR59: 12477.40588 | AS59: 12459.00385 | AT59: 12185.31013 | AU59: 11735.08422 | AV59: 11466.91843 | AW59: 10965.38153 | AX59: 9937.863511 | AY59: 9281.932744 | AZ59: 8345.289541 | BA59: 7615.75481 | BB59: 6709.295923 | BC59: 5817.700837 | BD59: 5025.050401 | BE59: 4333.335746 | BF59: 3758.501213 | BG59: 3171.240881 | BH59: 2606.130136 | BI59: 2314.887334 | BJ59: 1996.485515 | BK59: 1830.132302 | BL59: 1619.602185 | BM59: 1433.301263
B60: Sosialhjelp | C60: 1 | D60: NOK per person per år | E60: 2017 | F60: 0 | G60: 0 | H60: 0 | I60: 0 | J60: 0 | K60: 0 | L60: 0 | M60: 0 | N60: 0 | O60: 0 | P60: 0 | Q60: 0 | R60: 0 | S60: 0 | T60: 0 | U60: 0 | V60: 0 | W60: 0 | X60: 721 | Y60: 1640 | Z60: 2535 | AA60: 3101 | AB60: 3087 | AC60: 2580 | AD60: 3381 | AE60: 3721 | AF60: 2002 | AG60: 2192 | AH60: 2329 | AI60: 2372.266425 | AJ60: 2420.809243 | AK60: 2573.824649 | AL60: 2766.940643 | AM60: 2603.372451 | AN60: 2603.372451 | AO60: 2711.010874 | AP60: 2438.748981 | AQ60: 2902.016312 | AR60: 2569.603534 | AS60: 2548.497961 | AT60: 2607.593566 | AU60: 2495.734028 | AV60: 2433.472587 | AW60: 2400.758949 | AX60: 2137.994563 | AY60: 2201.311282 | AZ60: 1810.858179 | BA60: 2156.989579 | BB60: 1895.280471 | BC60: 1810.858179 | BD60: 1743.320344 | BE60: 1625.129135 | BF60: 1812.968736 | BG60: 1572.365202 | BH60: 1454.173992 | BI60: 1396.133666 | BJ60: 1327.540553 | BK60: 1401.410059 | BL60: 1091.158133 | BM60: 1130.203444
B61: Inntekt
B62: Lønnsinntekt | C62: 1 | D62: NOK per person per år | E62: 2017 | F62: 0 | G62: 0 | H62: 0 | I62: 0 | J62: 0 | K62: 0 | L62: 0 | M62: 0 | N62: 0 | O62: 0 | P62: 0 | Q62: 0 | R62: 0 | S62: 0 | T62: 0 | U62: 0 | V62: 0 | W62: 0 | X62: 23655 | Y62: 54091 | Z62: 85674 | AA62: 108996 | AB62: 128343 | AC62: 150455 | AD62: 189717 | AE62: 220926 | AF62: 245622 | AG62: 267436 | AH62: 286169 | AI62: 301688.2265 | AJ62: 313874.1231 | AK62: 323582.1226 | AL62: 331357.8086 | AM62: 337758.3734 | AN62: 348976.3275 | AO62: 355614.4132 | AP62: 366372.5053 | AQ62: 372907.0104 | AR62: 379459.3743 | AS62: 385617.0605 | AT62: 394337.4728 | AU62: 399498.6424 | AV62: 406464.4356 | AW62: 409392.3726 | AX62: 415825.083 | AY62: 419550.4117 | AZ62: 421480.0463 | BA62: 417538.6271 | BB62: 421149.66 | BC62: 417951.1635 | BD62: 416289.4097 | BE62: 412655.1605 | BF62: 409775.4421 | BG62: 407122.5294 | BH62: 400914.8388 | BI62: 395214.3359 | BJ62: 390760.3714 | BK62: 382056.9249 | BL62: 373676.7212 | BM62: 360874.6988
B63: Kapitalinntekt | C63: 1 | D63: NOK per person per år | E63: 2017 | F63: 0 | G63: 0 | H63: 0 | I63: 0 | J63: 0 | K63: 0 | L63: 0 | M63: 0 | N63: 0 | O63: 0 | P63: 0 | Q63: 0 | R63: 0 | S63: 0 | T63: 0 | U63: 0 | V63: 0 | W63: 0 | X63: 297 | Y63: 322 | Z63: 935 | AA63: 1076 | AB63: 1463 | AC63: 5921 | AD63: 4741 | AE63: 5078 | AF63: 4788 | AG63: 6010 | AH63: 7195 | AI63: 7883.61065 | AJ63: 8166.905242 | AK63: 10467.39386 | AL63: 10657.67908 | AM63: 11737.95304 | AN63: 12251.63781 | AO63: 13738.08112 | AP63: 14024.7889 | AQ63: 16404.63413 | AR63: 17972.14065 | AS63: 16937.94473 | AT63: 19223.9273 | AU63: 20770.9547 | AV63: 20912.60199 | AW63: 25151.78131 | AX63: 26384.79542 | AY63: 25872.81724 | AZ63: 24540.82068 | BA63: 28512.06475 | BB63: 30708.45114 | BC63: 30798.04732 | BD63: 30544.61812 | BE63: 36370.92979 | BF63: 33965.48565 | BG63: 33998.76423 | BH63: 40779.06191 | BI63: 37221.66686 | BJ63: 37295.9037 | BK63: 49217.31558 | BL63: 35177.16734 | BM63: 43479.7468
B64: Helsetjenester - NPR
B65: Avtalespesialister innen psykisk helsevern og somatikk (AVT) | C65: 1 | D65: Antall personer benyttet | E65: 2017 | F65: 130.645 | G65: 463.596 | H65: 520.149 | I65: 600.804 | J65: 682 | K65: 883.623 | L65: 816.386 | M65: 721.902 | N65: 613.76 | O65: 543.582 | P65: 502.624 | Q65: 443.56 | R65: 421.056 | S65: 357.871 | T65: 377.444 | U65: 315.296 | V65: 246.96 | W65: 245.07 | X65: 211.536 | Y65: 192.39 | Z65: 167.16 | AA65: 169.608 | AB65: 164.488 | AC65: 131.44 | AD65: 135.669 | AE65: 116.998 | AF65: 104.88 | AG65: 85.824 | AH65: 71.036 | AI65: 70.5296238 | AJ65: 71.06911202 | AK65: 70.56605133 | AL65: 72.16089931 | AM65: 70.35675957 | AN65: 74.06085196 | AO65: 71.9740928 | AP65: 75.12848552 | AQ65: 74.17586324 | AR65: 75.16323023 | AS65: 74.23583582 | AT65: 78.6212453 | AU65: 81.69424718 | AV65: 85.17141766 | AW65: 87.64180079 | AX65: 91.532936 | AY65: 95.45027296 | AZ65: 94.91778095 | BA65: 101.2426927 | BB65: 101.8667011 | BC65: 100.6692332 | BD65: 103.1728214 | BE65: 105.1457652 | BF65: 104.1718822 | BG65: 102.7397299 | BH65: 102.8671797 | BI65: 103.8473213 | BJ65: 102.9365689 | BK65: 107.2422775 | BL65: 108.7171087 | BM65: 108.6627503
C66: 1 | D66: Liggetid pr pasient | E66: 2017 | F66: 0 | G66: 0 | H66: 0 | I66: 0 | J66: 0 | K66: 0 | L66: 0 | M66: 0 | N66: 0 | O66: 0 | P66: 0 | Q66: 0 | R66: 0 | S66: 0 | T66: 0 | U66: 0 | V66: 0 | W66: 0 | X66: 0 | Y66: 0 | Z66: 0 | AA66: 0 | AB66: 0 | AC66: 0 | AD66: 0 | AE66: 0 | AF66: 0 | AG66: 0 | AH66: 0 | AI66: 0 | AJ66: 0 | AK66: 0 | AL66: 0 | AM66: 0 | AN66: 0 | AO66: 0 | AP66: 0 | AQ66: 0 | AR66: 0 | AS66: 0 | AT66: 0 | AU66: 0 | AV66: 0 | AW66: 0 | AX66: 0 | AY66: 0 | AZ66: 0 | BA66: 0 | BB66: 0 | BC66: 0 | BD66: 0 | BE66: 0 | BF66: 0 | BG66: 0 | BH66: 0 | BI66: 0 | BJ66: 0 | BK66: 0 | BL66: 0 | BM66: 0
C67: 1 | D67: Episoder pr pasient | E67: 2017 | F67: 1.477 | G67: 1.698 | H67: 1.715 | I67: 1.667 | J67: 1.69 | K67: 1.697 | L67: 1.735 | M67: 1.797 | N67: 1.643 | O67: 1.847 | P67: 1.704 | Q67: 1.98 | R67: 1.737 | S67: 1.897 | T67: 1.889 | U67: 2.287 | V67: 1.891 | W67: 2.118 | X67: 1.873 | Y67: 1.75 | Z67: 1.749 | AA67: 2.194 | AB67: 2.091 | AC67: 1.939 | AD67: 2.684 | AE67: 2.154 | AF67: 2.467 | AG67: 1.907 | AH67: 2.423 | AI67: 2.393140367 | AJ67: 2.409890893 | AK67: 2.393140367 | AL67: 2.473979862 | AM67: 2.329051398 | AN67: 2.44047881 | AO67: 2.523503156 | AP67: 2.519861737 | AQ67: 2.379302976 | AR67: 2.547536519 | AS67: 2.515492035 | AT67: 2.404064623 | AU67: 2.39969492 | AV67: 2.309387737 | AW67: 2.221993688 | AX67: 2.216895702 | AY67: 2.288995792 | AZ67: 2.157176435 | BA67: 2.19504719 | BB67: 2.16591584 | BC67: 2.088717764 | BD67: 2.090902615 | BE67: 2.017345957 | BF67: 2.002780283 | BG67: 1.957626691 | BH67: 1.996954013 | BI67: 1.957626691 | BJ67: 1.912473099 | BK67: 1.846927562 | BL67: 1.857123535 | BM67: 1.849840697
B68: Psykisk helsevern for barn og unge (BUP) | C68: 1 | D68: Antall personer benyttet | E68: 2017 | F68: 22.525 | G68: 27.595 | H68: 44.744 | I68: 50.067 | J68: 87.296 | K68: 86.736 | L68: 108.507 | M68: 109.656 | N68: 127.136 | O68: 133.926 | P68: 119.328 | Q68: 116.008 | R68: 124.032 | S68: 114.012 | T68: 118.88 | U68: 128.256 | V68: 117.6 | W68: 133.038 | X68: 83.394 | Y68: 20.988 | Z68: 1.067666667 | AA68: 1.067666667 | AB68: 1.067666667 | AC68: 1.067666667 | AD68: 1.067666667 | AE68: 1.067666667 | AF68: 1.067666667 | AG68: 1.067666667 | AH68: 1.067666667 | AI68: 1.03717696 | AJ68: 1.037645357 | AK68: 0 | AL68: 0 | AM68: 0 | AN68: 0 | AO68: 0 | AP68: 0 | AQ68: 0 | AR68: 0 | AS68: 0 | AT68: 0 | AU68: 0 | AV68: 0 | AW68: 0 | AX68: 0 | AY68: 0 | AZ68: 0 | BA68: 0 | BB68: 0 | BC68: 0 | BD68: 0 | BE68: 0 | BF68: 0 | BG68: 0 | BH68: 0 | BI68: 0 | BJ68: 0 | BK68: 0 | BL68: 0 | BM68: 0
C69: 1 | D69: Liggetid pr pasient | E69: 2017 | F69: 0 | G69: 0 | H69: 0 | I69: 0 | J69: 0 | K69: 0 | L69: 0 | M69: 0 | N69: 8.63 | O69: 0 | P69: 0 | Q69: 0 | R69: 0 | S69: 0 | T69: 0 | U69: 0 | V69: 0 | W69: 0 | X69: 0 | Y69: 0 | Z69: 0 | AA69: 0 | AB69: 0 | AC69: 0 | AD69: 0 | AE69: 0 | AF69: 0 | AG69: 0 | AH69: 0 | AI69: 0 | AJ69: 0 | AK69: 0 | AL69: 0 | AM69: 0 | AN69: 0 | AO69: 0 | AP69: 0 | AQ69: 0 | AR69: 0 | AS69: 0 | AT69: 0 | AU69: 0 | AV69: 0 | AW69: 0 | AX69: 0 | AY69: 0 | AZ69: 0 | BA69: 0 | BB69: 0 | BC69: 0 | BD69: 0 | BE69: 0 | BF69: 0 | BG69: 0 | BH69: 0 | BI69: 0 | BJ69: 0 | BK69: 0 | BL69: 0 | BM69: 0
C70: 1 | D70: Episoder pr pasient | E70: 2017 | F70: 5.913 | G70: 6.821 | H70: 7.932 | I70: 12.558 | J70: 12.337 | K70: 11.576 | L70: 9.604 | M70: 12.027 | N70: 10.724 | O70: 9.978 | P70: 9.746 | Q70: 9.914 | R70: 9.911 | S70: 7.658 | T70: 10.975 | U70: 12.289 | V70: 12.778 | W70: 12.896 | X70: 12.893 | Y70: 12.714 | Z70: 7.429 | AA70: 7.429 | AB70: 7.429 | AC70: 7.429 | AD70: 7.429 | AE70: 7.429 | AF70: 7.429 | AG70: 7.429 | AH70: 7.598213079 | AI70: 7.598213079 | AJ70: 7.066010654 | AK70: 7.19019122 | AL70: 8.150884827 | AM70: 7.797447832 | AN70: 6.54336058 | AO70: 5.609959405 | AP70: 8.320097906 | AQ70: 7.465844783 | AR70: 8.187729611 | AS70: 8.642148604 | AT70: 8.284617744 | AU70: 8.90279133 | AV70: 8.311910176 | AW70: 7.164263409 | AX70: 10.23466201 | AY70: 5.970219508 | AZ70: 9.893506613 | BA70: 24.39261113 | BB70: 16.14756741 | BC70: 16.14756741 | BD70: 11.52286481 | BE70: 11.52286481 | BF70: 6.277259368 | BG70: 11.46282145 | BH70: 11.46282145 | BI70: 7.319830272 | BJ70: 7.319830272 | BK70: 9.552351212 | BL70: 9.552351212 | BM70: 9.552351212
B71: Psykisk helsevern for voksne (PHV) | C71: 1 | D71: Antall personer benyttet | E71: 2017 | F71: 0 | G71: 0 | H71: 0 | I71: 0 | J71: 0 | K71: 0 | L71: 0 | M71: 0 | N71: 0 | O71: 0 | P71: 0 | Q71: 0 | R71: 0 | S71: 0 | T71: 0 | U71: 11.715 | V71: 11.715 | W71: 50.85 | X71: 68.211 | Y71: 76.416 | Z71: 62.648 | AA71: 66.646 | AB71: 59.52 | AC71: 44.12 | AD71: 46.991 | AE71: 38 | AF71: 30.992 | AG71: 25.193 | AH71: 23.98408415 | AI71: 23.01553123 | AJ71: 22.20776368 | AK71: 21.60313307 | AL71: 20.55210132 | AM71: 20.75705499 | AN71: 19.3647999 | AO71: 19.67803985 | AP71: 18.95465768 | AQ71: 18.83280453 | AR71: 16.98482281 | AS71: 16.95847655 | AT71: 17.8885808 | AU71: 17.1378162 | AV71: 17.71875315 | AW71: 17.24149499 | AX71: 16.74113033 | AY71: 16.03637842 | AZ71: 15.83738615 | BA71: 15.68071782 | BB71: 14.23612251 | BC71: 14.14579645 | BD71: 13.42442444 | BE71: 12.19533098 | BF71: 11.21977358 | BG71: 10.46931984 | BH71: 9.83875743 | BI71: 9.267802214 | BJ71: 8.364154749 | BK71: 8.703243597 | BL71: 7.638824582 | BM71: 7.273866117
C72: 1 | D72: Liggetid pr pasient | E72: 2017 | F72: 0 | G72: 0 | H72: 0 | I72: 0 | J72: 0 | K72: 0 | L72: 0 | M72: 0 | N72: 0 | O72: 0 | P72: 0 | Q72: 0 | R72: 0 | S72: 0 | T72: 0 | U72: 0 | V72: 0 | W72: 0 | X72: 0 | Y72: 0 | Z72: 0 | AA72: 0 | AB72: 0 | AC72: 0 | AD72: 0 | AE72: 0 | AF72: 0 | AG72: 0 | AH72: 0 | AI72: 0 | AJ72: 0 | AK72: 0 | AL72: 0 | AM72: 0 | AN72: 0 | AO72: 0 | AP72: 0 | AQ72: 0 | AR72: 0 | AS72: 0 | AT72: 0 | AU72: 0 | AV72: 0 | AW72: 0 | AX72: 0 | AY72: 0 | AZ72: 0 | BA72: 0 | BB72: 0 | BC72: 0 | BD72: 0 | BE72: 0 | BF72: 0 | BG72: 0 | BH72: 0 | BI72: 0 | BJ72: 0 | BK72: 0 | BL72: 0 | BM72: 0
C73: 1 | D73: Episoder pr pasient | E73: 2017 | F73: 0 | G73: 0 | H73: 0 | I73: 0 | J73: 4 | K73: 4 | L73: 4 | M73: 4 | N73: 4 | O73: 4 | P73: 4 | Q73: 4 | R73: 4 | S73: 4 | T73: 4 | U73: 6.455 | V73: 6.455 | W73: 8.36 | X73: 9.897 | Y73: 9.882 | Z73: 11.746 | AA73: 12.455 | AB73: 12.119 | AC73: 9.523 | AD73: 16.851 | AE73: 9.737 | AF73: 9.742 | AG73: 16.72 | AH73: 16.64257339 | AI73: 16.88453155 | AJ73: 17.19976846 | AK73: 16.22640536 | AL73: 16.82507897 | AM73: 16.39231952 | AN73: 16.70340858 | AO73: 16.83337468 | AP73: 16.93015794 | AQ73: 15.99550815 | AR73: 16.88729678 | AS73: 16.51675515 | AT73: 17.14308112 | AU73: 15.91393368 | AV73: 16.10611759 | AW73: 16.19598776 | AX73: 15.70930621 | AY73: 16.13930042 | AZ73: 15.69133218 | BA73: 16.52505086 | BB73: 15.74248904 | BC73: 15.60560986 | BD73: 14.48707186 | BE73: 14.78571736 | BF73: 14.33360126 | BG73: 14.64469032 | BH73: 14.21607872 | BI73: 14.04048623 | BJ73: 12.94130489 | BK73: 13.25377656 | BL73: 12.31221368 | BM73: 13.15837592
B74: Somatiske sykehus (SOM) | C74: 1 | D74: Antall personer benyttet | E74: 2017 | F74: 1738.93 | G74: 1501.168 | H74: 1392.657 | I74: 1329.557 | J74: 1233.056 | K74: 1263.093 | L74: 1157.408 | M74: 986.904 | N74: 854.88 | O74: 787.8 | P74: 784.672 | Q74: 760.876 | R74: 753.984 | S74: 665.07 | T74: 636.008 | U74: 571.808 | V74: 545.664 | W74: 520.482 | X74: 488.16 | Y74: 383.031 | Z74: 340.688 | AA74: 372.832 | AB74: 345.992 | AC74: 322.4 | AD74: 284.574 | AE74: 270.438 | AF74: 234.84 | AG74: 179.992 | AH74: 127.204 | AI74: 127.102005 | AJ74: 125.589536 | AK74: 124.5900039 | AL74: 121.9674155 | AM74: 119.515079 | AN74: 119.546287 | AO74: 113.9399395 | AP74: 113.8596966 | AQ74: 112.4159661 | AR74: 110.1839128 | AS74: 108.1650509 | AT74: 110.6196518 | AU74: 113.1455157 | AV74: 119.1732853 | AW74: 120.5041198 | AX74: 126.0398298 | AY74: 128.7222157 | AZ74: 128.5247087 | BA74: 134.9687626 | BB74: 135.7281805 | BC74: 134.4707903 | BD74: 137.6666113 | BE74: 137.875894 | BF74: 136.8365006 | BG74: 132.6344818 | BH74: 131.3328789 | BI74: 131.9002818 | BJ74: 131.2235262 | BK74: 134.4230565 | BL74: 135.3203777 | BM74: 134.3480786
C75: 1 | D75: Liggetid pr pasient | E75: 2017 | F75: 0.008 | G75: 0.024 | H75: 0.023 | I75: 0.023 | J75: 0.012 | K75: 0.021 | L75: 0.019 | M75: 0.022 | N75: 0.014 | O75: 0.016 | P75: 0.017 | Q75: 0.02 | R75: 0.023 | S75: 0.03 | T75: 0.027 | U75: 0.038 | V75: 0.028 | W75: 0.04 | X75: 0.025 | Y75: 0.042 | Z75: 0.041 | AA75: 0.027 | AB75: 0.061 | AC75: 0.034 | AD75: 0.049 | AE75: 0.044 | AF75: 0.034 | AG75: 0.067 | AH75: 0.008 | AI75: 0.008 | AJ75: 0.008571428571 | AK75: 0.007428571429 | AL75: 0.007428571429 | AM75: 0.006857142857 | AN75: 0.006857142857 | AO75: 0.007428571429 | AP75: 0.006857142857 | AQ75: 0.005714285714 | AR75: 0.005142857143 | AS75: 0.005142857143 | AT75: 0.005714285714 | AU75: 0.005714285714 | AV75: 0.005714285714 | AW75: 0.005142857143 | AX75: 0.005714285714 | AY75: 0.004571428571 | AZ75: 0.004571428571 | BA75: 0.004571428571 | BB75: 0.004571428571 | BC75: 0.004571428571 | BD75: 0.004571428571 | BE75: 0.005142857143 | BF75: 0.004 | BG75: 0.004 | BH75: 0.004571428571 | BI75: 0.004 | BJ75: 0.004 | BK75: 0.004 | BL75: 0.003428571429 | BM75: 0.003428571429
C76: 1 | D76: Episoder pr pasient | E76: 2017 | F76: 2.002 | G76: 2.498 | H76: 2.696 | I76: 2.637 | J76: 2.735 | K76: 2.456 | L76: 2.55 | M76: 2.345 | N76: 2.494 | O76: 2.51 | P76: 2.486 | Q76: 2.685 | R76: 2.693 | S76: 2.838 | T76: 2.659 | U76: 2.635 | V76: 2.822 | W76: 2.925 | X76: 2.713 | Y76: 2.786 | Z76: 2.56 | AA76: 2.869 | AB76: 2.775 | AC76: 2.438 | AD76: 2.961 | AE76: 2.804 | AF76: 3.268 | AG76: 2.589 | AH76: 3.409 | AI76: 3.406872699 | AJ76: 3.449418721 | AK76: 3.421763807 | AL76: 3.407936349 | AM76: 3.50685585 | AN76: 3.463246178 | AO76: 3.480264587 | AP76: 3.390917941 | AQ76: 3.512174103 | AR76: 3.463246178 | AS76: 3.452609672 | AT76: 3.394108892 | AU76: 3.390917941 | AV76: 3.340926365 | AW76: 3.393045242 | AX76: 3.440909516 | AY76: 3.497282995 | AZ76: 3.490901092 | BA76: 3.539829017 | BB76: 3.541956318 | BC76: 3.632366615 | BD76: 3.665339782 | BE76: 3.660021529 | BF76: 3.674912637 | BG76: 3.718522309 | BH76: 3.811059906 | BI76: 3.835523869 | BJ76: 3.824887363 | BK76: 3.85679688 | BL76: 3.888706396 | BM76: 3.942952574
B77: Tverrfaglig spesialisert rusbehandling (TSB) | C77: 1 | D77: Antall personer benyttet | E77: 2017 | F77: 0 | G77: 0 | H77: 0 | I77: 0 | J77: 0 | K77: 0 | L77: 0 | M77: 0 | N77: 0 | O77: 0 | P77: 0 | Q77: 0 | R77: 0 | S77: 0 | T77: 0 | U77: 0 | V77: 3.36 | W77: 3.36 | X77: 3.36 | Y77: 8.3525 | Z77: 8.3525 | AA77: 5.892 | AB77: 5.892 | AC77: 10.5435 | AD77: 10.5435 | AE77: 2.728 | AF77: 2.728 | AG77: 2.728 | AH77: 2.728 | AI77: 2.650095612 | AJ77: 2.651292414 | AK77: 2.613854924 | AL77: 2.599194088 | AM77: 2.587749661 | AN77: 2.613555723 | AO77: 2.557193787 | AP77: 2.598558287 | AQ77: 2.565608807 | AR77: 2.549115367 | AS77: 2.485385613 | AT77: 2.55046177 | AU77: 2.617632333 | AV77: 2.729047203 | AW77: 2.740940431 | AX77: 2.828755844 | AY77: 2.832495853 | AZ77: 2.800780576 | BA77: 2.858227115 | BB77: 2.829952647 | BC77: 2.75275886 | BD77: 2.735293018 | BE77: 2.691946313 | BF77: 2.64111959 | BG77: 2.531088524 | BH77: 2.464478962 | BI77: 2.421319258 | BJ77: 2.389416981 | BK77: 2.383432966 | BL77: 2.3560561 | BM77: 2.297674559
C78: 1 | D78: Liggetid pr pasient | E78: 2017 | F78: 0 | G78: 0 | H78: 0 | I78: 0 | J78: 0 | K78: 0 | L78: 0 | M78: 0 | N78: 0 | O78: 0 | P78: 0 | Q78: 0 | R78: 0 | S78: 0 | T78: 0 | U78: 0 | V78: 0 | W78: 0 | X78: 0 | Y78: 0 | Z78: 0 | AA78: 0 | AB78: 0 | AC78: 0 | AD78: 0 | AE78: 0 | AF78: 0 | AG78: 0 | AH78: 0 | AI78: 0 | AJ78: 0 | AK78: 0 | AL78: 0 | AM78: 0 | AN78: 0 | AO78: 0 | AP78: 0 | AQ78: 0 | AR78: 0 | AS78: 0 | AT78: 0 | AU78: 0 | AV78: 0 | AW78: 0 | AX78: 0 | AY78: 0 | AZ78: 0 | BA78: 0 | BB78: 0 | BC78: 0 | BD78: 0 | BE78: 0 | BF78: 0 | BG78: 0 | BH78: 0 | BI78: 0 | BJ78: 0 | BK78: 0 | BL78: 0 | BM78: 0
C79: 1 | D79: Episoder pr pasient | E79: 2017 | F79: 0 | G79: 0 | H79: 0 | I79: 0 | J79: 0 | K79: 0 | L79: 0 | M79: 0 | N79: 0 | O79: 0 | P79: 0 | Q79: 0 | R79: 0 | S79: 0 | T79: 0 | U79: 0 | V79: 6.5 | W79: 6.5 | X79: 6.5 | Y79: 7.063 | Z79: 7.063 | AA79: 11.545 | AB79: 11.545 | AC79: 8.1 | AD79: 8.1 | AE79: 12.133 | AF79: 12.133 | AG79: 12.133 | AH79: 12.133 | AI79: 10.88528014 | AJ79: 11.51759138 | AK79: 11.96858371 | AL79: 11.91403438 | AM79: 12.43263716 | AN79: 12.34735581 | AO79: 13.04958238 | AP79: 13.15868104 | AQ79: 15.45589925 | AR79: 12.85904388 | AS79: 12.65006617 | AT79: 12.78375044 | AU79: 13.03037487 | AV79: 12.59244364 | AW79: 12.77914064 | AX79: 13.56588026 | AY79: 13.91392034 | AZ79: 13.68419852 | BA79: 15.14473759 | BB79: 12.38577083 | BC79: 11.31091857 | BD79: 10.8138282 | BE79: 11.73655699 | BF79: 12.54327242 | BG79: 12.14682941 | BH79: 11.08580655 | BI79: 9.61066977 | BJ79: 10.15769966 | BK79: 12.3296849 | BL79: 10.33748195 | BM79: 9.279532295
B80: Helsetjenester - KPR
B81: Fastlege (FL) | C81: 1 | D81: Antall personer benyttet | E81: 2017 | F81: 2261.51 | G81: 4299.301 | H81: 4217.122 | I81: 4005.36 | J81: 3846.48 | K81: 3675.438 | L81: 3374.051 | M81: 2924.16 | N81: 2757.536 | O81: 2536.716 | P81: 2354.016 | Q81: 2214.388 | R81: 2144.448 | S81: 2007.878 | T81: 1964.492 | U81: 1800.928 | V81: 1724.016 | W81: 1813.518 | X81: 1580.418 | Y81: 1329.24 | Z81: 1092.112 | AA81: 1077.24 | AB81: 1006.78 | AC81: 886.6 | AD81: 784.233 | AE81: 721.168 | AF81: 579.12 | AG81: 451.172 | AH81: 322.14 | AI81: 313.7739395 | AJ81: 313.0818689 | AK81: 309.4830063 | AL81: 308.9732332 | AM81: 305.5783269 | AN81: 311.0958442 | AO81: 302.372181 | AP81: 306.0374902 | AQ81: 303.7706184 | AR81: 303.4210605 | AS81: 296.6169107 | AT81: 304.7844192 | AU81: 314.0461949 | AV81: 329.9876896 | AW81: 332.2877466 | AX81: 345.1576765 | AY81: 347.8409175 | AZ81: 347.9096929 | BA81: 356.3939094 | BB81: 355.0932455 | BC81: 349.7356317 | BD81: 349.2369908 | BE81: 345.8189614 | BF81: 341.3659781 | BG81: 329.1343393 | BH81: 321.6351902 | BI81: 319.0482936 | BJ81: 316.3474868 | BK81: 317.8038438 | BL81: 317.8580878 | BM81: 312.1494754
C82: 1 | D82: Gj.snittlig refusjon per person | E82: 2017 | F82: 765.512 | G82: 1138.037 | H82: 1083.079 | I82: 972.248 | J82: 918.977 | K82: 856.493 | L82: 805.097 | M82: 798.681 | N82: 786.693 | O82: 776.272 | P82: 804.416 | Q82: 795.451 | R82: 787.482 | S82: 792.062 | T82: 858.986 | U82: 900.049 | V82: 720.68 | W82: 523.247 | X82: 588.352 | Y82: 566.336 | Z82: 625.308 | AA82: 692.947 | AB82: 737.503 | AC82: 843.152 | AD82: 907.6 | AE82: 968.76 | AF82: 1001.262 | AG82: 1244.078 | AH82: 1315.404 | AI82: 1353.806507 | AJ82: 1358.765526 | AK82: 1351.2285 | AL82: 1368.285021 | AM82: 1340.202511 | AN82: 1353.940873 | AO82: 1336.562102 | AP82: 1337.030106 | AQ82: 1304.856263 | AR82: 1306.365035 | AS82: 1291.409408 | AT82: 1301.059852 | AU82: 1290.292347 | AV82: 1309.103598 | AW82: 1314.570475 | AX82: 1310.418791 | AY82: 1348.109613 | AZ82: 1368.185954 | BA82: 1386.867393 | BB82: 1401.130693 | BC82: 1412.878615 | BD82: 1428.411561 | BE82: 1439.686924 | BF82: 1449.78146 | BG82: 1485.747158 | BH82: 1483.252276 | BI82: 1509.970628 | BJ82: 1516.675268 | BK82: 1517.790051 | BL82: 1545.565112 | BM82: 1543.595169
B83: Helsestasjon (HS) | C83: 1 | D83: Antall personer benyttet | E83: 2017 | F83: 0 | G83: 0 | H83: 0 | I83: 0 | J83: 0 | K83: 0 | L83: 0 | M83: 0 | N83: 0 | O83: 0 | P83: 0 | Q83: 0 | R83: 0 | S83: 0 | T83: 0 | U83: 0 | V83: 0 | W83: 0 | X83: 0 | Y83: 0 | Z83: 12 | AA83: 12 | AB83: 19.84 | AC83: 27.575 | AD83: 36.442 | AE83: 24.32 | AF83: 28.012 | AG83: 26.019 | AH83: 27.95645463 | AI83: 28.32201128 | AJ83: 27.55850577 | AK83: 24.4906968 | AL83: 22.45072709 | AM83: 19.3211123 | AN83: 16.45303883 | AO83: 13.47739105 | AP83: 10.65197608 | AQ83: 8.26328643 | AR83: 6.344218045 | AS83: 4.730170777 | AT83: 3.360477686 | AU83: 2.299320891 | AV83: 1.1985937 | AW83: 0.8025447927 | AX83: 0.4141285317 | AY83: 0.4146760672 | AZ83: 0.4100329656 | BA83: 0 | BB83: 0 | BC83: 0 | BD83: 0 | BE83: 0 | BF83: 0 | BG83: 0 | BH83: 0 | BI83: 0 | BJ83: 0 | BK83: 0 | BL83: 0 | BM83: 0
C84: 1 | D84: Gj.snittlig refusjon per person | E84: 2017 | F84: 688.133 | G84: 688.133 | H84: 688.133 | I84: 688.133 | J84: 688.133 | K84: 688.133 | L84: 688.133 | M84: 688.133 | N84: 688.133 | O84: 688.133 | P84: 688.133 | Q84: 688.133 | R84: 688.133 | S84: 688.133 | T84: 688.133 | U84: 688.133 | V84: 688.133 | W84: 688.133 | X84: 688.133 | Y84: 688.133 | Z84: 693.913 | AA84: 693.913 | AB84: 856.95 | AC84: 662.143 | AD84: 806.972 | AE84: 722.667 | AF84: 709.964 | AG84: 812.577 | AH84: 809.1073105 | AI84: 803.9987214 | AJ84: 798.5092888 | AK84: 786.285095 | AL84: 786.0569805 | AM84: 777.6255567 | AN84: 786.0471902 | AO84: 794.0556722 | AP84: 784.237939 | AQ84: 752.0571564 | AR84: 780.4950996 | AS84: 785.0387872 | AT84: 792.7261467 | AU84: 747.8698364 | AV84: 722.8418617 | AW84: 745.3341434 | AX84: 637.8834206 | AY84: 612.4520848 | AZ84: 587.5592165 | BA84: 445.4595713 | BB84: 575.4926468 | BC84: 181.6544971 | BD84: 526.3276166 | BE84: 360.7733012 | BF84: 123.3580351 | BG84: 357.0206714 | BH84: 85.37159257 | BI84: 160.5612521 | BJ84: 160.5612521 | BK84: 160.5612521 | BL84: 113.3503698 | BM84: 113.3503698
B85: Legevakt (LV) | C85: 1 | D85: Antall personer benyttet | E85: 2017 | F85: 1072.19 | G85: 2483.55 | H85: 2276.351 | I85: 2019.369 | J85: 1642.256 | K85: 1550.406 | L85: 1286.583 | M85: 1028.025 | N85: 938.176 | O85: 795.678 | P85: 723.2 | Q85: 607.336 | R85: 541.824 | S85: 547.891 | T85: 484.436 | U85: 422.176 | V85: 425.712 | W85: 452.796 | X85: 392.562 | Y85: 388.278 | Z85: 345.464 | AA85: 371.304 | AB85: 340.32 | AC85: 295.12 | AD85: 281.265 | AE85: 234.955 | AF85: 187.72 | AG85: 141.848 | AH85: 99.12 | AI85: 94.44653845 | AJ85: 91.7236539 | AK85: 89.51964408 | AL85: 88.11380652 | AM85: 85.47645507 | AN85: 85.42135759 | AO85: 80.91064622 | AP85: 80.41241517 | AQ85: 77.16265852 | AR85: 76.66660562 | AS85: 73.88572373 | AT85: 75.37691882 | AU85: 76.45195041 | AV85: 78.75711099 | AW85: 78.62382762 | AX85: 80.65103656 | AY85: 81.25009326 | AZ85: 79.3665188 | BA85: 82.48509221 | BB85: 81.17714144 | BC85: 79.4414017 | BD85: 79.41288417 | BE85: 77.6864227 | BF85: 74.38300549 | BG85: 72.60422937 | BH85: 70.26508963 | BI85: 69.45549994 | BJ85: 66.87879863 | BK85: 66.71130852 | BL85: 68.40262047 | BM85: 65.90875394
C86: 1 | D86: Gj.snittlig refusjon per person | E86: 2017 | F86: 630.775 | G86: 809.455 | H86: 739.388 | I86: 633.37 | J86: 611.04 | K86: 571.382 | L86: 549.656 | M86: 509.337 | N86: 500.007 | O86: 501.29 | P86: 473.006 | Q86: 484.45 | R86: 514.065 | S86: 487.061 | T86: 509.746 | U86: 557.505 | V86: 596.471 | W86: 324.921 | X86: 420.349 | Y86: 290.692 | Z86: 496.117 | AA86: 351.873 | AB86: 377.779 | AC86: 360.783 | AD86: 347.779 | AE86: 428.681 | AF86: 446.335 | AG86: 388.324 | AH86: 353.202 | AI86: 355.7384907 | AJ86: 363.969096 | AK86: 361.6860969 | AL86: 342.2932006 | AM86: 355.7668314 | AN86: 338.4656346 | AO86: 326.7278704 | AP86: 355.7227459 | AQ86: 344.0078116 | AR86: 336.9029611 | AS86: 342.8804824 | AT86: 341.6405778 | AU86: 350.2852719 | AV86: 351.1158112 | AW86: 333.0801185 | AX86: 348.2652113 | AY86: 360.3233826 | AZ86: 374.1048247 | BA86: 346.7812619 | BB86: 344.6210724 | BC86: 363.0574708 | BD86: 389.2954282 | BE86: 371.7478249 | BF86: 348.2754454 | BG86: 347.1166266 | BH86: 359.495205 | BI86: 382.5180699 | BJ86: 374.3512311 | BK86: 374.1701657 | BL86: 380.7593733 | BM86: 379.7170662
B87: Tannlege og tannpleier (TLTP) | C87: 1 | D87: Antall personer benyttet | E87: 2017 | F87: 0 | G87: 0 | H87: 0 | I87: 0 | J87: 0 | K87: 0 | L87: 3.223 | M87: 3.223 | N87: 3.223 | O87: 14.056 | P87: 14.056 | Q87: 16.32 | R87: 25.336 | S87: 20.804 | T87: 16.032 | U87: 32.928 | V87: 14.004 | W87: 18.306 | X87: 55.968 | Y87: 63.68 | Z87: 102.376 | AA87: 89.334 | AB87: 110.36 | AC87: 94.858 | AD87: 82.474 | AE87: 79.8 | AF87: 51.256 | AG87: 30.149 | AH87: 29.33741161 | AI87: 27.41734974 | AJ87: 27.0688141 | AK87: 27.75405336 | AL87: 26.89073294 | AM87: 26.77233122 | AN87: 27.39548799 | AO87: 27.84863829 | AP87: 28.2991106 | AQ87: 28.988041 | AR87: 29.49570314 | AS87: 30.11162017 | AT87: 31.59443165 | AU87: 33.13919326 | AV87: 35.29270854 | AW87: 36.93899952 | AX87: 38.50754228 | AY87: 39.71520825 | AZ87: 41.17685548 | BA87: 44.35595386 | BB87: 43.91717102 | BC87: 44.96760444 | BD87: 47.28875875 | BE87: 48.37162332 | BF87: 48.896448 | BG87: 49.61581889 | BH87: 50.65850854 | BI87: 51.74900996 | BJ87: 52.36826174 | BK87: 55.15719856 | BL87: 56.44800946 | BM87: 56.30038406
C88: 1 | D88: Gj.snittlig refusjon per person | E88: 2017 | F88: 0 | G88: 1339.286 | H88: 1339.286 | I88: 1339.286 | J88: 1339.286 | K88: 1339.286 | L88: 1416.382 | M88: 1416.382 | N88: 1416.382 | O88: 1416.382 | P88: 1416.382 | Q88: 2387.444 | R88: 3739.894 | S88: 4020.988 | T88: 2114.044 | U88: 2727.574 | V88: 1353.95 | W88: 1437.434 | X88: 2502.897 | Y88: 1571.635 | Z88: 1465.272 | AA88: 2337.061 | AB88: 2312.782 | AC88: 1787.734 | AD88: 2571.305 | AE88: 1895.925 | AF88: 1926.843 | AG88: 1539.717 | AH88: 1546.096873 | AI88: 1543.802767 | AJ88: 1748.823181 | AK88: 1699.699594 | AL88: 1812.763499 | AM88: 1770.173455 | AN88: 1891.354792 | AO88: 1839.686738 | AP88: 1844.430924 | AQ88: 1870.199051 | AR88: 1858.856862 | AS88: 1843.397252 | AT88: 1920.416167 | AU88: 1928.397195 | AV88: 1905.080873 | AW88: 1903.856697 | AX88: 1903.668495 | AY88: 1910.938155 | AZ88: 2007.656116 | BA88: 1881.388147 | BB88: 1982.318493 | BC88: 1925.777332 | BD88: 1909.852109 | BE88: 1946.221129 | BF88: 1916.802919 | BG88: 1971.6094 | BH88: 1998.150479 | BI88: 2009.692956 | BJ88: 1968.205074 | BK88: 1974.717322 | BL88: 2054.547179 | BM88: 2001.928907
B89: Utdanning
B90: Videregående opplæring | C90: 1 | D90: Antall personer i VGO | E90: 2017 | F90: 0 | G90: 0 | H90: 0 | I90: 0 | J90: 0 | K90: 0 | L90: 0 | M90: 0 | N90: 0 | O90: 0 | P90: 0 | Q90: 0 | R90: 0 | S90: 0 | T90: 0 | U90: 0 | V90: 2055.666667 | W90: 2055.666667 | X90: 2055.666667 | Y90: 471 | Z90: 236 | AA90: 106 | AB90: 56 | AC90: 39 | AD90: 36 | AE90: 18 | AF90: 19 | AG90: 11.5 | AH90: 11.5 | AI90: 10.71033333 | AJ90: 9.292 | AK90: 8.609666667 | AL90: 7.490333333 | AM90: 7.36 | AN90: 6.754333333 | AO90: 5.872666667 | AP90: 5.297666667 | AQ90: 5.159666667 | AR90: 4.500333333 | AS90: 3.91 | AT90: 3.825666667 | AU90: 3.289 | AV90: 3.143333333 | AW90: 3.22 | AX90: 2.744666667 | AY90: 2.668 | AZ90: 1.939666667 | BA90: 2.323 | BB90: 2.077666667 | BC90: 1.855333333 | BD90: 1.671333333 | BE90: 1.326333333 | BF90: 1.219 | BG90: 1.088666667 | BH90: 0.7973333333 | BI90: 0.8816666667 | BJ90: 0.8433333333 | BK90: 0.713 | BL90: 0.4753333333 | BM90: 0.322
B91: Høyskole eller universitet | C91: 1 | D91: Antall personer i høyere utdanning | E91: 2017 | F91: 0 | G91: 0 | H91: 0 | I91: 0 | J91: 0 | K91: 0 | L91: 0 | M91: 0 | N91: 0 | O91: 0 | P91: 0 | Q91: 0 | R91: 0 | S91: 0 | T91: 0 | U91: 0 | V91: 4.666666667 | W91: 4.666666667 | X91: 4.666666667 | Y91: 530 | Z91: 658 | AA91: 714 | AB91: 609 | AC91: 509 | AD91: 366 | AE91: 229 | AF91: 166 | AG91: 70.5 | AH91: 70.5 | AI91: 58.06013024 | AJ91: 47.80464237 | AK91: 42.42884151 | AL91: 37.86755593 | AM91: 34.71316038 | AN91: 31.35143367 | AO91: 29.62614221 | AP91: 27.44176032 | AQ91: 26.53098414 | AR91: 24.36141162 | AS91: 23.67277597 | AT91: 21.94748451 | AU91: 21.93267514 | AV91: 21.7623674 | AW91: 21.57725029 | AX91: 21.02930364 | AY91: 19.73348388 | AZ91: 19.14851381 | BA91: 17.41581767 | BB91: 16.38656654 | BC91: 15.24624514 | BD91: 12.8026993 | BE91: 11.70680601 | BF91: 10.49984245 | BG91: 9.018905577 | BH91: 7.78972797 | BI91: 6.567955047 | BJ91: 4.983352589 | BK91: 3.998529566 | BL91: 3.591271925 | BM91: 2.917445646
B92: Politi, rettsvesen og kriminalomsorg
B93: Straffereaksjoner | C93: 1 | D93: Antall straffede | E93: 2017 | F93: 0 | G93: 0 | H93: 0 | I93: 0 | J93: 0 | K93: 0 | L93: 0 | M93: 0 | N93: 0 | O93: 0 | P93: 0 | Q93: 0 | R93: 0 | S93: 0 | T93: 0 | U93: 0 | V93: 0 | W93: 0 | X93: 2.8 | Y93: 2.8 | Z93: 2.8 | AA93: 2.8 | AB93: 7.2 | AC93: 9.6 | AD93: 9.2 | AE93: 10.8 | AF93: 7.6 | AG93: 6.2 | AH93: 6.2 | AI93: 5.80503212 | AJ93: 5.347002141 | AK93: 5.181049251 | AL93: 5.01509636 | AM93: 4.971948608 | AN93: 4.812633833 | AO93: 4.839186296 | AP93: 4.65 | AQ93: 4.278265525 | AR93: 4.328051392 | AS93: 3.873340471 | AT93: 3.627730193 | AU93: 3.88993576 | AV93: 3.873340471 | AW93: 4.009421842 | AX93: 3.853426124 | AY93: 4.14882227 | AZ93: 4.035974304 | BA93: 3.886616702 | BB93: 3.866702355 | BC93: 3.687473233 | BD93: 3.544753747 | BE93: 3.558029979 | BF93: 3.415310493 | BG93: 3.106638116 | BH93: 2.70503212 | BI93: 2.409635974 | BJ93: 2.44614561 | BK93: 2.240364026 | BL93: 2.008029979 | BM93: 1.931691649
B94: Barnevern
B95: Hjelpetiltak | C95: 1 | D95: Antall barn med hjelpetiltak | E95: 2017 | F95: 150.6666667 | G95: 150.6666667 | H95: 150.6666667 | I95: 291 | J95: 325 | K95: 374 | L95: 385 | M95: 371 | N95: 375 | O95: 324 | P95: 260 | Q95: 241 | R95: 230 | S95: 238 | T95: 229 | U95: 191 | V95: 184 | W95: 152 | X95: 140 | Y95: 56 | Z95: 43 | AA95: 27 | AB95: 8 | AC95: 8 | AD95: 0 | AE95: 0 | AF95: 0 | AG95: 0 | AH95: 0 | AI95: 0 | AJ95: 0 | AK95: 0 | AL95: 0 | AM95: 0 | AN95: 0 | AO95: 0 | AP95: 0 | AQ95: 0 | AR95: 0 | AS95: 0 | AT95: 0 | AU95: 0 | AV95: 0 | AW95: 0 | AX95: 0 | AY95: 0 | AZ95: 0 | BA95: 0 | BB95: 0 | BC95: 0 | BD95: 0 | BE95: 0 | BF95: 0 | BG95: 0 | BH95: 0 | BI95: 0 | BJ95: 0 | BK95: 0 | BL95: 0 | BM95: 0
B96: Omsorgstiltak | C96: 1 | D96: Antall barn med omsorgstiltak | E96: 2017 | F96: 10.33333333 | G96: 10.33333333 | H96: 10.33333333 | I96: 21 | J96: 32 | K96: 41 | L96: 45 | M96: 62 | N96: 67 | O96: 60 | P96: 56 | Q96: 61 | R96: 66 | S96: 68 | T96: 44 | U96: 51 | V96: 60 | W96: 39 | X96: 35 | Y96: 0 | Z96: 0 | AA96: 0 | AB96: 0 | AC96: 0 | AD96: 0 | AE96: 0 | AF96: 0 | AG96: 0 | AH96: 0 | AI96: 0 | AJ96: 0 | AK96: 0 | AL96: 0 | AM96: 0 | AN96: 0 | AO96: 0 | AP96: 0 | AQ96: 0 | AR96: 0 | AS96: 0 | AT96: 0 | AU96: 0 | AV96: 0 | AW96: 0 | AX96: 0 | AY96: 0 | AZ96: 0 | BA96: 0 | BB96: 0 | BC96: 0 | BD96: 0 | BE96: 0 | BF96: 0 | BG96: 0 | BH96: 0 | BI96: 0 | BJ96: 0 | BK96: 0 | BL96: 0 | BM96: 0
B98: 2. Barn i lavinntektsfamilier (EU60) hvor en av eller begge foreldrene mottar uføretrygd eller økonomisk sosialhjelp
C99: Gruppe | D99: Enhet | E99: Årstall | F99: 0 år | G99: 1 år | H99: 2 år | I99: 3 år | J99: 4 år | K99: 5 år | L99: 6 år | M99: 7 år | N99: 8 år | O99: 9 år | P99: 10 år | Q99: 11 år | R99: 12 år | S99: 13 år | T99: 14 år | U99: 15 år | V99: 16 år | W99: 17 år | X99: 18 år | Y99: 19 år | Z99: 20 år | AA99: 21 år | AB99: 22 år | AC99: 23 år | AD99: 24 år | AE99: 25 år | AF99: 26 år | AG99: 27 år | AH99: 28 år | AI99: 29 år | AJ99: 30 år | AK99: 31 år | AL99: 32 år | AM99: 33 år | AN99: 34 år | AO99: 35 år | AP99: 36 år | AQ99: 37 år | AR99: 38 år | AS99: 39 år | AT99: 40 år | AU99: 41 år | AV99: 42 år | AW99: 43 år | AX99: 44 år | AY99: 45 år | AZ99: 46 år | BA99: 47 år | BB99: 48 år | BC99: 49 år | BD99: 50 år | BE99: 51 år | BF99: 52 år | BG99: 53 år | BH99: 54 år | BI99: 55 år | BJ99: 56 år | BK99: 57 år | BL99: 58 år | BM99: 59 år
B100: Antall personer | C100: 2 | D100: Antall personer i hver aldersgruppe | E100: 2017 | F100: 2472 | G100: 3856 | H100: 4525 | I100: 5359 | J100: 5955 | K100: 6569 | L100: 6859 | M100: 7356 | N100: 7773 | O100: 7649 | P100: 7801 | Q100: 7757 | R100: 7840 | S100: 7852 | T100: 7704 | U100: 7414 | V100: 7019 | W100: 6992 | X100: 6290 | Y100: 5893 | Z100: 5700 | AA100: 5177 | AB100: 4842 | AC100: 4255 | AD100: 3886 | AE100: 3341 | AF100: 2769 | AG100: 2293 | AH100: 1469 | AI100: 1465.644375 | AJ100: 1423.769396 | AK100: 1424.432483 | AL100: 1404.31883 | AM100: 1396.442154 | AN100: 1390.293525 | AO100: 1404.178175 | AP100: 1373.877086 | AQ100: 1396.100564 | AR100: 1378.398137 | AS100: 1369.536877 | AT100: 1335.29745 | AU100: 1370.260245 | AV100: 1406.348279 | AW100: 1466.206995 | AX100: 1472.596747 | AY100: 1519.776427 | AZ100: 1521.785783 | BA100: 1504.746444 | BB100: 1535.610152 | BC100: 1520.419421 | BD100: 1478.946312 | BE100: 1469.56262 | BF100: 1446.274183 | BG100: 1418.967035 | BH100: 1359.851781 | BI100: 1324.06515 | BJ100: 1300.877182 | BK100: 1283.737375 | BL100: 1280.522405 | BM100: 1265.813919
B101: Overføringer
B102: Skattepliktige overføringer inkl. fødsels- og sykepenger | C102: 2 | D102: NOK per person per år | E102: 2017 | F102: 0 | G102: 0 | H102: 0 | I102: 0 | J102: 0 | K102: 0 | L102: 0 | M102: 0 | N102: 0 | O102: 0 | P102: 0 | Q102: 0 | R102: 0 | S102: 0 | T102: 0 | U102: 0 | V102: 0 | W102: 0 | X102: 3848 | Y102: 10372 | Z102: 19581 | AA102: 28313 | AB102: 34310 | AC102: 42567 | AD102: 49011 | AE102: 55342 | AF102: 63313 | AG102: 71954 | AH102: 74256 | AI102: 81303.89191 | AJ102: 88005.06558 | AK102: 91274.34238 | AL102: 94066.49808 | AM102: 94720.04661 | AN102: 93032.47998 | AO102: 92641.27135 | AP102: 90964.44378 | AQ102: 87583.17392 | AR102: 87435.89538 | AS102: 84949.03582 | AT102: 83355.05244 | AU102: 82170.68749 | AV102: 83391.87207 | AW102: 84019.34003 | AX102: 84301.6239 | AY102: 84260.20181 | AZ102: 87486.52238 | BA102: 90860.12148 | BB102: 92940.43089 | BC102: 96085.44143 | BD102: 100270.6067 | BE102: 104380.5985 | BF102: 105511.2681 | BG102: 109345.1127 | BH102: 112715.6435 | BI102: 116814.8962 | BJ102: 121155.0108 | BK102: 128080.1706 | BL102: 134742.9905 | BM102: 145561.8267
B103: Netto skattefrie overføringer | C103: 2 | D103: NOK per person per år | E103: 2017 | F103: 0 | G103: 0 | H103: 0 | I103: 0 | J103: 0 | K103: 0 | L103: 0 | M103: 0 | N103: 0 | O103: 0 | P103: 0 | Q103: 0 | R103: 0 | S103: 0 | T103: 0 | U103: 0 | V103: 0 | W103: 0 | X103: 20318 | Y103: 15486 | Z103: 14872 | AA103: 14553 | AB103: 14317 | AC103: 13727 | AD103: 13453 | AE103: 12644 | AF103: 12973 | AG103: 14708 | AH103: 14031 | AI103: 14836.04256 | AJ103: 15806.4757 | AK103: 16814.22819 | AL103: 17489.79952 | AM103: 18910.54417 | AN103: 19202.64168 | AO103: 20137.24752 | AP103: 20595.52424 | AQ103: 20494.55464 | AR103: 20774.75827 | AS103: 20766.93801 | AT103: 20159.08641 | AU103: 19434.68722 | AV103: 18997.4649 | AW103: 18069.40915 | AX103: 16426.01648 | AY103: 15072.44613 | AZ103: 13773.29063 | BA103: 11904.50004 | BB103: 10494.13319 | BC103: 8878.9186 | BD103: 7433.047998 | BE103: 6249.378758 | BF103: 4888.744475 | BG103: 4068.654236 | BH103: 3130.138266 | BI103: 2642.667465 | BJ103: 2116.513019 | BK103: 1697.044286 | BL103: 1698.229973 | BM103: 1286.026446
B104: Sosialhjelp | C104: 2 | D104: NOK per person per år | E104: 2017 | F104: 0 | G104: 0 | H104: 0 | I104: 0 | J104: 0 | K104: 0 | L104: 0 | M104: 0 | N104: 0 | O104: 0 | P104: 0 | Q104: 0 | R104: 0 | S104: 0 | T104: 0 | U104: 0 | V104: 0 | W104: 0 | X104: 1497 | Y104: 4953 | Z104: 6427 | AA104: 7203 | AB104: 7074 | AC104: 6465 | AD104: 7108 | AE104: 7085 | AF104: 6924 | AG104: 8377 | AH104: 7579 | AI104: 7719.79701 | AJ104: 7877.764386 | AK104: 8375.705029 | AL104: 9004.140462 | AM104: 8471.859085 | AN104: 8471.859085 | AO104: 8822.134572 | AP104: 7936.143634 | AQ104: 9443.701858 | AR104: 8361.968736 | AS104: 8293.287268 | AT104: 8485.595378 | AU104: 8121.583598 | AV104: 7918.973267 | AW104: 7812.516991 | AX104: 6957.432714 | AY104: 7163.477118 | AZ104: 5892.869959 | BA104: 7019.246035 | BB104: 6167.595831 | BC104: 5892.869959 | BD104: 5673.089261 | BE104: 5288.47304 | BF104: 5899.738106 | BG104: 5116.76937 | BH104: 4732.153149 | BI104: 4543.279112 | BJ104: 4320.064341 | BK104: 4560.449479 | BL104: 3550.831899 | BM104: 3677.892614
B105: Inntekt
B106: Lønnsinntekt | C106: 2 | D106: NOK per person per år | E106: 2017 | F106: 0 | G106: 0 | H106: 0 | I106: 0 | J106: 0 | K106: 0 | L106: 0 | M106: 0 | N106: 0 | O106: 0 | P106: 0 | Q106: 0 | R106: 0 | S106: 0 | T106: 0 | U106: 0 | V106: 0 | W106: 0 | X106: 27733 | Y106: 61947 | Z106: 99637 | AA106: 118829 | AB106: 140940 | AC106: 159720 | AD106: 180059 | AE106: 200005 | AF106: 211034 | AG106: 215688 | AH106: 234034 | AI106: 246725.8941 | AJ106: 256691.733 | AK106: 264631.1042 | AL106: 270990.196 | AM106: 276224.6895 | AN106: 285398.928 | AO106: 290827.6703 | AP106: 299625.8257 | AQ106: 304969.858 | AR106: 310328.4954 | AS106: 315364.3586 | AT106: 322496.0639 | AU106: 326716.9585 | AV106: 332413.7056 | AW106: 334808.2235 | AX106: 340069.0063 | AY106: 343115.6451 | AZ106: 344693.7339 | BA106: 341470.3726 | BB106: 344423.5383 | BC106: 341807.752 | BD106: 340448.7408 | BE106: 337476.5884 | BF106: 335121.5045 | BG106: 332951.9062 | BH106: 327875.1486 | BI106: 323213.1778 | BJ106: 319570.648 | BK106: 312452.8176 | BL106: 305599.3408 | BM106: 295129.6236
B107: Kapitalinntekt | C107: 2 | D107: NOK per person per år | E107: 2017 | F107: 0 | G107: 0 | H107: 0 | I107: 0 | J107: 0 | K107: 0 | L107: 0 | M107: 0 | N107: 0 | O107: 0 | P107: 0 | Q107: 0 | R107: 0 | S107: 0 | T107: 0 | U107: 0 | V107: 0 | W107: 0 | X107: 812 | Y107: 350 | Z107: 2003 | AA107: 864 | AB107: 856 | AC107: 1168 | AD107: 1909 | AE107: 2863 | AF107: 3144 | AG107: 2615 | AH107: 7685 | AI107: 8420.506997 | AJ107: 8723.094758 | AK107: 11180.2532 | AL107: 11383.49739 | AM107: 12537.34108 | AN107: 13086.00925 | AO107: 14673.68359 | AP107: 14979.91698 | AQ107: 17521.83646 | AR107: 19196.09464 | AS107: 18091.46703 | AT107: 20533.13152 | AU107: 22185.51589 | AV107: 22336.80977 | AW107: 26864.68928 | AX107: 28181.67517 | AY107: 27634.82981 | AZ107: 26212.12049 | BA107: 30453.8176 | BB107: 32799.78416 | BC107: 32895.48209 | BD107: 32624.79364 | BE107: 38847.89374 | BF107: 36278.632 | BG107: 36314.17694 | BH107: 43556.23221 | BI107: 39756.56843 | BJ107: 39835.86101 | BK107: 52569.155 | BL107: 37572.83266 | BM107: 46440.84144
B108: Helsetjenester - NPR
B109: Avtalespesialister innen psykisk helsevern og somatikk (AVT) | C109: 2 | D109: Antall personer benyttet | E109: 2017 | F109: 69.216 | G109: 289.2 | H109: 434.4 | I109: 594.849 | J109: 744.375 | K109: 1018.195 | L109: 1035.709 | M109: 978.348 | N109: 971.625 | O109: 841.39 | P109: 865.911 | Q109: 798.971 | R109: 799.68 | S109: 730.236 | T109: 677.952 | U109: 682.088 | V109: 652.767 | W109: 685.216 | X109: 597.55 | Y109: 553.942 | Z109: 552.9 | AA109: 538.408 | AB109: 551.988 | AC109: 485.07 | AD109: 443.004 | AE109: 420.966 | AF109: 379.353 | AG109: 321.02 | AH109: 229.164 | AI109: 227.5304171 | AJ109: 229.2708203 | AK109: 227.6479332 | AL109: 232.7929547 | AM109: 226.9727526 | AN109: 238.9222518 | AO109: 232.190312 | AP109: 242.3664657 | AQ109: 239.2932812 | AR109: 242.478553 | AS109: 239.4867543 | AT109: 253.6342004 | AU109: 263.5477851 | AV109: 274.7652283 | AW109: 282.7347491 | AX109: 295.2876534 | AY109: 307.9250852 | AZ109: 306.207252 | BA109: 326.6115834 | BB109: 328.6246508 | BC109: 324.7615879 | BD109: 332.8382292 | BE109: 339.2029975 | BF109: 336.0612254 | BG109: 331.4410647 | BH109: 331.852221 | BI109: 335.0141836 | BJ109: 332.0760723 | BK109: 345.9664012 | BL109: 350.7242455 | BM109: 350.5488838
C110: 2 | D110: Liggetid pr pasient | E110: 2017 | F110: 0 | G110: 0 | H110: 0 | I110: 0 | J110: 0 | K110: 0 | L110: 0 | M110: 0 | N110: 0 | O110: 0 | P110: 0 | Q110: 0 | R110: 0 | S110: 0 | T110: 0 | U110: 0 | V110: 0 | W110: 0 | X110: 0 | Y110: 0 | Z110: 0 | AA110: 0 | AB110: 0 | AC110: 0 | AD110: 0 | AE110: 0 | AF110: 0 | AG110: 0 | AH110: 0 | AI110: 0 | AJ110: 0 | AK110: 0 | AL110: 0 | AM110: 0 | AN110: 0 | AO110: 0 | AP110: 0 | AQ110: 0 | AR110: 0 | AS110: 0 | AT110: 0 | AU110: 0 | AV110: 0 | AW110: 0 | AX110: 0 | AY110: 0 | AZ110: 0 | BA110: 0 | BB110: 0 | BC110: 0 | BD110: 0 | BE110: 0 | BF110: 0 | BG110: 0 | BH110: 0 | BI110: 0 | BJ110: 0 | BK110: 0 | BL110: 0 | BM110: 0
C111: 2 | D111: Episoder pr pasient | E111: 2017 | F111: 1.529 | G111: 1.615 | H111: 1.711 | I111: 1.728 | J111: 1.707 | K111: 1.741 | L111: 1.75 | M111: 1.813 | N111: 1.798 | O111: 1.985 | P111: 1.864 | Q111: 1.959 | R111: 1.941 | S111: 1.927 | T111: 2.069 | U111: 2.584 | V111: 2.183 | W111: 2.436 | X111: 2.367 | Y111: 2.016 | Z111: 2.394 | AA111: 2.144 | AB111: 2.574 | AC111: 2.363 | AD111: 2.925 | AE111: 3 | AF111: 2.987 | AG111: 2.835 | AH111: 2.541 | AI111: 2.509686204 | AJ111: 2.52725248 | AK111: 2.509686204 | AL111: 2.594462579 | AM111: 2.442476105 | AN111: 2.559330027 | AO111: 2.646397656 | AP111: 2.6425789 | AQ111: 2.495174932 | AR111: 2.671601443 | AS111: 2.637996393 | AT111: 2.521142471 | AU111: 2.516559964 | AV111: 2.421854824 | AW111: 2.330204689 | AX111: 2.324858431 | AY111: 2.400469793 | AZ111: 2.262230839 | BA111: 2.301945897 | BB111: 2.271395852 | BC111: 2.190438233 | BD111: 2.192729486 | BE111: 2.115590622 | BF111: 2.1003156 | BG111: 2.05296303 | BH111: 2.094205591 | BI111: 2.05296303 | BJ111: 2.00561046 | BK111: 1.936872858 | BL111: 1.947565374 | BM111: 1.939927863
B112: Psykisk helsevern for barn og unge (BUP) | C112: 2 | D112: Antall personer benyttet | E112: 2017 | F112: 0 | G112: 1 | H112: 2 | I112: 3 | J112: 4 | K112: 5 | L112: 6 | M112: 7 | N112: 8 | O112: 9 | P112: 10 | Q112: 11 | R112: 12 | S112: 13 | T112: 14 | U112: 15 | V112: 16 | W112: 17 | X112: 18 | Y112: 19 | Z112: 20 | AA112: 21 | AB112: 4.5485 | AC112: 4.5485 | AD112: 2.7516 | AE112: 2.7516 | AF112: 2.7516 | AG112: 2.7516 | AH112: 2.7516 | AI112: 2.673021659 | AJ112: 2.674228815 | AK112: 0 | AL112: 0 | AM112: 0 | AN112: 0 | AO112: 0 | AP112: 0 | AQ112: 0 | AR112: 0 | AS112: 0 | AT112: 0 | AU112: 0 | AV112: 0 | AW112: 0 | AX112: 0 | AY112: 0 | AZ112: 0 | BA112: 0 | BB112: 0 | BC112: 0 | BD112: 0 | BE112: 0 | BF112: 0 | BG112: 0 | BH112: 0 | BI112: 0 | BJ112: 0 | BK112: 0 | BL112: 0 | BM112: 0
C113: 2 | D113: Liggetid pr pasient | E113: 2017 | F113: 0 | G113: 0 | H113: 0 | I113: 0 | J113: 0 | K113: 0 | L113: 0 | M113: 0 | N113: 0 | O113: 0 | P113: 1.535 | Q113: 0 | R113: 0 | S113: 0 | T113: 0.003 | U113: 0.001 | V113: 0.372 | W113: 0.001 | X113: 0.003 | Y113: 0 | Z113: 0 | AA113: 0 | AB113: 0 | AC113: 0 | AD113: 0 | AE113: 0 | AF113: 0 | AG113: 0 | AH113: 0 | AI113: 0 | AJ113: 0 | AK113: 0 | AL113: 0 | AM113: 0 | AN113: 0 | AO113: 0 | AP113: 0 | AQ113: 0 | AR113: 0 | AS113: 0 | AT113: 0 | AU113: 0 | AV113: 0 | AW113: 0 | AX113: 0 | AY113: 0 | AZ113: 0 | BA113: 0 | BB113: 0 | BC113: 0 | BD113: 0 | BE113: 0 | BF113: 0 | BG113: 0 | BH113: 0 | BI113: 0 | BJ113: 0 | BK113: 0 | BL113: 0 | BM113: 0
C114: 2 | D114: Episoder pr pasient | E114: 2017 | F114: 4.781 | G114: 7.385 | H114: 5.943 | I114: 10.452 | J114: 10.916 | K114: 11.199 | L114: 11.106 | M114: 11.769 | N114: 11.801 | O114: 11.905 | P114: 11.112 | Q114: 10.967 | R114: 10.756 | S114: 10.844 | T114: 11.654 | U114: 13.643 | V114: 13.585 | W114: 14.074 | X114: 12.129 | Y114: 9.681 | Z114: 6.963 | AA114: 9.25 | AB114: 8.154 | AC114: 8.154 | AD114: 5.615 | AE114: 5.615 | AF114: 5.615 | AG114: 5.615 | AH114: 5.615 | AI114: 5.615 | AJ114: 5.221707974 | AK114: 5.313476114 | AL114: 6.023418642 | AM114: 5.762232399 | AN114: 4.835475036 | AO114: 4.145701329 | AP114: 6.148465338 | AQ114: 5.517181214 | AR114: 6.050646552 | AS114: 6.386457435 | AT114: 6.122245869 | AU114: 6.579069684 | AV114: 6.142414691 | AW114: 5.294315733 | AX114: 7.56330819 | AY114: 4.411929777 | AZ114: 7.311197917 | BA114: 18.02588452 | BB114: 11.93288344 | BC114: 11.93288344 | BD114: 8.51527658 | BE114: 8.51527658 | BF114: 4.638829023 | BG114: 8.470905172 | BH114: 8.470905172 | BI114: 5.409278017 | BJ114: 5.409278017 | BK114: 7.059087644 | BL114: 7.059087644 | BM114: 7.059087644
B115: Psykisk helsevern for voksne (PHV) | C115: 2 | D115: Antall personer benyttet | E115: 2017 | F115: 0 | G115: 0 | H115: 0 | I115: 0 | J115: 0 | K115: 0 | L115: 0 | M115: 0 | N115: 0 | O115: 0 | P115: 5.8495 | Q115: 5.8495 | R115: 5.8495 | S115: 10.37066667 | T115: 10.37066667 | U115: 22.242 | V115: 35.095 | W115: 48.944 | X115: 358.53 | Y115: 565.728 | Z115: 541.5 | AA115: 502.169 | AB115: 484.2 | AC115: 429.755 | AD115: 404.144 | AE115: 320.736 | AF115: 276.9 | AG115: 236.179 | AH115: 152.776 | AI115: 146.6064236 | AJ115: 141.4610324 | AK115: 137.6096013 | AL115: 130.9146437 | AM115: 132.2201763 | AN115: 123.3516631 | AO115: 125.3469675 | AP115: 120.7391019 | AQ115: 119.9629107 | AR115: 108.1914687 | AS115: 108.0236459 | AT115: 113.9483085 | AU115: 109.1660199 | AV115: 112.8665249 | AW115: 109.8264425 | AX115: 106.6391742 | AY115: 102.1499814 | AZ115: 100.8824223 | BA115: 99.88446216 | BB115: 90.68254761 | BC115: 90.10718045 | BD115: 85.51211941 | BE115: 77.68292814 | BF115: 71.46873391 | BG115: 66.68842542 | BH115: 62.67181168 | BI115: 59.03488922 | BJ115: 53.27875343 | BK115: 55.43871241 | BL115: 48.65847938 | BM115: 46.33373377
C116: 2 | D116: Liggetid pr pasient | E116: 2017 | F116: 0 | G116: 0 | H116: 0 | I116: 0 | J116: 0 | K116: 0 | L116: 0 | M116: 0 | N116: 0 | O116: 0 | P116: 0 | Q116: 0 | R116: 0 | S116: 0 | T116: 0 | U116: 0 | V116: 0 | W116: 0 | X116: 0 | Y116: 0.002 | Z116: 0 | AA116: 0 | AB116: 0 | AC116: 0 | AD116: 0 | AE116: 0 | AF116: 0 | AG116: 0 | AH116: 0 | AI116: 0 | AJ116: 0 | AK116: 0 | AL116: 0 | AM116: 0 | AN116: 0 | AO116: 0 | AP116: 0 | AQ116: 0 | AR116: 0 | AS116: 0 | AT116: 0 | AU116: 0 | AV116: 0 | AW116: 0 | AX116: 0 | AY116: 0 | AZ116: 0 | BA116: 0 | BB116: 0 | BC116: 0 | BD116: 0 | BE116: 0 | BF116: 0 | BG116: 0 | BH116: 0 | BI116: 0 | BJ116: 0 | BK116: 0 | BL116: 0 | BM116: 0
C117: 2 | D117: Episoder pr pasient | E117: 2017 | F117: 0 | G117: 0 | H117: 0 | I117: 0 | J117: 0 | K117: 5.313 | L117: 5.313 | M117: 5.313 | N117: 5.313 | O117: 5.313 | P117: 5.813 | Q117: 5.813 | R117: 5.813 | S117: 4.667 | T117: 4.667 | U117: 4.524 | V117: 5.485 | W117: 6.922 | X117: 6.609 | Y117: 10.06 | Z117: 9.976 | AA117: 10.738 | AB117: 10.538 | AC117: 12.457 | AD117: 11.121 | AE117: 11 | AF117: 11.931 | AG117: 11.658 | AH117: 11.634 | AI117: 11.80314098 | AJ117: 12.02350752 | AK117: 11.34307751 | AL117: 11.76158063 | AM117: 11.4590599 | AN117: 11.67652688 | AO117: 11.76737975 | AP117: 11.83503614 | AQ117: 11.18166869 | AR117: 11.80507402 | AS117: 11.54604669 | AT117: 11.9838802 | AU117: 11.12464401 | AV117: 11.25899028 | AW117: 11.32181407 | AX117: 10.98159907 | AY117: 11.28218676 | AZ117: 10.96903431 | BA117: 11.55184581 | BB117: 11.00479555 | BC117: 10.90911008 | BD117: 10.12719548 | BE117: 10.33596378 | BF117: 10.01991177 | BG117: 10.23737875 | BH117: 9.937757581 | BI117: 9.815009554 | BJ117: 9.046626236 | BK117: 9.265059732 | BL117: 8.606859683 | BM117: 9.19836986
B118: Somatiske sykehus (SOM) | C118: 2 | D118: Antall personer benyttet | E118: 2017 | F118: 1023.408 | G118: 1156.8 | H118: 1312.25 | I118: 1468.366 | J118: 1578.075 | K118: 1707.94 | L118: 1694.173 | M118: 1706.592 | N118: 1842.201 | O118: 1782.217 | P118: 1887.842 | Q118: 1892.708 | R118: 1960 | S118: 1955.148 | T118: 1872.072 | U118: 1890.57 | V118: 1831.959 | W118: 1734.016 | X118: 1629.11 | Y118: 1473.25 | Z118: 1476.3 | AA118: 1434.029 | AB118: 1312.182 | AC118: 1272.245 | AD118: 1165.8 | AE118: 1122.576 | AF118: 905.463 | AG118: 820.894 | AH118: 503.867 | AI118: 503.4629882 | AJ118: 497.4719564 | AK118: 493.5127158 | AL118: 483.1243966 | AM118: 473.410461 | AN118: 473.534079 | AO118: 451.3268097 | AP118: 451.0089599 | AQ118: 445.2902078 | AR118: 436.448835 | AS118: 428.451933 | AT118: 438.1748378 | AU118: 448.1800224 | AV118: 472.0565842 | AW118: 477.3281448 | AX118: 499.2556125 | AY118: 509.8807949 | AZ118: 509.0984511 | BA118: 534.6239546 | BB118: 537.6320801 | BC118: 532.6514395 | BD118: 545.3103868 | BE118: 546.1393751 | BF118: 542.0222403 | BG118: 525.377649 | BH118: 520.2218774 | BI118: 522.4694135 | BJ118: 519.788721 | BK118: 532.4623612 | BL118: 536.0167348 | BM118: 532.1653666
C119: 2 | D119: Liggetid pr pasient | E119: 2017 | F119: 0.012 | G119: 0.021 | H119: 0.018 | I119: 0.018 | J119: 0.008 | K119: 0.013 | L119: 0.013 | M119: 0.016 | N119: 0.009 | O119: 0.016 | P119: 0.015 | Q119: 0.015 | R119: 0.019 | S119: 0.021 | T119: 0.019 | U119: 0.022 | V119: 0.026 | W119: 0.033 | X119: 0.025 | Y119: 0.028 | Z119: 0.041 | AA119: 0.038 | AB119: 0.034 | AC119: 0.025 | AD119: 0.033 | AE119: 0.028 | AF119: 0.029 | AG119: 0.032 | AH119: 0.024 | AI119: 0.024 | AJ119: 0.02571428571 | AK119: 0.02228571429 | AL119: 0.02228571429 | AM119: 0.02057142857 | AN119: 0.02057142857 | AO119: 0.02228571429 | AP119: 0.02057142857 | AQ119: 0.01714285714 | AR119: 0.01542857143 | AS119: 0.01542857143 | AT119: 0.01714285714 | AU119: 0.01714285714 | AV119: 0.01714285714 | AW119: 0.01542857143 | AX119: 0.01714285714 | AY119: 0.01371428571 | AZ119: 0.01371428571 | BA119: 0.01371428571 | BB119: 0.01371428571 | BC119: 0.01371428571 | BD119: 0.01371428571 | BE119: 0.01542857143 | BF119: 0.012 | BG119: 0.012 | BH119: 0.01371428571 | BI119: 0.012 | BJ119: 0.012 | BK119: 0.012 | BL119: 0.01028571429 | BM119: 0.01028571429
C120: 2 | D120: Episoder pr pasient | E120: 2017 | F120: 2.114 | G120: 2.547 | H120: 2.58 | I120: 2.631 | J120: 2.588 | K120: 2.555 | L120: 2.729 | M120: 2.467 | N120: 2.582 | O120: 2.462 | P120: 2.483 | Q120: 2.692 | R120: 2.613 | S120: 2.606 | T120: 2.682 | U120: 2.62 | V120: 2.667 | W120: 2.627 | X120: 2.626 | Y120: 2.569 | Z120: 2.665 | AA120: 2.792 | AB120: 2.804 | AC120: 2.872 | AD120: 3.027 | AE120: 2.883 | AF120: 2.96 | AG120: 3.112 | AH120: 3.387 | AI120: 3.384886427 | AJ120: 3.427157878 | AK120: 3.399681435 | AL120: 3.385943214 | AM120: 3.484224337 | AN120: 3.4408961 | AO120: 3.45780468 | AP120: 3.369034633 | AQ120: 3.489508268 | AR120: 3.4408961 | AS120: 3.430328237 | AT120: 3.372204992 | AU120: 3.369034633 | AV120: 3.319365679 | AW120: 3.371148206 | AX120: 3.418703588 | AY120: 3.474713261 | AZ120: 3.468372543 | BA120: 3.516984711 | BB120: 3.519098284 | BC120: 3.608925117 | BD120: 3.641685491 | BE120: 3.63640156 | BF120: 3.651196568 | BG120: 3.694524805 | BH120: 3.786465211 | BI120: 3.810771295 | BJ120: 3.800203432 | BK120: 3.83190702 | BL120: 3.863610608 | BM120: 3.917506708
B121: Tverrfaglig spesialisert rusbehandling (TSB) | C121: 2 | D121: Antall personer benyttet | E121: 2017 | F121: 0 | G121: 0 | H121: 0 | I121: 0 | J121: 0 | K121: 0 | L121: 0 | M121: 0 | N121: 0 | O121: 0 | P121: 0 | Q121: 0 | R121: 0 | S121: 0 | T121: 0 | U121: 0 | V121: 0 | W121: 20.976 | X121: 44.03 | Y121: 58.93 | Z121: 74.1 | AA121: 103.54 | AB121: 106.524 | AC121: 97.865 | AD121: 97.15 | AE121: 93.548 | AF121: 74.763 | AG121: 68.79 | AH121: 45.539 | AI121: 44.23852788 | AJ121: 44.25850633 | AK121: 43.63355549 | AL121: 43.3888195 | AM121: 43.19777559 | AN121: 43.62856088 | AO121: 42.68770083 | AP121: 43.37820595 | AQ121: 42.82817429 | AR121: 42.5528463 | AS121: 41.48899393 | AT121: 42.57532205 | AU121: 43.69661247 | AV121: 45.55648114 | AW121: 45.75501697 | AX121: 47.22093562 | AY121: 47.28336827 | AZ121: 46.75393939 | BA121: 47.71290491 | BB121: 47.24091407 | BC121: 45.95230415 | BD121: 45.66074367 | BE121: 44.93714924 | BF121: 44.08868952 | BG121: 42.25192092 | BH121: 41.13999541 | BI121: 40.41952261 | BJ121: 39.8869721 | BK121: 39.78707986 | BL121: 39.33007285 | BM121: 38.35549917
C122: 2 | D122: Liggetid pr pasient | E122: 2017 | F122: 0 | G122: 0 | H122: 0 | I122: 0 | J122: 0 | K122: 0 | L122: 0 | M122: 0 | N122: 0 | O122: 0 | P122: 0 | Q122: 0 | R122: 0 | S122: 0 | T122: 0 | U122: 0 | V122: 0 | W122: 0 | X122: 0 | Y122: 0 | Z122: 0 | AA122: 0 | AB122: 0 | AC122: 0 | AD122: 0 | AE122: 0 | AF122: 0 | AG122: 0 | AH122: 0 | AI122: 0 | AJ122: 0 | AK122: 0 | AL122: 0 | AM122: 0 | AN122: 0 | AO122: 0 | AP122: 0 | AQ122: 0 | AR122: 0 | AS122: 0 | AT122: 0 | AU122: 0 | AV122: 0 | AW122: 0 | AX122: 0 | AY122: 0 | AZ122: 0 | BA122: 0 | BB122: 0 | BC122: 0 | BD122: 0 | BE122: 0 | BF122: 0 | BG122: 0 | BH122: 0 | BI122: 0 | BJ122: 0 | BK122: 0 | BL122: 0 | BM122: 0
C123: 2 | D123: Episoder pr pasient | E123: 2017 | F123: 3.889 | G123: 3.889 | H123: 3.889 | I123: 3.889 | J123: 3.889 | K123: 3.889 | L123: 3.889 | M123: 3.889 | N123: 3.889 | O123: 3.889 | P123: 3.889 | Q123: 3.889 | R123: 3.889 | S123: 3.889 | T123: 3.889 | U123: 3.889 | V123: 3.889 | W123: 7.238 | X123: 6.311 | Y123: 7.183 | Z123: 10.192 | AA123: 10.96 | AB123: 12.771 | AC123: 11.309 | AD123: 12.245 | AE123: 9.617 | AF123: 10.84 | AG123: 16.536 | AH123: 26.587 | AI123: 23.85287589 | AJ123: 25.23845726 | AK123: 26.22671517 | AL123: 26.10718142 | AM123: 27.24359384 | AN123: 27.05671714 | AO123: 28.59550374 | AP123: 28.83457124 | AQ123: 33.86845738 | AR123: 28.17797739 | AS123: 27.72004528 | AT123: 28.01298715 | AU123: 28.55341439 | AV123: 27.59377723 | AW123: 28.0028857 | AX123: 29.72686544 | AY123: 30.48952444 | AZ123: 29.98613583 | BA123: 33.18660993 | BB123: 27.14089583 | BC123: 24.78557586 | BD123: 23.69630351 | BE123: 25.71827584 | BF123: 27.4860285 | BG123: 26.61730433 | BH123: 24.29228869 | BI123: 21.05982668 | BJ123: 22.25853134 | BK123: 27.01799493 | BL123: 22.65248765 | BM123: 20.33420631
B124: Helsetjenester - KPR
B125: Fastlege (FL) | C125: 2 | D125: Antall personer benyttet | E125: 2017 | F125: 1352.184 | G125: 3200.48 | H125: 3656.2 | I125: 4110.353 | J125: 4341.195 | K125: 4558.886 | L125: 4650.402 | M125: 4869.672 | N125: 5005.812 | O125: 4994.797 | P125: 5117.456 | Q125: 5057.564 | R125: 5174.4 | S125: 5182.32 | T125: 5292.648 | U125: 5263.94 | V125: 5453.763 | W125: 5628.56 | X125: 5025.71 | Y125: 4761.544 | Z125: 4292.1 | AA125: 3939.697 | AB125: 3699.288 | AC125: 3276.35 | AD125: 2992.22 | AE125: 2649.413 | AF125: 2237.352 | AG125: 1887.139 | AH125: 1198.704 | AI125: 1167.573342 | AJ125: 1164.998102 | AK125: 1151.606499 | AL125: 1149.7096 | AM125: 1137.076932 | AN125: 1157.607974 | AO125: 1125.146653 | AP125: 1138.785509 | AQ125: 1130.35033 | AR125: 1129.049602 | AS125: 1103.730916 | AT125: 1134.122749 | AU125: 1168.586422 | AV125: 1227.905766 | AW125: 1236.464428 | AX125: 1284.354279 | AY125: 1294.338794 | AZ125: 1294.594712 | BA125: 1326.165036 | BB125: 1321.325181 | BC125: 1301.38915 | BD125: 1299.533674 | BE125: 1286.814963 | BF125: 1270.245121 | BG125: 1224.730394 | BH125: 1196.82557 | BI125: 1187.199558 | BJ125: 1177.14968 | BK125: 1182.568879 | BL125: 1182.770725 | BM125: 1161.528605
C126: 2 | D126: Gj.snittlig refusjon per person | E126: 2017 | F126: 776.186 | G126: 1144.712 | H126: 1078.6 | I126: 945.224 | J126: 867.685 | K126: 855.834 | L126: 798.47 | M126: 803.228 | N126: 798.517 | O126: 810.455 | P126: 851.175 | Q126: 851.438 | R126: 864.313 | S126: 887.471 | T126: 998.911 | U126: 1122.826 | V126: 894.788 | W126: 714.421 | X126: 800.729 | Y126: 883.217 | Z126: 1001.023 | AA126: 1052.541 | AB126: 1080.565 | AC126: 1188.155 | AD126: 1246.665 | AE126: 1357.002 | AF126: 1319.838 | AG126: 1513.632 | AH126: 1535.603 | AI126: 1580.434097 | AJ126: 1586.223258 | AK126: 1577.424532 | AL126: 1597.336318 | AM126: 1564.552789 | AN126: 1580.590956 | AO126: 1560.302974 | AP126: 1560.849322 | AQ126: 1523.289569 | AR126: 1525.05091 | AS126: 1507.591706 | AT126: 1518.857638 | AU126: 1506.28765 | AV126: 1528.247908 | AW126: 1534.629943 | AX126: 1529.783266 | AY126: 1573.783542 | AZ126: 1597.220668 | BA126: 1619.029385 | BB126: 1635.680366 | BC126: 1649.394893 | BD126: 1667.528058 | BE126: 1680.69092 | BF126: 1692.475285 | BG126: 1734.461651 | BH126: 1731.549125 | BI126: 1762.740137 | BJ126: 1770.567135 | BK126: 1771.868533 | BL126: 1804.293147 | BM126: 1801.993435
B127: Helsestasjon (HS) | C127: 2 | D127: Antall personer benyttet | E127: 2017 | F127: 0 | G127: 0 | H127: 0 | I127: 0 | J127: 0 | K127: 0 | L127: 0 | M127: 0 | N127: 0 | O127: 0 | P127: 0 | Q127: 0 | R127: 0 | S127: 0 | T127: 0 | U127: 0 | V127: 0 | W127: 13.984 | X127: 25.16 | Y127: 53.037 | Z127: 79.8 | AA127: 124.248 | AB127: 121.05 | AC127: 131.905 | AD127: 136.01 | AE127: 150.345 | AF127: 146.757 | AG127: 130.701 | AH127: 80.795 | AI127: 81.85146978 | AJ127: 79.64491576 | AK127: 70.77885499 | AL127: 64.88328077 | AM127: 55.83859932 | AN127: 47.54978019 | AO127: 38.95006804 | AP127: 30.78453325 | AQ127: 23.88114788 | AR127: 18.33498216 | AS127: 13.67033671 | AT127: 9.71188222 | AU127: 6.645106965 | AV127: 3.463972068 | AW127: 2.319378741 | AX127: 1.19684399 | AY127: 1.198426385 | AZ127: 1.18500768 | BA127: 0 | BB127: 0 | BC127: 0 | BD127: 0 | BE127: 0 | BF127: 0 | BG127: 0 | BH127: 0 | BI127: 0 | BJ127: 0 | BK127: 0 | BL127: 0 | BM127: 0
C128: 2 | D128: Gj.snittlig refusjon per person | E128: 2017 | F128: 1016.833 | G128: 1016.833 | H128: 1016.833 | I128: 1016.833 | J128: 1016.833 | K128: 1016.833 | L128: 1016.833 | M128: 1016.833 | N128: 1016.833 | O128: 1016.833 | P128: 1016.833 | Q128: 1016.833 | R128: 1016.833 | S128: 1016.833 | T128: 1016.833 | U128: 1016.833 | V128: 1016.833 | W128: 956.714 | X128: 876 | Y128: 923.296 | Z128: 913.718 | AA128: 955.242 | AB128: 839.566 | AC128: 945.09 | AD128: 834.515 | AE128: 886.208 | AF128: 800.196 | AG128: 796.277 | AH128: 847.457 | AI128: 842.1062764 | AJ128: 836.3566583 | AK128: 823.5530678 | AL128: 823.3141413 | AM128: 814.4830888 | AN128: 823.3038869 | AO128: 831.6919511 | AP128: 821.4088817 | AQ128: 787.7028094 | AR128: 817.4886409 | AS128: 822.2476881 | AT128: 830.2994094 | AU128: 783.3170207 | AV128: 757.1027818 | AW128: 780.6611422 | AX128: 668.1175204 | AY128: 641.4808019 | AZ128: 615.4080732 | BA128: 466.5732555 | BB128: 602.7695778 | BC128: 190.2644719 | BD128: 551.2742465 | BE128: 377.8730652 | BF128: 129.2049015 | BG128: 373.94257 | BH128: 89.41799534 | BI128: 168.1714591 | BJ128: 168.1714591 | BK128: 168.1714591 | BL128: 118.7228975 | BM128: 118.7228975
B129: Legevakt (LV) | C129: 2 | D129: Antall personer benyttet | E129: 2017 | F129: 736.656 | G129: 2028.256 | H129: 2217.25 | I129: 2266.857 | J129: 2137.845 | K129: 2029.821 | L129: 1872.507 | M129: 1868.424 | N129: 1857.747 | O129: 1759.27 | P129: 1692.817 | Q129: 1551.4 | R129: 1560.16 | S129: 1562.548 | T129: 1517.688 | U129: 1586.596 | V129: 1740.712 | W129: 1796.944 | X129: 1767.49 | Y129: 1820.937 | Z129: 1738.5 | AA129: 1656.64 | AB129: 1481.652 | AC129: 1344.58 | AD129: 1165.8 | AE129: 1082.484 | AF129: 866.697 | AG129: 726.881 | AH129: 453.921 | AI129: 432.5188375 | AJ129: 420.0493614 | AK129: 409.9560771 | AL129: 403.5180304 | AM129: 391.4402538 | AN129: 391.1879344 | AO129: 370.531088 | AP129: 368.2494341 | AQ129: 353.367142 | AR129: 351.095463 | AS129: 338.3603874 | AT129: 345.1893298 | AU129: 350.1124474 | AV129: 360.6689526 | AW129: 360.0585801 | AX129: 369.342203 | AY129: 372.085589 | AZ129: 363.4597415 | BA129: 377.7412787 | BB129: 371.7515054 | BC129: 363.8026685 | BD129: 363.6720722 | BE129: 355.7657252 | BF129: 340.6376941 | BG129: 332.4917716 | BH129: 321.7796585 | BI129: 318.0721347 | BJ129: 306.272106 | BK129: 305.5050835 | BL129: 313.250463 | BM129: 301.829777
C130: 2 | D130: Gj.snittlig refusjon per person | E130: 2017 | F130: 701.111 | G130: 921.842 | H130: 816.291 | I130: 684.652 | J130: 618.379 | K130: 583.24 | L130: 562.789 | M130: 523.14 | N130: 513.981 | O130: 522.251 | P130: 495.331 | Q130: 530.737 | R130: 537.385 | S130: 532.071 | T130: 571.369 | U130: 672.441 | V130: 540.495 | W130: 487.823 | X130: 455.523 | Y130: 516.935 | Z130: 539.329 | AA130: 512.299 | AB130: 537.537 | AC130: 521.98 | AD130: 510.7 | AE130: 528.033 | AF130: 494.214 | AG130: 534.646 | AH130: 463.668 | AI130: 466.9977931 | AJ130: 477.8025685 | AK130: 474.8055481 | AL130: 449.3474095 | AM130: 467.0349975 | AN130: 444.3227497 | AO130: 428.9139308 | AP130: 466.977124 | AQ130: 451.5982752 | AR130: 442.2713409 | AS130: 450.1183672 | AT130: 448.4906751 | AU130: 459.839048 | AV130: 460.9293434 | AW130: 437.2528818 | AX130: 457.1872016 | AY130: 473.0166369 | AZ130: 491.1083058 | BA130: 455.2391384 | BB130: 452.4033369 | BC130: 476.6058272 | BD130: 511.0498598 | BE130: 488.0141406 | BF130: 457.2006366 | BG130: 455.6793903 | BH130: 471.9294419 | BI130: 502.1528429 | BJ130: 491.4317774 | BK130: 491.1940826 | BL130: 499.8441037 | BM130: 498.4758089
B131: Tannlege og tannpleier (TLTP) | C131: 2 | D131: Antall personer benyttet | E131: 2017 | F131: 0 | G131: 0 | H131: 0 | I131: 4.9484 | J131: 4.9484 | K131: 4.9484 | L131: 4.9484 | M131: 7.5645 | N131: 7.5645 | O131: 15.298 | P131: 15.602 | Q131: 31.028 | R131: 31.36 | S131: 23.556 | T131: 23.112 | U131: 29.656 | V131: 49.133 | W131: 34.96 | X131: 37.74 | Y131: 165.004 | Z131: 199.5 | AA131: 310.62 | AB131: 338.94 | AC131: 344.655 | AD131: 349.74 | AE131: 294.008 | AF131: 243.672 | AG131: 206.37 | AH131: 136.617 | AI131: 127.6757513 | AJ131: 126.0527079 | AK131: 129.243696 | AL131: 125.2234284 | AM131: 124.6720612 | AN131: 127.5739466 | AO131: 129.6841544 | AP131: 131.7818915 | AQ131: 134.9900683 | AR131: 137.3541241 | AS131: 140.2222959 | AT131: 147.1273787 | AU131: 154.3209478 | AV131: 164.3493307 | AW131: 172.0156967 | AX131: 179.3200087 | AY131: 184.9438075 | AZ131: 191.7503337 | BA131: 206.554601 | BB131: 204.5112989 | BC131: 209.402905 | BD131: 220.211941 | BE131: 225.2545709 | BF131: 227.6985484 | BG131: 231.048479 | BH131: 235.9040243 | BI131: 240.9822171 | BJ131: 243.865918 | BK131: 256.8533004 | BL131: 262.8642844 | BM131: 262.1768298
C132: 2 | D132: Gj.snittlig refusjon per person | E132: 2017 | F132: 0 | G132: 0 | H132: 0 | I132: 4.9484 | J132: 4.9484 | K132: 4.9484 | L132: 4.9484 | M132: 7.5645 | N132: 7.5645 | O132: 1266.615 | P132: 2215.988 | Q132: 2417.442 | R132: 2130.393 | S132: 2803.479 | T132: 3719.029 | U132: 2013.694 | V132: 2565.342 | W132: 2344.859 | X132: 1878.52 | Y132: 2634.669 | Z132: 2328.084 | AA132: 3556.404 | AB132: 2993.473 | AC132: 3066.599 | AD132: 2899.113 | AE132: 3395.814 | AF132: 3788.455 | AG132: 3778.099 | AH132: 2485.64 | AI132: 2481.951794 | AJ132: 2811.56047 | AK132: 2732.585113 | AL132: 2914.356494 | AM132: 2845.88503 | AN132: 3040.706703 | AO132: 2957.640638 | AP132: 2965.267804 | AQ132: 3006.694891 | AR132: 2988.460199 | AS132: 2963.605983 | AT132: 3087.428299 | AU132: 3100.259296 | AV132: 3062.773945 | AW132: 3060.805853 | AX132: 3060.503284 | AY132: 3072.190622 | AZ132: 3227.682841 | BA132: 3024.683455 | BB132: 3186.947871 | BC132: 3096.047376 | BD132: 3070.4446 | BE132: 3128.914604 | BF132: 3081.619328 | BG132: 3169.730999 | BH132: 3212.40075 | BI132: 3230.957443 | BJ132: 3164.257909 | BK132: 3174.727566 | BL132: 3303.068998 | BM132: 3218.47528
B133: Utdanning
B134: Videregående opplæring | C134: 2 | D134: Antall personer i VGO | E134: 2017 | F134: 0 | G134: 0 | H134: 0 | I134: 0 | J134: 0 | K134: 0 | L134: 0 | M134: 0 | N134: 0 | O134: 0 | P134: 0 | Q134: 0 | R134: 0 | S134: 0 | T134: 0 | U134: 0 | V134: 6075.666667 | W134: 6075.666667 | X134: 6075.666667 | Y134: 2497 | Z134: 1448 | AA134: 646 | AB134: 415 | AC134: 273 | AD134: 201 | AE134: 146 | AF134: 118 | AG134: 92 | AH134: 46 | AI134: 42.84133333 | AJ134: 37.168 | AK134: 34.43866667 | AL134: 29.96133333 | AM134: 29.44 | AN134: 27.01733333 | AO134: 23.49066667 | AP134: 21.19066667 | AQ134: 20.63866667 | AR134: 18.00133333 | AS134: 15.64 | AT134: 15.30266667 | AU134: 13.156 | AV134: 12.57333333 | AW134: 12.88 | AX134: 10.97866667 | AY134: 10.672 | AZ134: 7.758666667 | BA134: 9.292 | BB134: 8.310666667 | BC134: 7.421333333 | BD134: 6.685333333 | BE134: 5.305333333 | BF134: 4.876 | BG134: 4.354666667 | BH134: 3.189333333 | BI134: 3.526666667 | BJ134: 3.373333333 | BK134: 2.852 | BL134: 1.901333333 | BM134: 1.288
B135: Høyskole eller universitet | C135: 2 | D135: Antall personer i høyere utdanning | E135: 2017 | F135: 0 | G135: 0 | H135: 0 | I135: 0 | J135: 0 | K135: 0 | L135: 0 | M135: 0 | N135: 0 | O135: 0 | P135: 0 | Q135: 0 | R135: 0 | S135: 0 | T135: 0 | U135: 0 | V135: 3.666666667 | W135: 3.666666667 | X135: 3.666666667 | Y135: 849 | Z135: 1248 | AA135: 1349 | AB135: 1252 | AC135: 942 | AD135: 708 | AE135: 531 | AF135: 374 | AG135: 256 | AH135: 145 | AI135: 119.4144523 | AJ135: 98.32160487 | AK135: 87.26499317 | AL135: 77.88362567 | AM135: 71.39586178 | AN135: 64.48167209 | AO135: 60.93320029 | AP135: 56.44049995 | AQ135: 54.56727235 | AR135: 50.10503098 | AS135: 48.68868816 | AT135: 45.14021636 | AU135: 45.10975738 | AV135: 44.75947905 | AW135: 44.37874173 | AX135: 43.25175927 | AY135: 40.58659805 | AZ135: 39.38346812 | BA135: 35.81976683 | BB135: 33.70286735 | BC135: 31.35752547 | BD135: 26.33179288 | BE135: 24.07782796 | BF135: 21.59542065 | BG135: 18.54952211 | BH135: 16.02142632 | BI135: 13.50856003 | BJ135: 10.24944859 | BK135: 8.223926058 | BL135: 7.38630396 | BM135: 6.000420124
B136: Politi, rettsvesen og kriminalomsorg
B137: Straffereaksjoner | C137: 2 | D137: Antall straffede | E137: 2017 | F137: 0 | G137: 0 | H137: 0 | I137: 0 | J137: 0 | K137: 0 | L137: 0 | M137: 0 | N137: 0 | O137: 0 | P137: 0 | Q137: 0 | R137: 0 | S137: 0 | T137: 0 | U137: 0 | V137: 0 | W137: 0 | X137: 10.4 | Y137: 10.4 | Z137: 10.4 | AA137: 28.8 | AB137: 32.8 | AC137: 44.4 | AD137: 51 | AE137: 43.8 | AF137: 38.8 | AG137: 38.2 | AH137: 23.8 | AI137: 22.28383298 | AJ137: 20.52558887 | AK137: 19.8885439 | AL137: 19.25149893 | AM137: 19.08586724 | AN137: 18.47430407 | AO137: 18.57623126 | AP137: 17.85 | AQ137: 16.42301927 | AR137: 16.61413276 | AS137: 14.86862955 | AT137: 13.925803 | AU137: 14.93233405 | AV137: 14.86862955 | AW137: 15.39100642 | AX137: 14.79218415 | AY137: 15.9261242 | AZ137: 15.49293362 | BA137: 14.91959315 | BB137: 14.84314775 | BC137: 14.15513919 | BD137: 13.60728051 | BE137: 13.65824411 | BF137: 13.11038544 | BG137: 11.9254818 | BH137: 10.38383298 | BI137: 9.249892934 | BJ137: 9.390042827 | BK137: 8.600107066 | BL137: 7.708244111 | BM137: 7.415203426
B138: Barnevern
B139: Hjelpetiltak | C139: 2 | D139: Antall barn med hjelpetiltak | E139: 2017 | F139: 0 | G139: 516 | H139: 553 | I139: 711 | J139: 847 | K139: 1001 | L139: 1107 | M139: 1139 | N139: 1213 | O139: 1183 | P139: 1156 | Q139: 1109 | R139: 1062 | S139: 1015 | T139: 1090 | U139: 1028 | V139: 1035 | W139: 818 | X139: 892 | Y139: 554 | Z139: 406 | AA139: 205 | AB139: 126 | AC139: 59 | AD139: 0 | AE139: 0 | AF139: 0 | AG139: 0 | AH139: 0 | AI139: 0 | AJ139: 0 | AK139: 0 | AL139: 0 | AM139: 0 | AN139: 0 | AO139: 0 | AP139: 0 | AQ139: 0 | AR139: 0 | AS139: 0 | AT139: 0 | AU139: 0 | AV139: 0 | AW139: 0 | AX139: 0 | AY139: 0 | AZ139: 0 | BA139: 0 | BB139: 0 | BC139: 0 | BD139: 0 | BE139: 0 | BF139: 0 | BG139: 0 | BH139: 0 | BI139: 0 | BJ139: 0 | BK139: 0 | BL139: 0 | BM139: 0
B140: Omsorgstiltak | C140: 2 | D140: Antall barn med omsorgstiltak | E140: 2017 | F140: 0 | G140: 37 | H140: 77 | I140: 87 | J140: 133 | K140: 156 | L140: 190 | M140: 228 | N140: 303 | O140: 312 | P140: 350 | Q140: 385 | R140: 409 | S140: 424 | T140: 458 | U140: 516 | V140: 527 | W140: 488 | X140: 425 | Y140: 0 | Z140: 0 | AA140: 0 | AB140: 0 | AC140: 0 | AD140: 0 | AE140: 0 | AF140: 0 | AG140: 0 | AH140: 0 | AI140: 0 | AJ140: 0 | AK140: 0 | AL140: 0 | AM140: 0 | AN140: 0 | AO140: 0 | AP140: 0 | AQ140: 0 | AR140: 0 | AS140: 0 | AT140: 0 | AU140: 0 | AV140: 0 | AW140: 0 | AX140: 0 | AY140: 0 | AZ140: 0 | BA140: 0 | BB140: 0 | BC140: 0 | BD140: 0 | BE140: 0 | BF140: 0 | BG140: 0 | BH140: 0 | BI140: 0 | BJ140: 0 | BK140: 0 | BL140: 0 | BM140: 0
B142: 3. Unge som har sluttet på vgs eller ikke gjennomført vgs på normert + 2 års tid
C143: Gruppe | D143: Enhet | E143: Årstall | F143: 0 år | G143: 1 år | H143: 2 år | I143: 3 år | J143: 4 år | K143: 5 år | L143: 6 år | M143: 7 år | N143: 8 år | O143: 9 år | P143: 10 år | Q143: 11 år | R143: 12 år | S143: 13 år | T143: 14 år | U143: 15 år | V143: 16 år | W143: 17 år | X143: 18 år | Y143: 19 år | Z143: 20 år | AA143: 21 år | AB143: 22 år | AC143: 23 år | AD143: 24 år | AE143: 25 år | AF143: 26 år | AG143: 27 år | AH143: 28 år | AI143: 29 år | AJ143: 30 år | AK143: 31 år | AL143: 32 år | AM143: 33 år | AN143: 34 år | AO143: 35 år | AP143: 36 år | AQ143: 37 år | AR143: 38 år | AS143: 39 år | AT143: 40 år | AU143: 41 år | AV143: 42 år | AW143: 43 år | AX143: 44 år | AY143: 45 år | AZ143: 46 år | BA143: 47 år | BB143: 48 år | BC143: 49 år | BD143: 50 år | BE143: 51 år | BF143: 52 år | BG143: 53 år | BH143: 54 år | BI143: 55 år | BJ143: 56 år | BK143: 57 år | BL143: 58 år | BM143: 59 år
B144: Antall personer | C144: 3 | D144: Antall personer i hver aldersgruppe | E144: 2017 | F144: 0 | G144: 0 | H144: 0 | I144: 0 | J144: 0 | K144: 0 | L144: 0 | M144: 0 | N144: 0 | O144: 0 | P144: 0 | Q144: 0 | R144: 0 | S144: 0 | T144: 0 | U144: 0 | V144: 10558.52075 | W144: 11062.91031 | X144: 11139.92024 | Y144: 11011.74035 | Z144: 11231.21016 | AA144: 11461.38996 | AB144: 11416 | AC144: 12428 | AD144: 13605 | AE144: 13677 | AF144: 14055 | AG144: 14422 | AH144: 13918 | AI144: 13847 | AJ144: 13157 | AK144: 12591 | AL144: 11732 | AM144: 11530 | AN144: 11023 | AO144: 10883 | AP144: 10648.1532 | AQ144: 10820.39495 | AR144: 10683.19334 | AS144: 10614.51467 | AT144: 10349.14401 | AU144: 10620.12109 | AV144: 10899.81927 | AW144: 11363.75071 | AX144: 11413.2741 | AY144: 11778.93742 | AZ144: 11794.51082 | BA144: 11662.44843 | BB144: 11901.65578 | BC144: 11783.92091 | BD144: 11462.48603 | BE144: 11389.75828 | BF144: 11209.26263 | BG144: 10997.62019 | BH144: 10539.4509 | BI144: 10262.08874 | BJ144: 10082.37176 | BK144: 9949.530695 | BL144: 9924.613262 | BM144: 9810.61601
B145: Overføringer
B146: Skattepliktige overføringer inkl. fødsels- og sykepenger | C146: 3 | D146: NOK per person per år | E146: 2017 | F146: 0 | G146: 0 | H146: 0 | I146: 0 | J146: 0 | K146: 0 | L146: 0 | M146: 0 | N146: 0 | O146: 0 | P146: 0 | Q146: 0 | R146: 0 | S146: 0 | T146: 0 | U146: 0 | V146: 0 | W146: 0 | X146: 9286.99007 | Y146: 22334.2171 | Z146: 34412.98431 | AA146: 49098.92487 | AB146: 58633 | AC146: 64929 | AD146: 68315 | AE146: 72095 | AF146: 76093 | AG146: 77362 | AH146: 78814 | AI146: 80453 | AJ146: 84522 | AK146: 85139 | AL146: 88697 | AM146: 88489 | AN146: 90605 | AO146: 94721 | AP146: 93006.52888 | AQ146: 89549.35199 | AR146: 89398.76715 | AS146: 86856.07942 | AT146: 85226.31227 | AU146: 84015.35921 | AV146: 85263.95848 | AW146: 85905.51264 | AX146: 86194.13357 | AY146: 86151.78159 | AZ146: 89450.53069 | BA146: 92899.86462 | BB146: 95026.87545 | BC146: 98242.48917 | BD146: 102521.6083 | BE146: 106723.8664 | BF146: 107879.9188 | BG146: 111799.8303 | BH146: 115246.0271 | BI146: 119437.3051 | BJ146: 123874.852 | BK146: 130955.4765 | BL146: 137767.8718 | BM146: 148829.583
B147: Netto skattefrie overføringer | C147: 3 | D147: NOK per person per år | E147: 2017 | F147: 0 | G147: 0 | H147: 0 | I147: 0 | J147: 0 | K147: 0 | L147: 0 | M147: 0 | N147: 0 | O147: 0 | P147: 0 | Q147: 0 | R147: 0 | S147: 0 | T147: 0 | U147: 0 | V147: 0 | W147: 0 | X147: 4107.500248 | Y147: 3664.260516 | Z147: 7119.772486 | AA147: 9340.088585 | AB147: 9922 | AC147: 10573 | AD147: 11001 | AE147: 11300 | AF147: 11222 | AG147: 12461 | AH147: 12222 | AI147: 12988 | AJ147: 12807 | AK147: 12490 | AL147: 12487 | AM147: 12883 | AN147: 12707 | AO147: 13027 | AP147: 13271.62918 | AQ147: 13280.3262 | AR147: 13404.14276 | AS147: 13395.97128 | AT147: 13024.61968 | AU147: 12553.77296 | AV147: 12270.40151 | AW147: 11684.34733 | AX147: 10614.77464 | AY147: 9777.247278 | AZ147: 8903.353087 | BA147: 7787.187 | BB147: 6863.655702 | BC147: 5839.404059 | BD147: 4923.78495 | BE147: 4164.445655 | BF147: 3341.823837 | BG147: 2791.090274 | BH147: 2185.22054 | BI147: 1871.047975 | BJ147: 1531.02094 | BK147: 1279.892897 | BL147: 1232.479778 | BM147: 980.4946657
B148: Sosialhjelp | C148: 3 | D148: NOK per person per år | E148: 2017 | F148: 0 | G148: 0 | H148: 0 | I148: 0 | J148: 0 | K148: 0 | L148: 0 | M148: 0 | N148: 0 | O148: 0 | P148: 0 | Q148: 0 | R148: 0 | S148: 0 | T148: 0 | U148: 0 | V148: 0 | W148: 0 | X148: 5603.728159 | Y148: 5738.598445 | Z148: 5876.714783 | AA148: 6018.1553 | AB148: 6163 | AC148: 5748 | AD148: 5649 | AE148: 5665 | AF148: 5063 | AG148: 5345 | AH148: 5129 | AI148: 5068 | AJ148: 4900 | AK148: 4701 | AL148: 4974 | AM148: 4669 | AN148: 4901 | AO148: 5102 | AP148: 4589.615415 | AQ148: 5461.463605 | AR148: 4835.877773 | AS148: 4796.158038 | AT148: 4907.373297 | AU148: 4696.8587 | AV148: 4579.685481 | AW148: 4518.119891 | AX148: 4023.609186 | AY148: 4142.768392 | AZ148: 3407.953289 | BA148: 4059.356948 | BB148: 3566.83223 | BC148: 3407.953289 | BD148: 3280.850136 | BE148: 3058.419619 | BF148: 3411.925263 | BG148: 2959.12028 | BH148: 2736.689763 | BI148: 2627.46049 | BJ148: 2498.371351 | BK148: 2637.390424 | BL148: 2053.510315 | BM148: 2126.991826
B149: Inntekt
B150: Lønnsinntekt | C150: 3 | D150: NOK per person per år | E150: 2017 | F150: 0 | G150: 0 | H150: 0 | I150: 0 | J150: 0 | K150: 0 | L150: 0 | M150: 0 | N150: 0 | O150: 0 | P150: 0 | Q150: 0 | R150: 0 | S150: 0 | T150: 0 | U150: 0 | V150: 0 | W150: 0 | X150: 36504.05484 | Y150: 75591.9796 | Z150: 109480.793 | AA150: 129300.9196 | AB150: 145404 | AC150: 162995 | AD150: 174067 | AE150: 186786 | AF150: 200462 | AG150: 212858 | AH150: 227400 | AI150: 240000 | AJ150: 254132 | AK150: 267557 | AL150: 271542 | AM150: 279233 | AN150: 285932 | AO150: 284792 | AP150: 293407.5635 | AQ150: 298640.6888 | AR150: 303888.1162 | AS150: 308819.468 | AT150: 315803.1659 | AU150: 319936.4625 | AV150: 325514.9827 | AW150: 327859.8061 | AX150: 333011.4097 | AY150: 335994.8203 | AZ150: 337540.1583 | BA150: 334383.6927 | BB150: 337275.5701 | BC150: 334714.0704 | BD150: 333383.2633 | BE150: 330472.7933 | BF150: 328166.5854 | BG150: 326042.0138 | BH150: 321070.6162 | BI150: 316505.3973 | BJ150: 312938.4625 | BK150: 305968.3515 | BL150: 299257.1078 | BM150: 289004.673
B151: Kapitalinntekt | C151: 3 | D151: NOK per person per år | E151: 2017 | F151: 0 | G151: 0 | H151: 0 | I151: 0 | J151: 0 | K151: 0 | L151: 0 | M151: 0 | N151: 0 | O151: 0 | P151: 0 | Q151: 0 | R151: 0 | S151: 0 | T151: 0 | U151: 0 | V151: 0 | W151: 0 | X151: 1166.732673 | Y151: 1129.557368 | Z151: 1818.730344 | AA151: 2284.851485 | AB151: 2455 | AC151: 3938 | AD151: 13973 | AE151: 3021 | AF151: 3279 | AG151: 3176 | AH151: 4234 | AI151: 5463 | AJ151: 5652 | AK151: 6749 | AL151: 6821 | AM151: 10552 | AN151: 10490 | AO151: 11785 | AP151: 12030.94783 | AQ151: 14072.46118 | AR151: 15417.12236 | AS151: 14529.95342 | AT151: 16490.94814 | AU151: 17818.04161 | AV151: 17939.55155 | AW151: 21576.06584 | AX151: 22633.78789 | AY151: 22194.59534 | AZ151: 21051.96273 | BA151: 24458.63292 | BB151: 26342.76894 | BC151: 26419.62764 | BD151: 26202.22733 | BE151: 31200.23851 | BF151: 29136.76553 | BG151: 29165.31304 | BH151: 34981.68634 | BI151: 31930.03012 | BJ151: 31993.71304 | BK151: 42220.31149 | BL151: 30176.18789 | BM151: 37298.42702
B152: Helsetjenester - NPR
B153: Avtalespesialister innen psykisk helsevern og somatikk (AVT) | C153: 3 | D153: Antall personer benyttet | E153: 2017 | F153: 0 | G153: 0 | H153: 0 | I153: 0 | J153: 0 | K153: 0 | L153: 0 | M153: 0 | N153: 0 | O153: 0 | P153: 0 | Q153: 0 | R153: 0 | S153: 0 | T153: 0 | U153: 0 | V153: 1128.746478 | W153: 1217.452005 | X153: 1225.9268 | Y153: 1165.656246 | Z153: 1118.261358 | AA153: 1201.241832 | AB153: 1244.344 | AC153: 1354.652 | AD153: 1510.155 | AE153: 1695.948 | AF153: 1770.93 | AG153: 1831.594 | AH153: 1892.848 | AI153: 1883.192 | AJ153: 1749.881 | AK153: 1737.558 | AL153: 1642.48 | AM153: 1637.26 | AN153: 1510.151 | AO153: 1588.918 | AP153: 1658.555159 | AQ153: 1637.524833 | AR153: 1659.322192 | AS153: 1638.848802 | AT153: 1735.662194 | AU153: 1803.502549 | AV153: 1880.265431 | AW153: 1934.802224 | AX153: 2020.703894 | AY153: 2107.184001 | AZ153: 2095.428574 | BA153: 2235.058903 | BB153: 2248.834667 | BC153: 2222.399067 | BD153: 2277.668904 | BE153: 2321.224102 | BF153: 2299.724418 | BG153: 2268.107869 | BH153: 2270.921482 | BI153: 2292.559332 | BJ153: 2272.453334 | BK153: 2367.50723 | BL153: 2400.065971 | BM153: 2398.865941
C154: 3 | D154: Liggetid pr pasient | E154: 2017 | F154: 0 | G154: 0 | H154: 0 | I154: 0 | J154: 0 | K154: 0 | L154: 0 | M154: 0 | N154: 0 | O154: 0 | P154: 0 | Q154: 0 | R154: 0 | S154: 0 | T154: 0 | U154: 0 | V154: 0 | W154: 0 | X154: 0 | Y154: 0 | Z154: 0 | AA154: 0 | AB154: 0 | AC154: 0 | AD154: 0 | AE154: 0 | AF154: 0 | AG154: 0 | AH154: 0 | AI154: 0 | AJ154: 0 | AK154: 0 | AL154: 0 | AM154: 0 | AN154: 0 | AO154: 0 | AP154: 0 | AQ154: 0 | AR154: 0 | AS154: 0 | AT154: 0 | AU154: 0 | AV154: 0 | AW154: 0 | AX154: 0 | AY154: 0 | AZ154: 0 | BA154: 0 | BB154: 0 | BC154: 0 | BD154: 0 | BE154: 0 | BF154: 0 | BG154: 0 | BH154: 0 | BI154: 0 | BJ154: 0 | BK154: 0 | BL154: 0 | BM154: 0
C155: 3 | D155: Episoder pr pasient | E155: 2017 | F155: 0 | G155: 0 | H155: 0 | I155: 0 | J155: 0 | K155: 0 | L155: 0 | M155: 0 | N155: 0 | O155: 0 | P155: 0 | Q155: 0 | R155: 0 | S155: 0 | T155: 0 | U155: 0 | V155: 1.564413332 | W155: 1.778397409 | X155: 2.576935071 | Y155: 2.63457388 | Z155: 2.737363089 | AA155: 2.864648791 | AB155: 2.911 | AC155: 2.95 | AD155: 3.227 | AE155: 3.085 | AF155: 2.948 | AG155: 2.943 | AH155: 3.228 | AI155: 3.057 | AJ155: 3.12 | AK155: 3.307 | AL155: 3.46 | AM155: 3.014 | AN155: 3.158 | AO155: 3.544 | AP155: 3.538886003 | AQ155: 3.341485714 | AR155: 3.577752381 | AS155: 3.532749206 | AT155: 3.376260895 | AU155: 3.370124098 | AV155: 3.24329697 | AW155: 3.120561039 | AX155: 3.113401443 | AY155: 3.214658586 | AZ155: 3.02953189 | BA155: 3.08271746 | BB155: 3.041805483 | BC155: 2.933388745 | BD155: 2.936457143 | BE155: 2.833154401 | BF155: 2.812698413 | BG155: 2.749284848 | BH155: 2.804516017 | BI155: 2.749284848 | BJ155: 2.685871284 | BK155: 2.593819336 | BL155: 2.608138528 | BM155: 2.597910534
B156: Psykisk helsevern for barn og unge (BUP) | C156: 3 | D156: Antall personer benyttet | E156: 2017 | F156: 0 | G156: 0 | H156: 0 | I156: 0 | J156: 0 | K156: 0 | L156: 0 | M156: 0 | N156: 0 | O156: 0 | P156: 0 | Q156: 0 | R156: 0 | S156: 0 | T156: 0 | U156: 0 | V156: 2660.747229 | W156: 2688.287205 | X156: 1938.346122 | Y156: 495.5283159 | Z156: 134.7745219 | AA156: 34.38416988 | AB156: 34.248 | AC156: 24.856 | AD156: 27.21 | AE156: 13.677 | AF156: 14.055 | AG156: 14.422 | AH156: 13.918 | AI156: 13.847 | AJ156: 13.157 | AK156: 12.591 | AL156: 11.631 | AM156: 11.631 | AN156: 10.953 | AO156: 10.953 | AP156: 0 | AQ156: 0 | AR156: 0 | AS156: 0 | AT156: 0 | AU156: 0 | AV156: 0 | AW156: 0 | AX156: 0 | AY156: 0 | AZ156: 0 | BA156: 0 | BB156: 0 | BC156: 0 | BD156: 0 | BE156: 0 | BF156: 0 | BG156: 0 | BH156: 0 | BI156: 0 | BJ156: 0 | BK156: 0 | BL156: 0 | BM156: 0
C157: 3 | D157: Liggetid pr pasient | E157: 2017 | F157: 0 | G157: 0 | H157: 0 | I157: 0 | J157: 0 | K157: 0 | L157: 0 | M157: 0 | N157: 0 | O157: 0 | P157: 0 | Q157: 0 | R157: 0 | S157: 0 | T157: 0 | U157: 0 | V157: 0 | W157: 0 | X157: 0 | Y157: 0 | Z157: 0 | AA157: 0 | AB157: 0 | AC157: 0 | AD157: 0 | AE157: 0 | AF157: 0 | AG157: 0 | AH157: 0 | AI157: 0 | AJ157: 0 | AK157: 0 | AL157: 0 | AM157: 0 | AN157: 0 | AO157: 0 | AP157: 0 | AQ157: 0 | AR157: 0 | AS157: 0 | AT157: 0 | AU157: 0 | AV157: 0 | AW157: 0 | AX157: 0 | AY157: 0 | AZ157: 0 | BA157: 0 | BB157: 0 | BC157: 0 | BD157: 0 | BE157: 0 | BF157: 0 | BG157: 0 | BH157: 0 | BI157: 0 | BJ157: 0 | BK157: 0 | BL157: 0 | BM157: 0
C158: 3 | D158: Episoder pr pasient | E158: 2017 | F158: 0 | G158: 0 | H158: 0 | I158: 0 | J158: 0 | K158: 0 | L158: 0 | M158: 0 | N158: 0 | O158: 0 | P158: 0 | Q158: 0 | R158: 0 | S158: 0 | T158: 0 | U158: 0 | V158: 7.19416967 | W158: 7.684542793 | X158: 7.407375375 | Y158: 6.950506006 | Z158: 7.166757508 | AA158: 7.501795045 | AB158: 8.114 | AC158: 6.619 | AD158: 7.773 | AE158: 6.444 | AF158: 10.375 | AG158: 6 | AH158: 6.6 | AI158: 3.889 | AJ158: 5.889 | AK158: 4.429 | AL158: 6.714 | AM158: 6.714 | AN158: 4 | AO158: 4 | AP158: 5.932376551 | AQ158: 5.323279008 | AR158: 5.837995622 | AS158: 6.162004378 | AT158: 5.90707857 | AU158: 6.347847239 | AV158: 5.926538555 | AW158: 5.108246169 | AX158: 7.297494527 | AY158: 4.256871807 | AZ158: 7.054244709 | BA158: 17.39236196 | BB158: 11.51350036 | BC158: 11.51350036 | BD158: 8.216005838 | BE158: 8.216005838 | BF158: 4.475796643 | BG158: 8.17319387 | BH158: 8.17319387 | BI158: 5.219168086 | BJ158: 5.219168086 | BK158: 6.810994892 | BL158: 6.810994892 | BM158: 6.810994892
B159: Psykisk helsevern for voksne (PHV) | C159: 3 | D159: Antall personer benyttet | E159: 2017 | F159: 0 | G159: 0 | H159: 0 | I159: 0 | J159: 0 | K159: 0 | L159: 0 | M159: 0 | N159: 0 | O159: 0 | P159: 0 | Q159: 0 | R159: 0 | S159: 0 | T159: 0 | U159: 0 | V159: 102.7201588 | W159: 905.0580288 | X159: 1533.675615 | Y159: 1564.242581 | Z159: 1543.091156 | AA159: 1589.979446 | AB159: 1563.992 | AC159: 1553.5 | AD159: 1673.415 | AE159: 1654.917 | AF159: 1602.27 | AG159: 1543.154 | AH159: 1489.226 | AI159: 1412.394 | AJ159: 1276.229 | AK159: 1170.963 | AL159: 1044.148 | AM159: 1026.17 | AN159: 947.978 | AO159: 957.704 | AP159: 922.4979527 | AQ159: 916.5675222 | AR159: 826.6287122 | AS159: 825.3464751 | AT159: 870.6134103 | AU159: 834.074697 | AV159: 862.348125 | AW159: 839.1206058 | AX159: 814.7685237 | AY159: 780.4691867 | AZ159: 770.784498 | BA159: 763.1596589 | BB159: 692.8531286 | BC159: 688.4570794 | BD159: 653.348864 | BE159: 593.5305218 | BF159: 546.051442 | BG159: 509.5278574 | BH159: 478.8392247 | BI159: 451.0515945 | BJ159: 407.0722755 | BK159: 423.5752783 | BL159: 371.771422 | BM159: 354.0093794
C160: 3 | D160: Liggetid pr pasient | E160: 2017 | F160: 0 | G160: 0 | H160: 0 | I160: 0 | J160: 0 | K160: 0 | L160: 0 | M160: 0 | N160: 0 | O160: 0 | P160: 0 | Q160: 0 | R160: 0 | S160: 0 | T160: 0 | U160: 0 | V160: 0 | W160: 0 | X160: 0 | Y160: 0 | Z160: 0 | AA160: 0 | AB160: 0.001 | AC160: 0 | AD160: 0 | AE160: 0.001 | AF160: 0.001 | AG160: 0 | AH160: 0.001 | AI160: 0 | AJ160: 0 | AK160: 0 | AL160: 0 | AM160: 0 | AN160: 0.001 | AO160: 0 | AP160: 0 | AQ160: 0 | AR160: 0 | AS160: 0 | AT160: 0 | AU160: 0 | AV160: 0 | AW160: 0 | AX160: 0 | AY160: 0 | AZ160: 0 | BA160: 0 | BB160: 0 | BC160: 0 | BD160: 0 | BE160: 0 | BF160: 0 | BG160: 0 | BH160: 0 | BI160: 0 | BJ160: 0 | BK160: 0 | BL160: 0 | BM160: 0
C161: 3 | D161: Episoder pr pasient | E161: 2017 | F161: 0 | G161: 0 | H161: 0 | I161: 0 | J161: 0 | K161: 0 | L161: 0 | M161: 0 | N161: 0 | O161: 0 | P161: 0 | Q161: 0 | R161: 0 | S161: 0 | T161: 0 | U161: 0 | V161: 6.425864038 | W161: 7.304808597 | X161: 10.58482056 | Y161: 10.8215733 | Z161: 11.24378236 | AA161: 11.76661134 | AB161: 11.957 | AC161: 11.878 | AD161: 11.369 | AE161: 11.608 | AF161: 11.271 | AG161: 12.03 | AH161: 12.091 | AI161: 11.01 | AJ161: 11.941 | AK161: 11.219 | AL161: 12.751 | AM161: 11.255 | AN161: 11.739 | AO161: 11.874 | AP161: 11.9422694 | AQ161: 11.28298201 | AR161: 11.91203581 | AS161: 11.65066152 | AT161: 12.09246209 | AU161: 11.22544066 | AV161: 11.36100419 | AW161: 11.42439721 | AX161: 11.08109963 | AY161: 11.38441084 | AZ161: 11.06842103 | BA161: 11.65651318 | BB161: 11.10450628 | BC161: 11.00795384 | BD161: 10.21895458 | BE161: 10.42961446 | BF161: 10.11069881 | BG161: 10.33013618 | BH161: 10.02780025 | BI161: 9.903940041 | BJ161: 9.128594661 | BK161: 9.34900731 | BL161: 8.684843532 | BM161: 9.281713183
B162: Somatiske sykehus (SOM) | C162: 3 | D162: Antall personer benyttet | E162: 2017 | F162: 0 | G162: 0 | H162: 0 | I162: 0 | J162: 0 | K162: 0 | L162: 0 | M162: 0 | N162: 0 | O162: 0 | P162: 0 | Q162: 0 | R162: 0 | S162: 0 | T162: 0 | U162: 0 | V162: 3233.705994 | W162: 3346.863589 | X162: 3370.161413 | Y162: 3276.545554 | Z162: 3355.83147 | AA162: 3553.030888 | AB162: 3538.96 | AC162: 3927.248 | AD162: 4312.785 | AE162: 4581.795 | AF162: 4820.865 | AG162: 5062.122 | AH162: 4829.546 | AI162: 4763.368 | AJ162: 4657.578 | AK162: 4394.259 | AL162: 4059.272 | AM162: 3966.32 | AN162: 3824.981 | AO162: 3787.284 | AP162: 3784.616781 | AQ162: 3736.628189 | AR162: 3662.436297 | AS162: 3595.330735 | AT162: 3676.919954 | AU162: 3760.877908 | AV162: 3961.236758 | AW162: 4005.472768 | AX162: 4189.475902 | AY162: 4278.636534 | AZ162: 4272.071539 | BA162: 4486.267392 | BB162: 4511.509911 | BC162: 4469.71514 | BD162: 4575.941997 | BE162: 4582.898407 | BF162: 4548.349698 | BG162: 4408.677529 | BH162: 4365.413156 | BI162: 4384.273231 | BJ162: 4361.778348 | BK162: 4468.1285 | BL162: 4497.95483 | BM162: 4465.636287
C163: 3 | D163: Liggetid pr pasient | E163: 2017 | F163: 0 | G163: 0 | H163: 0 | I163: 0 | J163: 0 | K163: 0 | L163: 0 | M163: 0 | N163: 0 | O163: 0 | P163: 0 | Q163: 0 | R163: 0 | S163: 0 | T163: 0 | U163: 0 | V163: 0.02542105263 | W163: 0.02421052632 | X163: 0.023 | Y163: 0.02542105263 | Z163: 0.02784210526 | AA163: 0.02663157895 | AB163: 0.023 | AC163: 0.023 | AD163: 0.023 | AE163: 0.021 | AF163: 0.017 | AG163: 0.021 | AH163: 0.021 | AI163: 0.016 | AJ163: 0.017 | AK163: 0.02 | AL163: 0.015 | AM163: 0.02 | AN163: 0.015 | AO163: 0.012 | AP163: 0.01107692308 | AQ163: 0.009230769231 | AR163: 0.008307692308 | AS163: 0.008307692308 | AT163: 0.009230769231 | AU163: 0.009230769231 | AV163: 0.009230769231 | AW163: 0.008307692308 | AX163: 0.009230769231 | AY163: 0.007384615385 | AZ163: 0.007384615385 | BA163: 0.007384615385 | BB163: 0.007384615385 | BC163: 0.007384615385 | BD163: 0.007384615385 | BE163: 0.008307692308 | BF163: 0.006461538462 | BG163: 0.006461538462 | BH163: 0.007384615385 | BI163: 0.006461538462 | BJ163: 0.006461538462 | BK163: 0.006461538462 | BL163: 0.005538461538 | BM163: 0.005538461538
C164: 3 | D164: Episoder pr pasient | E164: 2017 | F164: 0 | G164: 0 | H164: 0 | I164: 0 | J164: 0 | K164: 0 | L164: 0 | M164: 0 | N164: 0 | O164: 0 | P164: 0 | Q164: 0 | R164: 0 | S164: 0 | T164: 0 | U164: 0 | V164: 3.100762941 | W164: 3.034512378 | X164: 3.034512378 | Y164: 3.061722431 | Z164: 3.150450863 | AA164: 3.10667817 | AB164: 3.154 | AC164: 3.134 | AD164: 3.184 | AE164: 3.223 | AF164: 3.202 | AG164: 3.225 | AH164: 3.439 | AI164: 3.29 | AJ164: 3.339 | AK164: 3.519 | AL164: 3.235 | AM164: 3.246 | AN164: 3.297 | AO164: 3.368 | AP164: 3.281535452 | AQ164: 3.398880196 | AR164: 3.351530562 | AS164: 3.341237164 | AT164: 3.284623472 | AU164: 3.281535452 | AV164: 3.233156479 | AW164: 3.283594132 | AX164: 3.329914425 | AY164: 3.384469438 | AZ164: 3.378293399 | BA164: 3.425643032 | BB164: 3.427701711 | BC164: 3.515195599 | BD164: 3.547105134 | BE164: 3.541958435 | BF164: 3.556369193 | BG164: 3.598572127 | BH164: 3.688124694 | BI164: 3.711799511 | BJ164: 3.701506112 | BK164: 3.732386308 | BL164: 3.763266504 | BM164: 3.815762836
B165: Tverrfaglig spesialisert rusbehandling (TSB) | C165: 3 | D165: Antall personer benyttet | E165: 2017 | F165: 0 | G165: 0 | H165: 0 | I165: 0 | J165: 0 | K165: 0 | L165: 0 | M165: 0 | N165: 0 | O165: 0 | P165: 0 | Q165: 0 | R165: 0 | S165: 0 | T165: 0 | U165: 0 | V165: 285.0800603 | W165: 298.6985784 | X165: 300.7778465 | Y165: 297.3169896 | Z165: 303.2426744 | AA165: 309.4575289 | AB165: 308.232 | AC165: 347.984 | AD165: 394.545 | AE165: 451.341 | AF165: 421.65 | AG165: 461.504 | AH165: 445.376 | AI165: 470.798 | AJ165: 407.867 | AK165: 428.094 | AL165: 410.62 | AM165: 403.55 | AN165: 385.805 | AO165: 402.671 | AP165: 409.1845011 | AQ165: 403.9960793 | AR165: 401.3989238 | AS165: 391.3636563 | AT165: 401.6109365 | AU165: 412.1880143 | AV165: 429.7320648 | AW165: 431.6048436 | AX165: 445.4327827 | AY165: 446.0217069 | AZ165: 441.02763 | BA165: 450.073505 | BB165: 445.6212384 | BC165: 433.4658439 | BD165: 430.7155681 | BE165: 423.8899372 | BF165: 415.886458 | BG165: 398.5603094 | BH165: 388.0715703 | BI165: 381.2753855 | BJ165: 376.2518625 | BK165: 375.3095839 | BL165: 370.9986591 | BM165: 361.8055531
C166: 3 | D166: Liggetid pr pasient | E166: 2017 | F166: 0 | G166: 0 | H166: 0 | I166: 0 | J166: 0 | K166: 0 | L166: 0 | M166: 0 | N166: 0 | O166: 0 | P166: 0 | Q166: 0 | R166: 0 | S166: 0 | T166: 0 | U166: 0 | V166: 0 | W166: 0 | X166: 0 | Y166: 0 | Z166: 0 | AA166: 0 | AB166: 0 | AC166: 0 | AD166: 0 | AE166: 0.034 | AF166: 0 | AG166: 0 | AH166: 0 | AI166: 0 | AJ166: 0 | AK166: 0 | AL166: 0 | AM166: 0 | AN166: 0 | AO166: 0 | AP166: 0 | AQ166: 0 | AR166: 0 | AS166: 0 | AT166: 0 | AU166: 0 | AV166: 0 | AW166: 0 | AX166: 0 | AY166: 0 | AZ166: 0 | BA166: 0 | BB166: 0 | BC166: 0 | BD166: 0 | BE166: 0 | BF166: 0 | BG166: 0 | BH166: 0 | BI166: 0 | BJ166: 0 | BK166: 0 | BL166: 0 | BM166: 0
C167: 3 | D167: Episoder pr pasient | E167: 2017 | F167: 0 | G167: 0 | H167: 0 | I167: 0 | J167: 0 | K167: 0 | L167: 0 | M167: 0 | N167: 0 | O167: 0 | P167: 0 | Q167: 0 | R167: 0 | S167: 0 | T167: 0 | U167: 0 | V167: 3.884694204 | W167: 6.181264451 | X167: 7.608506182 | Y167: 7.621677826 | Z167: 9.550382868 | AA167: 10.03679287 | AB167: 11.719 | AC167: 11.664 | AD167: 12.383 | AE167: 12.148 | AF167: 13.033 | AG167: 14.94 | AH167: 17.299 | AI167: 15.869 | AJ167: 16.287 | AK167: 15.357 | AL167: 16.6 | AM167: 15.455 | AN167: 17.774 | AO167: 17.107 | AP167: 17.25001996 | AQ167: 20.26149656 | AR167: 16.85721866 | AS167: 16.58326494 | AT167: 16.75851475 | AU167: 17.08182043 | AV167: 16.50772623 | AW167: 16.75247165 | AX167: 17.78382685 | AY167: 18.24008066 | AZ167: 17.938933 | BA167: 19.85358752 | BB167: 16.23679405 | BC167: 14.8277453 | BD167: 14.17609803 | BE167: 15.38572458 | BF167: 16.44326653 | BG167: 15.9235602 | BH167: 14.53264074 | BI167: 12.59884975 | BJ167: 13.31596391 | BK167: 16.16326971 | BL167: 13.55164469 | BM167: 12.16475396
B168: Helsetjenester - KPR
B169: Fastlege (FL) | C169: 3 | D169: Antall personer benyttet | E169: 2017 | F169: 0 | G169: 0 | H169: 0 | I169: 0 | J169: 0 | K169: 0 | L169: 0 | M169: 0 | N169: 0 | O169: 0 | P169: 0 | Q169: 0 | R169: 0 | S169: 0 | T169: 0 | U169: 0 | V169: 8484.680149 | W169: 9428.788483 | X169: 9459.0402 | Y169: 9373.518326 | Z169: 8680.405941 | AA169: 8918.981224 | AB169: 8847.4 | AC169: 9755.98 | AD169: 10639.11 | AE169: 10941.6 | AF169: 11328.33 | AG169: 11667.398 | AH169: 11217.908 | AI169: 11202.223 | AJ169: 10696.641 | AK169: 10299.438 | AL169: 9596.776 | AM169: 9408.48 | AN169: 9082.952 | AO169: 9000.241 | AP169: 9109.340542 | AQ169: 9041.866104 | AR169: 9031.46136 | AS169: 8828.932846 | AT169: 9072.042331 | AU169: 9347.72316 | AV169: 9822.228764 | AW169: 9890.690971 | AX169: 10273.7701 | AY169: 10353.63794 | AZ169: 10355.68508 | BA169: 10608.22151 | BB169: 10569.50668 | BC169: 10410.03495 | BD169: 10395.19268 | BE169: 10293.45353 | BF169: 10160.90853 | BG169: 9796.828416 | BH169: 9573.612944 | BI169: 9496.612828 | BJ169: 9416.222126 | BK169: 9459.571231 | BL169: 9461.18583 | BM169: 9291.266468
C170: 3 | D170: Gj.snittlig refusjon per person | E170: 2017 | F170: 0 | G170: 0 | H170: 0 | I170: 0 | J170: 0 | K170: 0 | L170: 0 | M170: 0 | N170: 0 | O170: 0 | P170: 0 | Q170: 0 | R170: 0 | S170: 0 | T170: 0 | U170: 0 | V170: 1305.15175 | W170: 1039.163252 | X170: 1124.520311 | Y170: 1189.885334 | Z170: 1277.399671 | AA170: 1317.330707 | AB170: 1380.689 | AC170: 1373.285 | AD170: 1418.961 | AE170: 1448.694 | AF170: 1456.721 | AG170: 1488.766 | AH170: 1522.448 | AI170: 1508.718 | AJ170: 1517.375 | AK170: 1487.314 | AL170: 1519.468 | AM170: 1526.593 | AN170: 1542.133 | AO170: 1608.477 | AP170: 1609.040216 | AQ170: 1570.320814 | AR170: 1572.136536 | AS170: 1554.138283 | AT170: 1565.752048 | AU170: 1552.793964 | AV170: 1575.432241 | AW170: 1582.011319 | AX170: 1577.015002 | AY170: 1622.373778 | AZ170: 1646.53452 | BA170: 1669.016577 | BB170: 1686.181653 | BC170: 1700.319613 | BD170: 1719.012636 | BE170: 1732.581899 | BF170: 1744.730103 | BG170: 1788.01279 | BH170: 1785.01034 | BI170: 1817.164368 | BJ170: 1825.233022 | BK170: 1826.574601 | BL170: 1860.000318 | BM170: 1857.629603
B171: Helsestasjon (HS) | C171: 3 | D171: Antall personer benyttet | E171: 2017 | F171: 0 | G171: 0 | H171: 0 | I171: 0 | J171: 0 | K171: 0 | L171: 0 | M171: 0 | N171: 0 | O171: 0 | P171: 0 | Q171: 0 | R171: 0 | S171: 0 | T171: 0 | U171: 0 | V171: 0 | W171: 20.05152494 | X171: 40.38221088 | Y171: 79.83511757 | Z171: 142.4959789 | AA171: 270.0590009 | AB171: 331.064 | AC171: 422.552 | AD171: 435.36 | AE171: 519.726 | AF171: 562.2 | AG171: 605.724 | AH171: 598.474 | AI171: 595.421 | AJ171: 513.123 | AK171: 428.094 | AL171: 316.764 | AM171: 322.84 | AN171: 264.552 | AO171: 239.426 | AP171: 189.232472 | AQ171: 146.7973742 | AR171: 112.7051032 | AS171: 84.03153581 | AT171: 59.698923 | AU171: 40.84746088 | AV171: 21.29303024 | AW171: 14.25721706 | AX171: 7.356997913 | AY171: 7.366724888 | AZ171: 7.284240136 | BA171: 0 | BB171: 0 | BC171: 0 | BD171: 0 | BE171: 0 | BF171: 0 | BG171: 0 | BH171: 0 | BI171: 0 | BJ171: 0 | BK171: 0 | BL171: 0 | BM171: 0
C172: 3 | D172: Gj.snittlig refusjon per person | E172: 2017 | F172: 0 | G172: 0 | H172: 0 | I172: 0 | J172: 0 | K172: 0 | L172: 0 | M172: 0 | N172: 0 | O172: 0 | P172: 0 | Q172: 0 | R172: 0 | S172: 0 | T172: 0 | U172: 0 | V172: 829.1045617 | W172: 660.1339597 | X172: 714.3574832 | Y172: 755.8809608 | Z172: 811.4749069 | AA172: 836.8413089 | AB172: 877.09 | AC172: 880.391 | AD172: 882.44 | AE172: 894.139 | AF172: 837.105 | AG172: 907.028 | AH172: 870.218 | AI172: 847.42 | AJ172: 827.302 | AK172: 845.942 | AL172: 825.835 | AM172: 822.632 | AN172: 831.2 | AO172: 845.787 | AP172: 835.3296588 | AQ172: 801.0523549 | AR172: 831.34298 | AS172: 836.1826809 | AT172: 844.3708583 | AU172: 796.5922384 | AV172: 769.9337353 | AW172: 793.8913495 | AX172: 679.4404015 | AY172: 652.3522589 | AZ172: 625.8376641 | BA172: 474.4804774 | BB172: 612.9849787 | BC172: 193.4889674 | BD172: 560.6169334 | BE172: 384.277046 | BF172: 131.3945938 | BG172: 380.2799391 | BH172: 90.93340139 | BI172: 171.0215347 | BJ172: 171.0215347 | BK172: 171.0215347 | BL172: 120.7349466 | BM172: 120.7349466
B173: Legevakt (LV) | C173: 3 | D173: Antall personer benyttet | E173: 2017 | F173: 0 | G173: 0 | H173: 0 | I173: 0 | J173: 0 | K173: 0 | L173: 0 | M173: 0 | N173: 0 | O173: 0 | P173: 0 | Q173: 0 | R173: 0 | S173: 0 | T173: 0 | U173: 0 | V173: 2845.585463 | W173: 3220.605784 | X173: 3526.258316 | Y173: 4003.636967 | Z173: 3797.876913 | AA173: 3802.861347 | AB173: 3584.624 | AC173: 3927.248 | AD173: 4135.92 | AE173: 4212.516 | AF173: 4244.61 | AG173: 4369.866 | AH173: 4133.646 | AI173: 4029.477 | AJ173: 3697.117 | AK173: 3462.525 | AL173: 3226.3 | AM173: 3043.92 | AN173: 2910.072 | AO173: 2883.995 | AP173: 2866.235955 | AQ173: 2750.400989 | AR173: 2732.719582 | AS173: 2633.59728 | AT173: 2686.749731 | AU173: 2725.068369 | AV173: 2807.233967 | AW173: 2802.483188 | AX173: 2874.741422 | AY173: 2896.094317 | AZ173: 2828.955818 | BA173: 2940.114863 | BB173: 2893.494008 | BC173: 2831.624959 | BD173: 2830.608475 | BE173: 2769.070142 | BF173: 2651.322489 | BG173: 2587.919443 | BH173: 2504.542685 | BI173: 2475.685511 | BJ173: 2383.841062 | BK173: 2377.871012 | BL173: 2438.156468 | BM173: 2349.264599
C174: 3 | D174: Gj.snittlig refusjon per person | E174: 2017 | F174: 0 | G174: 0 | H174: 0 | I174: 0 | J174: 0 | K174: 0 | L174: 0 | M174: 0 | N174: 0 | O174: 0 | P174: 0 | Q174: 0 | R174: 0 | S174: 0 | T174: 0 | U174: 0 | V174: 668.2540028 | W174: 527.6080154 | X174: 557.4325587 | Y174: 564.4011311 | Z174: 606.8631427 | AA174: 573.3643149 | AB174: 577.874 | AC174: 528.189 | AD174: 551.519 | AE174: 577.792 | AF174: 544.665 | AG174: 501.574 | AH174: 549.59 | AI174: 555.267 | AJ174: 541.704 | AK174: 530.7 | AL174: 550.309 | AM174: 567.35 | AN174: 570.765 | AO174: 539.422 | AP174: 587.2920324 | AQ174: 567.9508809 | AR174: 556.2208968 | AS174: 566.0896801 | AT174: 564.0426192 | AU174: 578.3148579 | AV174: 579.6860638 | AW174: 549.9094506 | AX174: 574.9797733 | AY174: 594.8876032 | AZ174: 617.640523 | BA174: 572.5297987 | BB174: 568.9633637 | BC174: 599.4015351 | BD174: 642.7199437 | BE174: 613.7491577 | BF174: 574.9966696 | BG174: 573.08348 | BH174: 593.5202965 | BI174: 631.5306437 | BJ174: 618.0473357 | BK174: 617.7483999 | BL174: 628.6270665 | BM174: 626.9062356
B175: Tannlege og tannpleier (TLTP) | C175: 3 | D175: Antall personer benyttet | E175: 2017 | F175: 0 | G175: 0 | H175: 0 | I175: 0 | J175: 0 | K175: 0 | L175: 0 | M175: 0 | N175: 0 | O175: 0 | P175: 0 | Q175: 0 | R175: 0 | S175: 0 | T175: 0 | U175: 0 | V175: 52.12434295 | W175: 43.69149388 | X175: 54.99454297 | Y175: 315.2981858 | Z175: 465.7398037 | AA175: 712.9274717 | AB175: 890.448 | AC175: 994.24 | AD175: 1142.82 | AE175: 1271.961 | AF175: 1250.895 | AG175: 1370.09 | AH175: 1252.62 | AI175: 1287.771 | AJ175: 1249.915 | AK175: 1183.554 | AL175: 1126.272 | AM175: 1129.94 | AN175: 1025.139 | AO175: 1033.885 | AP175: 1050.608854 | AQ175: 1076.185502 | AR175: 1095.032537 | AS175: 1117.898552 | AT175: 1172.948158 | AU175: 1230.297671 | AV175: 1310.247258 | AW175: 1371.366066 | AX175: 1429.598458 | AY175: 1474.433244 | AZ175: 1528.697123 | BA175: 1646.721642 | BB175: 1630.431761 | BC175: 1669.429264 | BD175: 1755.602476 | BE175: 1795.803991 | BF175: 1815.288188 | BG175: 1841.994944 | BH175: 1880.704958 | BI175: 1921.189992 | BJ175: 1944.17981 | BK175: 2047.71952 | BL175: 2095.641074 | BM175: 2090.160459
C176: 3 | D176: Gj.snittlig refusjon per person | E176: 2017 | F176: 0 | G176: 0 | H176: 0 | I176: 0 | J176: 0 | K176: 0 | L176: 0 | M176: 0 | N176: 0 | O176: 0 | P176: 0 | Q176: 0 | R176: 0 | S176: 0 | T176: 0 | U176: 0 | V176: 3683.924128 | W176: 2836.90625 | X176: 2185.742467 | Y176: 3756.653791 | Z176: 3625.816345 | AA176: 3398.822428 | AB176: 3315.535 | AC176: 3207.941 | AD176: 3455.983 | AE176: 4067.227 | AF176: 3643.023 | AG176: 4206.347 | AH176: 3853.121 | AI176: 3862.953 | AJ176: 3986.518 | AK176: 4284.802 | AL176: 4568.946 | AM176: 4840.497 | AN176: 4695.206 | AO176: 5274.122 | AP176: 5287.72291 | AQ176: 5361.596492 | AR176: 5329.080038 | AS176: 5284.759519 | AT176: 5505.561868 | AU176: 5528.44235 | AV176: 5461.597747 | AW176: 5458.088208 | AX176: 5457.548659 | AY176: 5478.389748 | AZ176: 5755.66648 | BA176: 5393.674048 | BB176: 5683.027094 | BC176: 5520.931572 | BD176: 5475.276207 | BE176: 5579.54105 | BF176: 5495.203198 | BG176: 5652.325635 | BH176: 5728.415161 | BI176: 5761.505813 | BJ176: 5642.565914 | BK176: 5661.235609 | BL176: 5890.096534 | BM176: 5739.247379
B177: Utdanning
B178: Videregående opplæring | C178: 3 | D178: Antall personer i VGO | E178: 2017 | F178: 0 | G178: 0 | H178: 0 | I178: 0 | J178: 0 | K178: 0 | L178: 0 | M178: 0 | N178: 0 | O178: 0 | P178: 0 | Q178: 0 | R178: 0 | S178: 0 | T178: 0 | U178: 0 | V178: 0 | W178: 0 | X178: 0 | Y178: 0 | Z178: 0 | AA178: 0 | AB178: 347 | AC178: 772 | AD178: 778 | AE178: 878 | AF178: 838 | AG178: 647 | AH178: 545 | AI178: 496 | AJ178: 375 | AK178: 327 | AL178: 272 | AM178: 239 | AN178: 214 | AO178: 179 | AP178: 161.4738903 | AQ178: 157.267624 | AR178: 137.1710183 | AS178: 119.1775457 | AT178: 116.6070496 | AU178: 100.2493473 | AV178: 95.80939948 | AW178: 98.1462141 | AX178: 83.65796345 | AY178: 81.32114883 | AZ178: 59.12140992 | BA178: 70.80548303 | BB178: 63.32767624 | BC178: 56.55091384 | BD178: 50.94255875 | BE178: 40.42689295 | BF178: 37.15535248 | BG178: 33.18276762 | BH178: 24.30287206 | BI178: 26.87336815 | BJ178: 25.70496084 | BK178: 21.73237598 | BL178: 14.48825065 | BM178: 9.81462141
B179: Høyskole eller universitet | C179: 3 | D179: Antall personer i høyere utdanning | E179: 2017 | F179: 0 | G179: 0 | H179: 0 | I179: 0 | J179: 0 | K179: 0 | L179: 0 | M179: 0 | N179: 0 | O179: 0 | P179: 0 | Q179: 0 | R179: 0 | S179: 0 | T179: 0 | U179: 0 | V179: 0 | W179: 0 | X179: 0 | Y179: 0 | Z179: 0 | AA179: 0 | AB179: 302 | AC179: 620 | AD179: 904 | AE179: 967 | AF179: 1057 | AG179: 1103 | AH179: 968 | AI179: 911 | AJ179: 741 | AK179: 673 | AL179: 581 | AM179: 513 | AN179: 439 | AO179: 385 | AP179: 356.6133467 | AQ179: 344.7775556 | AR179: 316.5833542 | AS179: 307.6343414 | AT179: 285.2136966 | AU179: 285.0212447 | AV179: 282.808048 | AW179: 280.4023994 | AX179: 273.2816796 | AY179: 256.4421395 | AZ179: 248.8402899 | BA179: 226.3234191 | BB179: 212.948013 | BC179: 198.1292177 | BD179: 166.3746563 | BE179: 152.1332167 | BF179: 136.4483879 | BG179: 117.2031992 | BH179: 101.2296926 | BI179: 85.3524119 | BJ179: 64.76005999 | BK179: 51.9620095 | BL179: 46.6695826 | BM179: 37.91302174
B180: Politi, rettsvesen og kriminalomsorg
B181: Straffereaksjoner | C181: 3 | D181: Antall straffede | E181: 2017 | F181: 0 | G181: 0 | H181: 0 | I181: 0 | J181: 0 | K181: 0 | L181: 0 | M181: 0 | N181: 0 | O181: 0 | P181: 0 | Q181: 0 | R181: 0 | S181: 0 | T181: 0 | U181: 0 | V181: 0 | W181: 0 | X181: 59.24752475 | Y181: 59.24752475 | Z181: 203.3267327 | AA181: 363.5643564 | AB181: 108.8 | AC181: 147.6 | AD181: 182 | AE181: 211.6 | AF181: 207.8 | AG181: 222.6 | AH181: 208.8 | AI181: 200.8 | AJ181: 186.8 | AK181: 168.4 | AL181: 155.8 | AM181: 153.4 | AN181: 143 | AO181: 149.6 | AP181: 143.7514403 | AQ181: 132.2595336 | AR181: 133.7986283 | AS181: 119.7415638 | AT181: 112.1486968 | AU181: 120.2545953 | AV181: 119.7415638 | AW181: 123.9484225 | AX181: 119.1259259 | AY181: 128.2578875 | AZ181: 124.769273 | BA181: 120.151989 | BB181: 119.5363512 | BC181: 113.9956104 | BD181: 109.5835391 | BE181: 109.9939643 | BF181: 105.581893 | BG181: 96.03950617 | BH181: 83.62414266 | BI181: 74.49218107 | BJ181: 75.62085048 | BK181: 69.25925926 | BL181: 62.07681756 | BM181: 59.71687243
B182: Barnevern
B183: Hjelpetiltak | C183: 3 | D183: Antall barn med hjelpetiltak | E183: 2017 | F183: 0 | G183: 0 | H183: 0 | I183: 0 | J183: 0 | K183: 0 | L183: 0 | M183: 0 | N183: 0 | O183: 0 | P183: 0 | Q183: 0 | R183: 0 | S183: 0 | T183: 0 | U183: 0 | V183: 928.6359343 | W183: 814.5288827 | X183: 797.4983066 | Y183: 529.7203317 | Z183: 368.9998873 | AA183: 225.9686362 | AB183: 0 | AC183: 0 | AD183: 0 | AE183: 0 | AF183: 0 | AG183: 0 | AH183: 0 | AI183: 0 | AJ183: 0 | AK183: 0 | AL183: 0 | AM183: 0 | AN183: 0 | AO183: 0 | AP183: 0 | AQ183: 0 | AR183: 0 | AS183: 0 | AT183: 0 | AU183: 0 | AV183: 0 | AW183: 0 | AX183: 0 | AY183: 0 | AZ183: 0 | BA183: 0 | BB183: 0 | BC183: 0 | BD183: 0 | BE183: 0 | BF183: 0 | BG183: 0 | BH183: 0 | BI183: 0 | BJ183: 0 | BK183: 0 | BL183: 0 | BM183: 0
B184: Omsorgstiltak | C184: 3 | D184: Antall barn med omsorgstiltak | E184: 2017 | F184: 0 | G184: 0 | H184: 0 | I184: 0 | J184: 0 | K184: 0 | L184: 0 | M184: 0 | N184: 0 | O184: 0 | P184: 0 | Q184: 0 | R184: 0 | S184: 0 | T184: 0 | U184: 0 | V184: 388.9099364 | W184: 397.8256946 | X184: 339.3305183 | Y184: 0 | Z184: 0 | AA184: 0 | AB184: 0 | AC184: 0 | AD184: 0 | AE184: 0 | AF184: 0 | AG184: 0 | AH184: 0 | AI184: 0 | AJ184: 0 | AK184: 0 | AL184: 0 | AM184: 0 | AN184: 0 | AO184: 0 | AP184: 0 | AQ184: 0 | AR184: 0 | AS184: 0 | AT184: 0 | AU184: 0 | AV184: 0 | AW184: 0 | AX184: 0 | AY184: 0 | AZ184: 0 | BA184: 0 | BB184: 0 | BC184: 0 | BD184: 0 | BE184: 0 | BF184: 0 | BG184: 0 | BH184: 0 | BI184: 0 | BJ184: 0 | BK184: 0 | BL184: 0 | BM184: 0
B186: 4. Barn med hjelpetiltak i barnevernet
C187: Gruppe | D187: Enhet | E187: Årstall | F187: 0 år | G187: 1 år | H187: 2 år | I187: 3 år | J187: 4 år | K187: 5 år | L187: 6 år | M187: 7 år | N187: 8 år | O187: 9 år | P187: 10 år | Q187: 11 år | R187: 12 år | S187: 13 år | T187: 14 år | U187: 15 år | V187: 16 år | W187: 17 år | X187: 18 år | Y187: 19 år | Z187: 20 år | AA187: 21 år | AB187: 22 år | AC187: 23 år | AD187: 24 år | AE187: 25 år | AF187: 26 år | AG187: 27 år | AH187: 28 år | AI187: 29 år | AJ187: 30 år | AK187: 31 år | AL187: 32 år | AM187: 33 år | AN187: 34 år | AO187: 35 år | AP187: 36 år | AQ187: 37 år | AR187: 38 år | AS187: 39 år | AT187: 40 år | AU187: 41 år | AV187: 42 år | AW187: 43 år | AX187: 44 år | AY187: 45 år | AZ187: 46 år | BA187: 47 år | BB187: 48 år | BC187: 49 år | BD187: 50 år | BE187: 51 år | BF187: 52 år | BG187: 53 år | BH187: 54 år | BI187: 55 år | BJ187: 56 år | BK187: 57 år | BL187: 58 år | BM187: 59 år
B188: Antall personer | C188: 4 | D188: Antall personer i hver aldersgruppe | E188: 2017 | F188: 532 | G188: 1189 | H188: 1782 | I188: 2442 | J188: 3147 | K188: 3905 | L188: 4571 | M188: 5355 | N188: 5885 | O188: 6359 | P188: 6441 | Q188: 6645 | R188: 6602 | S188: 6846 | T188: 7276 | U188: 7641 | V188: 7635 | W188: 7378 | X188: 7122 | Y188: 6919 | Z188: 6905 | AA188: 6682 | AB188: 6475 | AC188: 6204 | AD188: 5942 | AE188: 5800 | AF188: 5563 | AG188: 5285 | AH188: 4892 | AI188: 4584 | AJ188: 4086 | AK188: 3590 | AL188: 3302 | AM188: 2910 | AN188: 2690 | AO188: 2417 | AP188: 2043 | AQ188: 2076.047035 | AR188: 2049.72295 | AS188: 2036.545968 | AT188: 1985.630825 | AU188: 2037.62164 | AV188: 2091.285723 | AW188: 2180.297584 | AX188: 2189.799354 | AY188: 2259.957074 | AZ188: 2262.945052 | BA188: 2237.607 | BB188: 2283.50234 | BC188: 2260.913227 | BD188: 2199.241364 | BE188: 2185.287507 | BF188: 2150.656843 | BG188: 2110.050224 | BH188: 2022.143914 | BI188: 1968.928028 | BJ188: 1934.446763 | BK188: 1908.959312 | BL188: 1904.178547 | BM188: 1882.306549
B189: Overføringer
B190: Skattepliktige overføringer inkl. fødsels- og sykepenger | C190: 4 | D190: NOK per person per år | E190: 2017 | F190: 0 | G190: 0 | H190: 0 | I190: 0 | J190: 0 | K190: 0 | L190: 0 | M190: 0 | N190: 0 | O190: 0 | P190: 0 | Q190: 0 | R190: 0 | S190: 0 | T190: 0 | U190: 0 | V190: 0 | W190: 0 | X190: 7618 | Y190: 18324 | Z190: 31280 | AA190: 42909 | AB190: 51459 | AC190: 58581 | AD190: 69171 | AE190: 74199 | AF190: 79044 | AG190: 85079 | AH190: 90479 | AI190: 92315 | AJ190: 99837 | AK190: 102154 | AL190: 108638 | AM190: 112043 | AN190: 115003 | AO190: 122444 | AP190: 132289 | AQ190: 127371.6412 | AR190: 127157.455 | AS190: 123540.8313 | AT190: 121222.7116 | AU190: 119500.2973 | AV190: 121276.2581 | AW190: 122188.7807 | AX190: 122599.3043 | AY190: 122539.0644 | AZ190: 127231.0815 | BA190: 132137.2848 | BB190: 135162.6652 | BC190: 139736.4336 | BD190: 145822.8923 | BE190: 151800.0267 | BF190: 153444.3522 | BG190: 159019.8874 | BH190: 163921.6285 | BI190: 169883.1452 | BJ190: 176194.9456 | BK190: 186266.1605 | BL190: 195955.8562 | BM190: 211689.6195
B191: Netto skattefrie overføringer | C191: 4 | D191: NOK per person per år | E191: 2017 | F191: 0 | G191: 0 | H191: 0 | I191: 0 | J191: 0 | K191: 0 | L191: 0 | M191: 0 | N191: 0 | O191: 0 | P191: 0 | Q191: 0 | R191: 0 | S191: 0 | T191: 0 | U191: 0 | V191: 0 | W191: 0 | X191: 21247 | Y191: 16732 | Z191: 15937 | AA191: 15193 | AB191: 14343 | AC191: 13428 | AD191: 13078 | AE191: 13271 | AF191: 12521 | AG191: 13609 | AH191: 13553 | AI191: 13688 | AJ191: 13985 | AK191: 14241 | AL191: 13803 | AM191: 14634 | AN191: 14528 | AO191: 14762 | AP191: 14348 | AQ191: 13924.98642 | AR191: 14391.50508 | AS191: 14401.03269 | AT191: 13880.2978 | AU191: 13394.99676 | AV191: 13098.18739 | AW191: 12394.37559 | AX191: 11300.0844 | AY191: 10191.17688 | AZ191: 9461.710973 | BA191: 7738.714517 | BB191: 6826.456339 | BC191: 5621.920601 | BD191: 4537.710317 | BE191: 3696.79619 | BF191: 2489.935933 | BG191: 2025.105656 | BH191: 1376.522058 | BI191: 1037.158583 | BJ191: 675.277989 | BK191: 291.3714394 | BL191: 522.5456509 | BM191: 170.1826007
B192: Sosialhjelp | C192: 4 | D192: NOK per person per år | E192: 2017 | F192: 0 | G192: 0 | H192: 0 | I192: 0 | J192: 0 | K192: 0 | L192: 0 | M192: 0 | N192: 0 | O192: 0 | P192: 0 | Q192: 0 | R192: 0 | S192: 0 | T192: 0 | U192: 0 | V192: 0 | W192: 0 | X192: 1976 | Y192: 6290 | Z192: 8641 | AA192: 8903 | AB192: 7941 | AC192: 7600 | AD192: 7820 | AE192: 8047 | AF192: 7578 | AG192: 8306 | AH192: 8312 | AI192: 7241 | AJ192: 7326 | AK192: 7732 | AL192: 9104 | AM192: 8255 | AN192: 8110 | AO192: 9306 | AP192: 8036 | AQ192: 9562.527045 | AR192: 8467.183038 | AS192: 8397.637386 | AT192: 8592.36521 | AU192: 8223.773258 | AV192: 8018.613587 | AW192: 7910.817828 | AX192: 7044.97447 | AY192: 7253.611424 | AZ192: 5967.016876 | BA192: 7107.565556 | BB192: 6245.199481 | BC192: 5967.016876 | BD192: 5744.470792 | BE192: 5355.015145 | BF192: 5973.971441 | BG192: 5181.151017 | BH192: 4791.69537 | BI192: 4600.444829 | BJ192: 4374.421463 | BK192: 4617.831242 | BL192: 3595.510169 | BM192: 3724.169624
B193: Inntekt
B194: Lønnsinntekt | C194: 4 | D194: NOK per person per år | E194: 2017 | F194: 0 | G194: 0 | H194: 0 | I194: 0 | J194: 0 | K194: 0 | L194: 0 | M194: 0 | N194: 0 | O194: 0 | P194: 0 | Q194: 0 | R194: 0 | S194: 0 | T194: 0 | U194: 0 | V194: 0 | W194: 0 | X194: 30355 | Y194: 65847 | Z194: 100405 | AA194: 119369 | AB194: 140651 | AC194: 161175 | AD194: 172254 | AE194: 185874 | AF194: 203746 | AG194: 211994 | AH194: 222806 | AI194: 230341 | AJ194: 238659 | AK194: 240574 | AL194: 235329 | AM194: 239066 | AN194: 245380 | AO194: 234626 | AP194: 221496 | AQ194: 225446.5332 | AR194: 229407.8632 | AS194: 233130.5848 | AT194: 238402.641 | AU194: 241522.9037 | AV194: 245734.1786 | AW194: 247504.3068 | AX194: 251393.2985 | AY194: 253645.5019 | AZ194: 254812.0915 | BA194: 252429.2473 | BB194: 254612.3515 | BC194: 252678.6524 | BD194: 251674.0142 | BE194: 249476.8742 | BF194: 247735.8972 | BG194: 246132.039 | BH194: 242379.0865 | BI194: 238932.7618 | BJ194: 236240.0507 | BK194: 230978.2514 | BL194: 225911.8734 | BM194: 218172.2185
B195: Kapitalinntekt | C195: 4 | D195: NOK per person per år | E195: 2017 | F195: 0 | G195: 0 | H195: 0 | I195: 0 | J195: 0 | K195: 0 | L195: 0 | M195: 0 | N195: 0 | O195: 0 | P195: 0 | Q195: 0 | R195: 0 | S195: 0 | T195: 0 | U195: 0 | V195: 0 | W195: 0 | X195: 1313 | Y195: 704 | Z195: 1126 | AA195: 1444 | AB195: 1222 | AC195: 1836 | AD195: 1474 | AE195: 2326 | AF195: 3823 | AG195: 2437 | AH195: 2963 | AI195: 6472 | AJ195: 4799 | AK195: 2985 | AL195: 3743 | AM195: 6374 | AN195: 5105 | AO195: 6848 | AP195: 4121 | AQ195: 4820.286262 | AR195: 5280.877464 | AS195: 4976.992577 | AT195: 5648.698528 | AU195: 6103.272207 | AV195: 6144.893405 | AW195: 7390.520565 | AX195: 7752.825566 | AY195: 7602.387503 | AZ195: 7210.99781 | BA195: 8377.895717 | BB195: 9023.275006 | BC195: 9049.601667 | BD195: 8975.134826 | BE195: 10687.11998 | BF195: 9980.311816 | BG195: 9990.09029 | BH195: 11982.3917 | BI195: 10937.09789 | BJ195: 10958.91141 | BK195: 14461.86171 | BL195: 10336.34856 | BM195: 12775.95248
B196: Helsetjenester - NPR
B197: Avtalespesialister innen psykisk helsevern og somatikk (AVT) | C197: 4 | D197: Antall personer benyttet | E197: 2017 | F197: 18.088 | G197: 117.711 | H197: 217.404 | I197: 285.714 | J197: 450.021 | K197: 632.61 | L197: 690.221 | M197: 760.41 | N197: 806.245 | O197: 788.516 | P197: 727.833 | Q197: 730.95 | R197: 680.006 | S197: 602.448 | T197: 676.668 | U197: 748.818 | V197: 748.23 | W197: 789.446 | X197: 697.956 | Y197: 671.143 | Z197: 711.215 | AA197: 714.974 | AB197: 770.525 | AC197: 732.072 | AD197: 701.156 | AE197: 788.8 | AF197: 756.568 | AG197: 739.9 | AH197: 733.8 | AI197: 724.272 | AJ197: 621.072 | AK197: 560.04 | AL197: 508.508 | AM197: 451.05 | AN197: 381.98 | AO197: 357.716 | AP197: 312.579 | AQ197: 281.536 | AR197: 332.0551179 | AS197: 329.9204468 | AT197: 349.4101749 | AU197: 363.0672738 | AV197: 378.5205872 | AW197: 389.4995154 | AX197: 406.7925794 | AY197: 424.2020899 | AZ197: 421.8355778 | BA197: 449.9448825 | BB197: 452.7181135 | BC197: 447.3963016 | BD197: 458.5228006 | BE197: 467.2909982 | BF197: 462.9628471 | BG197: 456.5980463 | BH197: 457.1644613 | BI197: 461.5204271 | BJ197: 457.4728421 | BK197: 476.6083619 | BL197: 483.1628375 | BM197: 482.9212567
C198: 4 | D198: Liggetid pr pasient | E198: 2017 | F198: 0 | G198: 0 | H198: 0 | I198: 0 | J198: 0 | K198: 0 | L198: 0 | M198: 0 | N198: 0 | O198: 0 | P198: 0 | Q198: 0 | R198: 0 | S198: 0 | T198: 0 | U198: 0 | V198: 0 | W198: 0 | X198: 0 | Y198: 0 | Z198: 0 | AA198: 0 | AB198: 0 | AC198: 0 | AD198: 0 | AE198: 0 | AF198: 0 | AG198: 0 | AH198: 0 | AI198: 0 | AJ198: 0 | AK198: 0 | AL198: 0 | AM198: 0 | AN198: 0 | AO198: 0 | AP198: 0 | AQ198: 0 | AR198: 0 | AS198: 0 | AT198: 0 | AU198: 0 | AV198: 0 | AW198: 0 | AX198: 0 | AY198: 0 | AZ198: 0 | BA198: 0 | BB198: 0 | BC198: 0 | BD198: 0 | BE198: 0 | BF198: 0 | BG198: 0 | BH198: 0 | BI198: 0 | BJ198: 0 | BK198: 0 | BL198: 0 | BM198: 0
C199: 4 | D199: Episoder pr pasient | E199: 2017 | F199: 1.222 | G199: 1.61 | H199: 2.032 | I199: 1.846 | J199: 1.756 | K199: 1.848 | L199: 1.783 | M199: 1.85 | N199: 1.873 | O199: 2.108 | P199: 2.011 | Q199: 2.316 | R199: 2.663 | S199: 2.342 | T199: 2.738 | U199: 2.724 | V199: 2.531 | W199: 2.58 | X199: 2.785 | Y199: 2.446 | Z199: 2.436 | AA199: 2.393 | AB199: 2.69 | AC199: 2.921 | AD199: 3.354 | AE199: 3.658 | AF199: 2.863 | AG199: 3.177 | AH199: 3.072 | AI199: 3.523 | AJ199: 3.462 | AK199: 3.748 | AL199: 4.089 | AM199: 3.424 | AN199: 3.859 | AO199: 3.858 | AP199: 4.153 | AQ199: 4.26 | AR199: 5.523 | AS199: 5.523 | AT199: 5.278350608 | AU199: 5.268756514 | AV199: 5.070478576 | AW199: 4.878596699 | AX199: 4.86740359 | AY199: 5.025706138 | AZ199: 4.736284308 | BA199: 4.819433121 | BB199: 4.755472496 | BC199: 4.585976838 | BD199: 4.590773885 | BE199: 4.429273306 | BF199: 4.397292994 | BG199: 4.298154024 | BH199: 4.384500869 | BI199: 4.298154024 | BJ199: 4.199015055 | BK199: 4.055103648 | BL199: 4.077489867 | BM199: 4.06149971
B200: Psykisk helsevern for barn og unge (BUP) | C200: 4 | D200: Antall personer benyttet | E200: 2017 | F200: 54.796 | G200: 140.302 | H200: 126.522 | I200: 158.73 | J200: 220.29 | K200: 359.26 | L200: 539.378 | M200: 744.345 | N200: 982.795 | O200: 1150.979 | P200: 1165.821 | Q200: 1229.325 | R200: 1214.768 | S200: 1204.896 | T200: 1506.132 | U200: 1810.917 | V200: 1702.605 | W200: 1468.222 | X200: 954.348 | Y200: 214.489 | Z200: 62.145 | AA200: 40.092 | AB200: 19.425 | AC200: 12.408 | AD200: 11.884 | AE200: 5.8 | AF200: 11.126 | AG200: 10.57 | AH200: 4.892 | AI200: 5.78 | AJ200: 5.78 | AK200: 2.297333333 | AL200: 2.297333333 | AM200: 1.866666667 | AN200: 1.866666667 | AO200: 1.472 | AP200: 1.472 | AQ200: 1.472 | AR200: 1.472 | AS200: 1.472 | AT200: 0 | AU200: 0 | AV200: 0 | AW200: 0 | AX200: 0 | AY200: 0 | AZ200: 0 | BA200: 0 | BB200: 0 | BC200: 0 | BD200: 0 | BE200: 0 | BF200: 0 | BG200: 0 | BH200: 0 | BI200: 0 | BJ200: 0 | BK200: 0 | BL200: 0 | BM200: 0
C201: 4 | D201: Liggetid pr pasient | E201: 2017 | F201: 0 | G201: 0 | H201: 0 | I201: 0 | J201: 0 | K201: 0.003 | L201: 0 | M201: 0 | N201: 1.117 | O201: 0.955 | P201: 1.884 | Q201: 0.893 | R201: 1.803 | S201: 0 | T201: 0.002 | U201: 0.001 | V201: 0 | W201: 0.001 | X201: 0.002 | Y201: 0 | Z201: 0 | AA201: 0 | AB201: 0 | AC201: 0 | AD201: 0 | AE201: 0 | AF201: 0 | AG201: 0 | AH201: 0 | AI201: 0 | AJ201: 0 | AK201: 0 | AL201: 0 | AM201: 0 | AN201: 0 | AO201: 0 | AP201: 0 | AQ201: 0 | AR201: 0 | AS201: 0 | AT201: 0 | AU201: 0 | AV201: 0 | AW201: 0 | AX201: 0 | AY201: 0 | AZ201: 0 | BA201: 0 | BB201: 0 | BC201: 0 | BD201: 0 | BE201: 0 | BF201: 0 | BG201: 0 | BH201: 0 | BI201: 0 | BJ201: 0 | BK201: 0 | BL201: 0 | BM201: 0
C202: 4 | D202: Episoder pr pasient | E202: 2017 | F202: 5.491 | G202: 8.443 | H202: 7.04 | I202: 10.73 | J202: 11.356 | K202: 11.433 | L202: 12.545 | M202: 12.371 | N202: 12.626 | O202: 12.332 | P202: 12.265 | Q202: 11.973 | R202: 12.727 | S202: 12.205 | T202: 12.932 | U202: 16.052 | V202: 14.004 | W202: 13.867 | X202: 12.799 | Y202: 10.075 | Z202: 8.032 | AA202: 9.927 | AB202: 13.455 | AC202: 6.533 | AD202: 5 | AE202: 11.714 | AF202: 5.111 | AG202: 4.8 | AH202: 3.667 | AI202: 4.5 | AJ202: 4.5 | AK202: 7 | AL202: 7 | AM202: 6.286 | AN202: 6.286 | AO202: 3.2 | AP202: 3.2 | AQ202: 3.2 | AR202: 3.2 | AS202: 3.2 | AT202: 3.067614085 | AU202: 3.296510343 | AV202: 3.07771988 | AW202: 2.652771198 | AX202: 3.789673141 | AY202: 2.210642665 | AZ202: 3.663350703 | BA202: 9.032054319 | BB202: 5.979093637 | BC202: 5.979093637 | BD202: 4.266666667 | BE202: 4.266666667 | BF202: 2.32433286 | BG202: 4.244433918 | BH202: 4.244433918 | BI202: 2.71037423 | BJ202: 2.71037423 | BK202: 3.537028265 | BL202: 3.537028265 | BM202: 3.537028265
B203: Psykisk helsevern for voksne (PHV) | C203: 4 | D203: Antall personer benyttet | E203: 2017 | F203: 0 | G203: 0 | H203: 0 | I203: 0 | J203: 2.350666667 | K203: 2.350666667 | L203: 3.95275 | M203: 3.95275 | N203: 3.95275 | O203: 12.718 | P203: 6.441 | Q203: 6.645 | R203: 6.602 | S203: 13.692 | T203: 29.104 | U203: 45.846 | V203: 53.445 | W203: 103.292 | X203: 605.37 | Y203: 989.417 | Z203: 1001.225 | AA203: 928.798 | AB203: 919.45 | AC203: 905.784 | AD203: 897.242 | AE203: 812 | AF203: 751.005 | AG203: 697.62 | AH203: 709.34 | AI203: 540.912 | AJ203: 523.008 | AK203: 448.75 | AL203: 399.542 | AM203: 369.57 | AN203: 330.87 | AO203: 328.712 | AP203: 273.762 | AQ203: 208.608 | AR203: 248.016477 | AS203: 246.4220621 | AT203: 259.9373213 | AU203: 249.02803 | AV203: 257.4695714 | AW203: 250.534577 | AX203: 243.2638241 | AY203: 233.023139 | AZ203: 230.1316007 | BA203: 227.8550676 | BB203: 206.8637861 | BC203: 205.5512664 | BD203: 195.0690761 | BE203: 177.2092321 | BF203: 163.0334973 | BG203: 152.128723 | BH203: 142.9660788 | BI203: 134.6695811 | BJ203: 121.5387629 | BK203: 126.4660317 | BL203: 110.999057 | BM203: 105.6958791
C204: 4 | D204: Liggetid pr pasient | E204: 2017 | F204: 0 | G204: 0 | H204: 0 | I204: 0 | J204: 0 | K204: 0 | L204: 0 | M204: 0 | N204: 0 | O204: 0 | P204: 0 | Q204: 0 | R204: 0 | S204: 0 | T204: 0 | U204: 0 | V204: 0 | W204: 0 | X204: 0 | Y204: 0.001 | Z204: 0.001 | AA204: 0 | AB204: 0.001 | AC204: 0 | AD204: 0 | AE204: 0.002 | AF204: 0.001 | AG204: 0 | AH204: 0 | AI204: 0 | AJ204: 0 | AK204: 0 | AL204: 0 | AM204: 0 | AN204: 0 | AO204: 0 | AP204: 0 | AQ204: 0 | AR204: 0.007 | AS204: 0.007 | AT204: 0 | AU204: 0 | AV204: 0 | AW204: 0 | AX204: 0 | AY204: 0 | AZ204: 0 | BA204: 0 | BB204: 0 | BC204: 0 | BD204: 0 | BE204: 0 | BF204: 0 | BG204: 0 | BH204: 0 | BI204: 0 | BJ204: 0 | BK204: 0 | BL204: 0 | BM204: 0
C205: 4 | D205: Episoder pr pasient | E205: 2017 | F205: 0 | G205: 0 | H205: 0 | I205: 0 | J205: 2.6 | K205: 2.6 | L205: 3.625 | M205: 3.625 | N205: 3.625 | O205: 7.1 | P205: 5.167 | Q205: 6.4 | R205: 7.667 | S205: 4.75 | T205: 3.037 | U205: 4.796 | V205: 5.059 | W205: 6.941 | X205: 6.936 | Y205: 9.358 | Z205: 10.061 | AA205: 9.962 | AB205: 11.759 | AC205: 11.151 | AD205: 11.145 | AE205: 10.547 | AF205: 10.813 | AG205: 11.733 | AH205: 12.004 | AI205: 10.271 | AJ205: 11.093 | AK205: 10.942 | AL205: 12.559 | AM205: 11.711 | AN205: 12.394 | AO205: 11.964 | AP205: 11.652 | AQ205: 11.649 | AR205: 13.356 | AS205: 13.356 | AT205: 13.86246811 | AU205: 12.86853842 | AV205: 13.02394475 | AW205: 13.09661678 | AX205: 12.70306981 | AY205: 13.0507775 | AZ205: 12.68853541 | BA205: 13.36270819 | BB205: 12.72990256 | BC205: 12.61921748 | BD205: 11.71473029 | BE205: 11.95622501 | BF205: 11.59062883 | BG205: 11.84218584 | BH205: 11.49559618 | BI205: 11.35360623 | BJ205: 10.46477147 | BK205: 10.71744651 | BL205: 9.956067303 | BM205: 10.64030236
B206: Somatiske sykehus (SOM) | C206: 4 | D206: Antall personer benyttet | E206: 2017 | F206: 283.024 | G206: 418.528 | H206: 589.842 | I206: 798.534 | J206: 985.011 | K206: 1112.925 | L206: 1266.167 | M206: 1435.14 | N206: 1583.065 | O206: 1685.135 | P206: 1777.716 | Q206: 1834.02 | R206: 1841.958 | S206: 1848.42 | T206: 2000.9 | U206: 2215.89 | V206: 2298.135 | W206: 2073.218 | X206: 2100.99 | Y206: 1978.834 | Z206: 2036.975 | AA206: 2111.512 | AB206: 2072 | AC206: 2003.892 | AD206: 1960.86 | AE206: 2001 | AF206: 2036.058 | AG206: 1929.025 | AH206: 1814.932 | AI206: 1631.904 | AJ206: 1573.11 | AK206: 1342.66 | AL206: 1234.948 | AM206: 1146.54 | AN206: 1006.06 | AO206: 901.541 | AP206: 733.437 | AQ206: 637.696 | AR206: 797.3422276 | AS206: 792.2163815 | AT206: 810.1942312 | AU206: 828.694022 | AV206: 872.8422728 | AW206: 882.5894961 | AX206: 923.1338321 | AY206: 942.7800115 | AZ206: 941.3334419 | BA206: 988.5306195 | BB206: 994.0927051 | BC206: 984.8833988 | BD206: 1008.290051 | BE206: 1009.822867 | BF206: 1002.210201 | BG206: 971.4340115 | BH206: 961.9008844 | BI206: 966.0566246 | BJ206: 961.0999694 | BK206: 984.5337892 | BL206: 991.1058987 | BM206: 983.9846401
C207: 4 | D207: Liggetid pr pasient | E207: 2017 | F207: 0.014 | G207: 0.033 | H207: 0.012 | I207: 0.014 | J207: 0.008 | K207: 0.004 | L207: 0.008 | M207: 0.01 | N207: 0.006 | O207: 0.012 | P207: 0.014 | Q207: 0.013 | R207: 0.025 | S207: 0.016 | T207: 0.02 | U207: 0.018 | V207: 0.024 | W207: 0.023 | X207: 0.022 | Y207: 0.027 | Z207: 0.057 | AA207: 0.037 | AB207: 0.025 | AC207: 0.026 | AD207: 0.029 | AE207: 0.023 | AF207: 0.024 | AG207: 0.024 | AH207: 0.02 | AI207: 0.02 | AJ207: 0.025 | AK207: 0.032 | AL207: 0.024 | AM207: 0.019 | AN207: 0.022 | AO207: 0.024 | AP207: 0.016 | AQ207: 0.019 | AR207: 0.013 | AS207: 0.013 | AT207: 0.01444444444 | AU207: 0.01444444444 | AV207: 0.01444444444 | AW207: 0.013 | AX207: 0.01444444444 | AY207: 0.01155555556 | AZ207: 0.01155555556 | BA207: 0.01155555556 | BB207: 0.01155555556 | BC207: 0.01155555556 | BD207: 0.01155555556 | BE207: 0.013 | BF207: 0.01011111111 | BG207: 0.01011111111 | BH207: 0.01155555556 | BI207: 0.01011111111 | BJ207: 0.01011111111 | BK207: 0.01011111111 | BL207: 0.008666666667 | BM207: 0.008666666667
C208: 4 | D208: Episoder pr pasient | E208: 2017 | F208: 2.806 | G208: 3.112 | H208: 2.786 | I208: 2.636 | J208: 2.634 | K208: 2.641 | L208: 2.619 | M208: 2.481 | N208: 2.646 | O208: 2.478 | P208: 2.543 | Q208: 2.729 | R208: 2.553 | S208: 2.754 | T208: 2.679 | U208: 2.681 | V208: 2.731 | W208: 2.729 | X208: 2.725 | Y208: 2.806 | Z208: 3.321 | AA208: 2.992 | AB208: 2.966 | AC208: 3.047 | AD208: 3.179 | AE208: 3.234 | AF208: 3.191 | AG208: 3.329 | AH208: 3.366 | AI208: 3.635 | AJ208: 3.382 | AK208: 3.669 | AL208: 3.277 | AM208: 3.383 | AN208: 3.314 | AO208: 3.528 | AP208: 3.561 | AQ208: 3.13 | AR208: 3.353 | AS208: 3.353 | AT208: 3.296186999 | AU208: 3.293088108 | AV208: 3.244538817 | AW208: 3.295154036 | AX208: 3.3416374 | AY208: 3.396384473 | AZ208: 3.390186691 | BA208: 3.437703019 | BB208: 3.439768946 | BC208: 3.527570856 | BD208: 3.55959273 | BE208: 3.554427911 | BF208: 3.568889402 | BG208: 3.611240912 | BH208: 3.701108749 | BI208: 3.724866913 | BJ208: 3.714537277 | BK208: 3.745526186 | BL208: 3.776515096 | BM208: 3.829196242
B209: Tverrfaglig spesialisert rusbehandling (TSB) | C209: 4 | D209: Antall personer benyttet | E209: 2017 | F209: 0 | G209: 0 | H209: 0 | I209: 0 | J209: 0 | K209: 0 | L209: 0 | M209: 0 | N209: 0 | O209: 0 | P209: 0 | Q209: 0 | R209: 0 | S209: 0 | T209: 0 | U209: 0 | V209: 15.27 | W209: 44.268 | X209: 78.342 | Y209: 110.704 | Z209: 186.435 | AA209: 227.188 | AB209: 226.625 | AC209: 229.548 | AD209: 249.564 | AE209: 266.8 | AF209: 255.898 | AG209: 269.535 | AH209: 229.924 | AI209: 233.784 | AJ209: 192.042 | AK209: 172.32 | AL209: 191.516 | AM209: 165.87 | AN209: 153.33 | AO209: 149.854 | AP209: 122.58 | AQ209: 110.24 | AR209: 145.5303295 | AS209: 144.5947637 | AT209: 148.3807644 | AU209: 152.2886134 | AV209: 158.7705076 | AW209: 159.4624319 | AX209: 164.5713569 | AY209: 164.7889432 | AZ209: 162.9438118 | BA209: 166.2859365 | BB209: 164.6409845 | BC209: 160.1500044 | BD209: 159.1338766 | BE209: 156.6120521 | BF209: 153.655055 | BG209: 147.2536676 | BH209: 143.3784566 | BI209: 140.8675113 | BJ209: 139.0115006 | BK209: 138.6633627 | BL209: 137.0706313 | BM209: 133.67411
... 148 more rows

Sheet Valgte Livsforløp (hidden)
G2: 0 år | H2: 1 år | I2: 2 år | J2: 3 år | K2: 4 år | L2: 5 år | M2: 6 år | N2: 7 år | O2: 8 år | P2: 9 år | Q2: 10 år | R2: 11 år | S2: 12 år | T2: 13 år | U2: 14 år | V2: 15 år | W2: 16 år | X2: 17 år | Y2: 18 år | Z2: 19 år | AA2: 20 år | AB2: 21 år | AC2: 22 år | AD2: 23 år | AE2: 24 år | AF2: 25 år | AG2: 26 år | AH2: 27 år | AI2: 28 år | AJ2: 29 år | AK2: 30 år | AL2: 31 år | AM2: 32 år | AN2: 33 år | AO2: 34 år | AP2: 35 år | AQ2: 36 år | AR2: 37 år | AS2: 38 år | AT2: 39 år | AU2: 40 år | AV2: 41 år | AW2: 42 år | AX2: 43 år | AY2: 44 år | AZ2: 45 år | BA2: 46 år | BB2: 47 år | BC2: 48 år | BD2: 49 år | BE2: 50 år | BF2: 51 år | BG2: 52 år | BH2: 53 år | BI2: 54 år | BJ2: 55 år | BK2: 56 år | BL2: 57 år | BM2: 58 år | BN2: 59 år
B4: SAMMENLIGNINGSGRUPPE
B6: Gjennomsnittet av befolkningen
C7: Gruppe | D7: Enhed | E7: Årstal | F7: CPI | G7: 0 år | H7: 1 år | I7: 2 år | J7: 3 år | K7: 4 år | L7: 5 år | M7: 6 år | N7: 7 år | O7: 8 år | P7: 9 år | Q7: 10 år | R7: 11 år | S7: 12 år | T7: 13 år | U7: 14 år | V7: 15 år | W7: 16 år | X7: 17 år | Y7: 18 år | Z7: 19 år | AA7: 20 år | AB7: 21 år | AC7: 22 år | AD7: 23 år | AE7: 24 år | AF7: 25 år | AG7: 26 år | AH7: 27 år | AI7: 28 år | AJ7: 29 år | AK7: 30 år | AL7: 31 år | AM7: 32 år | AN7: 33 år | AO7: 34 år | AP7: 35 år | AQ7: 36 år | AR7: 37 år | AS7: 38 år | AT7: 39 år | AU7: 40 år | AV7: 41 år | AW7: 42 år | AX7: 43 år | AY7: 44 år | AZ7: 45 år | BA7: 46 år | BB7: 47 år | BC7: 48 år | BD7: 49 år | BE7: 50 år | BF7: 51 år | BG7: 52 år | BH7: 53 år | BI7: 54 år | BJ7: 55 år | BK7: 56 år | BL7: 57 år | BM7: 58 år | BN7: 59 år
B8: Antall personer | C8: ='1. Målgruppe'!$L$34 -> 1 | D8: Antall personer i hver aldersgruppe | E8: 2017 | F8: =INDEX(Forudsetninger!$D$13:$S$13,MATCH('Valgte Livsforløp'!E8,Forudsetninger!$D$12:$S$12,0)) -> 105.5 | G8: ='Alle Livsforløp'!F10 -> 0 | H8: ='Alle Livsforløp'!G10 -> 58773 | I8: ='Alle Livsforløp'!H10 -> 59383 | J8: ='Alle Livsforløp'!I10 -> 59937 | K8: ='Alle Livsforløp'!J10 -> 60226 | L8: ='Alle Livsforløp'!K10 -> 62148 | M8: ='Alle Livsforløp'!L10 -> 62702 | N8: ='Alle Livsforløp'!M10 -> 64538 | O8: ='Alle Livsforløp'!N10 -> 65651 | P8: ='Alle Livsforløp'!O10 -> 64625 | Q8: ='Alle Livsforløp'!P10 -> 63090 | R8: ='Alle Livsforløp'!Q10 -> 63396 | S8: ='Alle Livsforløp'!R10 -> 61921 | T8: ='Alle Livsforløp'!S10 -> 62265 | U8: ='Alle Livsforløp'!T10 -> 61822 | V8: ='Alle Livsforløp'!U10 -> 60767 | W8: ='Alle Livsforløp'!V10 -> 62109 | X8: ='Alle Livsforløp'!W10 -> 65076 | Y8: ='Alle Livsforløp'!X10 -> 65529 | Z8: ='Alle Livsforløp'!Y10 -> 64775 | AA8: ='Alle Livsforløp'!Z10 -> 66066 | AB8: ='Alle Livsforløp'!AA10 -> 67420 | AC8: ='Alle Livsforløp'!AB10 -> 67153 | AD8: ='Alle Livsforløp'!AC10 -> 67175 | AE8: ='Alle Livsforløp'!AD10 -> 67824 | AF8: ='Alle Livsforløp'!AE10 -> 69623 | AG8: ='Alle Livsforløp'!AF10 -> 71484 | AH8: ='Alle Livsforløp'!AG10 -> 73311 | AI8: ='Alle Livsforløp'!AH10 -> 73108 | AJ8: ='Alle Livsforløp'!AI10 -> 72941 | AK8: ='Alle Livsforløp'!AJ10 -> 70858 | AL8: ='Alle Livsforløp'!AK10 -> 70890 | AM8: ='Alle Livsforløp'!AL10 -> 69889 | AN8: ='Alle Livsforløp'!AM10 -> 69497 | AO8: ='Alle Livsforløp'!AN10 -> 69191 | AP8: ='Alle Livsforløp'!AO10 -> 69882 | AQ8: ='Alle Livsforløp'!AP10 -> 68374 | AR8: ='Alle Livsforløp'!AQ10 -> 69480 | AS8: ='Alle Livsforløp'!AR10 -> 68599 | AT8: ='Alle Livsforløp'!AS10 -> 68158 | AU8: ='Alle Livsforløp'!AT10 -> 66454 | AV8: ='Alle Livsforløp'!AU10 -> 68194 | AW8: ='Alle Livsforløp'!AV10 -> 69990 | AX8: ='Alle Livsforløp'!AW10 -> 72969 | AY8: ='Alle Livsforløp'!AX10 -> 73287 | AZ8: ='Alle Livsforløp'!AY10 -> 75635 | BA8: ='Alle Livsforløp'!AZ10 -> 75735 | BB8: ='Alle Livsforløp'!BA10 -> 74887 | BC8: ='Alle Livsforløp'!BB10 -> 76423 | BD8: ='Alle Livsforløp'!BC10 -> 75667 | BE8: ='Alle Livsforløp'!BD10 -> 73603 | BF8: ='Alle Livsforløp'!BE10 -> 73136 | BG8: ='Alle Livsforløp'!BF10 -> 71977 | BH8: ='Alle Livsforløp'!BG10 -> 70618 | BI8: ='Alle Livsforløp'!BH10 -> 67676 | BJ8: ='Alle Livsforløp'!BI10 -> 65895 | BK8: ='Alle Livsforløp'!BJ10 -> 64741 | BL8: ='Alle Livsforløp'!BK10 -> 63888 | BM8: ='Alle Livsforløp'!BL10 -> 63728 | BN8: ='Alle Livsforløp'!BM10 -> 62996
B9: Overføringer
B10: Skattepliktige overføringer inkl. fødsels- og sykepenger | C10: ='1. Målgruppe'!$L$34 -> 1 | D10: NOK per person per år | E10: 2017 | F10: =INDEX(Forudsetninger!$D$13:$S$13,MATCH('Valgte Livsforløp'!E10,Forudsetninger!$D$12:$S$12,0)) -> 105.5 | G10: ='Alle Livsforløp'!F12 -> 0 | H10: ='Alle Livsforløp'!G12 -> 0 | I10: ='Alle Livsforløp'!H12 -> 0 | J10: ='Alle Livsforløp'!I12 -> 0 | K10: ='Alle Livsforløp'!J12 -> 0 | L10: ='Alle Livsforløp'!K12 -> 0 | M10: ='Alle Livsforløp'!L12 -> 0 | N10: ='Alle Livsforløp'!M12 -> 0 | O10: ='Alle Livsforløp'!N12 -> 0 | P10: ='Alle Livsforløp'!O12 -> 0 | Q10: ='Alle Livsforløp'!P12 -> 0 | R10: ='Alle Livsforløp'!Q12 -> 0 | S10: ='Alle Livsforløp'!R12 -> 0 | T10: ='Alle Livsforløp'!S12 -> 0 | U10: ='Alle Livsforløp'!T12 -> 0 | V10: ='Alle Livsforløp'!U12 -> 0 | W10: ='Alle Livsforløp'!V12 -> 0 | X10: ='Alle Livsforløp'!W12 -> 0 | Y10: ='Alle Livsforløp'!X12 -> 3270 | Z10: ='Alle Livsforløp'!Y12 -> 7864 | AA10: ='Alle Livsforløp'!Z12 -> 12117 | AB10: ='Alle Livsforløp'!AA12 -> 17288 | AC10: ='Alle Livsforløp'!AB12 -> 20645 | AD10: ='Alle Livsforløp'!AC12 -> 23919 | AE10: ='Alle Livsforløp'!AD12 -> 28377 | AF10: ='Alle Livsforløp'!AE12 -> 32962 | AG10: ='Alle Livsforløp'!AF12 -> 38859 | AH10: ='Alle Livsforløp'!AG12 -> 43545 | AI10: ='Alle Livsforløp'!AH12 -> 48402 | AJ10: ='Alle Livsforløp'!AI12 -> 52996 | AK10: ='Alle Livsforløp'!AJ12 -> 57364 | AL10: ='Alle Livsforløp'!AK12 -> 59495 | AM10: ='Alle Livsforløp'!AL12 -> 61315 | AN10: ='Alle Livsforløp'!AM12 -> 61741 | AO10: ='Alle Livsforløp'!AN12 -> 60641 | AP10: ='Alle Livsforløp'!AO12 -> 60386 | AQ10: ='Alle Livsforløp'!AP12 -> 59293 | AR10: ='Alle Livsforløp'!AQ12 -> 57089 | AS10: ='Alle Livsforløp'!AR12 -> 56993 | AT10: ='Alle Livsforløp'!AS12 -> 55372 | AU10: ='Alle Livsforløp'!AT12 -> 54333 | AV10: ='Alle Livsforløp'!AU12 -> 53561 | AW10: ='Alle Livsforløp'!AV12 -> 54357 | AX10: ='Alle Livsforløp'!AW12 -> 54766 | AY10: ='Alle Livsforløp'!AX12 -> 54950 | AZ10: ='Alle Livsforløp'!AY12 -> 54923 | BA10: ='Alle Livsforløp'!AZ12 -> 57026 | BB10: ='Alle Livsforløp'!BA12 -> 59225 | BC10: ='Alle Livsforløp'!BB12 -> 60581 | BD10: ='Alle Livsforløp'!BC12 -> 62631 | BE10: ='Alle Livsforløp'!BD12 -> 65359 | BF10: ='Alle Livsforløp'!BE12 -> 68038 | BG10: ='Alle Livsforløp'!BF12 -> 68775 | BH10: ='Alle Livsforløp'!BG12 -> 71274 | BI10: ='Alle Livsforløp'!BH12 -> 73471 | BJ10: ='Alle Livsforløp'!BI12 -> 76143 | BK10: ='Alle Livsforløp'!BJ12 -> 78972 | BL10: ='Alle Livsforløp'!BK12 -> 83486 | BM10: ='Alle Livsforløp'!BL12 -> 87829 | BN10: ='Alle Livsforløp'!BM12 -> 94881
B11: Netto skattefrie overføringer | C11: ='1. Målgruppe'!$L$34 -> 1 | D11: NOK per person per år | E11: 2017 | F11: =INDEX(Forudsetninger!$D$13:$S$13,MATCH('Valgte Livsforløp'!E11,Forudsetninger!$D$12:$S$12,0)) -> 105.5 | G11: ='Alle Livsforløp'!F13 -> 0 | H11: ='Alle Livsforløp'!G13 -> 0 | I11: ='Alle Livsforløp'!H13 -> 0 | J11: ='Alle Livsforløp'!I13 -> 0 | K11: ='Alle Livsforløp'!J13 -> 0 | L11: ='Alle Livsforløp'!K13 -> 0 | M11: ='Alle Livsforløp'!L13 -> 0 | N11: ='Alle Livsforløp'!M13 -> 0 | O11: ='Alle Livsforløp'!N13 -> 0 | P11: ='Alle Livsforløp'!O13 -> 0 | Q11: ='Alle Livsforløp'!P13 -> 0 | R11: ='Alle Livsforløp'!Q13 -> 0 | S11: ='Alle Livsforløp'!R13 -> 0 | T11: ='Alle Livsforløp'!S13 -> 0 | U11: ='Alle Livsforløp'!T13 -> 0 | V11: ='Alle Livsforløp'!U13 -> 0 | W11: ='Alle Livsforløp'!V13 -> 0 | X11: ='Alle Livsforløp'!W13 -> 0 | Y11: ='Alle Livsforløp'!X13 -> 11659 | Z11: ='Alle Livsforløp'!Y13 -> 10356 | AA11: ='Alle Livsforløp'!Z13 -> 14267 | AB11: ='Alle Livsforløp'!AA13 -> 17006 | AC11: ='Alle Livsforløp'!AB13 -> 17860 | AD11: ='Alle Livsforløp'!AC13 -> 16749 | AE11: ='Alle Livsforløp'!AD13 -> 14460 | AF11: ='Alle Livsforløp'!AE13 -> 12467 | AG11: ='Alle Livsforløp'!AF13 -> 10872 | AH11: ='Alle Livsforløp'!AG13 -> 10368 | AI11: ='Alle Livsforløp'!AH13 -> 10222 | AJ11: ='Alle Livsforløp'!AI13 -> 10725 | AK11: ='Alle Livsforløp'!AJ13 -> 11328 | AL11: ='Alle Livsforløp'!AK13 -> 12049 | AM11: ='Alle Livsforløp'!AL13 -> 12616 | AN11: ='Alle Livsforløp'!AM13 -> 13282 | AO11: ='Alle Livsforløp'!AN13 -> 13450 | AP11: ='Alle Livsforløp'!AO13 -> 14087 | AQ11: ='Alle Livsforløp'!AP13 -> 14099 | AR11: ='Alle Livsforløp'!AQ13 -> 14469 | AS11: ='Alle Livsforløp'!AR13 -> 14323 | AT11: ='Alle Livsforløp'!AS13 -> 14299 | AU11: ='Alle Livsforløp'!AT13 -> 14004 | AV11: ='Alle Livsforløp'!AU13 -> 13484 | AW11: ='Alle Livsforløp'!AV13 -> 13175 | AX11: ='Alle Livsforløp'!AW13 -> 12611 | AY11: ='Alle Livsforløp'!AX13 -> 11423 | AZ11: ='Alle Livsforløp'!AY13 -> 10703 | BA11: ='Alle Livsforløp'!AZ13 -> 9595 | BB11: ='Alle Livsforløp'!BA13 -> 8840 | BC11: ='Alle Livsforløp'!BB13 -> 7787 | BD11: ='Alle Livsforløp'!BC13 -> 6780 | BE11: ='Alle Livsforløp'!BD13 -> 5886 | BF11: ='Alle Livsforløp'!BE13 -> 5096 | BG11: ='Alle Livsforløp'!BF13 -> 4487 | BH11: ='Alle Livsforløp'!BG13 -> 3793 | BI11: ='Alle Livsforløp'!BH13 -> 3144 | BJ11: ='Alle Livsforløp'!BI13 -> 2810 | BK11: ='Alle Livsforløp'!BJ13 -> 2444 | BL11: ='Alle Livsforløp'!BK13 -> 2271 | BM11: ='Alle Livsforløp'!BL13 -> 1985 | BN11: ='Alle Livsforløp'!BM13 -> 1784
B12: Sosialhjelp | C12: ='1. Målgruppe'!$L$34 -> 1 | D12: NOK per person per år | E12: 2017 | F12: =INDEX(Forudsetninger!$D$13:$S$13,MATCH('Valgte Livsforløp'!E12,Forudsetninger!$D$12:$S$12,0)) -> 105.5 | G12: ='Alle Livsforløp'!F14 -> 0 | H12: ='Alle Livsforløp'!G14 -> 0 | I12: ='Alle Livsforløp'!H14 -> 0 | J12: ='Alle Livsforløp'!I14 -> 0 | K12: ='Alle Livsforløp'!J14 -> 0 | L12: ='Alle Livsforløp'!K14 -> 0 | M12: ='Alle Livsforløp'!L14 -> 0 | N12: ='Alle Livsforløp'!M14 -> 0 | O12: ='Alle Livsforløp'!N14 -> 0 | P12: ='Alle Livsforløp'!O14 -> 0 | Q12: ='Alle Livsforløp'!P14 -> 0 | R12: ='Alle Livsforløp'!Q14 -> 0 | S12: ='Alle Livsforløp'!R14 -> 0 | T12: ='Alle Livsforløp'!S14 -> 0 | U12: ='Alle Livsforløp'!T14 -> 0 | V12: ='Alle Livsforløp'!U14 -> 0 | W12: ='Alle Livsforløp'!V14 -> 0 | X12: ='Alle Livsforløp'!W14 -> 0 | Y12: ='Alle Livsforløp'!X14 -> 434 | Z12: ='Alle Livsforløp'!Y14 -> 1353 | AA12: ='Alle Livsforløp'!Z14 -> 1917 | AB12: ='Alle Livsforløp'!AA14 -> 2119 | AC12: ='Alle Livsforløp'!AB14 -> 2170 | AD12: ='Alle Livsforløp'!AC14 -> 2072 | AE12: ='Alle Livsforløp'!AD14 -> 2187 | AF12: ='Alle Livsforløp'!AE14 -> 2266 | AG12: ='Alle Livsforløp'!AF14 -> 2096 | AH12: ='Alle Livsforløp'!AG14 -> 2223 | AI12: ='Alle Livsforløp'!AH14 -> 2207 | AJ12: ='Alle Livsforløp'!AI14 -> 2248 | AK12: ='Alle Livsforløp'!AJ14 -> 2294 | AL12: ='Alle Livsforløp'!AK14 -> 2439 | AM12: ='Alle Livsforløp'!AL14 -> 2622 | AN12: ='Alle Livsforløp'!AM14 -> 2467 | AO12: ='Alle Livsforløp'!AN14 -> 2467 | AP12: ='Alle Livsforløp'!AO14 -> 2569 | AQ12: ='Alle Livsforløp'!AP14 -> 2311 | AR12: ='Alle Livsforløp'!AQ14 -> 2750 | AS12: ='Alle Livsforløp'!AR14 -> 2435 | AT12: ='Alle Livsforløp'!AS14 -> 2415 | AU12: ='Alle Livsforløp'!AT14 -> 2471 | AV12: ='Alle Livsforløp'!AU14 -> 2365 | AW12: ='Alle Livsforløp'!AV14 -> 2306 | AX12: ='Alle Livsforløp'!AW14 -> 2275 | AY12: ='Alle Livsforløp'!AX14 -> 2026 | AZ12: ='Alle Livsforløp'!AY14 -> 2086 | BA12: ='Alle Livsforløp'!AZ14 -> 1716 | BB12: ='Alle Livsforløp'!BA14 -> 2044 | BC12: ='Alle Livsforløp'!BB14 -> 1796 | BD12: ='Alle Livsforløp'!BC14 -> 1716 | BE12: ='Alle Livsforløp'!BD14 -> 1652 | BF12: ='Alle Livsforløp'!BE14 -> 1540 | BG12: ='Alle Livsforløp'!BF14 -> 1718 | BH12: ='Alle Livsforløp'!BG14 -> 1490 | BI12: ='Alle Livsforløp'!BH14 -> 1378 | BJ12: ='Alle Livsforløp'!BI14 -> 1323 | BK12: ='Alle Livsforløp'!BJ14 -> 1258 | BL12: ='Alle Livsforløp'!BK14 -> 1328 | BM12: ='Alle Livsforløp'!BL14 -> 1034 | BN12: ='Alle Livsforløp'!BM14 -> 1071
B13: Inntekt
B14: Lønnsinntekt | C14: ='1. Målgruppe'!$L$34 -> 1 | D14: NOK per person per år | E14: 2017 | F14: =INDEX(Forudsetninger!$D$13:$S$13,MATCH('Valgte Livsforløp'!E14,Forudsetninger!$D$12:$S$12,0)) -> 105.5 | G14: ='Alle Livsforløp'!F16 -> 0 | H14: ='Alle Livsforløp'!G16 -> 0 | I14: ='Alle Livsforløp'!H16 -> 0 | J14: ='Alle Livsforløp'!I16 -> 0 | K14: ='Alle Livsforløp'!J16 -> 0 | L14: ='Alle Livsforløp'!K16 -> 0 | M14: ='Alle Livsforløp'!L16 -> 0 | N14: ='Alle Livsforløp'!M16 -> 0 | O14: ='Alle Livsforløp'!N16 -> 0 | P14: ='Alle Livsforløp'!O16 -> 0 | Q14: ='Alle Livsforløp'!P16 -> 0 | R14: ='Alle Livsforløp'!Q16 -> 0 | S14: ='Alle Livsforløp'!R16 -> 0 | T14: ='Alle Livsforløp'!S16 -> 0 | U14: ='Alle Livsforløp'!T16 -> 0 | V14: ='Alle Livsforløp'!U16 -> 0 | W14: ='Alle Livsforløp'!V16 -> 0 | X14: ='Alle Livsforløp'!W16 -> 0 | Y14: ='Alle Livsforløp'!X16 -> 38399 | Z14: ='Alle Livsforløp'!Y16 -> 79516 | AA14: ='Alle Livsforløp'!Z16 -> 115164 | AB14: ='Alle Livsforløp'!AA16 -> 136013 | AC14: ='Alle Livsforløp'!AB16 -> 152952 | AD14: ='Alle Livsforløp'!AC16 -> 180045 | AE14: ='Alle Livsforløp'!AD16 -> 210868 | AF14: ='Alle Livsforløp'!AE16 -> 241642 | AG14: ='Alle Livsforløp'!AF16 -> 273572 | AH14: ='Alle Livsforløp'!AG16 -> 297930 | AI14: ='Alle Livsforløp'!AH16 -> 320481 | AJ14: ='Alle Livsforløp'!AI16 -> 337861 | AK14: ='Alle Livsforløp'!AJ16 -> 351508 | AL14: ='Alle Livsforløp'!AK16 -> 362380 | AM14: ='Alle Livsforløp'!AL16 -> 371088 | AN14: ='Alle Livsforløp'!AM16 -> 378256 | AO14: ='Alle Livsforløp'!AN16 -> 390819 | AP14: ='Alle Livsforløp'!AO16 -> 398253 | AQ14: ='Alle Livsforløp'!AP16 -> 410301 | AR14: ='Alle Livsforløp'!AQ16 -> 417619 | AS14: ='Alle Livsforløp'!AR16 -> 424957 | AT14: ='Alle Livsforløp'!AS16 -> 431853 | AU14: ='Alle Livsforløp'!AT16 -> 441619 | AV14: ='Alle Livsforløp'!AU16 -> 447399 | AW14: ='Alle Livsforløp'!AV16 -> 455200 | AX14: ='Alle Livsforløp'!AW16 -> 458479 | AY14: ='Alle Livsforløp'!AX16 -> 465683 | AZ14: ='Alle Livsforløp'!AY16 -> 469855 | BA14: ='Alle Livsforløp'!AZ16 -> 472016 | BB14: ='Alle Livsforløp'!BA16 -> 467602 | BC14: ='Alle Livsforløp'!BB16 -> 471646 | BD14: ='Alle Livsforløp'!BC16 -> 468064 | BE14: ='Alle Livsforløp'!BD16 -> 466203 | BF14: ='Alle Livsforløp'!BE16 -> 462133 | BG14: ='Alle Livsforløp'!BF16 -> 458908 | BH14: ='Alle Livsforløp'!BG16 -> 455937 | BI14: ='Alle Livsforløp'!BH16 -> 448985 | BJ14: ='Alle Livsforløp'!BI16 -> 442601 | BK14: ='Alle Livsforløp'!BJ16 -> 437613 | BL14: ='Alle Livsforløp'!BK16 -> 427866 | BM14: ='Alle Livsforløp'!BL16 -> 418481 | BN14: ='Alle Livsforløp'!BM16 -> 404144
B15: Kapitalinntekt | C15: ='1. Målgruppe'!$L$34 -> 1 | D15: NOK per person per år | E15: 2017 | F15: =INDEX(Forudsetninger!$D$13:$S$13,MATCH('Valgte Livsforløp'!E15,Forudsetninger!$D$12:$S$12,0)) -> 105.5 | G15: ='Alle Livsforløp'!F17 -> 0 | H15: ='Alle Livsforløp'!G17 -> 0 | I15: ='Alle Livsforløp'!H17 -> 0 | J15: ='Alle Livsforløp'!I17 -> 0 | K15: ='Alle Livsforløp'!J17 -> 0 | L15: ='Alle Livsforløp'!K17 -> 0 | M15: ='Alle Livsforløp'!L17 -> 0 | N15: ='Alle Livsforløp'!M17 -> 0 | O15: ='Alle Livsforløp'!N17 -> 0 | P15: ='Alle Livsforløp'!O17 -> 0 | Q15: ='Alle Livsforløp'!P17 -> 0 | R15: ='Alle Livsforløp'!Q17 -> 0 | S15: ='Alle Livsforløp'!R17 -> 0 | T15: ='Alle Livsforløp'!S17 -> 0 | U15: ='Alle Livsforløp'!T17 -> 0 | V15: ='Alle Livsforløp'!U17 -> 0 | W15: ='Alle Livsforløp'!V17 -> 0 | X15: ='Alle Livsforløp'!W17 -> 0 | Y15: ='Alle Livsforløp'!X17 -> 1632 | Z15: ='Alle Livsforløp'!Y17 -> 1580 | AA15: ='Alle Livsforløp'!Z17 -> 2544 | AB15: ='Alle Livsforløp'!AA17 -> 3196 | AC15: ='Alle Livsforløp'!AB17 -> 3434 | AD15: ='Alle Livsforløp'!AC17 -> 4058 | AE15: ='Alle Livsforløp'!AD17 -> 6534 | AF15: ='Alle Livsforløp'!AE17 -> 4925 | AG15: ='Alle Livsforløp'!AF17 -> 6116 | AH15: ='Alle Livsforløp'!AG17 -> 6887 | AI15: ='Alle Livsforløp'!AH17 -> 8432 | AJ15: ='Alle Livsforløp'!AI17 -> 9239 | AK15: ='Alle Livsforløp'!AJ17 -> 9571 | AL15: ='Alle Livsforløp'!AK17 -> 12267 | AM15: ='Alle Livsforløp'!AL17 -> 12490 | AN15: ='Alle Livsforløp'!AM17 -> 13756 | AO15: ='Alle Livsforløp'!AN17 -> 14358 | AP15: ='Alle Livsforløp'!AO17 -> 16100 | AQ15: ='Alle Livsforløp'!AP17 -> 16436 | AR15: ='Alle Livsforløp'!AQ17 -> 19225 | AS15: ='Alle Livsforløp'!AR17 -> 21062 | AT15: ='Alle Livsforløp'!AS17 -> 19850 | AU15: ='Alle Livsforløp'!AT17 -> 22529 | AV15: ='Alle Livsforløp'!AU17 -> 24342 | AW15: ='Alle Livsforløp'!AV17 -> 24508 | AX15: ='Alle Livsforløp'!AW17 -> 29476 | AY15: ='Alle Livsforløp'!AX17 -> 30921 | AZ15: ='Alle Livsforløp'!AY17 -> 30321 | BA15: ='Alle Livsforløp'!AZ17 -> 28760 | BB15: ='Alle Livsforløp'!BA17 -> 33414 | BC15: ='Alle Livsforløp'!BB17 -> 35988 | BD15: ='Alle Livsforløp'!BC17 -> 36093 | BE15: ='Alle Livsforløp'!BD17 -> 35796 | BF15: ='Alle Livsforløp'!BE17 -> 42624 | BG15: ='Alle Livsforløp'!BF17 -> 39805 | BH15: ='Alle Livsforløp'!BG17 -> 39844 | BI15: ='Alle Livsforløp'!BH17 -> 47790 | BJ15: ='Alle Livsforløp'!BI17 -> 43621 | BK15: ='Alle Livsforløp'!BJ17 -> 43708 | BL15: ='Alle Livsforløp'!BK17 -> 57679 | BM15: ='Alle Livsforløp'!BL17 -> 41225 | BN15: ='Alle Livsforløp'!BM17 -> 50955
B16: Helsetjenester - NPR
B17: Avtalespesialister innen psykisk helsevern og somatikk (AVT) | C17: ='1. Målgruppe'!$L$34 -> 1 | D17: Antall personer benyttet | E17: 2017 | F17: =INDEX(Forudsetninger!$D$13:$S$13,MATCH('Valgte Livsforløp'!E17,Forudsetninger!$D$12:$S$12,0)) -> 105.5 | G17: ='Alle Livsforløp'!F19 -> 0 | H17: ='Alle Livsforløp'!G19 -> 6171.165 | I17: ='Alle Livsforløp'!H19 -> 7304.109 | J17: ='Alle Livsforløp'!I19 -> 7552.062 | K17: ='Alle Livsforløp'!J19 -> 8792.996 | L17: ='Alle Livsforløp'!K19 -> 10130.124 | M17: ='Alle Livsforløp'!L19 -> 9530.704 | N17: ='Alle Livsforløp'!M19 -> 9099.858 | O17: ='Alle Livsforløp'!N19 -> 8206.375 | P17: ='Alle Livsforløp'!O19 -> 7431.875 | Q17: ='Alle Livsforløp'!P19 -> 6813.72 | R17: ='Alle Livsforløp'!Q19 -> 6402.996 | S17: ='Alle Livsforløp'!R19 -> 6006.337 | T17: ='Alle Livsforløp'!S19 -> 5603.85 | U17: ='Alle Livsforløp'!T19 -> 5625.802 | V17: ='Alle Livsforløp'!U19 -> 5894.399 | W17: ='Alle Livsforløp'!V19 -> 6335.118 | X17: ='Alle Livsforløp'!W19 -> 6832.98 | Y17: ='Alle Livsforløp'!X19 -> 6880.545 | Z17: ='Alle Livsforløp'!Y19 -> 6542.275 | AA17: ='Alle Livsforløp'!Z19 -> 6276.27 | AB17: ='Alle Livsforløp'!AA19 -> 6742 | AC17: ='Alle Livsforløp'!AB19 -> 6983.912 | AD17: ='Alle Livsforløp'!AC19 -> 7053.375 | AE17: ='Alle Livsforløp'!AD19 -> 7324.992 | AF17: ='Alle Livsforløp'!AE19 -> 8354.76 | AG17: ='Alle Livsforløp'!AF19 -> 9149.952 | AH17: ='Alle Livsforløp'!AG19 -> 9530.43 | AI17: ='Alle Livsforløp'!AH19 -> 9796.472 | AJ17: ='Alle Livsforløp'!AI19 -> 9919.976 | AK17: ='Alle Livsforløp'!AJ19 -> 9849.262 | AL17: ='Alle Livsforløp'!AK19 -> 9924.6 | AM17: ='Alle Livsforløp'!AL19 -> 9854.349 | AN17: ='Alle Livsforløp'!AM19 -> 10077.065 | AO17: ='Alle Livsforløp'!AN19 -> 9825.122 | AP17: ='Alle Livsforløp'!AO19 -> 10342.388 | AQ17: ='Alle Livsforløp'!AP19 -> 10050.978 | AR17: ='Alle Livsforløp'!AQ19 -> 10491.48 | AS17: ='Alle Livsforløp'!AR19 -> 10358.449 | AT17: ='Alle Livsforløp'!AS19 -> 10496.332 | AU17: ='Alle Livsforløp'!AT19 -> 10366.824 | AV17: ='Alle Livsforløp'!AU19 -> 10979.234 | AW17: ='Alle Livsforløp'!AV19 -> 11408.37 | AX17: ='Alle Livsforløp'!AW19 -> 11893.947 | AY17: ='Alle Livsforløp'!AX19 -> 12238.929 | AZ17: ='Alle Livsforløp'!AY19 -> 12782.315 | BA17: ='Alle Livsforløp'!AZ19 -> 13329.36 | BB17: ='Alle Livsforløp'!BA19 -> 13254.999 | BC17: ='Alle Livsforløp'!BB19 -> 14138.255 | BD17: ='Alle Livsforløp'!BC19 -> 14225.396 | BE17: ='Alle Livsforløp'!BD19 -> 14058.173 | BF17: ='Alle Livsforløp'!BE19 -> 14407.792 | BG17: ='Alle Livsforløp'!BF19 -> 14683.308 | BH17: ='Alle Livsforløp'!BG19 -> 14547.308 | BI17: ='Alle Livsforløp'!BH19 -> 14347.312 | BJ17: ='Alle Livsforløp'!BI19 -> 14365.11 | BK17: ='Alle Livsforløp'!BJ19 -> 14501.984 | BL17: ='Alle Livsforløp'!BK19 -> 14374.8 | BM17: ='Alle Livsforløp'!BL19 -> 14976.08 | BN17: ='Alle Livsforløp'!BM19 -> 15182.036
C18: ='1. Målgruppe'!$L$34 -> 1 | D18: Liggetid pr pasient | E18: 2017 | F18: =INDEX(Forudsetninger!$D$13:$S$13,MATCH('Valgte Livsforløp'!E18,Forudsetninger!$D$12:$S$12,0)) -> 105.5 | G18: ='Alle Livsforløp'!F20 -> 0 | H18: ='Alle Livsforløp'!G20 -> 0 | I18: ='Alle Livsforløp'!H20 -> 0 | J18: ='Alle Livsforløp'!I20 -> 0 | K18: ='Alle Livsforløp'!J20 -> 0 | L18: ='Alle Livsforløp'!K20 -> 0 | M18: ='Alle Livsforløp'!L20 -> 0 | N18: ='Alle Livsforløp'!M20 -> 0 | O18: ='Alle Livsforløp'!N20 -> 0 | P18: ='Alle Livsforløp'!O20 -> 0 | Q18: ='Alle Livsforløp'!P20 -> 0 | R18: ='Alle Livsforløp'!Q20 -> 0 | S18: ='Alle Livsforløp'!R20 -> 0 | T18: ='Alle Livsforløp'!S20 -> 0 | U18: ='Alle Livsforløp'!T20 -> 0 | V18: ='Alle Livsforløp'!U20 -> 0 | W18: ='Alle Livsforløp'!V20 -> 0 | X18: ='Alle Livsforløp'!W20 -> 0 | Y18: ='Alle Livsforløp'!X20 -> 0 | Z18: ='Alle Livsforløp'!Y20 -> 0 | AA18: ='Alle Livsforløp'!Z20 -> 0 | AB18: ='Alle Livsforløp'!AA20 -> 0 | AC18: ='Alle Livsforløp'!AB20 -> 0 | AD18: ='Alle Livsforløp'!AC20 -> 0 | AE18: ='Alle Livsforløp'!AD20 -> 0 | AF18: ='Alle Livsforløp'!AE20 -> 0 | AG18: ='Alle Livsforløp'!AF20 -> 0 | AH18: ='Alle Livsforløp'!AG20 -> 0 | AI18: ='Alle Livsforløp'!AH20 -> 0 | AJ18: ='Alle Livsforløp'!AI20 -> 0 | AK18: ='Alle Livsforløp'!AJ20 -> 0 | AL18: ='Alle Livsforløp'!AK20 -> 0 | AM18: ='Alle Livsforløp'!AL20 -> 0 | AN18: ='Alle Livsforløp'!AM20 -> 0 | AO18: ='Alle Livsforløp'!AN20 -> 0 | AP18: ='Alle Livsforløp'!AO20 -> 0 | AQ18: ='Alle Livsforløp'!AP20 -> 0 | AR18: ='Alle Livsforløp'!AQ20 -> 0 | AS18: ='Alle Livsforløp'!AR20 -> 0 | AT18: ='Alle Livsforløp'!AS20 -> 0 | AU18: ='Alle Livsforløp'!AT20 -> 0 | AV18: ='Alle Livsforløp'!AU20 -> 0 | AW18: ='Alle Livsforløp'!AV20 -> 0 | AX18: ='Alle Livsforløp'!AW20 -> 0 | AY18: ='Alle Livsforløp'!AX20 -> 0 | AZ18: ='Alle Livsforløp'!AY20 -> 0 | BA18: ='Alle Livsforløp'!AZ20 -> 0 | BB18: ='Alle Livsforløp'!BA20 -> 0 | BC18: ='Alle Livsforløp'!BB20 -> 0 | BD18: ='Alle Livsforløp'!BC20 -> 0 | BE18: ='Alle Livsforløp'!BD20 -> 0 | BF18: ='Alle Livsforløp'!BE20 -> 0 | BG18: ='Alle Livsforløp'!BF20 -> 0 | BH18: ='Alle Livsforløp'!BG20 -> 0 | BI18: ='Alle Livsforløp'!BH20 -> 0 | BJ18: ='Alle Livsforløp'!BI20 -> 0 | BK18: ='Alle Livsforløp'!BJ20 -> 0 | BL18: ='Alle Livsforløp'!BK20 -> 0 | BM18: ='Alle Livsforløp'!BL20 -> 0 | BN18: ='Alle Livsforløp'!BM20 -> 0
C19: ='1. Målgruppe'!$L$34 -> 1 | D19: Episoder pr pasient | E19: 2017 | F19: =INDEX(Forudsetninger!$D$13:$S$13,MATCH('Valgte Livsforløp'!E19,Forudsetninger!$D$12:$S$12,0)) -> 105.5 | G19: ='Alle Livsforløp'!F21 -> 0 | H19: ='Alle Livsforløp'!G21 -> 1.894 | I19: ='Alle Livsforløp'!H21 -> 2.018 | J19: ='Alle Livsforløp'!I21 -> 1.954 | K19: ='Alle Livsforløp'!J21 -> 1.851 | L19: ='Alle Livsforløp'!K21 -> 1.864 | M19: ='Alle Livsforløp'!L21 -> 1.802 | N19: ='Alle Livsforløp'!M21 -> 1.8 | O19: ='Alle Livsforløp'!N21 -> 1.922 | P19: ='Alle Livsforløp'!O21 -> 1.969 | Q19: ='Alle Livsforløp'!P21 -> 2 | R19: ='Alle Livsforløp'!Q21 -> 2.096 | S19: ='Alle Livsforløp'!R21 -> 2.176 | T19: ='Alle Livsforløp'!S21 -> 2.248 | U19: ='Alle Livsforløp'!T21 -> 2.347 | V19: ='Alle Livsforløp'!U21 -> 2.41 | W19: ='Alle Livsforløp'!V21 -> 2.362 | X19: ='Alle Livsforløp'!W21 -> 2.523 | Y19: ='Alle Livsforløp'!X21 -> 2.432 | Z19: ='Alle Livsforløp'!Y21 -> 2.282 | AA19: ='Alle Livsforløp'!Z21 -> 2.353 | AB19: ='Alle Livsforløp'!AA21 -> 2.463 | AC19: ='Alle Livsforløp'!AB21 -> 2.664 | AD19: ='Alle Livsforløp'!AC21 -> 2.802 | AE19: ='Alle Livsforløp'!AD21 -> 2.904 | AF19: ='Alle Livsforløp'!AE21 -> 3.027 | AG19: ='Alle Livsforløp'!AF21 -> 3.064 | AH19: ='Alle Livsforløp'!AG21 -> 3.081 | AI19: ='Alle Livsforløp'!AH21 -> 3.118 | AJ19: ='Alle Livsforløp'!AI21 -> 3.327 | AK19: ='Alle Livsforløp'!AJ21 -> 3.286 | AL19: ='Alle Livsforløp'!AK21 -> 3.309 | AM19: ='Alle Livsforløp'!AL21 -> 3.286 | AN19: ='Alle Livsforløp'!AM21 -> 3.397 | AO19: ='Alle Livsforløp'!AN21 -> 3.198 | AP19: ='Alle Livsforløp'!AO21 -> 3.351 | AQ19: ='Alle Livsforløp'!AP21 -> 3.465 | AR19: ='Alle Livsforløp'!AQ21 -> 3.46 | AS19: ='Alle Livsforløp'!AR21 -> 3.267 | AT19: ='Alle Livsforløp'!AS21 -> 3.498 | AU19: ='Alle Livsforløp'!AT21 -> 3.454 | AV19: ='Alle Livsforløp'!AU21 -> 3.301 | AW19: ='Alle Livsforløp'!AV21 -> 3.295 | AX19: ='Alle Livsforløp'!AW21 -> 3.171 | AY19: ='Alle Livsforløp'!AX21 -> 3.051 | AZ19: ='Alle Livsforløp'!AY21 -> 3.044 | BA19: ='Alle Livsforløp'!AZ21 -> 3.143 | BB19: ='Alle Livsforløp'!BA21 -> 2.962 | BC19: ='Alle Livsforløp'!BB21 -> 3.014 | BD19: ='Alle Livsforløp'!BC21 -> 2.974 | BE19: ='Alle Livsforløp'!BD21 -> 2.868 | BF19: ='Alle Livsforløp'!BE21 -> 2.871 | BG19: ='Alle Livsforløp'!BF21 -> 2.77 | BH19: ='Alle Livsforløp'!BG21 -> 2.75 | BI19: ='Alle Livsforløp'!BH21 -> 2.688 | BJ19: ='Alle Livsforløp'!BI21 -> 2.742 | BK19: ='Alle Livsforløp'!BJ21 -> 2.688 | BL19: ='Alle Livsforløp'!BK21 -> 2.626 | BM19: ='Alle Livsforløp'!BL21 -> 2.536 | BN19: ='Alle Livsforløp'!BM21 -> 2.55
B20: Psykisk helsevern for barn og unge (BUP) | C20: ='1. Målgruppe'!$L$34 -> 1 | D20: Antall personer benyttet | E20: 2017 | F20: =INDEX(Forudsetninger!$D$13:$S$13,MATCH('Valgte Livsforløp'!E20,Forudsetninger!$D$12:$S$12,0)) -> 105.5 | G20: ='Alle Livsforløp'!F22 -> 0 | H20: ='Alle Livsforløp'!G22 -> 528.957 | I20: ='Alle Livsforløp'!H22 -> 475.064 | J20: ='Alle Livsforløp'!I22 -> 479.496 | K20: ='Alle Livsforløp'!J22 -> 722.712 | L20: ='Alle Livsforløp'!K22 -> 1180.812 | M20: ='Alle Livsforløp'!L22 -> 1692.954 | N20: ='Alle Livsforløp'!M22 -> 2129.754 | O20: ='Alle Livsforløp'!N22 -> 2888.644 | P20: ='Alle Livsforløp'!O22 -> 3360.5 | Q20: ='Alle Livsforløp'!P22 -> 3596.13 | R20: ='Alle Livsforløp'!Q22 -> 3803.76 | S20: ='Alle Livsforløp'!R22 -> 3653.339 | T20: ='Alle Livsforløp'!S22 -> 3486.84 | U20: ='Alle Livsforløp'!T22 -> 4018.43 | V20: ='Alle Livsforløp'!U22 -> 4800.593 | W20: ='Alle Livsforløp'!V22 -> 5217.156 | X20: ='Alle Livsforløp'!W22 -> 5271.156 | Y20: ='Alle Livsforløp'!X22 -> 3800.682 | Z20: ='Alle Livsforløp'!Y22 -> 971.625 | AA20: ='Alle Livsforløp'!Z22 -> 264.264 | AB20: ='Alle Livsforløp'!AA22 -> 67.42 | AC20: ='Alle Livsforløp'!AB22 -> 67.153 | AD20: ='Alle Livsforløp'!AC22 -> 67.175 | AE20: ='Alle Livsforløp'!AD22 -> 67.824 | AF20: ='Alle Livsforløp'!AE22 -> 69.623 | AG20: ='Alle Livsforløp'!AF22 -> 71.484 | AH20: ='Alle Livsforløp'!AG22 -> 73.311 | AI20: ='Alle Livsforløp'!AH22 -> 73.108 | AJ20: ='Alle Livsforløp'!AI22 -> 72.941 | AK20: ='Alle Livsforløp'!AJ22 -> 70.858 | AL20: ='Alle Livsforløp'!AK22 -> 70.89 | AM20: ='Alle Livsforløp'!AL22 -> 0 | AN20: ='Alle Livsforløp'!AM22 -> 69.497 | AO20: ='Alle Livsforløp'!AN22 -> 69.191 | AP20: ='Alle Livsforløp'!AO22 -> 69.881 | AQ20: ='Alle Livsforløp'!AP22 -> 0 | AR20: ='Alle Livsforløp'!AQ22 -> 0 | AS20: ='Alle Livsforløp'!AR22 -> 0 | AT20: ='Alle Livsforløp'!AS22 -> 0 | AU20: ='Alle Livsforløp'!AT22 -> 0 | AV20: ='Alle Livsforløp'!AU22 -> 0 | AW20: ='Alle Livsforløp'!AV22 -> 0 | AX20: ='Alle Livsforløp'!AW22 -> 0 | AY20: ='Alle Livsforløp'!AX22 -> 0 | AZ20: ='Alle Livsforløp'!AY22 -> 0 | BA20: ='Alle Livsforløp'!AZ22 -> 0 | BB20: ='Alle Livsforløp'!BA22 -> 0 | BC20: ='Alle Livsforløp'!BB22 -> 0 | BD20: ='Alle Livsforløp'!BC22 -> 0 | BE20: ='Alle Livsforløp'!BD22 -> 0 | BF20: ='Alle Livsforløp'!BE22 -> 0 | BG20: ='Alle Livsforløp'!BF22 -> 0 | BH20: ='Alle Livsforløp'!BG22 -> 0 | BI20: ='Alle Livsforløp'!BH22 -> 0 | BJ20: ='Alle Livsforløp'!BI22 -> 0 | BK20: ='Alle Livsforløp'!BJ22 -> 0 | BL20: ='Alle Livsforløp'!BK22 -> 0 | BM20: ='Alle Livsforløp'!BL22 -> 0 | BN20: ='Alle Livsforløp'!BM22 -> 0
C21: ='1. Målgruppe'!$L$34 -> 1 | D21: Liggetid pr pasient | E21: 2017 | F21: =INDEX(Forudsetninger!$D$13:$S$13,MATCH('Valgte Livsforløp'!E21,Forudsetninger!$D$12:$S$12,0)) -> 105.5 | G21: ='Alle Livsforløp'!F23 -> 0 | H21: ='Alle Livsforløp'!G23 -> 0 | I21: ='Alle Livsforløp'!H23 -> 0 | J21: ='Alle Livsforløp'!I23 -> 0 | K21: ='Alle Livsforløp'!J23 -> 0 | L21: ='Alle Livsforløp'!K23 -> 0.001 | M21: ='Alle Livsforløp'!L23 -> 0.001 | N21: ='Alle Livsforløp'!M23 -> 0 | O21: ='Alle Livsforløp'!N23 -> 0.753 | P21: ='Alle Livsforløp'!O23 -> 0.324 | Q21: ='Alle Livsforløp'!P23 -> 0.608 | R21: ='Alle Livsforløp'!Q23 -> 0.574 | S21: ='Alle Livsforløp'!R23 -> 0.605 | T21: ='Alle Livsforløp'!S23 -> 0.317 | U21: ='Alle Livsforløp'!T23 -> 0.001 | V21: ='Alle Livsforløp'!U23 -> 0.001 | W21: ='Alle Livsforløp'!V23 -> 0.071 | X21: ='Alle Livsforløp'!W23 -> 0.001 | Y21: ='Alle Livsforløp'!X23 -> 0.002 | Z21: ='Alle Livsforløp'!Y23 -> 0 | AA21: ='Alle Livsforløp'!Z23 -> 0 | AB21: ='Alle Livsforløp'!AA23 -> 0 | AC21: ='Alle Livsforløp'!AB23 -> 0 | AD21: ='Alle Livsforløp'!AC23 -> 0 | AE21: ='Alle Livsforløp'!AD23 -> 0 | AF21: ='Alle Livsforløp'!AE23 -> 0 | AG21: ='Alle Livsforløp'!AF23 -> 0 | AH21: ='Alle Livsforløp'!AG23 -> 0 | AI21: ='Alle Livsforløp'!AH23 -> 0 | AJ21: ='Alle Livsforløp'!AI23 -> 0 | AK21: ='Alle Livsforløp'!AJ23 -> 0 | AL21: ='Alle Livsforløp'!AK23 -> 0 | AM21: ='Alle Livsforløp'!AL23 -> 0 | AN21: ='Alle Livsforløp'!AM23 -> 0 | AO21: ='Alle Livsforløp'!AN23 -> 0 | AP21: ='Alle Livsforløp'!AO23 -> 0 | AQ21: ='Alle Livsforløp'!AP23 -> 0 | AR21: ='Alle Livsforløp'!AQ23 -> 0 | AS21: ='Alle Livsforløp'!AR23 -> 0 | AT21: ='Alle Livsforløp'!AS23 -> 0 | AU21: ='Alle Livsforløp'!AT23 -> 0 | AV21: ='Alle Livsforløp'!AU23 -> 0 | AW21: ='Alle Livsforløp'!AV23 -> 0 | AX21: ='Alle Livsforløp'!AW23 -> 0 | AY21: ='Alle Livsforløp'!AX23 -> 0 | AZ21: ='Alle Livsforløp'!AY23 -> 0 | BA21: ='Alle Livsforløp'!AZ23 -> 0 | BB21: ='Alle Livsforløp'!BA23 -> 0 | BC21: ='Alle Livsforløp'!BB23 -> 0 | BD21: ='Alle Livsforløp'!BC23 -> 0 | BE21: ='Alle Livsforløp'!BD23 -> 0 | BF21: ='Alle Livsforløp'!BE23 -> 0 | BG21: ='Alle Livsforløp'!BF23 -> 0 | BH21: ='Alle Livsforløp'!BG23 -> 0 | BI21: ='Alle Livsforløp'!BH23 -> 0 | BJ21: ='Alle Livsforløp'!BI23 -> 0 | BK21: ='Alle Livsforløp'!BJ23 -> 0 | BL21: ='Alle Livsforløp'!BK23 -> 0 | BM21: ='Alle Livsforløp'!BL23 -> 0 | BN21: ='Alle Livsforløp'!BM23 -> 0
C22: ='1. Målgruppe'!$L$34 -> 1 | D22: Episoder pr pasient | E22: 2017 | F22: =INDEX(Forudsetninger!$D$13:$S$13,MATCH('Valgte Livsforløp'!E22,Forudsetninger!$D$12:$S$12,0)) -> 105.5 | G22: ='Alle Livsforløp'!F24 -> 0 | H22: ='Alle Livsforløp'!G24 -> 7.349 | I22: ='Alle Livsforløp'!H24 -> 7.077 | J22: ='Alle Livsforløp'!I24 -> 10.96 | K22: ='Alle Livsforløp'!J24 -> 10.885 | L22: ='Alle Livsforløp'!K24 -> 10.708 | M22: ='Alle Livsforløp'!L24 -> 11.674 | N22: ='Alle Livsforløp'!M24 -> 11.595 | O22: ='Alle Livsforløp'!N24 -> 11.964 | P22: ='Alle Livsforløp'!O24 -> 11.717 | Q22: ='Alle Livsforløp'!P24 -> 11.838 | R22: ='Alle Livsforløp'!Q24 -> 11.562 | S22: ='Alle Livsforløp'!R24 -> 11.864 | T22: ='Alle Livsforløp'!S24 -> 11.7 | U22: ='Alle Livsforløp'!T24 -> 13.114 | V22: ='Alle Livsforløp'!U24 -> 15.488 | W22: ='Alle Livsforløp'!V24 -> 15.07 | X22: ='Alle Livsforløp'!W24 -> 14.639 | Y22: ='Alle Livsforløp'!X24 -> 13.223 | Z22: ='Alle Livsforløp'!Y24 -> 9.542 | AA22: ='Alle Livsforløp'!Z24 -> 9.487 | AB22: ='Alle Livsforløp'!AA24 -> 11.29 | AC22: ='Alle Livsforløp'!AB24 -> 9.284 | AD22: ='Alle Livsforløp'!AC24 -> 6.279 | AE22: ='Alle Livsforløp'!AD24 -> 7.222 | AF22: ='Alle Livsforløp'!AE24 -> 6.139 | AG22: ='Alle Livsforløp'!AF24 -> 6.474 | AH22: ='Alle Livsforløp'!AG24 -> 5.079 | AI22: ='Alle Livsforløp'!AH24 -> 5.444 | AJ22: ='Alle Livsforløp'!AI24 -> 5.568 | AK22: ='Alle Livsforløp'!AJ24 -> 5.568 | AL22: ='Alle Livsforløp'!AK24 -> 5.178 | AM22: ='Alle Livsforløp'!AL24 -> 5.269 | AN22: ='Alle Livsforløp'!AM24 -> 5.973 | AO22: ='Alle Livsforløp'!AN24 -> 5.714 | AP22: ='Alle Livsforløp'!AO24 -> 4.795 | AQ22: ='Alle Livsforløp'!AP24 -> 4.111 | AR22: ='Alle Livsforløp'!AQ24 -> 6.097 | AS22: ='Alle Livsforløp'!AR24 -> 5.471 | AT22: ='Alle Livsforløp'!AS24 -> 6 | AU22: ='Alle Livsforløp'!AT24 -> 6.333 | AV22: ='Alle Livsforløp'!AU24 -> 6.071 | AW22: ='Alle Livsforløp'!AV24 -> 6.524 | AX22: ='Alle Livsforløp'!AW24 -> 6.091 | AY22: ='Alle Livsforløp'!AX24 -> 5.25 | AZ22: ='Alle Livsforløp'!AY24 -> 7.5 | BA22: ='Alle Livsforløp'!AZ24 -> 4.375 | BB22: ='Alle Livsforløp'!BA24 -> 7.25 | BC22: ='Alle Livsforløp'!BB24 -> 17.875 | BD22: ='Alle Livsforløp'!BC24 -> 11.833 | BE22: ='Alle Livsforløp'!BD24 -> 11.833 | BF22: ='Alle Livsforløp'!BE24 -> 8.444 | BG22: ='Alle Livsforløp'!BF24 -> 8.444 | BH22: ='Alle Livsforløp'!BG24 -> 4.6 | BI22: ='Alle Livsforløp'!BH24 -> 8.4 | BJ22: ='Alle Livsforløp'!BI24 -> 8.4 | BK22: ='Alle Livsforløp'!BJ24 -> 5.364 | BL22: ='Alle Livsforløp'!BK24 -> 5.364 | BM22: ='Alle Livsforløp'!BL24 -> 7 | BN22: ='Alle Livsforløp'!BM24 -> 7
B23: Psykisk helsevern for voksne (PHV) | C23: ='1. Målgruppe'!$L$34 -> 1 | D23: Antall personer benyttet | E23: 2017 | F23: =INDEX(Forudsetninger!$D$13:$S$13,MATCH('Valgte Livsforløp'!E23,Forudsetninger!$D$12:$S$12,0)) -> 105.5 | G23: ='Alle Livsforløp'!F25 -> 0 | H23: ='Alle Livsforløp'!G25 -> 0 | I23: ='Alle Livsforløp'!H25 -> 0 | J23: ='Alle Livsforløp'!I25 -> 0 | K23: ='Alle Livsforløp'!J25 -> 0 | L23: ='Alle Livsforløp'!K25 -> 0 | M23: ='Alle Livsforløp'!L25 -> 0 | N23: ='Alle Livsforløp'!M25 -> 0 | O23: ='Alle Livsforløp'!N25 -> 0 | P23: ='Alle Livsforløp'!O25 -> 0 | Q23: ='Alle Livsforløp'!P25 -> 0 | R23: ='Alle Livsforløp'!Q25 -> 61.921 | S23: ='Alle Livsforløp'!R25 -> 62.265 | T23: ='Alle Livsforløp'!S25 -> 61.822 | U23: ='Alle Livsforløp'!T25 -> 121.534 | V23: ='Alle Livsforløp'!U25 -> 186.327 | W23: ='Alle Livsforløp'!V25 -> 260.304 | X23: ='Alle Livsforløp'!W25 -> 2293.515 | Y23: ='Alle Livsforløp'!X25 -> 3886.5 | Z23: ='Alle Livsforløp'!Y25 -> 3963.96 | AA23: ='Alle Livsforløp'!Z25 -> 3910.36 | AB23: ='Alle Livsforløp'!AA25 -> 4029.18 | AC23: ='Alle Livsforløp'!AB25 -> 3963.325 | AD23: ='Alle Livsforløp'!AC25 -> 4001.616 | AE23: ='Alle Livsforløp'!AD25 -> 4038.134 | AF23: ='Alle Livsforløp'!AE25 -> 4074.588 | AG23: ='Alle Livsforløp'!AF25 -> 3885.483 | AH23: ='Alle Livsforløp'!AG25 -> 3947.832 | AI23: ='Alle Livsforløp'!AH25 -> 3647.05 | AJ23: ='Alle Livsforløp'!AI25 -> 3472.042 | AK23: ='Alle Livsforløp'!AJ25 -> 3331.83 | AL23: ='Alle Livsforløp'!AK25 -> 3214.894 | AM23: ='Alle Livsforløp'!AL25 -> 3127.365 | AN23: ='Alle Livsforløp'!AM25 -> 2975.213 | AO23: ='Alle Livsforløp'!AN25 -> 3004.883 | AP23: ='Alle Livsforløp'!AO25 -> 2803.334 | AQ23: ='Alle Livsforløp'!AP25 -> 2848.68 | AR23: ='Alle Livsforløp'!AQ25 -> 2743.96 | AS23: ='Alle Livsforløp'!AR25 -> 2726.32 | AT23: ='Alle Livsforløp'!AS25 -> 2458.798 | AU23: ='Alle Livsforløp'!AT25 -> 2454.984 | AV23: ='Alle Livsforløp'!AU25 -> 2589.63 | AW23: ='Alle Livsforløp'!AV25 -> 2480.946 | AX23: ='Alle Livsforløp'!AW25 -> 2565.045 | AY23: ='Alle Livsforløp'!AX25 -> 2495.955 | AZ23: ='Alle Livsforløp'!AY25 -> 2423.52 | BA23: ='Alle Livsforløp'!AZ25 -> 2321.497 | BB23: ='Alle Livsforløp'!BA25 -> 2292.69 | BC23: ='Alle Livsforløp'!BB25 -> 2270.01 | BD23: ='Alle Livsforløp'!BC25 -> 2060.884 | BE23: ='Alle Livsforløp'!BD25 -> 2047.808 | BF23: ='Alle Livsforløp'!BE25 -> 1943.379 | BG23: ='Alle Livsforløp'!BF25 -> 1765.45 | BH23: ='Alle Livsforløp'!BG25 -> 1624.224 | BI23: ='Alle Livsforløp'!BH25 -> 1515.585 | BJ23: ='Alle Livsforløp'!BI25 -> 1424.302 | BK23: ='Alle Livsforløp'!BJ25 -> 1341.648 | BL23: ='Alle Livsforløp'!BK25 -> 1210.832 | BM23: ='Alle Livsforløp'!BL25 -> 1259.92 | BN23: ='Alle Livsforløp'!BM25 -> 1105.83
C24: ='1. Målgruppe'!$L$34 -> 1 | D24: Liggetid pr pasient | E24: 2017 | F24: =INDEX(Forudsetninger!$D$13:$S$13,MATCH('Valgte Livsforløp'!E24,Forudsetninger!$D$12:$S$12,0)) -> 105.5 | G24: ='Alle Livsforløp'!F26 -> 0 | H24: ='Alle Livsforløp'!G26 -> 0 | I24: ='Alle Livsforløp'!H26 -> 0 | J24: ='Alle Livsforløp'!I26 -> 0 | K24: ='Alle Livsforløp'!J26 -> 0 | L24: ='Alle Livsforløp'!K26 -> 0 | M24: ='Alle Livsforløp'!L26 -> 0 | N24: ='Alle Livsforløp'!M26 -> 0 | O24: ='Alle Livsforløp'!N26 -> 0 | P24: ='Alle Livsforløp'!O26 -> 0 | Q24: ='Alle Livsforløp'!P26 -> 0 | R24: ='Alle Livsforløp'!Q26 -> 0 | S24: ='Alle Livsforløp'!R26 -> 0 | T24: ='Alle Livsforløp'!S26 -> 0 | U24: ='Alle Livsforløp'!T26 -> 0 | V24: ='Alle Livsforløp'!U26 -> 0 | W24: ='Alle Livsforløp'!V26 -> 0.031 | X24: ='Alle Livsforløp'!W26 -> 0 | Y24: ='Alle Livsforløp'!X26 -> 0 | Z24: ='Alle Livsforløp'!Y26 -> 0.002 | AA24: ='Alle Livsforløp'!Z26 -> 0.001 | AB24: ='Alle Livsforløp'!AA26 -> 0 | AC24: ='Alle Livsforløp'!AB26 -> 0 | AD24: ='Alle Livsforløp'!AC26 -> 0 | AE24: ='Alle Livsforløp'!AD26 -> 0 | AF24: ='Alle Livsforløp'!AE26 -> 0 | AG24: ='Alle Livsforløp'!AF26 -> 0.001 | AH24: ='Alle Livsforløp'!AG26 -> 0 | AI24: ='Alle Livsforløp'!AH26 -> 0 | AJ24: ='Alle Livsforløp'!AI26 -> 0 | AK24: ='Alle Livsforløp'!AJ26 -> 0 | AL24: ='Alle Livsforløp'!AK26 -> 0 | AM24: ='Alle Livsforløp'!AL26 -> 0 | AN24: ='Alle Livsforløp'!AM26 -> 0 | AO24: ='Alle Livsforløp'!AN26 -> 0 | AP24: ='Alle Livsforløp'!AO26 -> 0 | AQ24: ='Alle Livsforløp'!AP26 -> 0 | AR24: ='Alle Livsforløp'!AQ26 -> 0 | AS24: ='Alle Livsforløp'!AR26 -> 0.134 | AT24: ='Alle Livsforløp'!AS26 -> 0 | AU24: ='Alle Livsforløp'!AT26 -> 0 | AV24: ='Alle Livsforløp'!AU26 -> 0 | AW24: ='Alle Livsforløp'!AV26 -> 0 | AX24: ='Alle Livsforløp'!AW26 -> 0 | AY24: ='Alle Livsforløp'!AX26 -> 0 | AZ24: ='Alle Livsforløp'!AY26 -> 0 | BA24: ='Alle Livsforløp'!AZ26 -> 0 | BB24: ='Alle Livsforløp'!BA26 -> 0 | BC24: ='Alle Livsforløp'!BB26 -> 0 | BD24: ='Alle Livsforløp'!BC26 -> 0 | BE24: ='Alle Livsforløp'!BD26 -> 0 | BF24: ='Alle Livsforløp'!BE26 -> 0 | BG24: ='Alle Livsforløp'!BF26 -> 0 | BH24: ='Alle Livsforløp'!BG26 -> 0.001 | BI24: ='Alle Livsforløp'!BH26 -> 0 | BJ24: ='Alle Livsforløp'!BI26 -> 0.001 | BK24: ='Alle Livsforløp'!BJ26 -> 0 | BL24: ='Alle Livsforløp'!BK26 -> 0.001 | BM24: ='Alle Livsforløp'!BL26 -> 0 | BN24: ='Alle Livsforløp'!BM26 -> 0
C25: ='1. Målgruppe'!$L$34 -> 1 | D25: Episoder pr pasient | E25: 2017 | F25: =INDEX(Forudsetninger!$D$13:$S$13,MATCH('Valgte Livsforløp'!E25,Forudsetninger!$D$12:$S$12,0)) -> 105.5 | G25: ='Alle Livsforløp'!F27 -> 0 | H25: ='Alle Livsforløp'!G27 -> 0 | I25: ='Alle Livsforløp'!H27 -> 3 | J25: ='Alle Livsforløp'!I27 -> 3 | K25: ='Alle Livsforløp'!J27 -> 3 | L25: ='Alle Livsforløp'!K27 -> 4.857 | M25: ='Alle Livsforløp'!L27 -> 4.625 | N25: ='Alle Livsforløp'!M27 -> 4.133 | O25: ='Alle Livsforløp'!N27 -> 5.92 | P25: ='Alle Livsforløp'!O27 -> 4.875 | Q25: ='Alle Livsforløp'!P27 -> 4.458 | R25: ='Alle Livsforløp'!Q27 -> 5.813 | S25: ='Alle Livsforløp'!R27 -> 4.385 | T25: ='Alle Livsforløp'!S27 -> 3.906 | U25: ='Alle Livsforløp'!T27 -> 5.482 | V25: ='Alle Livsforløp'!U27 -> 6.612 | W25: ='Alle Livsforløp'!V27 -> 6.514 | X25: ='Alle Livsforløp'!W27 -> 7.405 | Y25: ='Alle Livsforløp'!X27 -> 10.73 | Z25: ='Alle Livsforløp'!Y27 -> 10.97 | AA25: ='Alle Livsforløp'!Z27 -> 11.398 | AB25: ='Alle Livsforløp'!AA27 -> 11.928 | AC25: ='Alle Livsforløp'!AB27 -> 12.121 | AD25: ='Alle Livsforløp'!AC27 -> 11.992 | AE25: ='Alle Livsforløp'!AD27 -> 11.88 | AF25: ='Alle Livsforløp'!AE27 -> 12.059 | AG25: ='Alle Livsforløp'!AF27 -> 12.388 | AH25: ='Alle Livsforløp'!AG27 -> 13.119 | AI25: ='Alle Livsforløp'!AH27 -> 12.093 | AJ25: ='Alle Livsforløp'!AI27 -> 12.037 | AK25: ='Alle Livsforløp'!AJ27 -> 12.212 | AL25: ='Alle Livsforløp'!AK27 -> 12.44 | AM25: ='Alle Livsforløp'!AL27 -> 11.736 | AN25: ='Alle Livsforløp'!AM27 -> 12.169 | AO25: ='Alle Livsforløp'!AN27 -> 11.856 | AP25: ='Alle Livsforløp'!AO27 -> 12.081 | AQ25: ='Alle Livsforløp'!AP27 -> 12.175 | AR25: ='Alle Livsforløp'!AQ27 -> 12.245 | AS25: ='Alle Livsforløp'!AR27 -> 11.569 | AT25: ='Alle Livsforløp'!AS27 -> 12.214 | AU25: ='Alle Livsforløp'!AT27 -> 11.946 | AV25: ='Alle Livsforløp'!AU27 -> 12.399 | AW25: ='Alle Livsforløp'!AV27 -> 11.51 | AX25: ='Alle Livsforløp'!AW27 -> 11.649 | AY25: ='Alle Livsforløp'!AX27 -> 11.714 | AZ25: ='Alle Livsforløp'!AY27 -> 11.362 | BA25: ='Alle Livsforløp'!AZ27 -> 11.673 | BB25: ='Alle Livsforløp'!BA27 -> 11.349 | BC25: ='Alle Livsforløp'!BB27 -> 11.952 | BD25: ='Alle Livsforløp'!BC27 -> 11.386 | BE25: ='Alle Livsforløp'!BD27 -> 11.287 | BF25: ='Alle Livsforløp'!BE27 -> 10.478 | BG25: ='Alle Livsforløp'!BF27 -> 10.694 | BH25: ='Alle Livsforløp'!BG27 -> 10.367 | BI25: ='Alle Livsforløp'!BH27 -> 10.592 | BJ25: ='Alle Livsforløp'!BI27 -> 10.282 | BK25: ='Alle Livsforløp'!BJ27 -> 10.155 | BL25: ='Alle Livsforløp'!BK27 -> 9.36 | BM25: ='Alle Livsforløp'!BL27 -> 9.586 | BN25: ='Alle Livsforløp'!BM27 -> 8.905
B26: Somatiske sykehus (SOM) | C26: ='1. Målgruppe'!$L$34 -> 1 | D26: Antall personer benyttet | E26: 2017 | F26: =INDEX(Forudsetninger!$D$13:$S$13,MATCH('Valgte Livsforløp'!E26,Forudsetninger!$D$12:$S$12,0)) -> 105.5 | G26: ='Alle Livsforløp'!F28 -> 0 | H26: ='Alle Livsforløp'!G28 -> 17396.808 | I26: ='Alle Livsforløp'!H28 -> 15736.495 | J26: ='Alle Livsforløp'!I28 -> 14984.25 | K26: ='Alle Livsforløp'!J28 -> 14333.788 | L26: ='Alle Livsforløp'!K28 -> 14480.484 | M26: ='Alle Livsforløp'!L28 -> 14421.46 | N26: ='Alle Livsforløp'!M28 -> 13811.132 | O26: ='Alle Livsforløp'!N28 -> 13786.71 | P26: ='Alle Livsforløp'!O28 -> 13700.5 | Q26: ='Alle Livsforløp'!P28 -> 13879.8 | R26: ='Alle Livsforløp'!Q28 -> 14581.08 | S26: ='Alle Livsforløp'!R28 -> 14613.356 | T26: ='Alle Livsforløp'!S28 -> 14570.01 | U26: ='Alle Livsforløp'!T28 -> 14589.992 | V26: ='Alle Livsforløp'!U28 -> 14766.381 | W26: ='Alle Livsforløp'!V28 -> 15278.814 | X26: ='Alle Livsforløp'!W28 -> 15813.468 | Y26: ='Alle Livsforløp'!X28 -> 15923.547 | Z26: ='Alle Livsforløp'!Y28 -> 15481.225 | AA26: ='Alle Livsforløp'!Z28 -> 15855.84 | AB26: ='Alle Livsforløp'!AA28 -> 16787.58 | AC26: ='Alle Livsforløp'!AB28 -> 16721.097 | AD26: ='Alle Livsforløp'!AC28 -> 17532.675 | AE26: ='Alle Livsforløp'!AD28 -> 17973.36 | AF26: ='Alle Livsforløp'!AE28 -> 19355.194 | AG26: ='Alle Livsforløp'!AF28 -> 21087.78 | AH26: ='Alle Livsforløp'!AG28 -> 22286.544 | AI26: ='Alle Livsforløp'!AH28 -> 22444.156 | AJ26: ='Alle Livsforløp'!AI28 -> 22976.415 | AK26: ='Alle Livsforløp'!AJ28 -> 22957.992 | AL26: ='Alle Livsforløp'!AK28 -> 22684.8 | AM26: ='Alle Livsforløp'!AL28 -> 22504.258 | AN26: ='Alle Livsforløp'!AM28 -> 22030.549 | AO26: ='Alle Livsforløp'!AN28 -> 21587.592 | AP26: ='Alle Livsforløp'!AO28 -> 21593.229 | AQ26: ='Alle Livsforløp'!AP28 -> 20580.574 | AR26: ='Alle Livsforløp'!AQ28 -> 20566.08 | AS26: ='Alle Livsforløp'!AR28 -> 20305.304 | AT26: ='Alle Livsforløp'!AS28 -> 19902.136 | AU26: ='Alle Livsforløp'!AT28 -> 19537.476 | AV26: ='Alle Livsforløp'!AU28 -> 19980.842 | AW26: ='Alle Livsforløp'!AV28 -> 20437.08 | AX26: ='Alle Livsforløp'!AW28 -> 21525.855 | AY26: ='Alle Livsforløp'!AX28 -> 21766.239 | AZ26: ='Alle Livsforløp'!AY28 -> 22766.135 | BA26: ='Alle Livsforløp'!AZ28 -> 23250.645 | BB26: ='Alle Livsforløp'!BA28 -> 23214.97 | BC26: ='Alle Livsforløp'!BB28 -> 24378.937 | BD26: ='Alle Livsforløp'!BC28 -> 24516.108 | BE26: ='Alle Livsforløp'!BD28 -> 24288.99 | BF26: ='Alle Livsforløp'!BE28 -> 24866.24 | BG26: ='Alle Livsforløp'!BF28 -> 24904.042 | BH26: ='Alle Livsforløp'!BG28 -> 24716.3 | BI26: ='Alle Livsforløp'!BH28 -> 23957.304 | BJ26: ='Alle Livsforløp'!BI28 -> 23722.2 | BK26: ='Alle Livsforløp'!BJ28 -> 23824.688 | BL26: ='Alle Livsforløp'!BK28 -> 23702.448 | BM26: ='Alle Livsforløp'!BL28 -> 24280.368 | BN26: ='Alle Livsforløp'!BM28 -> 24442.448
C27: ='1. Målgruppe'!$L$34 -> 1 | D27: Liggetid pr pasient | E27: 2017 | F27: =INDEX(Forudsetninger!$D$13:$S$13,MATCH('Valgte Livsforløp'!E27,Forudsetninger!$D$12:$S$12,0)) -> 105.5 | G27: ='Alle Livsforløp'!F29 -> 0 | H27: ='Alle Livsforløp'!G29 -> 0.02 | I27: ='Alle Livsforløp'!H29 -> 0.014 | J27: ='Alle Livsforløp'!I29 -> 0.012 | K27: ='Alle Livsforløp'!J29 -> 0.009 | L27: ='Alle Livsforløp'!K29 -> 0.009 | M27: ='Alle Livsforløp'!L29 -> 0.007 | N27: ='Alle Livsforløp'!M29 -> 0.007 | O27: ='Alle Livsforløp'!N29 -> 0.008 | P27: ='Alle Livsforløp'!O29 -> 0.01 | Q27: ='Alle Livsforløp'!P29 -> 0.012 | R27: ='Alle Livsforløp'!Q29 -> 0.015 | S27: ='Alle Livsforløp'!R29 -> 0.016 | T27: ='Alle Livsforløp'!S29 -> 0.017 | U27: ='Alle Livsforløp'!T29 -> 0.02 | V27: ='Alle Livsforløp'!U29 -> 0.02 | W27: ='Alle Livsforløp'!V29 -> 0.021 | X27: ='Alle Livsforløp'!W29 -> 0.02 | Y27: ='Alle Livsforløp'!X29 -> 0.019 | Z27: ='Alle Livsforløp'!Y29 -> 0.021 | AA27: ='Alle Livsforløp'!Z29 -> 0.023 | AB27: ='Alle Livsforløp'!AA29 -> 0.022 | AC27: ='Alle Livsforløp'!AB29 -> 0.019 | AD27: ='Alle Livsforløp'!AC29 -> 0.018 | AE27: ='Alle Livsforløp'!AD29 -> 0.018 | AF27: ='Alle Livsforløp'!AE29 -> 0.016 | AG27: ='Alle Livsforløp'!AF29 -> 0.017 | AH27: ='Alle Livsforløp'!AG29 -> 0.015 | AI27: ='Alle Livsforløp'!AH29 -> 0.016 | AJ27: ='Alle Livsforløp'!AI29 -> 0.014 | AK27: ='Alle Livsforløp'!AJ29 -> 0.014 | AL27: ='Alle Livsforløp'!AK29 -> 0.015 | AM27: ='Alle Livsforløp'!AL29 -> 0.013 | AN27: ='Alle Livsforløp'!AM29 -> 0.013 | AO27: ='Alle Livsforløp'!AN29 -> 0.012 | AP27: ='Alle Livsforløp'!AO29 -> 0.012 | AQ27: ='Alle Livsforløp'!AP29 -> 0.013 | AR27: ='Alle Livsforløp'!AQ29 -> 0.012 | AS27: ='Alle Livsforløp'!AR29 -> 0.01 | AT27: ='Alle Livsforløp'!AS29 -> 0.009 | AU27: ='Alle Livsforløp'!AT29 -> 0.009 | AV27: ='Alle Livsforløp'!AU29 -> 0.01 | AW27: ='Alle Livsforløp'!AV29 -> 0.01 | AX27: ='Alle Livsforløp'!AW29 -> 0.01 | AY27: ='Alle Livsforløp'!AX29 -> 0.009 | AZ27: ='Alle Livsforløp'!AY29 -> 0.01 | BA27: ='Alle Livsforløp'!AZ29 -> 0.008 | BB27: ='Alle Livsforløp'!BA29 -> 0.008 | BC27: ='Alle Livsforløp'!BB29 -> 0.008 | BD27: ='Alle Livsforløp'!BC29 -> 0.008 | BE27: ='Alle Livsforløp'!BD29 -> 0.008 | BF27: ='Alle Livsforløp'!BE29 -> 0.008 | BG27: ='Alle Livsforløp'!BF29 -> 0.009 | BH27: ='Alle Livsforløp'!BG29 -> 0.007 | BI27: ='Alle Livsforløp'!BH29 -> 0.007 | BJ27: ='Alle Livsforløp'!BI29 -> 0.008 | BK27: ='Alle Livsforløp'!BJ29 -> 0.007 | BL27: ='Alle Livsforløp'!BK29 -> 0.007 | BM27: ='Alle Livsforløp'!BL29 -> 0.007 | BN27: ='Alle Livsforløp'!BM29 -> 0.006
C28: ='1. Målgruppe'!$L$34 -> 1 | D28: Episoder pr pasient | E28: 2017 | F28: =INDEX(Forudsetninger!$D$13:$S$13,MATCH('Valgte Livsforløp'!E28,Forudsetninger!$D$12:$S$12,0)) -> 105.5 | G28: ='Alle Livsforløp'!F30 -> 0 | H28: ='Alle Livsforløp'!G30 -> 2.48 | I28: ='Alle Livsforløp'!H30 -> 2.388 | J28: ='Alle Livsforløp'!I30 -> 2.4 | K28: ='Alle Livsforløp'!J30 -> 2.446 | L28: ='Alle Livsforløp'!K30 -> 2.471 | M28: ='Alle Livsforløp'!L30 -> 2.484 | N28: ='Alle Livsforløp'!M30 -> 2.412 | O28: ='Alle Livsforløp'!N30 -> 2.414 | P28: ='Alle Livsforløp'!O30 -> 2.401 | Q28: ='Alle Livsforløp'!P30 -> 2.408 | R28: ='Alle Livsforløp'!Q30 -> 2.504 | S28: ='Alle Livsforløp'!R30 -> 2.481 | T28: ='Alle Livsforløp'!S30 -> 2.562 | U28: ='Alle Livsforløp'!T30 -> 2.584 | V28: ='Alle Livsforløp'!U30 -> 2.582 | W28: ='Alle Livsforløp'!V30 -> 2.621 | X28: ='Alle Livsforløp'!W30 -> 2.565 | Y28: ='Alle Livsforløp'!X30 -> 2.565 | Z28: ='Alle Livsforløp'!Y30 -> 2.588 | AA28: ='Alle Livsforløp'!Z30 -> 2.663 | AB28: ='Alle Livsforløp'!AA30 -> 2.626 | AC28: ='Alle Livsforløp'!AB30 -> 2.666 | AD28: ='Alle Livsforløp'!AC30 -> 2.753 | AE28: ='Alle Livsforløp'!AD30 -> 2.854 | AF28: ='Alle Livsforløp'!AE30 -> 2.893 | AG28: ='Alle Livsforløp'!AF30 -> 2.97 | AH28: ='Alle Livsforløp'!AG30 -> 2.999 | AI28: ='Alle Livsforløp'!AH30 -> 3.128 | AJ28: ='Alle Livsforløp'!AI30 -> 3.205 | AK28: ='Alle Livsforløp'!AJ30 -> 3.203 | AL28: ='Alle Livsforløp'!AK30 -> 3.243 | AM28: ='Alle Livsforløp'!AL30 -> 3.217 | AN28: ='Alle Livsforløp'!AM30 -> 3.204 | AO28: ='Alle Livsforløp'!AN30 -> 3.297 | AP28: ='Alle Livsforløp'!AO30 -> 3.256 | AQ28: ='Alle Livsforløp'!AP30 -> 3.272 | AR28: ='Alle Livsforløp'!AQ30 -> 3.188 | AS28: ='Alle Livsforløp'!AR30 -> 3.302 | AT28: ='Alle Livsforløp'!AS30 -> 3.256 | AU28: ='Alle Livsforløp'!AT30 -> 3.246 | AV28: ='Alle Livsforløp'!AU30 -> 3.191 | AW28: ='Alle Livsforløp'!AV30 -> 3.188 | AX28: ='Alle Livsforløp'!AW30 -> 3.141 | AY28: ='Alle Livsforløp'!AX30 -> 3.19 | AZ28: ='Alle Livsforløp'!AY30 -> 3.235 | BA28: ='Alle Livsforløp'!AZ30 -> 3.288 | BB28: ='Alle Livsforløp'!BA30 -> 3.282 | BC28: ='Alle Livsforløp'!BB30 -> 3.328 | BD28: ='Alle Livsforløp'!BC30 -> 3.33 | BE28: ='Alle Livsforløp'!BD30 -> 3.415 | BF28: ='Alle Livsforløp'!BE30 -> 3.446 | BG28: ='Alle Livsforløp'!BF30 -> 3.441 | BH28: ='Alle Livsforløp'!BG30 -> 3.455 | BI28: ='Alle Livsforløp'!BH30 -> 3.496 | BJ28: ='Alle Livsforløp'!BI30 -> 3.583 | BK28: ='Alle Livsforløp'!BJ30 -> 3.606 | BL28: ='Alle Livsforløp'!BK30 -> 3.596 | BM28: ='Alle Livsforløp'!BL30 -> 3.626 | BN28: ='Alle Livsforløp'!BM30 -> 3.656
B29: Tverrfaglig spesialisert rusbehandling (TSB) | C29: ='1. Målgruppe'!$L$34 -> 1 | D29: Antall personer benyttet | E29: 2017 | F29: =INDEX(Forudsetninger!$D$13:$S$13,MATCH('Valgte Livsforløp'!E29,Forudsetninger!$D$12:$S$12,0)) -> 105.5 | G29: ='Alle Livsforløp'!F31 -> 0 | H29: ='Alle Livsforløp'!G31 -> 0 | I29: ='Alle Livsforløp'!H31 -> 0 | J29: ='Alle Livsforløp'!I31 -> 0 | K29: ='Alle Livsforløp'!J31 -> 0 | L29: ='Alle Livsforløp'!K31 -> 0 | M29: ='Alle Livsforløp'!L31 -> 0 | N29: ='Alle Livsforløp'!M31 -> 0 | O29: ='Alle Livsforløp'!N31 -> 0 | P29: ='Alle Livsforløp'!O31 -> 0 | Q29: ='Alle Livsforløp'!P31 -> 0 | R29: ='Alle Livsforløp'!Q31 -> 0 | S29: ='Alle Livsforløp'!R31 -> 0 | T29: ='Alle Livsforløp'!S31 -> 0 | U29: ='Alle Livsforløp'!T31 -> 0 | V29: ='Alle Livsforløp'!U31 -> 0 | W29: ='Alle Livsforløp'!V31 -> 0 | X29: ='Alle Livsforløp'!W31 -> 65.076 | Y29: ='Alle Livsforløp'!X31 -> 196.587 | Z29: ='Alle Livsforløp'!Y31 -> 259.1 | AA29: ='Alle Livsforløp'!Z31 -> 396.396 | AB29: ='Alle Livsforløp'!AA31 -> 471.94 | AC29: ='Alle Livsforløp'!AB31 -> 537.224 | AD29: ='Alle Livsforløp'!AC31 -> 604.575 | AE29: ='Alle Livsforløp'!AD31 -> 610.416 | AF29: ='Alle Livsforløp'!AE31 -> 696.23 | AG29: ='Alle Livsforløp'!AF31 -> 714.84 | AH29: ='Alle Livsforløp'!AG31 -> 806.421 | AI29: ='Alle Livsforløp'!AH31 -> 731.08 | AJ29: ='Alle Livsforløp'!AI31 -> 729.41 | AK29: ='Alle Livsforløp'!AJ31 -> 708.58 | AL29: ='Alle Livsforløp'!AK31 -> 708.9 | AM29: ='Alle Livsforløp'!AL31 -> 768.779 | AN29: ='Alle Livsforløp'!AM31 -> 764.467 | AO29: ='Alle Livsforløp'!AN31 -> 691.91 | AP29: ='Alle Livsforløp'!AO31 -> 768.691 | AQ29: ='Alle Livsforløp'!AP31 -> 683.74 | AR29: ='Alle Livsforløp'!AQ31 -> 764.28 | AS29: ='Alle Livsforløp'!AR31 -> 685.99 | AT29: ='Alle Livsforløp'!AS31 -> 681.58 | AU29: ='Alle Livsforløp'!AT31 -> 598.086 | AV29: ='Alle Livsforløp'!AU31 -> 613.746 | AW29: ='Alle Livsforløp'!AV31 -> 629.91 | AX29: ='Alle Livsforløp'!AW31 -> 656.721 | AY29: ='Alle Livsforløp'!AX31 -> 659.583 | AZ29: ='Alle Livsforløp'!AY31 -> 680.715 | BA29: ='Alle Livsforløp'!AZ31 -> 681.615 | BB29: ='Alle Livsforløp'!BA31 -> 673.983 | BC29: ='Alle Livsforløp'!BB31 -> 687.807 | BD29: ='Alle Livsforløp'!BC31 -> 681.003 | BE29: ='Alle Livsforløp'!BD31 -> 588.824 | BF29: ='Alle Livsforløp'!BE31 -> 658.224 | BG29: ='Alle Livsforløp'!BF31 -> 647.793 | BH29: ='Alle Livsforløp'!BG31 -> 564.944 | BI29: ='Alle Livsforløp'!BH31 -> 541.408 | BJ29: ='Alle Livsforløp'!BI31 -> 461.265 | BK29: ='Alle Livsforløp'!BJ31 -> 453.187 | BL29: ='Alle Livsforløp'!BK31 -> 447.216 | BM29: ='Alle Livsforløp'!BL31 -> 446.096 | BN29: ='Alle Livsforløp'!BM31 -> 377.976
C30: ='1. Målgruppe'!$L$34 -> 1 | D30: Liggetid pr pasient | E30: 2017 | F30: =INDEX(Forudsetninger!$D$13:$S$13,MATCH('Valgte Livsforløp'!E30,Forudsetninger!$D$12:$S$12,0)) -> 105.5 | G30: ='Alle Livsforløp'!F32 -> 0 | H30: ='Alle Livsforløp'!G32 -> 0 | I30: ='Alle Livsforløp'!H32 -> 0 | J30: ='Alle Livsforløp'!I32 -> 0 | K30: ='Alle Livsforløp'!J32 -> 0 | L30: ='Alle Livsforløp'!K32 -> 0 | M30: ='Alle Livsforløp'!L32 -> 0 | N30: ='Alle Livsforløp'!M32 -> 0 | O30: ='Alle Livsforløp'!N32 -> 0 | P30: ='Alle Livsforløp'!O32 -> 0 | Q30: ='Alle Livsforløp'!P32 -> 0 | R30: ='Alle Livsforløp'!Q32 -> 0 | S30: ='Alle Livsforløp'!R32 -> 0 | T30: ='Alle Livsforløp'!S32 -> 0 | U30: ='Alle Livsforløp'!T32 -> 0 | V30: ='Alle Livsforløp'!U32 -> 0 | W30: ='Alle Livsforløp'!V32 -> 0 | X30: ='Alle Livsforløp'!W32 -> 0 | Y30: ='Alle Livsforløp'!X32 -> 0 | Z30: ='Alle Livsforløp'!Y32 -> 0 | AA30: ='Alle Livsforløp'!Z32 -> 0 | AB30: ='Alle Livsforløp'!AA32 -> 0 | AC30: ='Alle Livsforløp'!AB32 -> 0 | AD30: ='Alle Livsforløp'!AC32 -> 0 | AE30: ='Alle Livsforløp'!AD32 -> 0 | AF30: ='Alle Livsforløp'!AE32 -> 0.021 | AG30: ='Alle Livsforløp'!AF32 -> 0 | AH30: ='Alle Livsforløp'!AG32 -> 0 | AI30: ='Alle Livsforløp'!AH32 -> 0 | AJ30: ='Alle Livsforløp'!AI32 -> 0 | AK30: ='Alle Livsforløp'!AJ32 -> 0 | AL30: ='Alle Livsforløp'!AK32 -> 0 | AM30: ='Alle Livsforløp'!AL32 -> 0 | AN30: ='Alle Livsforløp'!AM32 -> 0 | AO30: ='Alle Livsforløp'!AN32 -> 0 | AP30: ='Alle Livsforløp'!AO32 -> 0 | AQ30: ='Alle Livsforløp'!AP32 -> 0 | AR30: ='Alle Livsforløp'!AQ32 -> 0 | AS30: ='Alle Livsforløp'!AR32 -> 0 | AT30: ='Alle Livsforløp'!AS32 -> 0.001 | AU30: ='Alle Livsforløp'!AT32 -> 0 | AV30: ='Alle Livsforløp'!AU32 -> 0 | AW30: ='Alle Livsforløp'!AV32 -> 0 | AX30: ='Alle Livsforløp'!AW32 -> 0 | AY30: ='Alle Livsforløp'!AX32 -> 0 | AZ30: ='Alle Livsforløp'!AY32 -> 0 | BA30: ='Alle Livsforløp'!AZ32 -> 0 | BB30: ='Alle Livsforløp'!BA32 -> 0 | BC30: ='Alle Livsforløp'!BB32 -> 0 | BD30: ='Alle Livsforløp'!BC32 -> 0 | BE30: ='Alle Livsforløp'!BD32 -> 0 | BF30: ='Alle Livsforløp'!BE32 -> 0 | BG30: ='Alle Livsforløp'!BF32 -> 0 | BH30: ='Alle Livsforløp'!BG32 -> 0 | BI30: ='Alle Livsforløp'!BH32 -> 0 | BJ30: ='Alle Livsforløp'!BI32 -> 0 | BK30: ='Alle Livsforløp'!BJ32 -> 0 | BL30: ='Alle Livsforløp'!BK32 -> 0 | BM30: ='Alle Livsforløp'!BL32 -> 0 | BN30: ='Alle Livsforløp'!BM32 -> 0
C31: ='1. Målgruppe'!$L$34 -> 1 | D31: Episoder pr pasient | E31: 2017 | F31: =INDEX(Forudsetninger!$D$13:$S$13,MATCH('Valgte Livsforløp'!E31,Forudsetninger!$D$12:$S$12,0)) -> 105.5 | G31: ='Alle Livsforløp'!F33 -> 0 | H31: ='Alle Livsforløp'!G33 -> 1.6 | I31: ='Alle Livsforløp'!H33 -> 1.6 | J31: ='Alle Livsforløp'!I33 -> 1.6 | K31: ='Alle Livsforløp'!J33 -> 1.6 | L31: ='Alle Livsforløp'!K33 -> 1.6 | M31: ='Alle Livsforløp'!L33 -> 1.6 | N31: ='Alle Livsforløp'!M33 -> 1.6 | O31: ='Alle Livsforløp'!N33 -> 1.6 | P31: ='Alle Livsforløp'!O33 -> 1.6 | Q31: ='Alle Livsforløp'!P33 -> 1.6 | R31: ='Alle Livsforløp'!Q33 -> 2.143 | S31: ='Alle Livsforløp'!R33 -> 2.143 | T31: ='Alle Livsforløp'!S33 -> 2.143 | U31: ='Alle Livsforløp'!T33 -> 2.143 | V31: ='Alle Livsforløp'!U33 -> 4.545 | W31: ='Alle Livsforløp'!V33 -> 4.129 | X31: ='Alle Livsforløp'!W33 -> 6.57 | Y31: ='Alle Livsforløp'!X33 -> 8.087 | Z31: ='Alle Livsforløp'!Y33 -> 8.101 | AA31: ='Alle Livsforløp'!Z33 -> 10.151 | AB31: ='Alle Livsforløp'!AA33 -> 10.668 | AC31: ='Alle Livsforløp'!AB33 -> 12.456 | AD31: ='Alle Livsforløp'!AC33 -> 11.813 | AE31: ='Alle Livsforløp'!AD33 -> 12.692 | AF31: ='Alle Livsforløp'!AE33 -> 12.317 | AG31: ='Alle Livsforløp'!AF33 -> 13.306 | AH31: ='Alle Livsforløp'!AG33 -> 14.279 | AI31: ='Alle Livsforløp'!AH33 -> 15.166 | AJ31: ='Alle Livsforløp'!AI33 -> 15.792 | AK31: ='Alle Livsforløp'!AJ33 -> 14.168 | AL31: ='Alle Livsforløp'!AK33 -> 14.991 | AM31: ='Alle Livsforløp'!AL33 -> 15.578 | AN31: ='Alle Livsforløp'!AM33 -> 15.507 | AO31: ='Alle Livsforløp'!AN33 -> 16.182 | AP31: ='Alle Livsforløp'!AO33 -> 16.071 | AQ31: ='Alle Livsforløp'!AP33 -> 16.985 | AR31: ='Alle Livsforløp'!AQ33 -> 17.127 | AS31: ='Alle Livsforløp'!AR33 -> 20.117 | AT31: ='Alle Livsforløp'!AS33 -> 16.737 | AU31: ='Alle Livsforløp'!AT33 -> 16.465 | AV31: ='Alle Livsforløp'!AU33 -> 16.639 | AW31: ='Alle Livsforløp'!AV33 -> 16.96 | AX31: ='Alle Livsforløp'!AW33 -> 16.39 | AY31: ='Alle Livsforløp'!AX33 -> 16.633 | AZ31: ='Alle Livsforløp'!AY33 -> 17.657 | BA31: ='Alle Livsforløp'!AZ33 -> 18.11 | BB31: ='Alle Livsforløp'!BA33 -> 17.811 | BC31: ='Alle Livsforløp'!BB33 -> 19.712 | BD31: ='Alle Livsforløp'!BC33 -> 16.121 | BE31: ='Alle Livsforløp'!BD33 -> 14.722 | BF31: ='Alle Livsforløp'!BE33 -> 14.075 | BG31: ='Alle Livsforløp'!BF33 -> 15.276 | BH31: ='Alle Livsforløp'!BG33 -> 16.326 | BI31: ='Alle Livsforløp'!BH33 -> 15.81 | BJ31: ='Alle Livsforløp'!BI33 -> 14.429 | BK31: ='Alle Livsforløp'!BJ33 -> 12.509 | BL31: ='Alle Livsforløp'!BK33 -> 13.221 | BM31: ='Alle Livsforløp'!BL33 -> 16.048 | BN31: ='Alle Livsforløp'!BM33 -> 13.455
B32: Helsetjenester - KPR
B33: Fastlege (FL) | C33: ='1. Målgruppe'!$L$34 -> 1 | D33: Antall personer benyttet | E33: 2017 | F33: =INDEX(Forudsetninger!$D$13:$S$13,MATCH('Valgte Livsforløp'!E33,Forudsetninger!$D$12:$S$12,0)) -> 105.5 | G33: ='Alle Livsforløp'!F35 -> 0 | H33: ='Alle Livsforløp'!G35 -> 48605.271 | I33: ='Alle Livsforløp'!H35 -> 47090.719 | J33: ='Alle Livsforløp'!I35 -> 43394.388 | K33: ='Alle Livsforløp'!J35 -> 41194.584 | L33: ='Alle Livsforløp'!K35 -> 40458.348 | M33: ='Alle Livsforløp'!L35 -> 39000.644 | N33: ='Alle Livsforløp'!M35 -> 39368.18 | O33: ='Alle Livsforløp'!N35 -> 39653.204 | P33: ='Alle Livsforløp'!O35 -> 39033.5 | Q33: ='Alle Livsforløp'!P35 -> 38484.9 | R33: ='Alle Livsforløp'!Q35 -> 39242.124 | S33: ='Alle Livsforløp'!R35 -> 38576.783 | T33: ='Alle Livsforløp'!S35 -> 39164.685 | U33: ='Alle Livsforløp'!T35 -> 40740.698 | V33: ='Alle Livsforløp'!U35 -> 42050.764 | W33: ='Alle Livsforløp'!V35 -> 47140.731 | X33: ='Alle Livsforløp'!W35 -> 52386.18 | Y33: ='Alle Livsforløp'!X35 -> 52554.258 | Z33: ='Alle Livsforløp'!Y35 -> 52079.1 | AA33: ='Alle Livsforløp'!Z35 -> 48228.18 | AB33: ='Alle Livsforløp'!AA35 -> 49553.7 | AC33: ='Alle Livsforløp'!AB35 -> 49155.996 | AD33: ='Alle Livsforløp'!AC35 -> 49507.975 | AE33: ='Alle Livsforløp'!AD35 -> 49782.816 | AF33: ='Alle Livsforløp'!AE35 -> 51938.758 | AG33: ='Alle Livsforløp'!AF35 -> 53327.064 | AH33: ='Alle Livsforløp'!AG35 -> 54909.939 | AI33: ='Alle Livsforløp'!AH35 -> 54757.892 | AJ33: ='Alle Livsforløp'!AI35 -> 54778.691 | AK33: ='Alle Livsforløp'!AJ35 -> 53356.074 | AL33: ='Alle Livsforløp'!AK35 -> 53238.39 | AM33: ='Alle Livsforløp'!AL35 -> 52626.417 | AN33: ='Alle Livsforløp'!AM35 -> 52539.732 | AO33: ='Alle Livsforløp'!AN35 -> 51962.441 | AP33: ='Alle Livsforløp'!AO35 -> 52900.674 | AQ33: ='Alle Livsforløp'!AP35 -> 51417.248 | AR33: ='Alle Livsforløp'!AQ35 -> 52040.52 | AS33: ='Alle Livsforløp'!AR35 -> 51655.047 | AT33: ='Alle Livsforløp'!AS35 -> 51595.606 | AU33: ='Alle Livsforløp'!AT35 -> 50438.586 | AV33: ='Alle Livsforløp'!AU35 -> 51827.44 | AW33: ='Alle Livsforløp'!AV35 -> 53402.37 | AX33: ='Alle Livsforløp'!AW35 -> 56113.161 | AY33: ='Alle Livsforløp'!AX35 -> 56504.277 | AZ33: ='Alle Livsforløp'!AY35 -> 58692.76 | BA33: ='Alle Livsforløp'!AZ35 -> 59149.035 | BB33: ='Alle Livsforløp'!BA35 -> 59160.73 | BC33: ='Alle Livsforløp'!BB35 -> 60603.439 | BD33: ='Alle Livsforløp'!BC35 -> 60382.266 | BE33: ='Alle Livsforløp'!BD35 -> 59471.224 | BF33: ='Alle Livsforløp'!BE35 -> 59386.432 | BG33: ='Alle Livsforløp'!BF35 -> 58805.209 | BH33: ='Alle Livsforløp'!BG35 -> 58047.996 | BI33: ='Alle Livsforløp'!BH35 -> 55968.052 | BJ33: ='Alle Livsforløp'!BI35 -> 54692.85 | BK33: ='Alle Livsforløp'!BJ35 -> 54252.958 | BL33: ='Alle Livsforløp'!BK35 -> 53793.696 | BM33: ='Alle Livsforløp'!BL35 -> 54041.344 | BN33: ='Alle Livsforløp'!BM35 -> 54050.568
C34: ='1. Målgruppe'!$L$34 -> 1 | D34: Gj.snittlig refusjon per person | E34: 2017 | F34: =INDEX(Forudsetninger!$D$13:$S$13,MATCH('Valgte Livsforløp'!E34,Forudsetninger!$D$12:$S$12,0)) -> 105.5 | G34: ='Alle Livsforløp'!F36 -> 0 | H34: ='Alle Livsforløp'!G36 -> 1040.256 | I34: ='Alle Livsforløp'!H36 -> 933.004 | J34: ='Alle Livsforløp'!I36 -> 796.279 | K34: ='Alle Livsforløp'!J36 -> 733.551 | L34: ='Alle Livsforløp'!K36 -> 704.835 | M34: ='Alle Livsforløp'!L36 -> 683.738 | N34: ='Alle Livsforløp'!M36 -> 683.302 | O34: ='Alle Livsforløp'!N36 -> 685.201 | P34: ='Alle Livsforløp'!O36 -> 707.112 | Q34: ='Alle Livsforløp'!P36 -> 723.675 | R34: ='Alle Livsforløp'!Q36 -> 739.483 | S34: ='Alle Livsforløp'!R36 -> 758.825 | T34: ='Alle Livsforløp'!S36 -> 779.048 | U34: ='Alle Livsforløp'!T36 -> 866.026 | V34: ='Alle Livsforløp'!U36 -> 951.638 | W34: ='Alle Livsforløp'!V36 -> 762.904 | X34: ='Alle Livsforløp'!W36 -> 607.425 | Y34: ='Alle Livsforløp'!X36 -> 657.319 | Z34: ='Alle Livsforløp'!Y36 -> 695.527 | AA34: ='Alle Livsforløp'!Z36 -> 746.682 | AB34: ='Alle Livsforløp'!AA36 -> 770.023 | AC34: ='Alle Livsforløp'!AB36 -> 807.058 | AD34: ='Alle Livsforløp'!AC36 -> 859.542 | AE34: ='Alle Livsforløp'!AD36 -> 920.28 | AF34: ='Alle Livsforløp'!AE36 -> 985.251 | AG34: ='Alle Livsforløp'!AF36 -> 1045.444 | AH34: ='Alle Livsforløp'!AG36 -> 1084.458 | AI34: ='Alle Livsforløp'!AH36 -> 1142.148 | AJ34: ='Alle Livsforløp'!AI36 -> 1155.185 | AK34: ='Alle Livsforløp'!AJ36 -> 1188.91 | AL34: ='Alle Livsforløp'!AK36 -> 1193.265 | AM34: ='Alle Livsforløp'!AL36 -> 1186.646 | AN34: ='Alle Livsforløp'!AM36 -> 1201.625 | AO34: ='Alle Livsforløp'!AN36 -> 1176.963 | AP34: ='Alle Livsforløp'!AO36 -> 1189.028 | AQ34: ='Alle Livsforløp'!AP36 -> 1173.766 | AR34: ='Alle Livsforløp'!AQ36 -> 1174.177 | AS34: ='Alle Livsforløp'!AR36 -> 1145.922 | AT34: ='Alle Livsforløp'!AS36 -> 1147.247 | AU34: ='Alle Livsforløp'!AT36 -> 1134.113 | AV34: ='Alle Livsforløp'!AU36 -> 1142.588 | AW34: ='Alle Livsforløp'!AV36 -> 1133.132 | AX34: ='Alle Livsforløp'!AW36 -> 1149.652 | AY34: ='Alle Livsforløp'!AX36 -> 1154.453 | AZ34: ='Alle Livsforløp'!AY36 -> 1150.807 | BA34: ='Alle Livsforløp'!AZ36 -> 1183.907 | BB34: ='Alle Livsforløp'!BA36 -> 1201.538 | BC34: ='Alle Livsforløp'!BB36 -> 1217.944 | BD34: ='Alle Livsforløp'!BC36 -> 1230.47 | BE34: ='Alle Livsforløp'!BD36 -> 1240.787 | BF34: ='Alle Livsforløp'!BE36 -> 1254.428 | BG34: ='Alle Livsforløp'!BF36 -> 1264.33 | BH34: ='Alle Livsforløp'!BG36 -> 1273.195 | BI34: ='Alle Livsforløp'!BH36 -> 1304.78 | BJ34: ='Alle Livsforløp'!BI36 -> 1302.589 | BK34: ='Alle Livsforløp'!BJ36 -> 1326.053 | BL34: ='Alle Livsforløp'!BK36 -> 1331.941 | BM34: ='Alle Livsforløp'!BL36 -> 1332.92 | BN34: ='Alle Livsforløp'!BM36 -> 1357.312
B35: Helsestasjon (HS) | C35: ='1. Målgruppe'!$L$34 -> 1 | D35: Antall personer benyttet | E35: 2017 | F35: =INDEX(Forudsetninger!$D$13:$S$13,MATCH('Valgte Livsforløp'!E35,Forudsetninger!$D$12:$S$12,0)) -> 105.5 | G35: ='Alle Livsforløp'!F37 -> 0 | H35: ='Alle Livsforløp'!G37 -> 0 | I35: ='Alle Livsforløp'!H37 -> 0 | J35: ='Alle Livsforløp'!I37 -> 0 | K35: ='Alle Livsforløp'!J37 -> 0 | L35: ='Alle Livsforløp'!K37 -> 0 | M35: ='Alle Livsforløp'!L37 -> 0 | N35: ='Alle Livsforløp'!M37 -> 0 | O35: ='Alle Livsforløp'!N37 -> 0 | P35: ='Alle Livsforløp'!O37 -> 0 | Q35: ='Alle Livsforløp'!P37 -> 0 | R35: ='Alle Livsforløp'!Q37 -> 0 | S35: ='Alle Livsforløp'!R37 -> 0 | T35: ='Alle Livsforløp'!S37 -> 0 | U35: ='Alle Livsforløp'!T37 -> 0 | V35: ='Alle Livsforløp'!U37 -> 0 | W35: ='Alle Livsforløp'!V37 -> 0 | X35: ='Alle Livsforløp'!W37 -> 65.076 | Y35: ='Alle Livsforløp'!X37 -> 131.058 | Z35: ='Alle Livsforløp'!Y37 -> 259.1 | AA35: ='Alle Livsforløp'!Z37 -> 462.462 | AB35: ='Alle Livsforløp'!AA37 -> 876.46 | AC35: ='Alle Livsforløp'!AB37 -> 1074.448 | AD35: ='Alle Livsforløp'!AC37 -> 1612.2 | AE35: ='Alle Livsforløp'!AD37 -> 2034.72 | AF35: ='Alle Livsforløp'!AE37 -> 2715.297 | AG35: ='Alle Livsforløp'!AF37 -> 3574.2 | AH35: ='Alle Livsforløp'!AG37 -> 4252.038 | AI35: ='Alle Livsforløp'!AH37 -> 4752.02 | AJ35: ='Alle Livsforløp'!AI37 -> 5105.87 | AK35: ='Alle Livsforløp'!AJ37 -> 5172.634 | AL35: ='Alle Livsforløp'!AK37 -> 5033.19 | AM35: ='Alle Livsforløp'!AL37 -> 4472.896 | AN35: ='Alle Livsforløp'!AM37 -> 4100.323 | AO35: ='Alle Livsforløp'!AN37 -> 3528.741 | AP35: ='Alle Livsforløp'!AO37 -> 3004.926 | AQ35: ='Alle Livsforløp'!AP37 -> 2461.464 | AR35: ='Alle Livsforløp'!AQ37 -> 1945.44 | AS35: ='Alle Livsforløp'!AR37 -> 1509.178 | AT35: ='Alle Livsforløp'!AS37 -> 1158.686 | AU35: ='Alle Livsforløp'!AT37 -> 863.902 | AV35: ='Alle Livsforløp'!AU37 -> 613.746 | AW35: ='Alle Livsforløp'!AV37 -> 419.94 | AX35: ='Alle Livsforløp'!AW37 -> 218.907 | AY35: ='Alle Livsforløp'!AX37 -> 146.574 | AZ35: ='Alle Livsforløp'!AY37 -> 75.635 | BA35: ='Alle Livsforløp'!AZ37 -> 75.735 | BB35: ='Alle Livsforløp'!BA37 -> 74.887 | BC35: ='Alle Livsforløp'!BB37 -> 0 | BD35: ='Alle Livsforløp'!BC37 -> 0 | BE35: ='Alle Livsforløp'!BD37 -> 0 | BF35: ='Alle Livsforløp'!BE37 -> 0 | BG35: ='Alle Livsforløp'!BF37 -> 0 | BH35: ='Alle Livsforløp'!BG37 -> 0 | BI35: ='Alle Livsforløp'!BH37 -> 0 | BJ35: ='Alle Livsforløp'!BI37 -> 0 | BK35: ='Alle Livsforløp'!BJ37 -> 0 | BL35: ='Alle Livsforløp'!BK37 -> 0 | BM35: ='Alle Livsforløp'!BL37 -> 0 | BN35: ='Alle Livsforløp'!BM37 -> 0
C36: ='1. Målgruppe'!$L$34 -> 1 | D36: Gj.snittlig refusjon per person | E36: 2017 | F36: =INDEX(Forudsetninger!$D$13:$S$13,MATCH('Valgte Livsforløp'!E36,Forudsetninger!$D$12:$S$12,0)) -> 105.5 | G36: ='Alle Livsforløp'!F38 -> 0 | H36: ='Alle Livsforløp'!G38 -> 0 | I36: ='Alle Livsforløp'!H38 -> 0 | J36: ='Alle Livsforløp'!I38 -> 0 | K36: ='Alle Livsforløp'!J38 -> 0 | L36: ='Alle Livsforløp'!K38 -> 0 | M36: ='Alle Livsforløp'!L38 -> 0 | N36: ='Alle Livsforløp'!M38 -> 0 | O36: ='Alle Livsforløp'!N38 -> 0 | P36: ='Alle Livsforløp'!O38 -> 0 | Q36: ='Alle Livsforløp'!P38 -> 0 | R36: ='Alle Livsforløp'!Q38 -> 0 | S36: ='Alle Livsforløp'!R38 -> 0 | T36: ='Alle Livsforløp'!S38 -> 0 | U36: ='Alle Livsforløp'!T38 -> 0 | V36: ='Alle Livsforløp'!U38 -> 0 | W36: ='Alle Livsforløp'!V38 -> 756.37 | X36: ='Alle Livsforløp'!W38 -> 997.717 | Y36: ='Alle Livsforløp'!X38 -> 856.477 | Z36: ='Alle Livsforløp'!Y38 -> 869.672 | AA36: ='Alle Livsforløp'!Z38 -> 899.283 | AB36: ='Alle Livsforløp'!AA38 -> 918.035 | AC36: ='Alle Livsforløp'!AB38 -> 866.406 | AD36: ='Alle Livsforløp'!AC38 -> 851.785 | AE36: ='Alle Livsforløp'!AD38 -> 869.821 | AF36: ='Alle Livsforløp'!AE38 -> 852.722 | AG36: ='Alle Livsforløp'!AF38 -> 862.447 | AH36: ='Alle Livsforløp'!AG38 -> 854.587 | AI36: ='Alle Livsforløp'!AH38 -> 829.98 | AJ36: ='Alle Livsforløp'!AI38 -> 826.436 | AK36: ='Alle Livsforløp'!AJ38 -> 821.218 | AL36: ='Alle Livsforløp'!AK38 -> 815.611 | AM36: ='Alle Livsforløp'!AL38 -> 803.125 | AN36: ='Alle Livsforløp'!AM38 -> 802.892 | AO36: ='Alle Livsforløp'!AN38 -> 794.28 | AP36: ='Alle Livsforløp'!AO38 -> 802.882 | AQ36: ='Alle Livsforløp'!AP38 -> 811.062 | AR36: ='Alle Livsforløp'!AQ38 -> 801.034 | AS36: ='Alle Livsforløp'!AR38 -> 768.164 | AT36: ='Alle Livsforløp'!AS38 -> 797.211 | AU36: ='Alle Livsforløp'!AT38 -> 801.852 | AV36: ='Alle Livsforløp'!AU38 -> 809.704 | AW36: ='Alle Livsforløp'!AV38 -> 763.887 | AX36: ='Alle Livsforløp'!AW38 -> 738.323 | AY36: ='Alle Livsforløp'!AX38 -> 761.297 | AZ36: ='Alle Livsforløp'!AY38 -> 651.545 | BA36: ='Alle Livsforløp'!AZ38 -> 625.569 | BB36: ='Alle Livsforløp'!BA38 -> 600.143 | BC36: ='Alle Livsforløp'!BB38 -> 455 | BD36: ='Alle Livsforløp'!BC38 -> 587.818 | BE36: ='Alle Livsforløp'!BD38 -> 185.545 | BF36: ='Alle Livsforløp'!BE38 -> 537.6 | BG36: ='Alle Livsforløp'!BF38 -> 368.5 | BH36: ='Alle Livsforløp'!BG38 -> 126 | BI36: ='Alle Livsforløp'!BH38 -> 364.667 | BJ36: ='Alle Livsforløp'!BI38 -> 87.2 | BK36: ='Alle Livsforløp'!BJ38 -> 164 | BL36: ='Alle Livsforløp'!BK38 -> 164 | BM36: ='Alle Livsforløp'!BL38 -> 164 | BN36: ='Alle Livsforløp'!BM38 -> 115.778
B37: Legevakt (LV) | C37: ='1. Målgruppe'!$L$34 -> 1 | D37: Antall personer benyttet | E37: 2017 | F37: =INDEX(Forudsetninger!$D$13:$S$13,MATCH('Valgte Livsforløp'!E37,Forudsetninger!$D$12:$S$12,0)) -> 105.5 | G37: ='Alle Livsforløp'!F39 -> 0 | H37: ='Alle Livsforløp'!G39 -> 31796.193 | I37: ='Alle Livsforløp'!H39 -> 28147.542 | J37: ='Alle Livsforløp'!I39 -> 23435.367 | K37: ='Alle Livsforløp'!J39 -> 19874.58 | L37: ='Alle Livsforløp'!K39 -> 17836.476 | M37: ='Alle Livsforløp'!L39 -> 15424.692 | N37: ='Alle Livsforløp'!M39 -> 14650.126 | O37: ='Alle Livsforløp'!N39 -> 13721.059 | P37: ='Alle Livsforløp'!O39 -> 13054.25 | Q37: ='Alle Livsforløp'!P39 -> 12428.73 | R37: ='Alle Livsforløp'!Q39 -> 12172.032 | S37: ='Alle Livsforløp'!R39 -> 11641.148 | T37: ='Alle Livsforløp'!S39 -> 11456.76 | U37: ='Alle Livsforløp'!T39 -> 11375.248 | V37: ='Alle Livsforløp'!U39 -> 11788.798 | W37: ='Alle Livsforløp'!V39 -> 13167.108 | X37: ='Alle Livsforløp'!W39 -> 14902.404 | Y37: ='Alle Livsforløp'!X39 -> 16316.721 | Z37: ='Alle Livsforløp'!Y39 -> 18525.65 | AA37: ='Alle Livsforløp'!Z39 -> 17573.556 | AB37: ='Alle Livsforløp'!AA39 -> 17596.62 | AC37: ='Alle Livsforløp'!AB39 -> 16586.791 | AD37: ='Alle Livsforløp'!AC39 -> 16390.7 | AE37: ='Alle Livsforløp'!AD39 -> 16006.464 | AF37: ='Alle Livsforløp'!AE39 -> 16013.29 | AG37: ='Alle Livsforløp'!AF39 -> 15869.448 | AH37: ='Alle Livsforløp'!AG39 -> 16128.42 | AI37: ='Alle Livsforløp'!AH39 -> 15718.22 | AJ37: ='Alle Livsforløp'!AI39 -> 15244.669 | AK37: ='Alle Livsforløp'!AJ39 -> 14525.89 | AL37: ='Alle Livsforløp'!AK39 -> 14107.11 | AM37: ='Alle Livsforløp'!AL39 -> 13768.133 | AN37: ='Alle Livsforløp'!AM39 -> 13551.915 | AO37: ='Alle Livsforløp'!AN39 -> 13146.29 | AP37: ='Alle Livsforløp'!AO39 -> 13137.816 | AQ37: ='Alle Livsforløp'!AP39 -> 12444.068 | AR37: ='Alle Livsforløp'!AQ39 -> 12367.44 | AS37: ='Alle Livsforløp'!AR39 -> 11867.627 | AT37: ='Alle Livsforløp'!AS39 -> 11791.334 | AU37: ='Alle Livsforløp'!AT39 -> 11363.634 | AV37: ='Alle Livsforløp'!AU39 -> 11592.98 | AW37: ='Alle Livsforløp'!AV39 -> 11758.32 | AX37: ='Alle Livsforløp'!AW39 -> 12112.854 | AY37: ='Alle Livsforløp'!AX39 -> 12092.355 | AZ37: ='Alle Livsforløp'!AY39 -> 12404.14 | BA37: ='Alle Livsforløp'!AZ39 -> 12496.275 | BB37: ='Alle Livsforløp'!BA39 -> 12206.581 | BC37: ='Alle Livsforløp'!BB39 -> 12686.218 | BD37: ='Alle Livsforløp'!BC39 -> 12485.055 | BE37: ='Alle Livsforløp'!BD39 -> 12218.098 | BF37: ='Alle Livsforløp'!BE39 -> 12213.712 | BG37: ='Alle Livsforløp'!BF39 -> 11948.182 | BH37: ='Alle Livsforløp'!BG39 -> 11440.116 | BI37: ='Alle Livsforløp'!BH39 -> 11166.54 | BJ37: ='Alle Livsforløp'!BI39 -> 10806.78 | BK37: ='Alle Livsforløp'!BJ39 -> 10682.265 | BL37: ='Alle Livsforløp'!BK39 -> 10285.968 | BM37: ='Alle Livsforløp'!BL39 -> 10260.208 | BN37: ='Alle Livsforløp'!BM39 -> 10520.332
C38: ='1. Målgruppe'!$L$34 -> 1 | D38: Gj.snittlig refusjon per person | E38: 2017 | F38: =INDEX(Forudsetninger!$D$13:$S$13,MATCH('Valgte Livsforløp'!E38,Forudsetninger!$D$12:$S$12,0)) -> 105.5 | G38: ='Alle Livsforløp'!F40 -> 0 | H38: ='Alle Livsforløp'!G40 -> 791.862 | I38: ='Alle Livsforløp'!H40 -> 710.276 | J38: ='Alle Livsforløp'!I40 -> 613.449 | K38: ='Alle Livsforløp'!J40 -> 559.967 | L38: ='Alle Livsforløp'!K40 -> 526.658 | M38: ='Alle Livsforløp'!L40 -> 508.974 | N38: ='Alle Livsforløp'!M40 -> 492.283 | O38: ='Alle Livsforløp'!N40 -> 489.389 | P38: ='Alle Livsforløp'!O40 -> 487.884 | Q38: ='Alle Livsforløp'!P40 -> 485.821 | R38: ='Alle Livsforløp'!Q40 -> 480.094 | S38: ='Alle Livsforløp'!R40 -> 485.041 | T38: ='Alle Livsforløp'!S40 -> 496.446 | U38: ='Alle Livsforløp'!T40 -> 527.49 | V38: ='Alle Livsforløp'!U40 -> 581.232 | W38: ='Alle Livsforløp'!V40 -> 451.955 | X38: ='Alle Livsforløp'!W40 -> 356.833 | Y38: ='Alle Livsforløp'!X40 -> 377.004 | Z38: ='Alle Livsforløp'!Y40 -> 381.717 | AA38: ='Alle Livsforløp'!Z40 -> 410.435 | AB38: ='Alle Livsforløp'!AA40 -> 387.779 | AC38: ='Alle Livsforløp'!AB40 -> 390.829 | AD38: ='Alle Livsforløp'!AC40 -> 381.48 | AE38: ='Alle Livsforløp'!AD40 -> 399.964 | AF38: ='Alle Livsforløp'!AE40 -> 407.234 | AG38: ='Alle Livsforløp'!AF40 -> 418.988 | AH38: ='Alle Livsforløp'!AG40 -> 433.752 | AI38: ='Alle Livsforløp'!AH40 -> 464.589 | AJ38: ='Alle Livsforløp'!AI40 -> 448.658 | AK38: ='Alle Livsforløp'!AJ40 -> 451.88 | AL38: ='Alle Livsforløp'!AK40 -> 462.335 | AM38: ='Alle Livsforløp'!AL40 -> 459.435 | AN38: ='Alle Livsforløp'!AM40 -> 434.801 | AO38: ='Alle Livsforløp'!AN40 -> 451.916 | AP38: ='Alle Livsforløp'!AO40 -> 429.939 | AQ38: ='Alle Livsforløp'!AP40 -> 415.029 | AR38: ='Alle Livsforløp'!AQ40 -> 451.86 | AS38: ='Alle Livsforløp'!AR40 -> 436.979 | AT38: ='Alle Livsforløp'!AS40 -> 427.954 | AU38: ='Alle Livsforløp'!AT40 -> 435.547 | AV38: ='Alle Livsforløp'!AU40 -> 433.972 | AW38: ='Alle Livsforløp'!AV40 -> 444.953 | AX38: ='Alle Livsforløp'!AW40 -> 446.008 | AY38: ='Alle Livsforløp'!AX40 -> 423.098 | AZ38: ='Alle Livsforløp'!AY40 -> 442.387 | BA38: ='Alle Livsforløp'!AZ40 -> 457.704 | BB38: ='Alle Livsforløp'!BA40 -> 475.21 | BC38: ='Alle Livsforløp'!BB40 -> 440.502 | BD38: ='Alle Livsforløp'!BC40 -> 437.758 | BE38: ='Alle Livsforløp'!BD40 -> 461.177 | BF38: ='Alle Livsforløp'!BE40 -> 494.506 | BG38: ='Alle Livsforløp'!BF40 -> 472.216 | BH38: ='Alle Livsforløp'!BG40 -> 442.4 | BI38: ='Alle Livsforløp'!BH40 -> 440.928 | BJ38: ='Alle Livsforløp'!BI40 -> 456.652 | BK38: ='Alle Livsforløp'!BJ40 -> 485.897 | BL38: ='Alle Livsforløp'!BK40 -> 475.523 | BM38: ='Alle Livsforløp'!BL40 -> 475.293 | BN38: ='Alle Livsforløp'!BM40 -> 483.663
